Workbook

Sheet Filtro
A1: Mes | B1: (Todas)
A2: Establecimiento | B2: (Todas)
A3: Comuna/ Hospital | B3: (Todas)
A5: Etiquetas de fila | B5: Suma de Col01 | C5: Suma de Col02 | D5: Suma de Col03 | E5: Suma de Col04 | F5: Suma de Col05 | G5: Suma de Col06 | H5: Suma de Col07 | I5: Suma de Col08 | J5: Suma de Col09 | K5: Suma de Col10 | L5: Suma de Col11 | M5: Suma de Col12 | N5: Suma de Col13 | O5: Suma de Col14 | P5: Suma de Col15 | Q5: Suma de Col16 | R5: Suma de Col17 | S5: Suma de Col18 | T5: Suma de Col19 | U5: Suma de Col20 | V5: Suma de Col21 | W5: Suma de Col22 | X5: Suma de Col23 | Y5: Suma de Col24 | Z5: Suma de Col25 | AA5: Suma de Col26 | AB5: Suma de Col27 | AC5: Suma de Col28 | AD5: Suma de Col29 | AE5: Suma de Col30 | AF5: Suma de Col31 | AG5: Suma de Col32 | AH5: Suma de Col33 | AI5: Suma de Col34 | AJ5: Suma de Col35 | AK5: Suma de Col36 | AL5: Suma de Col37 | AM5: Suma de Col38 | AN5: Suma de Col39 | AO5: Suma de Col40 | AP5: Suma de Col41 | AQ5: Suma de col42 | AR5: Suma de col43 | AS5: Suma de col44 | AT5: Suma de col45 | AU5: Suma de col46 | AV5: Suma de col47 | AW5: Suma de col48
A6: 01010014 | B6: 61494 | C6: 61494 | D6: 61494 | Z6: 0 | AA6: 61461 | AB6: 33 | AJ6: 941280 | AK6: 391101840
A7: 01010020 | B7: 1979 | C7: 1979 | D7: 1979 | E7: 0 | F7: 0 | Z7: 0 | AA7: 1979 | AB7: 0 | AJ7: 356680 | AK7: 4769390
A8: 01010021 | B8: 23511 | C8: 23510 | D8: 23510 | E8: 0 | F8: 1 | Z8: 0 | AA8: 2769 | AB8: 20745 | AJ8: 115440 | AK8: 18337800
A9: 01010022 | B9: 19383 | C9: 19358 | D9: 19358 | E9: 0 | F9: 25 | Z9: 8922 | AA9: 10084 | AB9: 377 | AJ9: 284160 | AK9: 37167360
A10: 01010025 | B10: 22090 | C10: 21957 | D10: 21957 | E10: 0 | F10: 133 | Z10: 0 | AA10: 21836 | AB10: 254 | AC10: 637
A11: 01010029 | B11: 598 | C11: 598 | D11: 598 | F11: 0 | Z11: 0 | AA11: 598 | AB11: 0 | AJ11: 696000 | AK11: 2774720
A12: 01010031 | B12: 236 | C12: 236 | D12: 236 | F12: 0 | Z12: 0 | AA12: 236 | AB12: 0 | AJ12: 382500 | AK12: 601800
A13: 01010032 | B13: 0 | C13: 0 | D13: 0 | F13: 0 | Z13: 0 | AA13: 0 | AB13: 0 | AJ13: 117000 | AK13: 0
A14: 01010033 | B14: 1450 | C14: 1450 | D14: 1450 | E14: 0 | F14: 0 | Z14: 338 | AA14: 1083 | AB14: 0
A15: 01010035 | B15: 2261 | C15: 2260 | D15: 2260 | E15: 0 | F15: 1 | Z15: 2 | AA15: 2245 | AB15: 0 | AJ15: 329290 | AK15: 4994600
A16: 01010036 | B16: 10083 | C16: 10083 | D16: 10083 | E16: 0 | F16: 0 | Z16: 9371 | AA16: 712 | AB16: 0 | AJ16: 189230 | AK16: 12805410
A17: 01010037 | B17: 18688 | C17: 18601 | D17: 18601 | E17: 0 | F17: 87 | Z17: 13522 | AA17: 5132 | AB17: 0
A18: 01010038 | B18: 7496 | C18: 7496 | D18: 7496 | E18: 0 | F18: 0 | Z18: 6555 | AA18: 850 | AB18: 58
A19: 01010042 | B19: 33373 | C19: 33356 | D19: 33354 | E19: 2 | F19: 17 | Z19: 3745 | AA19: 26198 | AB19: 3456 | AJ19: 125800 | AK19: 28350900
A20: 01010047 | B20: 2281 | C20: 2281 | D20: 2281 | Z20: 100 | AA20: 2164 | AB20: 0 | AH20: 75
A21: 01010048 | B21: 682161 | C21: 682161 | D21: 682161 | E21: 0 | F21: 0 | Z21: 159800 | AA21: 492006 | AB21: 30355
A22: 01010049 | B22: 1697 | C22: 1697 | D22: 1697 | E22: 0 | F22: 0 | Z22: 0 | AA22: 1697 | AB22: 0
A23: 01010050 | B23: 2172 | C23: 2172 | D23: 2172 | E23: 0 | F23: 0 | Z23: 951 | AA23: 1221 | AB23: 0
A24: 01010051 | B24: 587 | C24: 587 | D24: 587 | E24: 0 | F24: 0 | Z24: 115 | AA24: 472 | AB24: 0
A25: 01010053 | B25: 273 | C25: 273 | D25: 273 | Z25: 181 | AA25: 92 | AB25: 0
A26: 01010054 | B26: 2009 | C26: 2009 | D26: 2009 | Z26: 1746 | AA26: 263 | AB26: 0
A27: 01010055 | B27: 15791 | C27: 15791 | D27: 15791 | E27: 0 | F27: 0 | Z27: 1979 | AA27: 13423 | AB27: 281
A28: 01010056 | B28: 272 | C28: 272 | D28: 272 | Z28: 149 | AA28: 123
A29: 01010057 | B29: 235 | C29: 235 | D29: 235 | Z29: 130 | AA29: 105
A30: 01010058 | B30: 290 | C30: 290 | D30: 290 | Z30: 160 | AA30: 130
A31: 01010060 | B31: 4 | C31: 4 | D31: 4 | Z31: 2 | AA31: 2
A32: 01010061 | B32: 389 | C32: 389 | D32: 389 | Z32: 19 | AA32: 370 | AB32: 0
A33: 01010062 | B33: 233 | C33: 233 | D33: 233 | Z33: 190 | AA33: 43 | AB33: 0
A34: 01010063 | B34: 912 | C34: 912 | D34: 912 | Z34: 523 | AA34: 389 | AB34: 0
A35: 01010065 | B35: 173 | C35: 173 | D35: 173 | AA35: 173
A36: 01010066 | B36: 27059 | C36: 27059 | D36: 27059 | Z36: 0 | AA36: 25719 | AB36: 1340 | AE36: 747
A37: 01010068 | B37: 19986 | C37: 19986 | D37: 19984 | E37: 2 | Z37: 3738 | AA37: 16248 | AB37: 0
A38: 01010069 | B38: 745 | C38: 745 | D38: 745 | Z38: 0 | AA38: 745 | AB38: 0
A39: 01010071 | B39: 1 | C39: 1 | D39: 1 | Z39: 1
A40: 01010080 | B40: 9 | C40: 9 | D40: 9 | E40: 0 | F40: 0 | Z40: 8 | AA40: 1 | AB40: 0
A41: 01010082 | B41: 4 | C41: 4 | D41: 4 | E41: 0 | F41: 0 | Z41: 4 | AA41: 0 | AB41: 0
A42: 01010108 | B42: 1649 | C42: 1644 | D42: 1641 | E42: 3 | F42: 5 | Z42: 271 | AA42: 1351 | AB42: 29 | AG42: 126 | AH42: 52 | AI42: 4 | AJ42: 664800 | AK42: 7335270
A43: 01010109 | B43: 23 | C43: 23 | D43: 23 | E43: 0 | F43: 0 | Z43: 0 | AA43: 23 | AB43: 0 | AG43: 0 | AH43: 0 | AI43: 0 | AJ43: 816690 | AK43: 127650
A44: 01010112 | B44: 0 | C44: 0 | D44: 0 | E44: 0 | F44: 0 | Z44: 0 | AA44: 0 | AB44: 0 | AG44: 0 | AH44: 0 | AI44: 0 | AJ44: 589040 | AK44: 0
A45: 01010113 | B45: 208 | C45: 184 | D45: 184 | E45: 0 | F45: 24 | Z45: 19 | AA45: 189 | AB45: 0 | AG45: 26 | AH45: 10 | AI45: 0 | AJ45: 589040 | AK45: 732320
A46: 01010114 | B46: 24 | C46: 24 | D46: 24 | E46: 0 | F46: 0 | Z46: 8 | AA46: 16 | AB46: 0 | AG46: 10 | AH46: 19 | AI46: 0 | AJ46: 581240 | AK46: 95520
A47: 01010117 | B47: 21 | C47: 21 | D47: 21 | E47: 0 | F47: 0 | Z47: 0 | AA47: 16 | AB47: 5 | AG47: 0 | AH47: 0 | AI47: 0 | AJ47: 201660 | AK47: 28980
A48: 01010119 | B48: 33 | C48: 33 | D48: 33 | E48: 0 | F48: 0 | Z48: 4 | AA48: 27 | AB48: 2 | AG48: 0 | AH48: 0 | AI48: 4 | AJ48: 78670 | AK48: 35970
A49: 01010120 | B49: 5634 | C49: 5627 | D49: 5627 | E49: 0 | F49: 7 | Z49: 3971 | AA49: 1106 | AB49: 557 | AG49: 0 | AH49: 0 | AI49: 43 | AJ49: 170590 | AK49: 6133430
A50: 01010123 | B50: 0 | C50: 0 | D50: 0 | E50: 0 | F50: 0 | Z50: 0 | AA50: 0 | AB50: 0 | AG50: 0 | AH50: 0 | AI50: 0 | AJ50: 610240 | AK50: 0
A51: 01010126 | B51: 0 | C51: 0 | D51: 0 | E51: 0 | F51: 0 | Z51: 0 | AA51: 0 | AB51: 0 | AG51: 0 | AH51: 0 | AI51: 0 | AJ51: 206040 | AK51: 0
A52: 01010127 | B52: 2053 | C52: 2045 | D52: 2042 | E52: 3 | F52: 8 | Z52: 659 | AA52: 1286 | AB52: 108 | AG52: 0 | AH52: 0 | AI52: 0 | AJ52: 299040 | AK52: 4043160
A53: 01010128 | B53: 0 | C53: 0 | D53: 0 | E53: 0 | F53: 0 | Z53: 0 | AA53: 0 | AB53: 0 | AG53: 0 | AH53: 13 | AI53: 0 | AJ53: 583040 | AK53: 0
A54: 01010130 | B54: 19 | C54: 19 | D54: 19 | E54: 0 | F54: 0 | Z54: 4 | AA54: 15 | AB54: 0 | AG54: 9 | AH54: 15 | AI54: 0 | AJ54: 299640 | AK54: 37620
A55: 01010131 | B55: 7 | C55: 7 | D55: 7 | E55: 0 | F55: 0 | Z55: 4 | AA55: 3 | AB55: 0 | AG55: 6 | AH55: 20 | AI55: 0 | AJ55: 621340 | AK55: 29260
A56: 01010132 | B56: 4880 | C56: 4810 | D56: 4807 | E56: 3 | F56: 70 | Z56: 655 | AA56: 4166 | AB56: 59 | AG56: 133 | AH56: 3 | AI56: 41 | AJ56: 749140 | AK56: 24419560
A57: 01010133 | B57: 1218 | C57: 1218 | D57: 1218 | E57: 0 | F57: 0 | Z57: 354 | AA57: 20 | AB57: 844 | AG57: 0 | AH57: 0 | AI57: 0 | AJ57: 612040 | AK57: 5091240
A58: 01010134 | B58: 1085 | C58: 1075 | D58: 1075 | E58: 0 | F58: 10 | Z58: 282 | AA58: 794 | AB58: 9 | AG58: 352 | AH58: 95 | AI58: 2 | AJ58: 299640 | AK58: 2132900
A59: 01010135 | B59: 530 | C59: 529 | D59: 529 | E59: 0 | F59: 1 | Z59: 196 | AA59: 333 | AB59: 1 | AG59: 391 | AH59: 91 | AI59: 1 | AJ59: 621340 | AK59: 2211220
A60: 01010136 | B60: 5704 | C60: 5585 | D60: 5581 | E60: 4 | F60: 119 | Z60: 413 | AA60: 5208 | AB60: 83 | AG60: 131 | AH60: 0 | AI60: 44 | AJ60: 743380 | AK60: 28145620
A61: 01010140 | B61: 60505 | C61: 60268 | D61: 60268 | E61: 0 | F61: 237 | Z61: 29910 | AA61: 16637 | AB61: 13958 | AG61: 0 | AH61: 0 | AI61: 54 | AJ61: 338980 | AK61: 136205680
A62: 01010141 | B62: 109 | C62: 109 | D62: 109 | E62: 0 | F62: 0 | Z62: 3 | AA62: 105 | AB62: 1 | AG62: 4 | AH62: 0 | AI62: 60 | AJ62: 547060 | AK62: 80140
A63: 01010142 | B63: 43965 | C63: 43803 | D63: 43803 | E63: 0 | F63: 162 | Z63: 16849 | AA63: 15368 | AB63: 11748 | AG63: 0 | AH63: 0 | AI63: 358 | AJ63: 91760 | AK63: 27157860
A64: 01010144 | B64: 47047 | C64: 46535 | D64: 46535 | E64: 0 | F64: 512 | Z64: 16177 | AA64: 19153 | AB64: 11717 | AG64: 0 | AH64: 0 | AI64: 253 | AJ64: 102440 | AK64: 28851700
A65: 01010146 | B65: 2209 | C65: 2209 | D65: 2209 | E65: 0 | F65: 0 | Z65: 6 | AA65: 2192 | AB65: 11 | AG65: 0 | AH65: 0 | AI65: 199 | AJ65: 619120 | AK65: 9356340
A66: 01010147 | B66: 30762 | C66: 28108 | D66: 28103 | E66: 5 | F66: 2654 | Z66: 1936 | AA66: 28672 | AB66: 155 | AG66: 0 | AH66: 0 | AI66: 3851 | AJ66: 631850 | AK66: 121967020
A67: 01010148 | B67: 0 | C67: 0 | D67: 0 | E67: 0 | F67: 0 | Z67: 0 | AA67: 0 | AB67: 0 | AG67: 0 | AH67: 0 | AI67: 0 | AJ67: 136660 | AK67: 0
A68: 01010150 | B68: 2337 | C68: 2337 | D68: 2337 | E68: 0 | F68: 0 | Z68: 142 | AA68: 1707 | AB68: 488 | AG68: 0 | AH68: 1 | AI68: 446 | AJ68: 656730 | AK68: 6695090
A69: 01010151 | B69: 208771 | C69: 204143 | D69: 203808 | E69: 335 | F69: 4628 | Z69: 51124 | AA69: 111129 | AB69: 46550 | AG69: 0 | AH69: 0 | AI69: 7133 | AJ69: 417250 | AK69: 582890880
A70: 01010154 | B70: 0 | C70: 0 | D70: 0 | E70: 0 | F70: 0 | Z70: 0 | AA70: 0 | AB70: 0 | AG70: 0 | AH70: 0 | AI70: 0 | AJ70: 135790 | AK70: 0
A71: 01010155 | B71: 0 | C71: 0 | D71: 0 | E71: 0 | F71: 0 | Z71: 0 | AA71: 0 | AB71: 0 | AG71: 0 | AH71: 0 | AI71: 0 | AJ71: 618640 | AK71: 0
A72: 01010157 | B72: 251 | C72: 250 | D72: 250 | E72: 0 | F72: 1 | Z72: 116 | AA72: 73 | AB72: 62 | AG72: 0 | AH72: 0 | AI72: 0 | AJ72: 609370 | AK72: 1045000
A73: 01010160 | B73: 17202 | C73: 17135 | D73: 17135 | E73: 0 | F73: 67 | Z73: 8027 | AA73: 5942 | AB73: 3233 | AG73: 0 | AH73: 0 | AI73: 97 | AJ73: 162190 | AK73: 18874640
A74: 01010165 | B74: 136977 | C74: 136292 | D74: 136105 | E74: 187 | F74: 685 | Z74: 35163 | AA74: 65040 | AB74: 36787 | AG74: 0 | AH74: 0 | AI74: 897 | AJ74: 202650 | AK74: 187824900
A75: 01010166 | B75: 54484 | C75: 50551 | D75: 50232 | E75: 319 | F75: 3933 | Z75: 15288 | AA75: 24122 | AB75: 15074 | AG75: 0 | AH75: 0 | AI75: 3933 | AJ75: 125800 | AK75: 42697200
A76: 01010167 | B76: 54485 | C76: 50552 | D76: 50233 | E76: 319 | F76: 3933 | Z76: 15288 | AA76: 24122 | AB76: 15075 | AG76: 0 | AH76: 0 | AI76: 3933 | AJ76: 125110 | AK76: 42698050
A77: 01010168 | B77: 31263 | C77: 31116 | D77: 31116 | E77: 0 | F77: 147 | Z77: 9282 | AA77: 10569 | AB77: 11412 | AG77: 0 | AH77: 0 | AI77: 0 | AJ77: 91760 | AK77: 19291920
A78: 01010169 | B78: 41075 | C78: 40928 | D78: 40928 | E78: 0 | F78: 147 | Z78: 14841 | AA78: 13365 | AB78: 12869 | AG78: 0 | AH78: 0 | AI78: 0 | AJ78: 93170 | AK78: 25375360
A79: 01010170 | B79: 54410 | C79: 50476 | D79: 50157 | E79: 319 | F79: 3934 | Z79: 15215 | AA79: 24121 | AB79: 15074 | AG79: 0 | AH79: 0 | AI79: 3933 | AJ79: 161320 | AK79: 54671130
A80: 01010171 | B80: 96444 | C80: 92364 | D80: 92044 | E80: 320 | F80: 4080 | Z80: 31086 | AA80: 37430 | AB80: 27928 | AG80: 0 | AH80: 0 | AI80: 3933 | AJ80: 160600 | AK80: 100327960
A81: 01010172 | B81: 211 | C81: 211 | D81: 211 | E81: 0 | F81: 0 | Z81: 124 | AA81: 82 | AB81: 5 | AG81: 0 | AH81: 0 | AI81: 0 | AJ81: 128380 | AK81: 179350
A82: 01010173 | B82: 2912 | C82: 2911 | D82: 2911 | E82: 0 | F82: 1 | Z82: 1462 | AA82: 16 | AB82: 1434 | AG82: 0 | AH82: 0 | AI82: 0 | AJ82: 256350 | AK82: 4977810
A83: 01010174 | B83: 0 | C83: 0 | D83: 0 | E83: 0 | F83: 0 | Z83: 0 | AA83: 0 | AB83: 0 | AG83: 0 | AH83: 0 | AI83: 0 | AJ83: 410140 | AK83: 0
A84: 01010176 | B84: 95 | C84: 95 | D84: 95 | E84: 0 | F84: 0 | Z84: 29 | AA84: 56 | AB84: 10 | AG84: 0 | AH84: 0 | AI84: 0 | AJ84: 214920 | AK84: 131100
A85: 01010185 | B85: 1009 | C85: 1005 | D85: 1005 | E85: 0 | F85: 4 | Z85: 256 | AA85: 748 | AB85: 5 | AG85: 303 | AH85: 0 | AI85: 0 | AJ85: 721430 | AK85: 4964700
A86: 01010186 | B86: 316 | C86: 316 | D86: 316 | E86: 0 | F86: 0 | Z86: 50 | AA86: 153 | AB86: 113 | AG86: 0 | AH86: 0 | AI86: 18 | AJ86: 254490 | AK86: 688880
A87: 01010188 | B87: 108282 | C87: 107646 | D87: 107449 | E87: 197 | F87: 636 | Z87: 34458 | AA87: 38102 | AB87: 35735 | AG87: 0 | AH87: 0 | AI87: 198 | AJ87: 317630 | AK87: 234093530
A88: 01010189 | B88: 40961 | C88: 37300 | D88: 37156 | E88: 144 | F88: 3661 | Z88: 7055 | AA88: 30785 | AB88: 3157 | AG88: 0 | AH88: 0 | AI88: 3715 | AJ88: 97980 | AK88: 18949560
A89: 01010192 | B89: 4 | C89: 4 | D89: 4 | E89: 0 | F89: 0 | Z89: 3 | AA89: 1 | AB89: 0 | AG89: 2 | AH89: 5 | AI89: 0 | AJ89: 1185480 | AK89: 32040
A90: 01010193 | B90: 0 | C90: 0 | D90: 0 | E90: 0 | F90: 0 | Z90: 0 | AA90: 0 | AB90: 0 | AG90: 0 | AH90: 3 | AI90: 0 | AJ90: 1243890 | AK90: 0
A91: 01010194 | B91: 28 | C91: 28 | D91: 28 | E91: 0 | F91: 0 | Z91: 12 | AA91: 16 | AB91: 0 | AG91: 14 | AH91: 58 | AI91: 0 | AJ91: 4074390 | AK91: 769440
A92: 01010195 | B92: 28 | C92: 28 | D92: 28 | E92: 0 | F92: 0 | Z92: 12 | AA92: 16 | AB92: 0 | AG92: 12 | AH92: 53 | AI92: 0 | AJ92: 4398740 | AK92: 838040
A93: 01010196 | B93: 0 | C93: 0 | D93: 0 | E93: 0 | F93: 0 | Z93: 0 | AA93: 0 | AB93: 0 | AG93: 0 | AH93: 2 | AI93: 0 | AJ93: 2973490 | AK93: 0
A94: 01010197 | B94: 41 | C94: 41 | D94: 41 | E94: 0 | F94: 0 | Z94: 12 | AA94: 1 | AB94: 28 | AG94: 0 | AH94: 3 | AI94: 0 | AJ94: 6173030 | AK94: 381710
A95: 01010198 | B95: 9793 | C95: 9731 | D95: 9723 | E95: 8 | F95: 62 | Z95: 1810 | AA95: 2701 | AB95: 5282 | AG95: 0 | AH95: 0 | AI95: 0 | AJ95: 1414000 | AK95: 90521130
A96: 01010199 | B96: 1556 | C96: 1551 | D96: 1551 | E96: 0 | F96: 5 | Z96: 142 | AA96: 978 | AB96: 436 | AG96: 0 | AH96: 0 | AI96: 0 | AJ96: 118160 | AK96: 1194270
A97: 01010200 | B97: 0 | C97: 0 | D97: 0 | E97: 0 | F97: 0 | Z97: 0 | AA97: 0 | AB97: 0 | AG97: 0 | AH97: 0 | AI97: 0 | AJ97: 325270 | AK97: 0
A98: 01010201 | B98: 34623 | C98: 34549 | D98: 34465 | E98: 84 | F98: 74 | Z98: 17254 | AA98: 7178 | AB98: 10191 | AG98: 0 | AH98: 0 | AI98: 304 | AJ98: 517800 | AK98: 120722940
A99: 01010202 | B99: 33892 | C99: 33045 | D99: 33013 | E99: 32 | F99: 847 | Z99: 3809 | AA99: 29300 | AB99: 783 | AG99: 0 | AH99: 0 | AI99: 2595 | AJ99: 224130 | AK99: 49622450
A100: 01010204 | B100: 17838 | C100: 17694 | D100: 17668 | E100: 26 | F100: 144 | Z100: 2640 | AA100: 5165 | AB100: 10033 | AG100: 0 | AH100: 0 | AI100: 64 | AJ100: 336170 | AK100: 39046280
A101: 01010205 | B101: 0 | C101: 0 | D101: 0 | E101: 0 | F101: 0 | Z101: 0 | AA101: 0 | AB101: 0 | AG101: 0 | AH101: 0 | AI101: 0 | AJ101: 765740 | AK101: 0
A102: 01010206 | B102: 1399 | C102: 1393 | D102: 1393 | E102: 0 | F102: 6 | Z102: 300 | AA102: 885 | AB102: 214 | AG102: 0 | AH102: 0 | AI102: 0 | AJ102: 305460 | AK102: 2758140
A103: 01010207 | B103: 216 | C103: 216 | D103: 216 | E103: 0 | F103: 0 | Z103: 0 | AA103: 216 | AB103: 0 | AG103: 0 | AH103: 0 | AI103: 0 | AJ103: 889260 | AK103: 1321920
A104: 01010208 | B104: 1654 | C104: 1654 | D104: 1654 | E104: 0 | F104: 0 | Z104: 3 | AA104: 1651 | AB104: 0 | AG104: 0 | AH104: 0 | AI104: 3 | AJ104: 93620 | AK104: 1027340
A105: 01010209 | B105: 4115 | C105: 4110 | D105: 4108 | E105: 2 | F105: 5 | Z105: 827 | AA105: 2380 | AB105: 908 | AG105: 0 | AH105: 0 | AI105: 41 | AJ105: 183940 | AK105: 5177920
A106: 01010210 | B106: 12095 | C106: 12085 | D106: 12085 | E106: 0 | F106: 10 | Z106: 3234 | AA106: 7354 | AB106: 1507 | AG106: 0 | AH106: 0 | AI106: 41 | AJ106: 203370 | AK106: 16631480
A107: 01010212 | B107: 54125 | C107: 53603 | D107: 53538 | E107: 65 | F107: 522 | Z107: 24026 | AA107: 23817 | AB107: 6282 | AG107: 0 | AH107: 0 | AI107: 61 | AJ107: 163990 | AK107: 58356420
A108: 01010214 | B108: 0 | C108: 0 | D108: 0 | E108: 0 | F108: 0 | Z108: 0 | AA108: 0 | AB108: 0 | AG108: 0 | AH108: 0 | AI108: 0 | AJ108: 300510 | AK108: 0
A109: 01010215 | B109: 0 | C109: 0 | D109: 0 | E109: 0 | F109: 0 | Z109: 0 | AA109: 0 | AB109: 0 | AG109: 0 | AH109: 0 | AI109: 0 | AJ109: 657300 | AK109: 0
A110: 01010216 | B110: 13 | C110: 13 | D110: 13 | E110: 0 | F110: 0 | Z110: 6 | AA110: 7 | AB110: 0 | AG110: 14 | AH110: 2 | AI110: 0 | AJ110: 446600 | AK110: 39650
A111: 01010217 | B111: 990 | C111: 990 | D111: 990 | E111: 0 | F111: 0 | Z111: 16 | AA111: 938 | AB111: 36 | AG111: 0 | AH111: 2 | AI111: 1 | AJ111: 214120 | AK111: 1277900
A112: 01010218 | B112: 15350 | C112: 15006 | D112: 15006 | E112: 0 | F112: 344 | Z112: 759 | AA112: 14135 | AB112: 456 | AG112: 0 | AH112: 0 | AI112: 253 | AJ112: 192810 | AK112: 19854180
A113: 01010219 | B113: 17664 | C113: 17657 | D113: 17657 | E113: 0 | F113: 7 | Z113: 1195 | AA113: 15217 | AB113: 1282 | AG113: 0 | AH113: 0 | AI113: 39 | AJ113: 286770 | AK113: 33901440
A114: 01010220 | B114: 2083 | C114: 2083 | D114: 2083 | E114: 0 | F114: 0 | Z114: 113 | AA114: 1542 | AB114: 428 | AG114: 0 | AH114: 0 | AI114: 516 | AJ114: 408330 | AK114: 2624580
A115: 01010222 | B115: 212234 | C115: 207711 | D115: 207487 | E115: 224 | F115: 4523 | Z115: 54014 | AA115: 108737 | AB115: 49485 | AG115: 0 | AH115: 0 | AI115: 6954 | AJ115: 191070 | AK115: 261456570
A116: 01010223 | B116: 2170 | C116: 2162 | D116: 2162 | E116: 0 | F116: 8 | Z116: 274 | AA116: 1781 | AB116: 115 | AG116: 0 | AH116: 0 | AI116: 12 | AJ116: 417960 | AK116: 6233580
A117: 01010224 | B117: 15986 | C117: 15882 | D117: 15876 | E117: 6 | F117: 104 | Z117: 3756 | AA117: 3910 | AB117: 8320 | AG117: 0 | AH117: 0 | AI117: 5 | AJ117: 658380 | AK117: 70826860
A118: 01010225 | B118: 20754 | C118: 20635 | D118: 20629 | E118: 6 | F118: 119 | Z118: 4667 | AA118: 6884 | AB118: 9201 | AG118: 0 | AH118: 0 | AI118: 5 | AJ118: 522380 | AK118: 70828690
A119: 01010226 | B119: 18930 | C119: 18860 | D119: 18856 | E119: 4 | F119: 70 | Z119: 4460 | AA119: 2351 | AB119: 12121 | AG119: 5 | AH119: 0 | AI119: 2 | AJ119: 1356070 | AK119: 175055000
A120: 01010229 | B120: 20569 | C120: 20505 | D120: 20470 | E120: 35 | F120: 64 | Z120: 5064 | AA120: 9334 | AB120: 6171 | AG120: 90 | AH120: 0 | AI120: 46 | AJ120: 312450 | AK120: 41758800
A121: 01010230 | B121: 1721 | C121: 1721 | D121: 1721 | E121: 0 | F121: 0 | Z121: 115 | AA121: 1217 | AB121: 389 | AG121: 0 | AH121: 0 | AI121: 324 | AJ121: 808260 | AK121: 2013570
A122: 01010231 | B122: 500912 | C122: 494092 | D122: 493362 | E122: 730 | F122: 6820 | Z122: 202184 | AA122: 162818 | AB122: 135919 | AG122: 0 | AH122: 0 | AI122: 7189 | AJ122: 186300 | AK122: 577233540
A123: 01010232 | B123: 1090 | C123: 1090 | D123: 1090 | E123: 0 | F123: 0 | Z123: 13 | AA123: 1024 | AB123: 53 | AG123: 0 | AH123: 0 | AI123: 538 | AJ123: 822480 | AK123: 6441900
A124: 01010233 | B124: 75065 | C124: 70439 | D124: 70414 | E124: 25 | F124: 4626 | Z124: 7762 | AA124: 55710 | AB124: 1593 | AG124: 0 | AH124: 0 | AI124: 8101 | AJ124: 872880 | AK124: 416146740
A125: 01010234 | B125: 3877 | C125: 3365 | D125: 3365 | E125: 0 | F125: 512 | Z125: 490 | AA125: 3379 | AB125: 8 | AG125: 13 | AH125: 66 | AI125: 506 | AJ125: 775890 | AK125: 17868150
A126: 01010235 | B126: 0 | C126: 0 | D126: 0 | E126: 0 | F126: 0 | Z126: 0 | AA126: 0 | AB126: 0 | AG126: 0 | AH126: 0 | AI126: 0 | AJ126: 303300 | AK126: 0
A127: 01010238 | B127: 606 | C127: 606 | D127: 606 | E127: 0 | F127: 0 | Z127: 31 | AA127: 487 | AB127: 88 | AG127: 0 | AH127: 0 | AI127: 3 | AJ127: 786810 | AK127: 769620
A128: 01010239 | B128: 7172 | C128: 7030 | D128: 7029 | E128: 1 | F128: 142 | Z128: 706 | AA128: 5170 | AB128: 1296 | AG128: 0 | AH128: 0 | AI128: 41 | AJ128: 189070 | AK128: 8963460
A129: 01010241 | B129: 43638 | C129: 43153 | D129: 43102 | E129: 51 | F129: 485 | Z129: 21582 | AA129: 18340 | AB129: 3716 | AG129: 0 | AH129: 0 | AI129: 38 | AJ129: 239660 | AK129: 70687280
A130: 01010242 | B130: 95 | C130: 95 | D130: 95 | E130: 0 | F130: 0 | Z130: 18 | AA130: 29 | AB130: 48 | AG130: 8 | AH130: 0 | AI130: 3 | AJ130: 96230 | AK130: 200450
A131: 01010244 | B131: 16735 | C131: 16660 | D131: 16660 | E131: 0 | F131: 75 | Z131: 1595 | AA131: 10105 | AB131: 5035 | AG131: 46 | AH131: 0 | AI131: 94 | AJ131: 316510 | AK131: 35238610
A132: 01010245 | B132: 79930 | C132: 79528 | D132: 79443 | E132: 85 | F132: 402 | Z132: 41005 | AA132: 15839 | AB132: 23023 | AG132: 0 | AH132: 0 | AI132: 567 | AJ132: 514180 | AK132: 273930600
A133: 01010246 | B133: 130530 | C133: 125140 | D133: 125033 | E133: 107 | F133: 5390 | Z133: 17000 | AA133: 89683 | AB133: 23495 | AG133: 0 | AH133: 0 | AI133: 8453 | AJ133: 199710 | AK133: 158176620
A134: 01010247 | B134: 4021 | C134: 3712 | D134: 3711 | E134: 1 | F134: 309 | Z134: 141 | AA134: 3872 | AB134: 8 | AG134: 0 | AH134: 0 | AI134: 444 | AJ134: 834690 | AK134: 21041370
A135: 01010248 | B135: 776 | C135: 774 | D135: 774 | E135: 0 | F135: 2 | Z135: 173 | AA135: 505 | AB135: 98 | AG135: 0 | AH135: 0 | AI135: 0 | AJ135: 612040 | AK135: 3235320
A136: 01010250 | B136: 0 | C136: 0 | D136: 0 | E136: 0 | F136: 0 | Z136: 0 | AA136: 0 | AB136: 0 | AG136: 0 | AH136: 0 | AI136: 0 | AJ136: 293610 | AK136: 0
A137: 01010251 | B137: 20138 | C137: 20043 | D137: 20018 | E137: 25 | F137: 95 | Z137: 2489 | AA137: 6861 | AB137: 10788 | AG137: 13 | AH137: 0 | AI137: 18 | AJ137: 323020 | AK137: 43439060
A138: 01010254 | B138: 921 | C138: 918 | D138: 918 | E138: 0 | F138: 3 | Z138: 111 | AA138: 770 | AB138: 40 | AG138: 3 | AH138: 7 | AI138: 3 | AJ138: 412920 | AK138: 2561220
A139: 01010255 | B139: 8995 | C139: 8840 | D139: 8824 | E139: 16 | F139: 155 | Z139: 2062 | AA139: 6268 | AB139: 665 | AG139: 13 | AH139: 0 | AI139: 519 | AJ139: 408330 | AK139: 21456450
A140: 01010256 | B140: 224325 | C140: 221233 | D140: 220820 | E140: 413 | F140: 3092 | Z140: 71796 | AA140: 81344 | AB140: 62167 | AG140: 0 | AH140: 0 | AI140: 4252 | AJ140: 187500 | AK140: 278233200
A141: 01010257 | B141: 18019 | C141: 18013 | D141: 17931 | E141: 82 | F141: 6 | Z141: 8608 | AA141: 2427 | AB141: 6984 | AG141: 0 | AH141: 1 | AI141: 8 | AJ141: 256030 | AK141: 28888310
A142: 01010258 | B142: 33671 | C142: 33017 | D142: 33012 | E142: 5 | F142: 654 | Z142: 4353 | AA142: 20397 | AB142: 8935 | AG142: 0 | AH142: 0 | AI142: 693 | AJ142: 1165560 | AK142: 263881640
A143: 01010261 | B143: 609 | C143: 609 | D143: 609 | E143: 0 | F143: 0 | Z143: 57 | AA143: 374 | AB143: 178 | AG143: 45 | AH143: 30 | AI143: 137 | AJ143: 871180 | AK143: 5883720
A144: 01010262 | B144: 103383 | C144: 100735 | D144: 100594 | E144: 141 | F144: 2648 | Z144: 24029 | AA144: 52820 | AB144: 26535 | AG144: 0 | AH144: 0 | AI144: 3392 | AJ144: 1464160 | AK144: 999640360
A145: 01010263 | B145: 25145 | C145: 24925 | D145: 24925 | E145: 0 | F145: 220 | Z145: 2000 | AA145: 20266 | AB145: 2879 | AG145: 0 | AH145: 0 | AI145: 1848 | AJ145: 268850 | AK145: 45200640
A146: 01010264 | B146: 21313 | C146: 21112 | D146: 21111 | E146: 1 | F146: 201 | Z146: 1909 | AA146: 17541 | AB146: 1863 | AG146: 0 | AH146: 0 | AI146: 97 | AJ146: 248100 | AK146: 34833150
A147: 01010266 | B147: 581 | C147: 581 | D147: 581 | E147: 0 | F147: 0 | Z147: 93 | AA147: 484 | AB147: 4 | AG147: 1 | AH147: 0 | AI147: 0 | AJ147: 448000 | AK147: 1877350
A148: 01010267 | B148: 7433 | C148: 7319 | D148: 7314 | E148: 5 | F148: 114 | Z148: 1073 | AA148: 6280 | AB148: 80 | AG148: 890 | AH148: 2 | AI148: 99 | AJ148: 1019130 | AK148: 49376210
A149: 01010268 | B149: 9839 | C149: 9663 | D149: 9661 | E149: 2 | F149: 176 | Z149: 913 | AA149: 8866 | AB149: 60 | AG149: 1125 | AH149: 441 | AI149: 165 | AJ149: 2079380 | AK149: 130037060
A150: 01010270 | B150: 3 | C150: 3 | D150: 3 | E150: 0 | F150: 0 | Z150: 3 | AA150: 0 | AB150: 0 | AG150: 0 | AH150: 3 | AI150: 0 | AJ150: 6176990 | AK150: 127680
A151: 01010271 | B151: 55706 | C151: 55528 | D151: 55319 | E151: 209 | F151: 178 | Z151: 23685 | AA151: 13233 | AB151: 18788 | AG151: 0 | AH151: 0 | AI151: 0 | AJ151: 302620 | AK151: 106765670
A152: 01010272 | B152: 0 | C152: 0 | D152: 0 | E152: 0 | F152: 0 | Z152: 0 | AA152: 0 | AB152: 0 | AG152: 0 | AH152: 0 | AI152: 0 | AJ152: 1156260 | AK152: 0
A153: 01010273 | B153: 643 | C153: 643 | D153: 643 | E153: 0 | F153: 0 | Z153: 12 | AA153: 631 | AB153: 0 | AG153: 11 | AH153: 6 | AI153: 0 | AJ153: 1134940 | AK153: 4944670
A154: 01010274 | B154: 6 | C154: 6 | D154: 6 | E154: 0 | F154: 0 | Z154: 4 | AA154: 2 | AB154: 0 | AG154: 10 | AH154: 26 | AI154: 0 | AJ154: 976260 | AK154: 39780
A155: 01010275 | B155: 14 | C155: 14 | D155: 14 | E155: 0 | F155: 0 | Z155: 0 | AA155: 14 | AB155: 0 | AG155: 15 | AH155: 29 | AI155: 0 | AJ155: 738740 | AK155: 69580
A156: 01010276 | B156: 0 | C156: 0 | D156: 0 | E156: 0 | F156: 0 | Z156: 0 | AA156: 0 | AB156: 0 | AG156: 0 | AH156: 0 | AI156: 0 | AJ156: 889260 | AK156: 0
A157: 01010278 | B157: 971 | C157: 963 | D157: 963 | E157: 0 | F157: 8 | Z157: 55 | AA157: 916 | AB157: 0 | AG157: 61 | AH157: 32 | AI157: 8 | AJ157: 740540 | AK157: 4786110
A158: 01010279 | B158: 4 | C158: 4 | D158: 4 | E158: 0 | F158: 0 | Z158: 0 | AA158: 4 | AB158: 0 | AG158: 8 | AH158: 3 | AI158: 0 | AJ158: 981240 | AK158: 26520
A159: 01010280 | B159: 798 | C159: 798 | D159: 798 | E159: 0 | F159: 0 | Z159: 9 | AA159: 789 | AB159: 0 | AG159: 20 | AH159: 8 | AI159: 0 | AJ159: 975480 | AK159: 5290740
A160: 01010281 | B160: 1 | C160: 1 | D160: 1 | E160: 0 | F160: 0 | Z160: 1 | AA160: 0 | AB160: 0 | AG160: 1 | AH160: 10 | AI160: 0 | AJ160: 702840 | AK160: 4710
A161: 01010284 | B161: 2 | C161: 2 | D161: 2 | E161: 0 | F161: 0 | Z161: 0 | AA161: 2 | AB161: 0 | AG161: 1 | AH161: 0 | AI161: 1 | AJ161: 976140 | AK161: 11560
A162: 01010286 | B162: 4188 | C162: 4160 | D162: 4159 | E162: 1 | F162: 28 | Z162: 1349 | AA162: 2109 | AB162: 730 | AG162: 81 | AH162: 0 | AI162: 23 | AJ162: 729640 | AK162: 20503870
A163: 01010287 | B163: 4764 | C163: 4760 | D163: 4760 | E163: 0 | F163: 4 | Z163: 162 | AA163: 4583 | AB163: 19 | AG163: 552 | AH163: 0 | AI163: 78 | AJ163: 729640 | AK163: 23466800
A164: 01010288 | B164: 3956 | C164: 3954 | D164: 3954 | E164: 0 | F164: 2 | Z164: 135 | AA164: 3808 | AB164: 13 | AG164: 491 | AH164: 0 | AI164: 66 | AJ164: 749350 | AK164: 19493220
A165: 01010289 | B165: 117 | C165: 117 | D165: 117 | E165: 0 | F165: 0 | Z165: 5 | AA165: 112 | AB165: 0 | AG165: 47 | AH165: 11 | AI165: 0 | AJ165: 1702000 | AK165: 1345500
A166: 01010290 | B166: 80 | C166: 80 | D166: 80 | E166: 0 | F166: 0 | Z166: 0 | AA166: 79 | AB166: 1 | AG166: 62 | AH166: 32 | AI166: 13 | AJ166: 1682290 | AK166: 571790
A167: 01010291 | B167: 5703 | C167: 5698 | D167: 5697 | E167: 1 | F167: 5 | Z167: 393 | AA167: 5263 | AB167: 47 | AG167: 317 | AH167: 0 | AI167: 80 | AJ167: 754720 | AK167: 28245050
A168: 01010292 | B168: 2507 | C168: 2507 | D168: 2506 | E168: 1 | F168: 0 | Z168: 102 | AA168: 2401 | AB168: 4 | AG168: 158 | AH168: 0 | AI168: 19 | AJ168: 1949670 | AK168: 33293240
A169: 01010293 | B169: 1638 | C169: 1637 | D169: 1635 | E169: 2 | F169: 1 | Z169: 91 | AA169: 1547 | AB169: 0 | AG169: 365 | AH169: 52 | AI169: 1 | AJ169: 1108090 | AK169: 12325290
A170: 01010294 | B170: 673 | C170: 673 | D170: 673 | E170: 0 | F170: 0 | Z170: 4 | AA170: 669 | AB170: 0 | AG170: 57 | AH170: 24 | AI170: 5 | AJ170: 729640 | AK170: 3317890
A171: 01010295 | B171: 3163 | C171: 3159 | D171: 3158 | E171: 1 | F171: 4 | Z171: 148 | AA171: 3006 | AB171: 9 | AG171: 505 | AH171: 21 | AI171: 52 | AJ171: 734740 | AK171: 15568940
A172: 01010296 | B172: 5 | C172: 5 | D172: 5 | E172: 0 | F172: 0 | Z172: 4 | AA172: 1 | AB172: 0 | AG172: 10 | AH172: 19 | AI172: 0 | AJ172: 995850 | AK172: 33150
A173: 01010297 | B173: 729 | C173: 729 | D173: 729 | E173: 0 | F173: 0 | Z173: 3 | AA173: 726 | AB173: 0 | AG173: 19 | AH173: 3 | AI173: 1 | AJ173: 1682410 | AK173: 8370440
A174: 01010298 | B174: 1297 | C174: 1294 | D174: 1294 | E174: 0 | F174: 3 | Z174: 50 | AA174: 1243 | AB174: 4 | AG174: 79 | AH174: 59 | AI174: 4 | AJ174: 738740 | AK174: 6431180
A175: 01010299 | B175: 15 | C175: 15 | D175: 15 | E175: 0 | F175: 0 | Z175: 1 | AA175: 14 | AB175: 0 | AG175: 15 | AH175: 38 | AI175: 0 | AJ175: 911190 | AK175: 90450
A176: 01010300 | B176: 1263 | C176: 1263 | D176: 1263 | E176: 0 | F176: 0 | Z176: 22 | AA176: 1224 | AB176: 17 | AG176: 803 | AH176: 0 | AI176: 400 | AJ176: 1793530 | AK176: 5945640
A177: 01010301 | B177: 76919 | C177: 73720 | D177: 73717 | E177: 3 | F177: 3199 | Z177: 4842 | AA177: 71477 | AB177: 600 | AG177: 5515 | AH177: 0 | AI177: 5413 | AJ177: 644840 | AK177: 317720270
A178: 01010302 | B178: 1613 | C178: 1610 | D178: 1610 | E178: 0 | F178: 3 | Z178: 18 | AA178: 1587 | AB178: 8 | AG178: 534 | AH178: 29 | AI178: 207 | AJ178: 976140 | AK178: 9559100
A179: 01010303 | B179: 32916 | C179: 30978 | D179: 30977 | E179: 1 | F179: 1938 | Z179: 1306 | AA179: 31275 | AB179: 335 | AG179: 3810 | AH179: 230 | AI179: 3175 | AJ179: 727780 | AK179: 152706690
A180: 01010304 | B180: 15246 | C180: 15025 | D180: 15023 | E180: 2 | F180: 221 | Z180: 1865 | AA180: 13257 | AB180: 124 | AG180: 87 | AH180: 0 | AI180: 190 | AJ180: 637880 | AK180: 64749130
A181: 01010305 | B181: 15635 | C181: 15552 | D181: 15550 | E181: 2 | F181: 83 | Z181: 1793 | AA181: 13669 | AB181: 173 | AG181: 96 | AH181: 0 | AI181: 55 | AJ181: 644840 | AK181: 67020500
A182: 01010306 | B182: 49 | C182: 49 | D182: 49 | E182: 0 | F182: 0 | Z182: 1 | AA182: 48 | AB182: 0 | AG182: 50 | AH182: 58 | AI182: 11 | AJ182: 976140 | AK182: 280670
A183: 01010307 | B183: 3273 | C183: 3273 | D183: 3273 | E183: 0 | F183: 0 | Z183: 71 | AA183: 3192 | AB183: 10 | AG183: 430 | AH183: 27 | AI183: 55 | AJ183: 802150 | AK183: 16135890
A184: 01010309 | B184: 0 | C184: 0 | D184: 0 | E184: 0 | F184: 0 | Z184: 0 | AA184: 0 | AB184: 0 | AG184: 0 | AH184: 0 | AI184: 0 | AJ184: 890610 | AK184: 0
A185: 01010311 | B185: 244 | C185: 244 | D185: 244 | E185: 0 | F185: 0 | Z185: 5 | AA185: 237 | AB185: 2 | AG185: 4 | AH185: 1 | AI185: 0 | AJ185: 800810 | AK185: 1319330
A186: 01010313 | B186: 817 | C186: 817 | D186: 817 | E186: 0 | F186: 0 | Z186: 109 | AA186: 270 | AB186: 438 | AG186: 0 | AH186: 0 | AI186: 0 | AJ186: 819410 | AK186: 4060490
A187: 01010319 | B187: 1 | C187: 1 | D187: 1 | E187: 0 | F187: 0 | Z187: 0 | AA187: 1 | AB187: 0 | AG187: 3 | AH187: 5 | AI187: 0 | AJ187: 4344330 | AK187: 29100
A188: 01010320 | B188: 2 | C188: 2 | D188: 2 | E188: 0 | F188: 0 | Z188: 1 | AA188: 1 | AB188: 0 | AG188: 6 | AH188: 2 | AI188: 0 | AJ188: 4860700 | AK188: 65840
A189: 01010321 | B189: 4 | C189: 4 | D189: 4 | E189: 0 | F189: 0 | Z189: 2 | AA189: 2 | AB189: 0 | AG189: 4 | AH189: 3 | AI189: 0 | AJ189: 4391910 | AK189: 116400
A190: 01010322 | B190: 0 | C190: 0 | D190: 0 | E190: 0 | F190: 0 | Z190: 0 | AA190: 0 | AB190: 0 | AG190: 0 | AH190: 10 | AI190: 0 | AJ190: 6451500 | AK190: 0
A191: 01010323 | B191: 0 | C191: 0 | D191: 0 | E191: 0 | F191: 0 | Z191: 0 | AA191: 0 | AB191: 0 | AG191: 0 | AH191: 0 | AI191: 0 | AJ191: 6889400 | AK191: 0
A192: 01010324 | B192: 0 | C192: 0 | D192: 0 | E192: 0 | F192: 0 | Z192: 0 | AA192: 0 | AB192: 0 | AG192: 0 | AH192: 0 | AI192: 0 | AJ192: 6935240 | AK192: 0
A193: 01010327 | B193: 0 | C193: 0 | D193: 0 | E193: 0 | F193: 0 | Z193: 0 | AA193: 0 | AB193: 0 | AG193: 0 | AH193: 0 | AI193: 0 | AJ193: 9071250 | AK193: 0
A194: 01010328 | B194: 6 | C194: 6 | D194: 6 | E194: 0 | F194: 0 | Z194: 6 | AA194: 12 | AB194: 3 | AG194: 6 | AH194: 5 | AI194: 7 | AJ194: 735110 | AK194: 29820
A195: 01010329 | B195: 0 | C195: 0 | D195: 0 | E195: 0 | F195: 0 | Z195: 0 | AA195: 0 | AB195: 0 | AG195: 0 | AH195: 0 | AI195: 0 | AJ195: 713690 | AK195: 0
A196: 01010330 | B196: 1729 | C196: 1728 | D196: 1725 | E196: 3 | F196: 1 | Z196: 188 | AA196: 1518 | AB196: 12 | AG196: 200 | AH196: 46 | AI196: 0 | AJ196: 744460 | AK196: 8543770
A197: 01010331 | B197: 563 | C197: 563 | D197: 551 | E197: 12 | F197: 0 | Z197: 194 | AA197: 337 | AB197: 2 | AG197: 496 | AH197: 540 | AI197: 2 | AJ197: 1451460 | AK197: 5382570
A198: 01010332 | B198: 877 | C198: 877 | D198: 838 | E198: 39 | F198: 0 | Z198: 219 | AA198: 612 | AB198: 6 | AG198: 683 | AH198: 907 | AI198: 9 | AJ198: 998060 | AK198: 5671960
A199: 01010334 | B199: 2989 | C199: 2982 | D199: 2972 | E199: 10 | F199: 7 | Z199: 148 | AA199: 2829 | AB199: 2 | AG199: 409 | AH199: 1309 | AI199: 9 | AJ199: 806170 | AK199: 16256840
A200: 01010335 | B200: 552 | C200: 551 | D200: 551 | E200: 0 | F200: 1 | Z200: 51 | AA200: 488 | AB200: 13 | AG200: 0 | AH200: 0 | AI200: 0 | AJ200: 649220 | AK200: 2391340
A201: 01010336 | B201: 1807 | C201: 1803 | D201: 1798 | E201: 5 | F201: 4 | Z201: 139 | AA201: 1433 | AB201: 12 | AG201: 149 | AH201: 33 | AI201: 0 | AJ201: 989170 | AK201: 12525670
... 2743 more rows

Sheet BS
D1: TOTAL | E1: ACTIVIDADES | I1: INTERVENCIONES QUIRÚRGICAS | P1: INTERVENCIONES QUIRÚRGICAS MAYORES NO AMBULATORIAS ELECTIVAS | S1: INTERVENCIONES QUIRÚRGICAS MAYORES AMBULATORIAS ELECTIVA | V1: INTERVENCIONES QUIRÚRGICAS MAYORES AMBULATORIAS URGENCIA | Y1: INTERVENCIONES QUIRÚRGICAS MAYORES NO AMBULATORIAS URGENCIA | AB1: PROCEDENCIA | AE1: PRODUCCION INTRA HOSPITAL | AH1: OPERATIVO | AI1: COMPRAS REALIZADAS | AK1: VENTAS DE SERVICIOS | AL1: TRANSFERENCIA 2022 | AM1: TOTAL FACTURADO
B2: CODIGO | C2: GLOSA | E2: TOTAL BENEFI-CIARIOS | F2: BENEFICIARIOS | H2: NO BENEFI-CIARIOS | I2: TOTAL BENEFI- CIARIOS | J2: PRINCIPAL | M2: SECUNDARIA | S2: < 15 AÑOS | V2: < 15 AÑOS | Y2: < 15 AÑOS
F3: MAI | G3: MLE | J3: MAI | K3: MLE | L3: NO BENEFI-CIARIO | M3: MAI | N3: MLE | O3: NO BENEFI-CIARIO | P3: TOTAL | Q3: < 15 AÑOS | R3: 15 AÑOS Y MÁS | S3: TOTAL | T3: < 15 AÑOS | U3: 15 AÑOS Y MÁS | V3: TOTAL | W3: < 15 AÑOS | X3: 15 AÑOS Y MÁS | Y3: TOTAL | Z3: < 15 AÑOS | AA3: 15 AÑOS Y MÁS | AB3: ATENCION CERRADA | AC3: ATENCION ABIERTA | AD3: EMERGENCIA | AE3: POR HONO- RARIOS | AF3: POR CONVENIOS | AG3: POR CONSULTO- RES DE LLAMADA | AI3: AL SISTEMA | AJ3: EXTRA-SISTEMA
C4: CONSULTAS Y ATENCION MEDICA
C5: CONSULTAS DE ESPECIALIDADES MEDICAS
A6: 01014275 | B6: 0101201 | C6: Consulta Médica de Especialidad en Dermatología | D6: =IFERROR(VLOOKUP($A6,Filtro!$A$5:$AW$2943,2,FALSE),0) -> 3932 | E6: =IFERROR(VLOOKUP($A6,Filtro!$A$5:$AW$2943,3,FALSE),0) -> 3926 | F6: =IFERROR(VLOOKUP($A6,Filtro!$A$5:$AW$2943,4,FALSE),0) -> 3926 | G6: =IFERROR(VLOOKUP($A6,Filtro!$A$5:$AW$2943,5,FALSE),0) -> 0 | H6: =IFERROR(VLOOKUP($A6,Filtro!$A$5:$AW$2943,6,FALSE),0) -> 6 | I6: =IFERROR(VLOOKUP($A6,Filtro!$A$5:$AW$2943,7,FALSE),0) -> 0 | J6: =IFERROR(VLOOKUP($A6,Filtro!$A$5:$AW$2943,8,FALSE),0) -> 0 | K6: =IFERROR(VLOOKUP($A6,Filtro!$A$5:$AW$2943,9,FALSE),0) -> 0 | L6: =IFERROR(VLOOKUP($A6,Filtro!$A$5:$AW$2943,10,FALSE),0) -> 0 | M6: =IFERROR(VLOOKUP($A6,Filtro!$A$5:$AW$2943,11,FALSE),0) -> 0 | N6: =IFERROR(VLOOKUP($A6,Filtro!$A$5:$AW$2943,12,FALSE),0) -> 0 | O6: =IFERROR(VLOOKUP($A6,Filtro!$A$5:$AW$2943,13,FALSE),0) -> 0 | P6: =IFERROR(VLOOKUP($A6,Filtro!$A$5:$AW$2943,14,FALSE),0) -> 0 | Q6: =IFERROR(VLOOKUP($A6,Filtro!$A$5:$AW$2943,15,FALSE),0) -> 0 | R6: =IFERROR(VLOOKUP($A6,Filtro!$A$5:$AW$2943,16,FALSE),0) -> 0 | S6: =IFERROR(VLOOKUP($A6,Filtro!$A$5:$AW$2943,17,FALSE),0) -> 0 | T6: =IFERROR(VLOOKUP($A6,Filtro!$A$5:$AW$2943,18,FALSE),0) -> 0 | U6: =IFERROR(VLOOKUP($A6,Filtro!$A$5:$AW$2943,19,FALSE),0) -> 0 | V6: =IFERROR(VLOOKUP($A6,Filtro!$A$5:$AW$2943,20,FALSE),0) -> 0 | W6: =IFERROR(VLOOKUP($A6,Filtro!$A$5:$AW$2943,21,FALSE),0) -> 0 | X6: =IFERROR(VLOOKUP($A6,Filtro!$A$5:$AW$2943,22,FALSE),0) -> 0 | Y6: =IFERROR(VLOOKUP($A6,Filtro!$A$5:$AW$2943,23,FALSE),0) -> 0 | Z6: =IFERROR(VLOOKUP($A6,Filtro!$A$5:$AW$2943,24,FALSE),0) -> 0 | AA6: =IFERROR(VLOOKUP($A6,Filtro!$A$5:$AW$2943,25,FALSE),0) -> 0 | AB6: =IFERROR(VLOOKUP($A6,Filtro!$A$5:$AW$2943,26,FALSE),0) -> 0 | AC6: =IFERROR(VLOOKUP($A6,Filtro!$A$5:$AW$2943,27,FALSE),0) -> 3932 | AD6: =IFERROR(VLOOKUP($A6,Filtro!$A$5:$AW$2943,28,FALSE),0) -> 0 | AE6: =IFERROR(VLOOKUP($A6,Filtro!$A$5:$AW$2943,29,FALSE),0) -> 0 | AF6: =IFERROR(VLOOKUP($A6,Filtro!$A$5:$AW$2943,30,FALSE),0) -> 0 | AG6: =IFERROR(VLOOKUP($A6,Filtro!$A$5:$AW$2943,31,FALSE),0) -> 0 | AH6: =IFERROR(VLOOKUP($A6,Filtro!$A$5:$AW$2943,32,FALSE),0) -> 0 | AI6: =IFERROR(VLOOKUP($A6,Filtro!$A$5:$AW$2943,33,FALSE),0) -> 0 | AJ6: =IFERROR(VLOOKUP($A6,Filtro!$A$5:$AW$2943,34,FALSE),0) -> 0 | AK6: =IFERROR(VLOOKUP($A6,Filtro!$A$5:$AW$2943,35,FALSE),0) -> 0 | AL6: 9,050 | AM6: =AL6*F6 -> 35,530,300
A7: 01014276 | B7: 0101202 | C7: Consulta Médica de Especialidad en Geriatría | D7: =IFERROR(VLOOKUP($A7,Filtro!$A$5:$AW$2943,2,FALSE),0) -> 1255 | E7: =IFERROR(VLOOKUP($A7,Filtro!$A$5:$AW$2943,3,FALSE),0) -> 1255 | F7: =IFERROR(VLOOKUP($A7,Filtro!$A$5:$AW$2943,4,FALSE),0) -> 1255 | G7: =IFERROR(VLOOKUP($A7,Filtro!$A$5:$AW$2943,5,FALSE),0) -> 0 | H7: =IFERROR(VLOOKUP($A7,Filtro!$A$5:$AW$2943,6,FALSE),0) -> 0 | I7: =IFERROR(VLOOKUP($A7,Filtro!$A$5:$AW$2943,7,FALSE),0) -> 0 | J7: =IFERROR(VLOOKUP($A7,Filtro!$A$5:$AW$2943,8,FALSE),0) -> 0 | K7: =IFERROR(VLOOKUP($A7,Filtro!$A$5:$AW$2943,9,FALSE),0) -> 0 | L7: =IFERROR(VLOOKUP($A7,Filtro!$A$5:$AW$2943,10,FALSE),0) -> 0 | M7: =IFERROR(VLOOKUP($A7,Filtro!$A$5:$AW$2943,11,FALSE),0) -> 0 | N7: =IFERROR(VLOOKUP($A7,Filtro!$A$5:$AW$2943,12,FALSE),0) -> 0 | O7: =IFERROR(VLOOKUP($A7,Filtro!$A$5:$AW$2943,13,FALSE),0) -> 0 | P7: =IFERROR(VLOOKUP($A7,Filtro!$A$5:$AW$2943,14,FALSE),0) -> 0 | Q7: =IFERROR(VLOOKUP($A7,Filtro!$A$5:$AW$2943,15,FALSE),0) -> 0 | R7: =IFERROR(VLOOKUP($A7,Filtro!$A$5:$AW$2943,16,FALSE),0) -> 0 | S7: =IFERROR(VLOOKUP($A7,Filtro!$A$5:$AW$2943,17,FALSE),0) -> 0 | T7: =IFERROR(VLOOKUP($A7,Filtro!$A$5:$AW$2943,18,FALSE),0) -> 0 | U7: =IFERROR(VLOOKUP($A7,Filtro!$A$5:$AW$2943,19,FALSE),0) -> 0 | V7: =IFERROR(VLOOKUP($A7,Filtro!$A$5:$AW$2943,20,FALSE),0) -> 0 | W7: =IFERROR(VLOOKUP($A7,Filtro!$A$5:$AW$2943,21,FALSE),0) -> 0 | X7: =IFERROR(VLOOKUP($A7,Filtro!$A$5:$AW$2943,22,FALSE),0) -> 0 | Y7: =IFERROR(VLOOKUP($A7,Filtro!$A$5:$AW$2943,23,FALSE),0) -> 0 | Z7: =IFERROR(VLOOKUP($A7,Filtro!$A$5:$AW$2943,24,FALSE),0) -> 0 | AA7: =IFERROR(VLOOKUP($A7,Filtro!$A$5:$AW$2943,25,FALSE),0) -> 0 | AB7: =IFERROR(VLOOKUP($A7,Filtro!$A$5:$AW$2943,26,FALSE),0) -> 0 | AC7: =IFERROR(VLOOKUP($A7,Filtro!$A$5:$AW$2943,27,FALSE),0) -> 1255 | AD7: =IFERROR(VLOOKUP($A7,Filtro!$A$5:$AW$2943,28,FALSE),0) -> 0 | AE7: =IFERROR(VLOOKUP($A7,Filtro!$A$5:$AW$2943,29,FALSE),0) -> 0 | AF7: =IFERROR(VLOOKUP($A7,Filtro!$A$5:$AW$2943,30,FALSE),0) -> 0 | AG7: =IFERROR(VLOOKUP($A7,Filtro!$A$5:$AW$2943,31,FALSE),0) -> 0 | AH7: =IFERROR(VLOOKUP($A7,Filtro!$A$5:$AW$2943,32,FALSE),0) -> 0 | AI7: =IFERROR(VLOOKUP($A7,Filtro!$A$5:$AW$2943,33,FALSE),0) -> 0 | AJ7: =IFERROR(VLOOKUP($A7,Filtro!$A$5:$AW$2943,34,FALSE),0) -> 0 | AK7: =IFERROR(VLOOKUP($A7,Filtro!$A$5:$AW$2943,35,FALSE),0) -> 0 | AL7: 9,050 | AM7: 11,357,750
A8: 01014277 | B8: 0101203 | C8: Consulta Médica de Especialidad en Neurocirugía | D8: =IFERROR(VLOOKUP($A8,Filtro!$A$5:$AW$2943,2,FALSE),0) -> 5565 | E8: =IFERROR(VLOOKUP($A8,Filtro!$A$5:$AW$2943,3,FALSE),0) -> 5565 | F8: =IFERROR(VLOOKUP($A8,Filtro!$A$5:$AW$2943,4,FALSE),0) -> 5565 | G8: =IFERROR(VLOOKUP($A8,Filtro!$A$5:$AW$2943,5,FALSE),0) -> 0 | H8: =IFERROR(VLOOKUP($A8,Filtro!$A$5:$AW$2943,6,FALSE),0) -> 0 | I8: =IFERROR(VLOOKUP($A8,Filtro!$A$5:$AW$2943,7,FALSE),0) -> 0 | J8: =IFERROR(VLOOKUP($A8,Filtro!$A$5:$AW$2943,8,FALSE),0) -> 0 | K8: =IFERROR(VLOOKUP($A8,Filtro!$A$5:$AW$2943,9,FALSE),0) -> 0 | L8: =IFERROR(VLOOKUP($A8,Filtro!$A$5:$AW$2943,10,FALSE),0) -> 0 | M8: =IFERROR(VLOOKUP($A8,Filtro!$A$5:$AW$2943,11,FALSE),0) -> 0 | N8: =IFERROR(VLOOKUP($A8,Filtro!$A$5:$AW$2943,12,FALSE),0) -> 0 | O8: =IFERROR(VLOOKUP($A8,Filtro!$A$5:$AW$2943,13,FALSE),0) -> 0 | P8: =IFERROR(VLOOKUP($A8,Filtro!$A$5:$AW$2943,14,FALSE),0) -> 0 | Q8: =IFERROR(VLOOKUP($A8,Filtro!$A$5:$AW$2943,15,FALSE),0) -> 0 | R8: =IFERROR(VLOOKUP($A8,Filtro!$A$5:$AW$2943,16,FALSE),0) -> 0 | S8: =IFERROR(VLOOKUP($A8,Filtro!$A$5:$AW$2943,17,FALSE),0) -> 0 | T8: =IFERROR(VLOOKUP($A8,Filtro!$A$5:$AW$2943,18,FALSE),0) -> 0 | U8: =IFERROR(VLOOKUP($A8,Filtro!$A$5:$AW$2943,19,FALSE),0) -> 0 | V8: =IFERROR(VLOOKUP($A8,Filtro!$A$5:$AW$2943,20,FALSE),0) -> 0 | W8: =IFERROR(VLOOKUP($A8,Filtro!$A$5:$AW$2943,21,FALSE),0) -> 0 | X8: =IFERROR(VLOOKUP($A8,Filtro!$A$5:$AW$2943,22,FALSE),0) -> 0 | Y8: =IFERROR(VLOOKUP($A8,Filtro!$A$5:$AW$2943,23,FALSE),0) -> 0 | Z8: =IFERROR(VLOOKUP($A8,Filtro!$A$5:$AW$2943,24,FALSE),0) -> 0 | AA8: =IFERROR(VLOOKUP($A8,Filtro!$A$5:$AW$2943,25,FALSE),0) -> 0 | AB8: =IFERROR(VLOOKUP($A8,Filtro!$A$5:$AW$2943,26,FALSE),0) -> 0 | AC8: =IFERROR(VLOOKUP($A8,Filtro!$A$5:$AW$2943,27,FALSE),0) -> 5565 | AD8: =IFERROR(VLOOKUP($A8,Filtro!$A$5:$AW$2943,28,FALSE),0) -> 0 | AE8: =IFERROR(VLOOKUP($A8,Filtro!$A$5:$AW$2943,29,FALSE),0) -> 0 | AF8: =IFERROR(VLOOKUP($A8,Filtro!$A$5:$AW$2943,30,FALSE),0) -> 0 | AG8: =IFERROR(VLOOKUP($A8,Filtro!$A$5:$AW$2943,31,FALSE),0) -> 0 | AH8: =IFERROR(VLOOKUP($A8,Filtro!$A$5:$AW$2943,32,FALSE),0) -> 0 | AI8: =IFERROR(VLOOKUP($A8,Filtro!$A$5:$AW$2943,33,FALSE),0) -> 0 | AJ8: =IFERROR(VLOOKUP($A8,Filtro!$A$5:$AW$2943,34,FALSE),0) -> 0 | AK8: =IFERROR(VLOOKUP($A8,Filtro!$A$5:$AW$2943,35,FALSE),0) -> 0 | AL8: 9,050 | AM8: 50,363,250
A9: 01014278 | B9: 0101204 | C9: Consulta Médica de Especialidad en Oftalmología | D9: =IFERROR(VLOOKUP($A9,Filtro!$A$5:$AW$2943,2,FALSE),0) -> 20158 | E9: =IFERROR(VLOOKUP($A9,Filtro!$A$5:$AW$2943,3,FALSE),0) -> 20107 | F9: =IFERROR(VLOOKUP($A9,Filtro!$A$5:$AW$2943,4,FALSE),0) -> 20107 | G9: =IFERROR(VLOOKUP($A9,Filtro!$A$5:$AW$2943,5,FALSE),0) -> 0 | H9: =IFERROR(VLOOKUP($A9,Filtro!$A$5:$AW$2943,6,FALSE),0) -> 51 | I9: =IFERROR(VLOOKUP($A9,Filtro!$A$5:$AW$2943,7,FALSE),0) -> 0 | J9: =IFERROR(VLOOKUP($A9,Filtro!$A$5:$AW$2943,8,FALSE),0) -> 0 | K9: =IFERROR(VLOOKUP($A9,Filtro!$A$5:$AW$2943,9,FALSE),0) -> 0 | L9: =IFERROR(VLOOKUP($A9,Filtro!$A$5:$AW$2943,10,FALSE),0) -> 0 | M9: =IFERROR(VLOOKUP($A9,Filtro!$A$5:$AW$2943,11,FALSE),0) -> 0 | N9: =IFERROR(VLOOKUP($A9,Filtro!$A$5:$AW$2943,12,FALSE),0) -> 0 | O9: =IFERROR(VLOOKUP($A9,Filtro!$A$5:$AW$2943,13,FALSE),0) -> 0 | P9: =IFERROR(VLOOKUP($A9,Filtro!$A$5:$AW$2943,14,FALSE),0) -> 0 | Q9: =IFERROR(VLOOKUP($A9,Filtro!$A$5:$AW$2943,15,FALSE),0) -> 0 | R9: =IFERROR(VLOOKUP($A9,Filtro!$A$5:$AW$2943,16,FALSE),0) -> 0 | S9: =IFERROR(VLOOKUP($A9,Filtro!$A$5:$AW$2943,17,FALSE),0) -> 0 | T9: =IFERROR(VLOOKUP($A9,Filtro!$A$5:$AW$2943,18,FALSE),0) -> 0 | U9: =IFERROR(VLOOKUP($A9,Filtro!$A$5:$AW$2943,19,FALSE),0) -> 0 | V9: =IFERROR(VLOOKUP($A9,Filtro!$A$5:$AW$2943,20,FALSE),0) -> 0 | W9: =IFERROR(VLOOKUP($A9,Filtro!$A$5:$AW$2943,21,FALSE),0) -> 0 | X9: =IFERROR(VLOOKUP($A9,Filtro!$A$5:$AW$2943,22,FALSE),0) -> 0 | Y9: =IFERROR(VLOOKUP($A9,Filtro!$A$5:$AW$2943,23,FALSE),0) -> 0 | Z9: =IFERROR(VLOOKUP($A9,Filtro!$A$5:$AW$2943,24,FALSE),0) -> 0 | AA9: =IFERROR(VLOOKUP($A9,Filtro!$A$5:$AW$2943,25,FALSE),0) -> 0 | AB9: =IFERROR(VLOOKUP($A9,Filtro!$A$5:$AW$2943,26,FALSE),0) -> 0 | AC9: =IFERROR(VLOOKUP($A9,Filtro!$A$5:$AW$2943,27,FALSE),0) -> 20158 | AD9: =IFERROR(VLOOKUP($A9,Filtro!$A$5:$AW$2943,28,FALSE),0) -> 0 | AE9: =IFERROR(VLOOKUP($A9,Filtro!$A$5:$AW$2943,29,FALSE),0) -> 384 | AF9: =IFERROR(VLOOKUP($A9,Filtro!$A$5:$AW$2943,30,FALSE),0) -> 0 | AG9: =IFERROR(VLOOKUP($A9,Filtro!$A$5:$AW$2943,31,FALSE),0) -> 0 | AH9: =IFERROR(VLOOKUP($A9,Filtro!$A$5:$AW$2943,32,FALSE),0) -> 0 | AI9: =IFERROR(VLOOKUP($A9,Filtro!$A$5:$AW$2943,33,FALSE),0) -> 0 | AJ9: =IFERROR(VLOOKUP($A9,Filtro!$A$5:$AW$2943,34,FALSE),0) -> 0 | AK9: =IFERROR(VLOOKUP($A9,Filtro!$A$5:$AW$2943,35,FALSE),0) -> 0 | AL9: 9,050 | AM9: 181,968,350
A10: 01014279 | B10: 0101205 | C10: Consulta Médica de Especialidad en Otorrinolaringología | D10: =IFERROR(VLOOKUP($A10,Filtro!$A$5:$AW$2943,2,FALSE),0) -> 18378 | E10: =IFERROR(VLOOKUP($A10,Filtro!$A$5:$AW$2943,3,FALSE),0) -> 18335 | F10: =IFERROR(VLOOKUP($A10,Filtro!$A$5:$AW$2943,4,FALSE),0) -> 18335 | G10: =IFERROR(VLOOKUP($A10,Filtro!$A$5:$AW$2943,5,FALSE),0) -> 0 | H10: =IFERROR(VLOOKUP($A10,Filtro!$A$5:$AW$2943,6,FALSE),0) -> 43 | I10: =IFERROR(VLOOKUP($A10,Filtro!$A$5:$AW$2943,7,FALSE),0) -> 0 | J10: =IFERROR(VLOOKUP($A10,Filtro!$A$5:$AW$2943,8,FALSE),0) -> 0 | K10: =IFERROR(VLOOKUP($A10,Filtro!$A$5:$AW$2943,9,FALSE),0) -> 0 | L10: =IFERROR(VLOOKUP($A10,Filtro!$A$5:$AW$2943,10,FALSE),0) -> 0 | M10: =IFERROR(VLOOKUP($A10,Filtro!$A$5:$AW$2943,11,FALSE),0) -> 0 | N10: =IFERROR(VLOOKUP($A10,Filtro!$A$5:$AW$2943,12,FALSE),0) -> 0 | O10: =IFERROR(VLOOKUP($A10,Filtro!$A$5:$AW$2943,13,FALSE),0) -> 0 | P10: =IFERROR(VLOOKUP($A10,Filtro!$A$5:$AW$2943,14,FALSE),0) -> 0 | Q10: =IFERROR(VLOOKUP($A10,Filtro!$A$5:$AW$2943,15,FALSE),0) -> 0 | R10: =IFERROR(VLOOKUP($A10,Filtro!$A$5:$AW$2943,16,FALSE),0) -> 0 | S10: =IFERROR(VLOOKUP($A10,Filtro!$A$5:$AW$2943,17,FALSE),0) -> 0 | T10: =IFERROR(VLOOKUP($A10,Filtro!$A$5:$AW$2943,18,FALSE),0) -> 0 | U10: =IFERROR(VLOOKUP($A10,Filtro!$A$5:$AW$2943,19,FALSE),0) -> 0 | V10: =IFERROR(VLOOKUP($A10,Filtro!$A$5:$AW$2943,20,FALSE),0) -> 0 | W10: =IFERROR(VLOOKUP($A10,Filtro!$A$5:$AW$2943,21,FALSE),0) -> 0 | X10: =IFERROR(VLOOKUP($A10,Filtro!$A$5:$AW$2943,22,FALSE),0) -> 0 | Y10: =IFERROR(VLOOKUP($A10,Filtro!$A$5:$AW$2943,23,FALSE),0) -> 0 | Z10: =IFERROR(VLOOKUP($A10,Filtro!$A$5:$AW$2943,24,FALSE),0) -> 0 | AA10: =IFERROR(VLOOKUP($A10,Filtro!$A$5:$AW$2943,25,FALSE),0) -> 0 | AB10: =IFERROR(VLOOKUP($A10,Filtro!$A$5:$AW$2943,26,FALSE),0) -> 0 | AC10: =IFERROR(VLOOKUP($A10,Filtro!$A$5:$AW$2943,27,FALSE),0) -> 18378 | AD10: =IFERROR(VLOOKUP($A10,Filtro!$A$5:$AW$2943,28,FALSE),0) -> 0 | AE10: =IFERROR(VLOOKUP($A10,Filtro!$A$5:$AW$2943,29,FALSE),0) -> 2375 | AF10: =IFERROR(VLOOKUP($A10,Filtro!$A$5:$AW$2943,30,FALSE),0) -> 0 | AG10: =IFERROR(VLOOKUP($A10,Filtro!$A$5:$AW$2943,31,FALSE),0) -> 0 | AH10: =IFERROR(VLOOKUP($A10,Filtro!$A$5:$AW$2943,32,FALSE),0) -> 0 | AI10: =IFERROR(VLOOKUP($A10,Filtro!$A$5:$AW$2943,33,FALSE),0) -> 0 | AJ10: =IFERROR(VLOOKUP($A10,Filtro!$A$5:$AW$2943,34,FALSE),0) -> 0 | AK10: =IFERROR(VLOOKUP($A10,Filtro!$A$5:$AW$2943,35,FALSE),0) -> 0 | AL10: 9,050 | AM10: 165,931,750
A11: 01014280 | B11: 0101206 | C11: Consulta Médica de Especialidad en Reumatología | D11: =IFERROR(VLOOKUP($A11,Filtro!$A$5:$AW$2943,2,FALSE),0) -> 4405 | E11: =IFERROR(VLOOKUP($A11,Filtro!$A$5:$AW$2943,3,FALSE),0) -> 4395 | F11: =IFERROR(VLOOKUP($A11,Filtro!$A$5:$AW$2943,4,FALSE),0) -> 4395 | G11: =IFERROR(VLOOKUP($A11,Filtro!$A$5:$AW$2943,5,FALSE),0) -> 0 | H11: =IFERROR(VLOOKUP($A11,Filtro!$A$5:$AW$2943,6,FALSE),0) -> 10 | I11: =IFERROR(VLOOKUP($A11,Filtro!$A$5:$AW$2943,7,FALSE),0) -> 0 | J11: =IFERROR(VLOOKUP($A11,Filtro!$A$5:$AW$2943,8,FALSE),0) -> 0 | K11: =IFERROR(VLOOKUP($A11,Filtro!$A$5:$AW$2943,9,FALSE),0) -> 0 | L11: =IFERROR(VLOOKUP($A11,Filtro!$A$5:$AW$2943,10,FALSE),0) -> 0 | M11: =IFERROR(VLOOKUP($A11,Filtro!$A$5:$AW$2943,11,FALSE),0) -> 0 | N11: =IFERROR(VLOOKUP($A11,Filtro!$A$5:$AW$2943,12,FALSE),0) -> 0 | O11: =IFERROR(VLOOKUP($A11,Filtro!$A$5:$AW$2943,13,FALSE),0) -> 0 | P11: =IFERROR(VLOOKUP($A11,Filtro!$A$5:$AW$2943,14,FALSE),0) -> 0 | Q11: =IFERROR(VLOOKUP($A11,Filtro!$A$5:$AW$2943,15,FALSE),0) -> 0 | R11: =IFERROR(VLOOKUP($A11,Filtro!$A$5:$AW$2943,16,FALSE),0) -> 0 | S11: =IFERROR(VLOOKUP($A11,Filtro!$A$5:$AW$2943,17,FALSE),0) -> 0 | T11: =IFERROR(VLOOKUP($A11,Filtro!$A$5:$AW$2943,18,FALSE),0) -> 0 | U11: =IFERROR(VLOOKUP($A11,Filtro!$A$5:$AW$2943,19,FALSE),0) -> 0 | V11: =IFERROR(VLOOKUP($A11,Filtro!$A$5:$AW$2943,20,FALSE),0) -> 0 | W11: =IFERROR(VLOOKUP($A11,Filtro!$A$5:$AW$2943,21,FALSE),0) -> 0 | X11: =IFERROR(VLOOKUP($A11,Filtro!$A$5:$AW$2943,22,FALSE),0) -> 0 | Y11: =IFERROR(VLOOKUP($A11,Filtro!$A$5:$AW$2943,23,FALSE),0) -> 0 | Z11: =IFERROR(VLOOKUP($A11,Filtro!$A$5:$AW$2943,24,FALSE),0) -> 0 | AA11: =IFERROR(VLOOKUP($A11,Filtro!$A$5:$AW$2943,25,FALSE),0) -> 0 | AB11: =IFERROR(VLOOKUP($A11,Filtro!$A$5:$AW$2943,26,FALSE),0) -> 0 | AC11: =IFERROR(VLOOKUP($A11,Filtro!$A$5:$AW$2943,27,FALSE),0) -> 4405 | AD11: =IFERROR(VLOOKUP($A11,Filtro!$A$5:$AW$2943,28,FALSE),0) -> 0 | AE11: =IFERROR(VLOOKUP($A11,Filtro!$A$5:$AW$2943,29,FALSE),0) -> 0 | AF11: =IFERROR(VLOOKUP($A11,Filtro!$A$5:$AW$2943,30,FALSE),0) -> 0 | AG11: =IFERROR(VLOOKUP($A11,Filtro!$A$5:$AW$2943,31,FALSE),0) -> 0 | AH11: =IFERROR(VLOOKUP($A11,Filtro!$A$5:$AW$2943,32,FALSE),0) -> 0 | AI11: =IFERROR(VLOOKUP($A11,Filtro!$A$5:$AW$2943,33,FALSE),0) -> 0 | AJ11: =IFERROR(VLOOKUP($A11,Filtro!$A$5:$AW$2943,34,FALSE),0) -> 0 | AK11: =IFERROR(VLOOKUP($A11,Filtro!$A$5:$AW$2943,35,FALSE),0) -> 0 | AL11: 9,050 | AM11: 39,774,750
A12: 01014281 | B12: 0101207 | C12: Consulta Médica de Especialidad en Endocrinología Adulto | D12: =IFERROR(VLOOKUP($A12,Filtro!$A$5:$AW$2943,2,FALSE),0) -> 4962 | E12: =IFERROR(VLOOKUP($A12,Filtro!$A$5:$AW$2943,3,FALSE),0) -> 4960 | F12: =IFERROR(VLOOKUP($A12,Filtro!$A$5:$AW$2943,4,FALSE),0) -> 4957 | G12: =IFERROR(VLOOKUP($A12,Filtro!$A$5:$AW$2943,5,FALSE),0) -> 3 | H12: =IFERROR(VLOOKUP($A12,Filtro!$A$5:$AW$2943,6,FALSE),0) -> 2 | I12: =IFERROR(VLOOKUP($A12,Filtro!$A$5:$AW$2943,7,FALSE),0) -> 0 | J12: =IFERROR(VLOOKUP($A12,Filtro!$A$5:$AW$2943,8,FALSE),0) -> 0 | K12: =IFERROR(VLOOKUP($A12,Filtro!$A$5:$AW$2943,9,FALSE),0) -> 0 | L12: =IFERROR(VLOOKUP($A12,Filtro!$A$5:$AW$2943,10,FALSE),0) -> 0 | M12: =IFERROR(VLOOKUP($A12,Filtro!$A$5:$AW$2943,11,FALSE),0) -> 0 | N12: =IFERROR(VLOOKUP($A12,Filtro!$A$5:$AW$2943,12,FALSE),0) -> 0 | O12: =IFERROR(VLOOKUP($A12,Filtro!$A$5:$AW$2943,13,FALSE),0) -> 0 | P12: =IFERROR(VLOOKUP($A12,Filtro!$A$5:$AW$2943,14,FALSE),0) -> 0 | Q12: =IFERROR(VLOOKUP($A12,Filtro!$A$5:$AW$2943,15,FALSE),0) -> 0 | R12: =IFERROR(VLOOKUP($A12,Filtro!$A$5:$AW$2943,16,FALSE),0) -> 0 | S12: =IFERROR(VLOOKUP($A12,Filtro!$A$5:$AW$2943,17,FALSE),0) -> 0 | T12: =IFERROR(VLOOKUP($A12,Filtro!$A$5:$AW$2943,18,FALSE),0) -> 0 | U12: =IFERROR(VLOOKUP($A12,Filtro!$A$5:$AW$2943,19,FALSE),0) -> 0 | V12: =IFERROR(VLOOKUP($A12,Filtro!$A$5:$AW$2943,20,FALSE),0) -> 0 | W12: =IFERROR(VLOOKUP($A12,Filtro!$A$5:$AW$2943,21,FALSE),0) -> 0 | X12: =IFERROR(VLOOKUP($A12,Filtro!$A$5:$AW$2943,22,FALSE),0) -> 0 | Y12: =IFERROR(VLOOKUP($A12,Filtro!$A$5:$AW$2943,23,FALSE),0) -> 0 | Z12: =IFERROR(VLOOKUP($A12,Filtro!$A$5:$AW$2943,24,FALSE),0) -> 0 | AA12: =IFERROR(VLOOKUP($A12,Filtro!$A$5:$AW$2943,25,FALSE),0) -> 0 | AB12: =IFERROR(VLOOKUP($A12,Filtro!$A$5:$AW$2943,26,FALSE),0) -> 0 | AC12: =IFERROR(VLOOKUP($A12,Filtro!$A$5:$AW$2943,27,FALSE),0) -> 4962 | AD12: =IFERROR(VLOOKUP($A12,Filtro!$A$5:$AW$2943,28,FALSE),0) -> 0 | AE12: =IFERROR(VLOOKUP($A12,Filtro!$A$5:$AW$2943,29,FALSE),0) -> 0 | AF12: =IFERROR(VLOOKUP($A12,Filtro!$A$5:$AW$2943,30,FALSE),0) -> 0 | AG12: =IFERROR(VLOOKUP($A12,Filtro!$A$5:$AW$2943,31,FALSE),0) -> 0 | AH12: =IFERROR(VLOOKUP($A12,Filtro!$A$5:$AW$2943,32,FALSE),0) -> 0 | AI12: =IFERROR(VLOOKUP($A12,Filtro!$A$5:$AW$2943,33,FALSE),0) -> 0 | AJ12: =IFERROR(VLOOKUP($A12,Filtro!$A$5:$AW$2943,34,FALSE),0) -> 0 | AK12: =IFERROR(VLOOKUP($A12,Filtro!$A$5:$AW$2943,35,FALSE),0) -> 0 | AL12: 9,050 | AM12: 44,860,850
A13: 01014282 | B13: 0101208 | C13: Consulta Médica de Especialidad en Endocrinología Pediátrica | D13: =IFERROR(VLOOKUP($A13,Filtro!$A$5:$AW$2943,2,FALSE),0) -> 4015 | E13: =IFERROR(VLOOKUP($A13,Filtro!$A$5:$AW$2943,3,FALSE),0) -> 4014 | F13: =IFERROR(VLOOKUP($A13,Filtro!$A$5:$AW$2943,4,FALSE),0) -> 4014 | G13: =IFERROR(VLOOKUP($A13,Filtro!$A$5:$AW$2943,5,FALSE),0) -> 0 | H13: =IFERROR(VLOOKUP($A13,Filtro!$A$5:$AW$2943,6,FALSE),0) -> 1 | I13: =IFERROR(VLOOKUP($A13,Filtro!$A$5:$AW$2943,7,FALSE),0) -> 0 | J13: =IFERROR(VLOOKUP($A13,Filtro!$A$5:$AW$2943,8,FALSE),0) -> 0 | K13: =IFERROR(VLOOKUP($A13,Filtro!$A$5:$AW$2943,9,FALSE),0) -> 0 | L13: =IFERROR(VLOOKUP($A13,Filtro!$A$5:$AW$2943,10,FALSE),0) -> 0 | M13: =IFERROR(VLOOKUP($A13,Filtro!$A$5:$AW$2943,11,FALSE),0) -> 0 | N13: =IFERROR(VLOOKUP($A13,Filtro!$A$5:$AW$2943,12,FALSE),0) -> 0 | O13: =IFERROR(VLOOKUP($A13,Filtro!$A$5:$AW$2943,13,FALSE),0) -> 0 | P13: =IFERROR(VLOOKUP($A13,Filtro!$A$5:$AW$2943,14,FALSE),0) -> 0 | Q13: =IFERROR(VLOOKUP($A13,Filtro!$A$5:$AW$2943,15,FALSE),0) -> 0 | R13: =IFERROR(VLOOKUP($A13,Filtro!$A$5:$AW$2943,16,FALSE),0) -> 0 | S13: =IFERROR(VLOOKUP($A13,Filtro!$A$5:$AW$2943,17,FALSE),0) -> 0 | T13: =IFERROR(VLOOKUP($A13,Filtro!$A$5:$AW$2943,18,FALSE),0) -> 0 | U13: =IFERROR(VLOOKUP($A13,Filtro!$A$5:$AW$2943,19,FALSE),0) -> 0 | V13: =IFERROR(VLOOKUP($A13,Filtro!$A$5:$AW$2943,20,FALSE),0) -> 0 | W13: =IFERROR(VLOOKUP($A13,Filtro!$A$5:$AW$2943,21,FALSE),0) -> 0 | X13: =IFERROR(VLOOKUP($A13,Filtro!$A$5:$AW$2943,22,FALSE),0) -> 0 | Y13: =IFERROR(VLOOKUP($A13,Filtro!$A$5:$AW$2943,23,FALSE),0) -> 0 | Z13: =IFERROR(VLOOKUP($A13,Filtro!$A$5:$AW$2943,24,FALSE),0) -> 0 | AA13: =IFERROR(VLOOKUP($A13,Filtro!$A$5:$AW$2943,25,FALSE),0) -> 0 | AB13: =IFERROR(VLOOKUP($A13,Filtro!$A$5:$AW$2943,26,FALSE),0) -> 0 | AC13: =IFERROR(VLOOKUP($A13,Filtro!$A$5:$AW$2943,27,FALSE),0) -> 4015 | AD13: =IFERROR(VLOOKUP($A13,Filtro!$A$5:$AW$2943,28,FALSE),0) -> 0 | AE13: =IFERROR(VLOOKUP($A13,Filtro!$A$5:$AW$2943,29,FALSE),0) -> 0 | AF13: =IFERROR(VLOOKUP($A13,Filtro!$A$5:$AW$2943,30,FALSE),0) -> 0 | AG13: =IFERROR(VLOOKUP($A13,Filtro!$A$5:$AW$2943,31,FALSE),0) -> 0 | AH13: =IFERROR(VLOOKUP($A13,Filtro!$A$5:$AW$2943,32,FALSE),0) -> 0 | AI13: =IFERROR(VLOOKUP($A13,Filtro!$A$5:$AW$2943,33,FALSE),0) -> 0 | AJ13: =IFERROR(VLOOKUP($A13,Filtro!$A$5:$AW$2943,34,FALSE),0) -> 0 | AK13: =IFERROR(VLOOKUP($A13,Filtro!$A$5:$AW$2943,35,FALSE),0) -> 0 | AL13: 9,050 | AM13: 36,326,700
A14: 01014283 | B14: 0101209 | C14: Consulta Médica de Especialidad en Neurología Adultos | D14: =IFERROR(VLOOKUP($A14,Filtro!$A$5:$AW$2943,2,FALSE),0) -> 9350 | E14: =IFERROR(VLOOKUP($A14,Filtro!$A$5:$AW$2943,3,FALSE),0) -> 9343 | F14: =IFERROR(VLOOKUP($A14,Filtro!$A$5:$AW$2943,4,FALSE),0) -> 9343 | G14: =IFERROR(VLOOKUP($A14,Filtro!$A$5:$AW$2943,5,FALSE),0) -> 0 | H14: =IFERROR(VLOOKUP($A14,Filtro!$A$5:$AW$2943,6,FALSE),0) -> 7 | I14: =IFERROR(VLOOKUP($A14,Filtro!$A$5:$AW$2943,7,FALSE),0) -> 0 | J14: =IFERROR(VLOOKUP($A14,Filtro!$A$5:$AW$2943,8,FALSE),0) -> 0 | K14: =IFERROR(VLOOKUP($A14,Filtro!$A$5:$AW$2943,9,FALSE),0) -> 0 | L14: =IFERROR(VLOOKUP($A14,Filtro!$A$5:$AW$2943,10,FALSE),0) -> 0 | M14: =IFERROR(VLOOKUP($A14,Filtro!$A$5:$AW$2943,11,FALSE),0) -> 0 | N14: =IFERROR(VLOOKUP($A14,Filtro!$A$5:$AW$2943,12,FALSE),0) -> 0 | O14: =IFERROR(VLOOKUP($A14,Filtro!$A$5:$AW$2943,13,FALSE),0) -> 0 | P14: =IFERROR(VLOOKUP($A14,Filtro!$A$5:$AW$2943,14,FALSE),0) -> 0 | Q14: =IFERROR(VLOOKUP($A14,Filtro!$A$5:$AW$2943,15,FALSE),0) -> 0 | R14: =IFERROR(VLOOKUP($A14,Filtro!$A$5:$AW$2943,16,FALSE),0) -> 0 | S14: =IFERROR(VLOOKUP($A14,Filtro!$A$5:$AW$2943,17,FALSE),0) -> 0 | T14: =IFERROR(VLOOKUP($A14,Filtro!$A$5:$AW$2943,18,FALSE),0) -> 0 | U14: =IFERROR(VLOOKUP($A14,Filtro!$A$5:$AW$2943,19,FALSE),0) -> 0 | V14: =IFERROR(VLOOKUP($A14,Filtro!$A$5:$AW$2943,20,FALSE),0) -> 0 | W14: =IFERROR(VLOOKUP($A14,Filtro!$A$5:$AW$2943,21,FALSE),0) -> 0 | X14: =IFERROR(VLOOKUP($A14,Filtro!$A$5:$AW$2943,22,FALSE),0) -> 0 | Y14: =IFERROR(VLOOKUP($A14,Filtro!$A$5:$AW$2943,23,FALSE),0) -> 0 | Z14: =IFERROR(VLOOKUP($A14,Filtro!$A$5:$AW$2943,24,FALSE),0) -> 0 | AA14: =IFERROR(VLOOKUP($A14,Filtro!$A$5:$AW$2943,25,FALSE),0) -> 0 | AB14: =IFERROR(VLOOKUP($A14,Filtro!$A$5:$AW$2943,26,FALSE),0) -> 0 | AC14: =IFERROR(VLOOKUP($A14,Filtro!$A$5:$AW$2943,27,FALSE),0) -> 9350 | AD14: =IFERROR(VLOOKUP($A14,Filtro!$A$5:$AW$2943,28,FALSE),0) -> 0 | AE14: =IFERROR(VLOOKUP($A14,Filtro!$A$5:$AW$2943,29,FALSE),0) -> 384 | AF14: =IFERROR(VLOOKUP($A14,Filtro!$A$5:$AW$2943,30,FALSE),0) -> 0 | AG14: =IFERROR(VLOOKUP($A14,Filtro!$A$5:$AW$2943,31,FALSE),0) -> 0 | AH14: =IFERROR(VLOOKUP($A14,Filtro!$A$5:$AW$2943,32,FALSE),0) -> 0 | AI14: =IFERROR(VLOOKUP($A14,Filtro!$A$5:$AW$2943,33,FALSE),0) -> 0 | AJ14: =IFERROR(VLOOKUP($A14,Filtro!$A$5:$AW$2943,34,FALSE),0) -> 0 | AK14: =IFERROR(VLOOKUP($A14,Filtro!$A$5:$AW$2943,35,FALSE),0) -> 0 | AL14: 9,050 | AM14: 84,554,150
A15: 01014284 | B15: 0101210 | C15: Consulta Médica de Especialidad en Neurología Pediátrica | D15: =IFERROR(VLOOKUP($A15,Filtro!$A$5:$AW$2943,2,FALSE),0) -> 6425 | E15: =IFERROR(VLOOKUP($A15,Filtro!$A$5:$AW$2943,3,FALSE),0) -> 6416 | F15: =IFERROR(VLOOKUP($A15,Filtro!$A$5:$AW$2943,4,FALSE),0) -> 6416 | G15: =IFERROR(VLOOKUP($A15,Filtro!$A$5:$AW$2943,5,FALSE),0) -> 0 | H15: =IFERROR(VLOOKUP($A15,Filtro!$A$5:$AW$2943,6,FALSE),0) -> 9 | I15: =IFERROR(VLOOKUP($A15,Filtro!$A$5:$AW$2943,7,FALSE),0) -> 0 | J15: =IFERROR(VLOOKUP($A15,Filtro!$A$5:$AW$2943,8,FALSE),0) -> 0 | K15: =IFERROR(VLOOKUP($A15,Filtro!$A$5:$AW$2943,9,FALSE),0) -> 0 | L15: =IFERROR(VLOOKUP($A15,Filtro!$A$5:$AW$2943,10,FALSE),0) -> 0 | M15: =IFERROR(VLOOKUP($A15,Filtro!$A$5:$AW$2943,11,FALSE),0) -> 0 | N15: =IFERROR(VLOOKUP($A15,Filtro!$A$5:$AW$2943,12,FALSE),0) -> 0 | O15: =IFERROR(VLOOKUP($A15,Filtro!$A$5:$AW$2943,13,FALSE),0) -> 0 | P15: =IFERROR(VLOOKUP($A15,Filtro!$A$5:$AW$2943,14,FALSE),0) -> 0 | Q15: =IFERROR(VLOOKUP($A15,Filtro!$A$5:$AW$2943,15,FALSE),0) -> 0 | R15: =IFERROR(VLOOKUP($A15,Filtro!$A$5:$AW$2943,16,FALSE),0) -> 0 | S15: =IFERROR(VLOOKUP($A15,Filtro!$A$5:$AW$2943,17,FALSE),0) -> 0 | T15: =IFERROR(VLOOKUP($A15,Filtro!$A$5:$AW$2943,18,FALSE),0) -> 0 | U15: =IFERROR(VLOOKUP($A15,Filtro!$A$5:$AW$2943,19,FALSE),0) -> 0 | V15: =IFERROR(VLOOKUP($A15,Filtro!$A$5:$AW$2943,20,FALSE),0) -> 0 | W15: =IFERROR(VLOOKUP($A15,Filtro!$A$5:$AW$2943,21,FALSE),0) -> 0 | X15: =IFERROR(VLOOKUP($A15,Filtro!$A$5:$AW$2943,22,FALSE),0) -> 0 | Y15: =IFERROR(VLOOKUP($A15,Filtro!$A$5:$AW$2943,23,FALSE),0) -> 0 | Z15: =IFERROR(VLOOKUP($A15,Filtro!$A$5:$AW$2943,24,FALSE),0) -> 0 | AA15: =IFERROR(VLOOKUP($A15,Filtro!$A$5:$AW$2943,25,FALSE),0) -> 0 | AB15: =IFERROR(VLOOKUP($A15,Filtro!$A$5:$AW$2943,26,FALSE),0) -> 0 | AC15: =IFERROR(VLOOKUP($A15,Filtro!$A$5:$AW$2943,27,FALSE),0) -> 6425 | AD15: =IFERROR(VLOOKUP($A15,Filtro!$A$5:$AW$2943,28,FALSE),0) -> 0 | AE15: =IFERROR(VLOOKUP($A15,Filtro!$A$5:$AW$2943,29,FALSE),0) -> 0 | AF15: =IFERROR(VLOOKUP($A15,Filtro!$A$5:$AW$2943,30,FALSE),0) -> 0 | AG15: =IFERROR(VLOOKUP($A15,Filtro!$A$5:$AW$2943,31,FALSE),0) -> 0 | AH15: =IFERROR(VLOOKUP($A15,Filtro!$A$5:$AW$2943,32,FALSE),0) -> 0 | AI15: =IFERROR(VLOOKUP($A15,Filtro!$A$5:$AW$2943,33,FALSE),0) -> 0 | AJ15: =IFERROR(VLOOKUP($A15,Filtro!$A$5:$AW$2943,34,FALSE),0) -> 0 | AK15: =IFERROR(VLOOKUP($A15,Filtro!$A$5:$AW$2943,35,FALSE),0) -> 0 | AL15: 9,050 | AM15: 58,064,800
A16: 01014285 | B16: 0101211 | C16: Consulta Médica de Especialidad en Oncología Médica | D16: =IFERROR(VLOOKUP($A16,Filtro!$A$5:$AW$2943,2,FALSE),0) -> 7502 | E16: =IFERROR(VLOOKUP($A16,Filtro!$A$5:$AW$2943,3,FALSE),0) -> 7481 | F16: =IFERROR(VLOOKUP($A16,Filtro!$A$5:$AW$2943,4,FALSE),0) -> 7481 | G16: =IFERROR(VLOOKUP($A16,Filtro!$A$5:$AW$2943,5,FALSE),0) -> 0 | H16: =IFERROR(VLOOKUP($A16,Filtro!$A$5:$AW$2943,6,FALSE),0) -> 21 | I16: =IFERROR(VLOOKUP($A16,Filtro!$A$5:$AW$2943,7,FALSE),0) -> 0 | J16: =IFERROR(VLOOKUP($A16,Filtro!$A$5:$AW$2943,8,FALSE),0) -> 0 | K16: =IFERROR(VLOOKUP($A16,Filtro!$A$5:$AW$2943,9,FALSE),0) -> 0 | L16: =IFERROR(VLOOKUP($A16,Filtro!$A$5:$AW$2943,10,FALSE),0) -> 0 | M16: =IFERROR(VLOOKUP($A16,Filtro!$A$5:$AW$2943,11,FALSE),0) -> 0 | N16: =IFERROR(VLOOKUP($A16,Filtro!$A$5:$AW$2943,12,FALSE),0) -> 0 | O16: =IFERROR(VLOOKUP($A16,Filtro!$A$5:$AW$2943,13,FALSE),0) -> 0 | P16: =IFERROR(VLOOKUP($A16,Filtro!$A$5:$AW$2943,14,FALSE),0) -> 0 | Q16: =IFERROR(VLOOKUP($A16,Filtro!$A$5:$AW$2943,15,FALSE),0) -> 0 | R16: =IFERROR(VLOOKUP($A16,Filtro!$A$5:$AW$2943,16,FALSE),0) -> 0 | S16: =IFERROR(VLOOKUP($A16,Filtro!$A$5:$AW$2943,17,FALSE),0) -> 0 | T16: =IFERROR(VLOOKUP($A16,Filtro!$A$5:$AW$2943,18,FALSE),0) -> 0 | U16: =IFERROR(VLOOKUP($A16,Filtro!$A$5:$AW$2943,19,FALSE),0) -> 0 | V16: =IFERROR(VLOOKUP($A16,Filtro!$A$5:$AW$2943,20,FALSE),0) -> 0 | W16: =IFERROR(VLOOKUP($A16,Filtro!$A$5:$AW$2943,21,FALSE),0) -> 0 | X16: =IFERROR(VLOOKUP($A16,Filtro!$A$5:$AW$2943,22,FALSE),0) -> 0 | Y16: =IFERROR(VLOOKUP($A16,Filtro!$A$5:$AW$2943,23,FALSE),0) -> 0 | Z16: =IFERROR(VLOOKUP($A16,Filtro!$A$5:$AW$2943,24,FALSE),0) -> 0 | AA16: =IFERROR(VLOOKUP($A16,Filtro!$A$5:$AW$2943,25,FALSE),0) -> 0 | AB16: =IFERROR(VLOOKUP($A16,Filtro!$A$5:$AW$2943,26,FALSE),0) -> 0 | AC16: =IFERROR(VLOOKUP($A16,Filtro!$A$5:$AW$2943,27,FALSE),0) -> 7502 | AD16: =IFERROR(VLOOKUP($A16,Filtro!$A$5:$AW$2943,28,FALSE),0) -> 0 | AE16: =IFERROR(VLOOKUP($A16,Filtro!$A$5:$AW$2943,29,FALSE),0) -> 0 | AF16: =IFERROR(VLOOKUP($A16,Filtro!$A$5:$AW$2943,30,FALSE),0) -> 0 | AG16: =IFERROR(VLOOKUP($A16,Filtro!$A$5:$AW$2943,31,FALSE),0) -> 0 | AH16: =IFERROR(VLOOKUP($A16,Filtro!$A$5:$AW$2943,32,FALSE),0) -> 0 | AI16: =IFERROR(VLOOKUP($A16,Filtro!$A$5:$AW$2943,33,FALSE),0) -> 0 | AJ16: =IFERROR(VLOOKUP($A16,Filtro!$A$5:$AW$2943,34,FALSE),0) -> 0 | AK16: =IFERROR(VLOOKUP($A16,Filtro!$A$5:$AW$2943,35,FALSE),0) -> 0 | AL16: 9,050 | AM16: 67,703,050
A17: 01014286 | B17: 0101212 | C17: Consulta Médica de Especialidad en Psiquiatría adultos | D17: =IFERROR(VLOOKUP($A17,Filtro!$A$5:$AW$2943,2,FALSE),0) -> 15695 | E17: =IFERROR(VLOOKUP($A17,Filtro!$A$5:$AW$2943,3,FALSE),0) -> 15655 | F17: =IFERROR(VLOOKUP($A17,Filtro!$A$5:$AW$2943,4,FALSE),0) -> 15655 | G17: =IFERROR(VLOOKUP($A17,Filtro!$A$5:$AW$2943,5,FALSE),0) -> 0 | H17: =IFERROR(VLOOKUP($A17,Filtro!$A$5:$AW$2943,6,FALSE),0) -> 40 | I17: =IFERROR(VLOOKUP($A17,Filtro!$A$5:$AW$2943,7,FALSE),0) -> 0 | J17: =IFERROR(VLOOKUP($A17,Filtro!$A$5:$AW$2943,8,FALSE),0) -> 0 | K17: =IFERROR(VLOOKUP($A17,Filtro!$A$5:$AW$2943,9,FALSE),0) -> 0 | L17: =IFERROR(VLOOKUP($A17,Filtro!$A$5:$AW$2943,10,FALSE),0) -> 0 | M17: =IFERROR(VLOOKUP($A17,Filtro!$A$5:$AW$2943,11,FALSE),0) -> 0 | N17: =IFERROR(VLOOKUP($A17,Filtro!$A$5:$AW$2943,12,FALSE),0) -> 0 | O17: =IFERROR(VLOOKUP($A17,Filtro!$A$5:$AW$2943,13,FALSE),0) -> 0 | P17: =IFERROR(VLOOKUP($A17,Filtro!$A$5:$AW$2943,14,FALSE),0) -> 0 | Q17: =IFERROR(VLOOKUP($A17,Filtro!$A$5:$AW$2943,15,FALSE),0) -> 0 | R17: =IFERROR(VLOOKUP($A17,Filtro!$A$5:$AW$2943,16,FALSE),0) -> 0 | S17: =IFERROR(VLOOKUP($A17,Filtro!$A$5:$AW$2943,17,FALSE),0) -> 0 | T17: =IFERROR(VLOOKUP($A17,Filtro!$A$5:$AW$2943,18,FALSE),0) -> 0 | U17: =IFERROR(VLOOKUP($A17,Filtro!$A$5:$AW$2943,19,FALSE),0) -> 0 | V17: =IFERROR(VLOOKUP($A17,Filtro!$A$5:$AW$2943,20,FALSE),0) -> 0 | W17: =IFERROR(VLOOKUP($A17,Filtro!$A$5:$AW$2943,21,FALSE),0) -> 0 | X17: =IFERROR(VLOOKUP($A17,Filtro!$A$5:$AW$2943,22,FALSE),0) -> 0 | Y17: =IFERROR(VLOOKUP($A17,Filtro!$A$5:$AW$2943,23,FALSE),0) -> 0 | Z17: =IFERROR(VLOOKUP($A17,Filtro!$A$5:$AW$2943,24,FALSE),0) -> 0 | AA17: =IFERROR(VLOOKUP($A17,Filtro!$A$5:$AW$2943,25,FALSE),0) -> 0 | AB17: =IFERROR(VLOOKUP($A17,Filtro!$A$5:$AW$2943,26,FALSE),0) -> 0 | AC17: =IFERROR(VLOOKUP($A17,Filtro!$A$5:$AW$2943,27,FALSE),0) -> 15695 | AD17: =IFERROR(VLOOKUP($A17,Filtro!$A$5:$AW$2943,28,FALSE),0) -> 0 | AE17: =IFERROR(VLOOKUP($A17,Filtro!$A$5:$AW$2943,29,FALSE),0) -> 0 | AF17: =IFERROR(VLOOKUP($A17,Filtro!$A$5:$AW$2943,30,FALSE),0) -> 0 | AG17: =IFERROR(VLOOKUP($A17,Filtro!$A$5:$AW$2943,31,FALSE),0) -> 0 | AH17: =IFERROR(VLOOKUP($A17,Filtro!$A$5:$AW$2943,32,FALSE),0) -> 0 | AI17: =IFERROR(VLOOKUP($A17,Filtro!$A$5:$AW$2943,33,FALSE),0) -> 0 | AJ17: =IFERROR(VLOOKUP($A17,Filtro!$A$5:$AW$2943,34,FALSE),0) -> 0 | AK17: =IFERROR(VLOOKUP($A17,Filtro!$A$5:$AW$2943,35,FALSE),0) -> 0 | AL17: 9,050 | AM17: 141,677,750
A18: 01014287 | B18: 0101213 | C18: Consulta Médica de Especialidad en Psiquiatría pediátrica y de la adolescencia | D18: =IFERROR(VLOOKUP($A18,Filtro!$A$5:$AW$2943,2,FALSE),0) -> 4962 | E18: =IFERROR(VLOOKUP($A18,Filtro!$A$5:$AW$2943,3,FALSE),0) -> 4957 | F18: =IFERROR(VLOOKUP($A18,Filtro!$A$5:$AW$2943,4,FALSE),0) -> 4957 | G18: =IFERROR(VLOOKUP($A18,Filtro!$A$5:$AW$2943,5,FALSE),0) -> 0 | H18: =IFERROR(VLOOKUP($A18,Filtro!$A$5:$AW$2943,6,FALSE),0) -> 5 | I18: =IFERROR(VLOOKUP($A18,Filtro!$A$5:$AW$2943,7,FALSE),0) -> 0 | J18: =IFERROR(VLOOKUP($A18,Filtro!$A$5:$AW$2943,8,FALSE),0) -> 0 | K18: =IFERROR(VLOOKUP($A18,Filtro!$A$5:$AW$2943,9,FALSE),0) -> 0 | L18: =IFERROR(VLOOKUP($A18,Filtro!$A$5:$AW$2943,10,FALSE),0) -> 0 | M18: =IFERROR(VLOOKUP($A18,Filtro!$A$5:$AW$2943,11,FALSE),0) -> 0 | N18: =IFERROR(VLOOKUP($A18,Filtro!$A$5:$AW$2943,12,FALSE),0) -> 0 | O18: =IFERROR(VLOOKUP($A18,Filtro!$A$5:$AW$2943,13,FALSE),0) -> 0 | P18: =IFERROR(VLOOKUP($A18,Filtro!$A$5:$AW$2943,14,FALSE),0) -> 0 | Q18: =IFERROR(VLOOKUP($A18,Filtro!$A$5:$AW$2943,15,FALSE),0) -> 0 | R18: =IFERROR(VLOOKUP($A18,Filtro!$A$5:$AW$2943,16,FALSE),0) -> 0 | S18: =IFERROR(VLOOKUP($A18,Filtro!$A$5:$AW$2943,17,FALSE),0) -> 0 | T18: =IFERROR(VLOOKUP($A18,Filtro!$A$5:$AW$2943,18,FALSE),0) -> 0 | U18: =IFERROR(VLOOKUP($A18,Filtro!$A$5:$AW$2943,19,FALSE),0) -> 0 | V18: =IFERROR(VLOOKUP($A18,Filtro!$A$5:$AW$2943,20,FALSE),0) -> 0 | W18: =IFERROR(VLOOKUP($A18,Filtro!$A$5:$AW$2943,21,FALSE),0) -> 0 | X18: =IFERROR(VLOOKUP($A18,Filtro!$A$5:$AW$2943,22,FALSE),0) -> 0 | Y18: =IFERROR(VLOOKUP($A18,Filtro!$A$5:$AW$2943,23,FALSE),0) -> 0 | Z18: =IFERROR(VLOOKUP($A18,Filtro!$A$5:$AW$2943,24,FALSE),0) -> 0 | AA18: =IFERROR(VLOOKUP($A18,Filtro!$A$5:$AW$2943,25,FALSE),0) -> 0 | AB18: =IFERROR(VLOOKUP($A18,Filtro!$A$5:$AW$2943,26,FALSE),0) -> 0 | AC18: =IFERROR(VLOOKUP($A18,Filtro!$A$5:$AW$2943,27,FALSE),0) -> 4962 | AD18: =IFERROR(VLOOKUP($A18,Filtro!$A$5:$AW$2943,28,FALSE),0) -> 0 | AE18: =IFERROR(VLOOKUP($A18,Filtro!$A$5:$AW$2943,29,FALSE),0) -> 0 | AF18: =IFERROR(VLOOKUP($A18,Filtro!$A$5:$AW$2943,30,FALSE),0) -> 0 | AG18: =IFERROR(VLOOKUP($A18,Filtro!$A$5:$AW$2943,31,FALSE),0) -> 0 | AH18: =IFERROR(VLOOKUP($A18,Filtro!$A$5:$AW$2943,32,FALSE),0) -> 0 | AI18: =IFERROR(VLOOKUP($A18,Filtro!$A$5:$AW$2943,33,FALSE),0) -> 0 | AJ18: =IFERROR(VLOOKUP($A18,Filtro!$A$5:$AW$2943,34,FALSE),0) -> 0 | AK18: =IFERROR(VLOOKUP($A18,Filtro!$A$5:$AW$2943,35,FALSE),0) -> 0 | AL18: 9,050 | AM18: 44,860,850
A19: 01014288 | B19: 0101300 | C19: Consulta Médica otras Especialidades | D19: =IFERROR(VLOOKUP($A19,Filtro!$A$5:$AW$2943,2,FALSE),0) -> 8799 | E19: =IFERROR(VLOOKUP($A19,Filtro!$A$5:$AW$2943,3,FALSE),0) -> 8799 | F19: =IFERROR(VLOOKUP($A19,Filtro!$A$5:$AW$2943,4,FALSE),0) -> 8799 | G19: =IFERROR(VLOOKUP($A19,Filtro!$A$5:$AW$2943,5,FALSE),0) -> 0 | H19: =IFERROR(VLOOKUP($A19,Filtro!$A$5:$AW$2943,6,FALSE),0) -> 0 | I19: =IFERROR(VLOOKUP($A19,Filtro!$A$5:$AW$2943,7,FALSE),0) -> 0 | J19: =IFERROR(VLOOKUP($A19,Filtro!$A$5:$AW$2943,8,FALSE),0) -> 0 | K19: =IFERROR(VLOOKUP($A19,Filtro!$A$5:$AW$2943,9,FALSE),0) -> 0 | L19: =IFERROR(VLOOKUP($A19,Filtro!$A$5:$AW$2943,10,FALSE),0) -> 0 | M19: =IFERROR(VLOOKUP($A19,Filtro!$A$5:$AW$2943,11,FALSE),0) -> 0 | N19: =IFERROR(VLOOKUP($A19,Filtro!$A$5:$AW$2943,12,FALSE),0) -> 0 | O19: =IFERROR(VLOOKUP($A19,Filtro!$A$5:$AW$2943,13,FALSE),0) -> 0 | P19: =IFERROR(VLOOKUP($A19,Filtro!$A$5:$AW$2943,14,FALSE),0) -> 0 | Q19: =IFERROR(VLOOKUP($A19,Filtro!$A$5:$AW$2943,15,FALSE),0) -> 0 | R19: =IFERROR(VLOOKUP($A19,Filtro!$A$5:$AW$2943,16,FALSE),0) -> 0 | S19: =IFERROR(VLOOKUP($A19,Filtro!$A$5:$AW$2943,17,FALSE),0) -> 0 | T19: =IFERROR(VLOOKUP($A19,Filtro!$A$5:$AW$2943,18,FALSE),0) -> 0 | U19: =IFERROR(VLOOKUP($A19,Filtro!$A$5:$AW$2943,19,FALSE),0) -> 0 | V19: =IFERROR(VLOOKUP($A19,Filtro!$A$5:$AW$2943,20,FALSE),0) -> 0 | W19: =IFERROR(VLOOKUP($A19,Filtro!$A$5:$AW$2943,21,FALSE),0) -> 0 | X19: =IFERROR(VLOOKUP($A19,Filtro!$A$5:$AW$2943,22,FALSE),0) -> 0 | Y19: =IFERROR(VLOOKUP($A19,Filtro!$A$5:$AW$2943,23,FALSE),0) -> 0 | Z19: =IFERROR(VLOOKUP($A19,Filtro!$A$5:$AW$2943,24,FALSE),0) -> 0 | AA19: =IFERROR(VLOOKUP($A19,Filtro!$A$5:$AW$2943,25,FALSE),0) -> 0 | AB19: =IFERROR(VLOOKUP($A19,Filtro!$A$5:$AW$2943,26,FALSE),0) -> 0 | AC19: =IFERROR(VLOOKUP($A19,Filtro!$A$5:$AW$2943,27,FALSE),0) -> 8799 | AD19: =IFERROR(VLOOKUP($A19,Filtro!$A$5:$AW$2943,28,FALSE),0) -> 0 | AE19: =IFERROR(VLOOKUP($A19,Filtro!$A$5:$AW$2943,29,FALSE),0) -> 0 | AF19: =IFERROR(VLOOKUP($A19,Filtro!$A$5:$AW$2943,30,FALSE),0) -> 0 | AG19: =IFERROR(VLOOKUP($A19,Filtro!$A$5:$AW$2943,31,FALSE),0) -> 0 | AH19: =IFERROR(VLOOKUP($A19,Filtro!$A$5:$AW$2943,32,FALSE),0) -> 0 | AI19: =IFERROR(VLOOKUP($A19,Filtro!$A$5:$AW$2943,33,FALSE),0) -> 0 | AJ19: =IFERROR(VLOOKUP($A19,Filtro!$A$5:$AW$2943,34,FALSE),0) -> 0 | AK19: =IFERROR(VLOOKUP($A19,Filtro!$A$5:$AW$2943,35,FALSE),0) -> 0 | AL19: 9,050 | AM19: 79,630,950
A20: 01014289 | B20: 0101301 | C20: Consulta Médica de Especialidad en Cardiología | D20: =IFERROR(VLOOKUP($A20,Filtro!$A$5:$AW$2943,2,FALSE),0) -> 11926 | E20: =IFERROR(VLOOKUP($A20,Filtro!$A$5:$AW$2943,3,FALSE),0) -> 11912 | F20: =IFERROR(VLOOKUP($A20,Filtro!$A$5:$AW$2943,4,FALSE),0) -> 11912 | G20: =IFERROR(VLOOKUP($A20,Filtro!$A$5:$AW$2943,5,FALSE),0) -> 0 | H20: =IFERROR(VLOOKUP($A20,Filtro!$A$5:$AW$2943,6,FALSE),0) -> 14 | I20: =IFERROR(VLOOKUP($A20,Filtro!$A$5:$AW$2943,7,FALSE),0) -> 0 | J20: =IFERROR(VLOOKUP($A20,Filtro!$A$5:$AW$2943,8,FALSE),0) -> 0 | K20: =IFERROR(VLOOKUP($A20,Filtro!$A$5:$AW$2943,9,FALSE),0) -> 0 | L20: =IFERROR(VLOOKUP($A20,Filtro!$A$5:$AW$2943,10,FALSE),0) -> 0 | M20: =IFERROR(VLOOKUP($A20,Filtro!$A$5:$AW$2943,11,FALSE),0) -> 0 | N20: =IFERROR(VLOOKUP($A20,Filtro!$A$5:$AW$2943,12,FALSE),0) -> 0 | O20: =IFERROR(VLOOKUP($A20,Filtro!$A$5:$AW$2943,13,FALSE),0) -> 0 | P20: =IFERROR(VLOOKUP($A20,Filtro!$A$5:$AW$2943,14,FALSE),0) -> 0 | Q20: =IFERROR(VLOOKUP($A20,Filtro!$A$5:$AW$2943,15,FALSE),0) -> 0 | R20: =IFERROR(VLOOKUP($A20,Filtro!$A$5:$AW$2943,16,FALSE),0) -> 0 | S20: =IFERROR(VLOOKUP($A20,Filtro!$A$5:$AW$2943,17,FALSE),0) -> 0 | T20: =IFERROR(VLOOKUP($A20,Filtro!$A$5:$AW$2943,18,FALSE),0) -> 0 | U20: =IFERROR(VLOOKUP($A20,Filtro!$A$5:$AW$2943,19,FALSE),0) -> 0 | V20: =IFERROR(VLOOKUP($A20,Filtro!$A$5:$AW$2943,20,FALSE),0) -> 0 | W20: =IFERROR(VLOOKUP($A20,Filtro!$A$5:$AW$2943,21,FALSE),0) -> 0 | X20: =IFERROR(VLOOKUP($A20,Filtro!$A$5:$AW$2943,22,FALSE),0) -> 0 | Y20: =IFERROR(VLOOKUP($A20,Filtro!$A$5:$AW$2943,23,FALSE),0) -> 0 | Z20: =IFERROR(VLOOKUP($A20,Filtro!$A$5:$AW$2943,24,FALSE),0) -> 0 | AA20: =IFERROR(VLOOKUP($A20,Filtro!$A$5:$AW$2943,25,FALSE),0) -> 0 | AB20: =IFERROR(VLOOKUP($A20,Filtro!$A$5:$AW$2943,26,FALSE),0) -> 0 | AC20: =IFERROR(VLOOKUP($A20,Filtro!$A$5:$AW$2943,27,FALSE),0) -> 11926 | AD20: =IFERROR(VLOOKUP($A20,Filtro!$A$5:$AW$2943,28,FALSE),0) -> 0 | AE20: =IFERROR(VLOOKUP($A20,Filtro!$A$5:$AW$2943,29,FALSE),0) -> 8 | AF20: =IFERROR(VLOOKUP($A20,Filtro!$A$5:$AW$2943,30,FALSE),0) -> 0 | AG20: =IFERROR(VLOOKUP($A20,Filtro!$A$5:$AW$2943,31,FALSE),0) -> 0 | AH20: =IFERROR(VLOOKUP($A20,Filtro!$A$5:$AW$2943,32,FALSE),0) -> 0 | AI20: =IFERROR(VLOOKUP($A20,Filtro!$A$5:$AW$2943,33,FALSE),0) -> 0 | AJ20: =IFERROR(VLOOKUP($A20,Filtro!$A$5:$AW$2943,34,FALSE),0) -> 0 | AK20: =IFERROR(VLOOKUP($A20,Filtro!$A$5:$AW$2943,35,FALSE),0) -> 0 | AL20: 9,050 | AM20: 107,803,600
A21: 01014290 | B21: 0101302 | C21: Consulta Médica de Especialidad en Hematología | D21: =IFERROR(VLOOKUP($A21,Filtro!$A$5:$AW$2943,2,FALSE),0) -> 6675 | E21: =IFERROR(VLOOKUP($A21,Filtro!$A$5:$AW$2943,3,FALSE),0) -> 6665 | F21: =IFERROR(VLOOKUP($A21,Filtro!$A$5:$AW$2943,4,FALSE),0) -> 6665 | G21: =IFERROR(VLOOKUP($A21,Filtro!$A$5:$AW$2943,5,FALSE),0) -> 0 | H21: =IFERROR(VLOOKUP($A21,Filtro!$A$5:$AW$2943,6,FALSE),0) -> 10 | I21: =IFERROR(VLOOKUP($A21,Filtro!$A$5:$AW$2943,7,FALSE),0) -> 0 | J21: =IFERROR(VLOOKUP($A21,Filtro!$A$5:$AW$2943,8,FALSE),0) -> 0 | K21: =IFERROR(VLOOKUP($A21,Filtro!$A$5:$AW$2943,9,FALSE),0) -> 0 | L21: =IFERROR(VLOOKUP($A21,Filtro!$A$5:$AW$2943,10,FALSE),0) -> 0 | M21: =IFERROR(VLOOKUP($A21,Filtro!$A$5:$AW$2943,11,FALSE),0) -> 0 | N21: =IFERROR(VLOOKUP($A21,Filtro!$A$5:$AW$2943,12,FALSE),0) -> 0 | O21: =IFERROR(VLOOKUP($A21,Filtro!$A$5:$AW$2943,13,FALSE),0) -> 0 | P21: =IFERROR(VLOOKUP($A21,Filtro!$A$5:$AW$2943,14,FALSE),0) -> 0 | Q21: =IFERROR(VLOOKUP($A21,Filtro!$A$5:$AW$2943,15,FALSE),0) -> 0 | R21: =IFERROR(VLOOKUP($A21,Filtro!$A$5:$AW$2943,16,FALSE),0) -> 0 | S21: =IFERROR(VLOOKUP($A21,Filtro!$A$5:$AW$2943,17,FALSE),0) -> 0 | T21: =IFERROR(VLOOKUP($A21,Filtro!$A$5:$AW$2943,18,FALSE),0) -> 0 | U21: =IFERROR(VLOOKUP($A21,Filtro!$A$5:$AW$2943,19,FALSE),0) -> 0 | V21: =IFERROR(VLOOKUP($A21,Filtro!$A$5:$AW$2943,20,FALSE),0) -> 0 | W21: =IFERROR(VLOOKUP($A21,Filtro!$A$5:$AW$2943,21,FALSE),0) -> 0 | X21: =IFERROR(VLOOKUP($A21,Filtro!$A$5:$AW$2943,22,FALSE),0) -> 0 | Y21: =IFERROR(VLOOKUP($A21,Filtro!$A$5:$AW$2943,23,FALSE),0) -> 0 | Z21: =IFERROR(VLOOKUP($A21,Filtro!$A$5:$AW$2943,24,FALSE),0) -> 0 | AA21: =IFERROR(VLOOKUP($A21,Filtro!$A$5:$AW$2943,25,FALSE),0) -> 0 | AB21: =IFERROR(VLOOKUP($A21,Filtro!$A$5:$AW$2943,26,FALSE),0) -> 0 | AC21: =IFERROR(VLOOKUP($A21,Filtro!$A$5:$AW$2943,27,FALSE),0) -> 6675 | AD21: =IFERROR(VLOOKUP($A21,Filtro!$A$5:$AW$2943,28,FALSE),0) -> 0 | AE21: =IFERROR(VLOOKUP($A21,Filtro!$A$5:$AW$2943,29,FALSE),0) -> 0 | AF21: =IFERROR(VLOOKUP($A21,Filtro!$A$5:$AW$2943,30,FALSE),0) -> 0 | AG21: =IFERROR(VLOOKUP($A21,Filtro!$A$5:$AW$2943,31,FALSE),0) -> 0 | AH21: =IFERROR(VLOOKUP($A21,Filtro!$A$5:$AW$2943,32,FALSE),0) -> 0 | AI21: =IFERROR(VLOOKUP($A21,Filtro!$A$5:$AW$2943,33,FALSE),0) -> 0 | AJ21: =IFERROR(VLOOKUP($A21,Filtro!$A$5:$AW$2943,34,FALSE),0) -> 0 | AK21: =IFERROR(VLOOKUP($A21,Filtro!$A$5:$AW$2943,35,FALSE),0) -> 0 | AL21: 9,050 | AM21: 60,318,250
A22: 01014291 | B22: 0101303 | C22: Consulta Médica de Especialidad en Infectología | D22: =IFERROR(VLOOKUP($A22,Filtro!$A$5:$AW$2943,2,FALSE),0) -> 4371 | E22: =IFERROR(VLOOKUP($A22,Filtro!$A$5:$AW$2943,3,FALSE),0) -> 4365 | F22: =IFERROR(VLOOKUP($A22,Filtro!$A$5:$AW$2943,4,FALSE),0) -> 4365 | G22: =IFERROR(VLOOKUP($A22,Filtro!$A$5:$AW$2943,5,FALSE),0) -> 0 | H22: =IFERROR(VLOOKUP($A22,Filtro!$A$5:$AW$2943,6,FALSE),0) -> 6 | I22: =IFERROR(VLOOKUP($A22,Filtro!$A$5:$AW$2943,7,FALSE),0) -> 0 | J22: =IFERROR(VLOOKUP($A22,Filtro!$A$5:$AW$2943,8,FALSE),0) -> 0 | K22: =IFERROR(VLOOKUP($A22,Filtro!$A$5:$AW$2943,9,FALSE),0) -> 0 | L22: =IFERROR(VLOOKUP($A22,Filtro!$A$5:$AW$2943,10,FALSE),0) -> 0 | M22: =IFERROR(VLOOKUP($A22,Filtro!$A$5:$AW$2943,11,FALSE),0) -> 0 | N22: =IFERROR(VLOOKUP($A22,Filtro!$A$5:$AW$2943,12,FALSE),0) -> 0 | O22: =IFERROR(VLOOKUP($A22,Filtro!$A$5:$AW$2943,13,FALSE),0) -> 0 | P22: =IFERROR(VLOOKUP($A22,Filtro!$A$5:$AW$2943,14,FALSE),0) -> 0 | Q22: =IFERROR(VLOOKUP($A22,Filtro!$A$5:$AW$2943,15,FALSE),0) -> 0 | R22: =IFERROR(VLOOKUP($A22,Filtro!$A$5:$AW$2943,16,FALSE),0) -> 0 | S22: =IFERROR(VLOOKUP($A22,Filtro!$A$5:$AW$2943,17,FALSE),0) -> 0 | T22: =IFERROR(VLOOKUP($A22,Filtro!$A$5:$AW$2943,18,FALSE),0) -> 0 | U22: =IFERROR(VLOOKUP($A22,Filtro!$A$5:$AW$2943,19,FALSE),0) -> 0 | V22: =IFERROR(VLOOKUP($A22,Filtro!$A$5:$AW$2943,20,FALSE),0) -> 0 | W22: =IFERROR(VLOOKUP($A22,Filtro!$A$5:$AW$2943,21,FALSE),0) -> 0 | X22: =IFERROR(VLOOKUP($A22,Filtro!$A$5:$AW$2943,22,FALSE),0) -> 0 | Y22: =IFERROR(VLOOKUP($A22,Filtro!$A$5:$AW$2943,23,FALSE),0) -> 0 | Z22: =IFERROR(VLOOKUP($A22,Filtro!$A$5:$AW$2943,24,FALSE),0) -> 0 | AA22: =IFERROR(VLOOKUP($A22,Filtro!$A$5:$AW$2943,25,FALSE),0) -> 0 | AB22: =IFERROR(VLOOKUP($A22,Filtro!$A$5:$AW$2943,26,FALSE),0) -> 0 | AC22: =IFERROR(VLOOKUP($A22,Filtro!$A$5:$AW$2943,27,FALSE),0) -> 4371 | AD22: =IFERROR(VLOOKUP($A22,Filtro!$A$5:$AW$2943,28,FALSE),0) -> 0 | AE22: =IFERROR(VLOOKUP($A22,Filtro!$A$5:$AW$2943,29,FALSE),0) -> 0 | AF22: =IFERROR(VLOOKUP($A22,Filtro!$A$5:$AW$2943,30,FALSE),0) -> 0 | AG22: =IFERROR(VLOOKUP($A22,Filtro!$A$5:$AW$2943,31,FALSE),0) -> 0 | AH22: =IFERROR(VLOOKUP($A22,Filtro!$A$5:$AW$2943,32,FALSE),0) -> 0 | AI22: =IFERROR(VLOOKUP($A22,Filtro!$A$5:$AW$2943,33,FALSE),0) -> 0 | AJ22: =IFERROR(VLOOKUP($A22,Filtro!$A$5:$AW$2943,34,FALSE),0) -> 0 | AK22: =IFERROR(VLOOKUP($A22,Filtro!$A$5:$AW$2943,35,FALSE),0) -> 0 | AL22: 9,050 | AM22: 39,503,250
A23: 01014292 | B23: 0101304 | C23: Consulta Médica de Especialidad en Inmunología | D23: =IFERROR(VLOOKUP($A23,Filtro!$A$5:$AW$2943,2,FALSE),0) -> 1411 | E23: =IFERROR(VLOOKUP($A23,Filtro!$A$5:$AW$2943,3,FALSE),0) -> 1411 | F23: =IFERROR(VLOOKUP($A23,Filtro!$A$5:$AW$2943,4,FALSE),0) -> 1411 | G23: =IFERROR(VLOOKUP($A23,Filtro!$A$5:$AW$2943,5,FALSE),0) -> 0 | H23: =IFERROR(VLOOKUP($A23,Filtro!$A$5:$AW$2943,6,FALSE),0) -> 0 | I23: =IFERROR(VLOOKUP($A23,Filtro!$A$5:$AW$2943,7,FALSE),0) -> 0 | J23: =IFERROR(VLOOKUP($A23,Filtro!$A$5:$AW$2943,8,FALSE),0) -> 0 | K23: =IFERROR(VLOOKUP($A23,Filtro!$A$5:$AW$2943,9,FALSE),0) -> 0 | L23: =IFERROR(VLOOKUP($A23,Filtro!$A$5:$AW$2943,10,FALSE),0) -> 0 | M23: =IFERROR(VLOOKUP($A23,Filtro!$A$5:$AW$2943,11,FALSE),0) -> 0 | N23: =IFERROR(VLOOKUP($A23,Filtro!$A$5:$AW$2943,12,FALSE),0) -> 0 | O23: =IFERROR(VLOOKUP($A23,Filtro!$A$5:$AW$2943,13,FALSE),0) -> 0 | P23: =IFERROR(VLOOKUP($A23,Filtro!$A$5:$AW$2943,14,FALSE),0) -> 0 | Q23: =IFERROR(VLOOKUP($A23,Filtro!$A$5:$AW$2943,15,FALSE),0) -> 0 | R23: =IFERROR(VLOOKUP($A23,Filtro!$A$5:$AW$2943,16,FALSE),0) -> 0 | S23: =IFERROR(VLOOKUP($A23,Filtro!$A$5:$AW$2943,17,FALSE),0) -> 0 | T23: =IFERROR(VLOOKUP($A23,Filtro!$A$5:$AW$2943,18,FALSE),0) -> 0 | U23: =IFERROR(VLOOKUP($A23,Filtro!$A$5:$AW$2943,19,FALSE),0) -> 0 | V23: =IFERROR(VLOOKUP($A23,Filtro!$A$5:$AW$2943,20,FALSE),0) -> 0 | W23: =IFERROR(VLOOKUP($A23,Filtro!$A$5:$AW$2943,21,FALSE),0) -> 0 | X23: =IFERROR(VLOOKUP($A23,Filtro!$A$5:$AW$2943,22,FALSE),0) -> 0 | Y23: =IFERROR(VLOOKUP($A23,Filtro!$A$5:$AW$2943,23,FALSE),0) -> 0 | Z23: =IFERROR(VLOOKUP($A23,Filtro!$A$5:$AW$2943,24,FALSE),0) -> 0 | AA23: =IFERROR(VLOOKUP($A23,Filtro!$A$5:$AW$2943,25,FALSE),0) -> 0 | AB23: =IFERROR(VLOOKUP($A23,Filtro!$A$5:$AW$2943,26,FALSE),0) -> 0 | AC23: =IFERROR(VLOOKUP($A23,Filtro!$A$5:$AW$2943,27,FALSE),0) -> 1411 | AD23: =IFERROR(VLOOKUP($A23,Filtro!$A$5:$AW$2943,28,FALSE),0) -> 0 | AE23: =IFERROR(VLOOKUP($A23,Filtro!$A$5:$AW$2943,29,FALSE),0) -> 0 | AF23: =IFERROR(VLOOKUP($A23,Filtro!$A$5:$AW$2943,30,FALSE),0) -> 0 | AG23: =IFERROR(VLOOKUP($A23,Filtro!$A$5:$AW$2943,31,FALSE),0) -> 0 | AH23: =IFERROR(VLOOKUP($A23,Filtro!$A$5:$AW$2943,32,FALSE),0) -> 0 | AI23: =IFERROR(VLOOKUP($A23,Filtro!$A$5:$AW$2943,33,FALSE),0) -> 0 | AJ23: =IFERROR(VLOOKUP($A23,Filtro!$A$5:$AW$2943,34,FALSE),0) -> 0 | AK23: =IFERROR(VLOOKUP($A23,Filtro!$A$5:$AW$2943,35,FALSE),0) -> 0 | AL23: 9,050 | AM23: 12,769,550
A24: 01014293 | B24: 0101305 | C24: Consulta Médica de Especialidad en Medicina Familiar | D24: =IFERROR(VLOOKUP($A24,Filtro!$A$5:$AW$2943,2,FALSE),0) -> 7 | E24: =IFERROR(VLOOKUP($A24,Filtro!$A$5:$AW$2943,3,FALSE),0) -> 7 | F24: =IFERROR(VLOOKUP($A24,Filtro!$A$5:$AW$2943,4,FALSE),0) -> 7 | G24: =IFERROR(VLOOKUP($A24,Filtro!$A$5:$AW$2943,5,FALSE),0) -> 0 | H24: =IFERROR(VLOOKUP($A24,Filtro!$A$5:$AW$2943,6,FALSE),0) -> 0 | I24: =IFERROR(VLOOKUP($A24,Filtro!$A$5:$AW$2943,7,FALSE),0) -> 0 | J24: =IFERROR(VLOOKUP($A24,Filtro!$A$5:$AW$2943,8,FALSE),0) -> 0 | K24: =IFERROR(VLOOKUP($A24,Filtro!$A$5:$AW$2943,9,FALSE),0) -> 0 | L24: =IFERROR(VLOOKUP($A24,Filtro!$A$5:$AW$2943,10,FALSE),0) -> 0 | M24: =IFERROR(VLOOKUP($A24,Filtro!$A$5:$AW$2943,11,FALSE),0) -> 0 | N24: =IFERROR(VLOOKUP($A24,Filtro!$A$5:$AW$2943,12,FALSE),0) -> 0 | O24: =IFERROR(VLOOKUP($A24,Filtro!$A$5:$AW$2943,13,FALSE),0) -> 0 | P24: =IFERROR(VLOOKUP($A24,Filtro!$A$5:$AW$2943,14,FALSE),0) -> 0 | Q24: =IFERROR(VLOOKUP($A24,Filtro!$A$5:$AW$2943,15,FALSE),0) -> 0 | R24: =IFERROR(VLOOKUP($A24,Filtro!$A$5:$AW$2943,16,FALSE),0) -> 0 | S24: =IFERROR(VLOOKUP($A24,Filtro!$A$5:$AW$2943,17,FALSE),0) -> 0 | T24: =IFERROR(VLOOKUP($A24,Filtro!$A$5:$AW$2943,18,FALSE),0) -> 0 | U24: =IFERROR(VLOOKUP($A24,Filtro!$A$5:$AW$2943,19,FALSE),0) -> 0 | V24: =IFERROR(VLOOKUP($A24,Filtro!$A$5:$AW$2943,20,FALSE),0) -> 0 | W24: =IFERROR(VLOOKUP($A24,Filtro!$A$5:$AW$2943,21,FALSE),0) -> 0 | X24: =IFERROR(VLOOKUP($A24,Filtro!$A$5:$AW$2943,22,FALSE),0) -> 0 | Y24: =IFERROR(VLOOKUP($A24,Filtro!$A$5:$AW$2943,23,FALSE),0) -> 0 | Z24: =IFERROR(VLOOKUP($A24,Filtro!$A$5:$AW$2943,24,FALSE),0) -> 0 | AA24: =IFERROR(VLOOKUP($A24,Filtro!$A$5:$AW$2943,25,FALSE),0) -> 0 | AB24: =IFERROR(VLOOKUP($A24,Filtro!$A$5:$AW$2943,26,FALSE),0) -> 0 | AC24: =IFERROR(VLOOKUP($A24,Filtro!$A$5:$AW$2943,27,FALSE),0) -> 7 | AD24: =IFERROR(VLOOKUP($A24,Filtro!$A$5:$AW$2943,28,FALSE),0) -> 0 | AE24: =IFERROR(VLOOKUP($A24,Filtro!$A$5:$AW$2943,29,FALSE),0) -> 0 | AF24: =IFERROR(VLOOKUP($A24,Filtro!$A$5:$AW$2943,30,FALSE),0) -> 0 | AG24: =IFERROR(VLOOKUP($A24,Filtro!$A$5:$AW$2943,31,FALSE),0) -> 0 | AH24: =IFERROR(VLOOKUP($A24,Filtro!$A$5:$AW$2943,32,FALSE),0) -> 0 | AI24: =IFERROR(VLOOKUP($A24,Filtro!$A$5:$AW$2943,33,FALSE),0) -> 0 | AJ24: =IFERROR(VLOOKUP($A24,Filtro!$A$5:$AW$2943,34,FALSE),0) -> 0 | AK24: =IFERROR(VLOOKUP($A24,Filtro!$A$5:$AW$2943,35,FALSE),0) -> 0 | AL24: 9,050 | AM24: 63,350
A25: 01014294 | B25: 0101306 | C25: Consulta Médica de Especialidad en Medicina Física y Rehabilitación | D25: =IFERROR(VLOOKUP($A25,Filtro!$A$5:$AW$2943,2,FALSE),0) -> 5447 | E25: =IFERROR(VLOOKUP($A25,Filtro!$A$5:$AW$2943,3,FALSE),0) -> 5442 | F25: =IFERROR(VLOOKUP($A25,Filtro!$A$5:$AW$2943,4,FALSE),0) -> 5442 | G25: =IFERROR(VLOOKUP($A25,Filtro!$A$5:$AW$2943,5,FALSE),0) -> 0 | H25: =IFERROR(VLOOKUP($A25,Filtro!$A$5:$AW$2943,6,FALSE),0) -> 5 | I25: =IFERROR(VLOOKUP($A25,Filtro!$A$5:$AW$2943,7,FALSE),0) -> 0 | J25: =IFERROR(VLOOKUP($A25,Filtro!$A$5:$AW$2943,8,FALSE),0) -> 0 | K25: =IFERROR(VLOOKUP($A25,Filtro!$A$5:$AW$2943,9,FALSE),0) -> 0 | L25: =IFERROR(VLOOKUP($A25,Filtro!$A$5:$AW$2943,10,FALSE),0) -> 0 | M25: =IFERROR(VLOOKUP($A25,Filtro!$A$5:$AW$2943,11,FALSE),0) -> 0 | N25: =IFERROR(VLOOKUP($A25,Filtro!$A$5:$AW$2943,12,FALSE),0) -> 0 | O25: =IFERROR(VLOOKUP($A25,Filtro!$A$5:$AW$2943,13,FALSE),0) -> 0 | P25: =IFERROR(VLOOKUP($A25,Filtro!$A$5:$AW$2943,14,FALSE),0) -> 0 | Q25: =IFERROR(VLOOKUP($A25,Filtro!$A$5:$AW$2943,15,FALSE),0) -> 0 | R25: =IFERROR(VLOOKUP($A25,Filtro!$A$5:$AW$2943,16,FALSE),0) -> 0 | S25: =IFERROR(VLOOKUP($A25,Filtro!$A$5:$AW$2943,17,FALSE),0) -> 0 | T25: =IFERROR(VLOOKUP($A25,Filtro!$A$5:$AW$2943,18,FALSE),0) -> 0 | U25: =IFERROR(VLOOKUP($A25,Filtro!$A$5:$AW$2943,19,FALSE),0) -> 0 | V25: =IFERROR(VLOOKUP($A25,Filtro!$A$5:$AW$2943,20,FALSE),0) -> 0 | W25: =IFERROR(VLOOKUP($A25,Filtro!$A$5:$AW$2943,21,FALSE),0) -> 0 | X25: =IFERROR(VLOOKUP($A25,Filtro!$A$5:$AW$2943,22,FALSE),0) -> 0 | Y25: =IFERROR(VLOOKUP($A25,Filtro!$A$5:$AW$2943,23,FALSE),0) -> 0 | Z25: =IFERROR(VLOOKUP($A25,Filtro!$A$5:$AW$2943,24,FALSE),0) -> 0 | AA25: =IFERROR(VLOOKUP($A25,Filtro!$A$5:$AW$2943,25,FALSE),0) -> 0 | AB25: =IFERROR(VLOOKUP($A25,Filtro!$A$5:$AW$2943,26,FALSE),0) -> 0 | AC25: =IFERROR(VLOOKUP($A25,Filtro!$A$5:$AW$2943,27,FALSE),0) -> 5577 | AD25: =IFERROR(VLOOKUP($A25,Filtro!$A$5:$AW$2943,28,FALSE),0) -> 0 | AE25: =IFERROR(VLOOKUP($A25,Filtro!$A$5:$AW$2943,29,FALSE),0) -> 0 | AF25: =IFERROR(VLOOKUP($A25,Filtro!$A$5:$AW$2943,30,FALSE),0) -> 0 | AG25: =IFERROR(VLOOKUP($A25,Filtro!$A$5:$AW$2943,31,FALSE),0) -> 0 | AH25: =IFERROR(VLOOKUP($A25,Filtro!$A$5:$AW$2943,32,FALSE),0) -> 0 | AI25: =IFERROR(VLOOKUP($A25,Filtro!$A$5:$AW$2943,33,FALSE),0) -> 0 | AJ25: =IFERROR(VLOOKUP($A25,Filtro!$A$5:$AW$2943,34,FALSE),0) -> 0 | AK25: =IFERROR(VLOOKUP($A25,Filtro!$A$5:$AW$2943,35,FALSE),0) -> 0 | AL25: 9,050 | AM25: 49,250,100
A26: 01014295 | B26: 0101307 | C26: Consulta Médica de Especialidad en Medicina Interna | D26: =IFERROR(VLOOKUP($A26,Filtro!$A$5:$AW$2943,2,FALSE),0) -> 33269 | E26: =IFERROR(VLOOKUP($A26,Filtro!$A$5:$AW$2943,3,FALSE),0) -> 33203 | F26: =IFERROR(VLOOKUP($A26,Filtro!$A$5:$AW$2943,4,FALSE),0) -> 33203 | G26: =IFERROR(VLOOKUP($A26,Filtro!$A$5:$AW$2943,5,FALSE),0) -> 0 | H26: =IFERROR(VLOOKUP($A26,Filtro!$A$5:$AW$2943,6,FALSE),0) -> 66 | I26: =IFERROR(VLOOKUP($A26,Filtro!$A$5:$AW$2943,7,FALSE),0) -> 0 | J26: =IFERROR(VLOOKUP($A26,Filtro!$A$5:$AW$2943,8,FALSE),0) -> 0 | K26: =IFERROR(VLOOKUP($A26,Filtro!$A$5:$AW$2943,9,FALSE),0) -> 0 | L26: =IFERROR(VLOOKUP($A26,Filtro!$A$5:$AW$2943,10,FALSE),0) -> 0 | M26: =IFERROR(VLOOKUP($A26,Filtro!$A$5:$AW$2943,11,FALSE),0) -> 0 | N26: =IFERROR(VLOOKUP($A26,Filtro!$A$5:$AW$2943,12,FALSE),0) -> 0 | O26: =IFERROR(VLOOKUP($A26,Filtro!$A$5:$AW$2943,13,FALSE),0) -> 0 | P26: =IFERROR(VLOOKUP($A26,Filtro!$A$5:$AW$2943,14,FALSE),0) -> 0 | Q26: =IFERROR(VLOOKUP($A26,Filtro!$A$5:$AW$2943,15,FALSE),0) -> 0 | R26: =IFERROR(VLOOKUP($A26,Filtro!$A$5:$AW$2943,16,FALSE),0) -> 0 | S26: =IFERROR(VLOOKUP($A26,Filtro!$A$5:$AW$2943,17,FALSE),0) -> 0 | T26: =IFERROR(VLOOKUP($A26,Filtro!$A$5:$AW$2943,18,FALSE),0) -> 0 | U26: =IFERROR(VLOOKUP($A26,Filtro!$A$5:$AW$2943,19,FALSE),0) -> 0 | V26: =IFERROR(VLOOKUP($A26,Filtro!$A$5:$AW$2943,20,FALSE),0) -> 0 | W26: =IFERROR(VLOOKUP($A26,Filtro!$A$5:$AW$2943,21,FALSE),0) -> 0 | X26: =IFERROR(VLOOKUP($A26,Filtro!$A$5:$AW$2943,22,FALSE),0) -> 0 | Y26: =IFERROR(VLOOKUP($A26,Filtro!$A$5:$AW$2943,23,FALSE),0) -> 0 | Z26: =IFERROR(VLOOKUP($A26,Filtro!$A$5:$AW$2943,24,FALSE),0) -> 0 | AA26: =IFERROR(VLOOKUP($A26,Filtro!$A$5:$AW$2943,25,FALSE),0) -> 0 | AB26: =IFERROR(VLOOKUP($A26,Filtro!$A$5:$AW$2943,26,FALSE),0) -> 0 | AC26: =IFERROR(VLOOKUP($A26,Filtro!$A$5:$AW$2943,27,FALSE),0) -> 33386 | AD26: =IFERROR(VLOOKUP($A26,Filtro!$A$5:$AW$2943,28,FALSE),0) -> 3 | AE26: =IFERROR(VLOOKUP($A26,Filtro!$A$5:$AW$2943,29,FALSE),0) -> 344 | AF26: =IFERROR(VLOOKUP($A26,Filtro!$A$5:$AW$2943,30,FALSE),0) -> 0 | AG26: =IFERROR(VLOOKUP($A26,Filtro!$A$5:$AW$2943,31,FALSE),0) -> 0 | AH26: =IFERROR(VLOOKUP($A26,Filtro!$A$5:$AW$2943,32,FALSE),0) -> 0 | AI26: =IFERROR(VLOOKUP($A26,Filtro!$A$5:$AW$2943,33,FALSE),0) -> 0 | AJ26: =IFERROR(VLOOKUP($A26,Filtro!$A$5:$AW$2943,34,FALSE),0) -> 0 | AK26: =IFERROR(VLOOKUP($A26,Filtro!$A$5:$AW$2943,35,FALSE),0) -> 0 | AL26: 9,050 | AM26: 300,487,150
A27: 01012816 | B27: 0101308 | C27: Consulta Médica de Especialidad en Obstetricia y Ginecología | D27: =IFERROR(VLOOKUP($A27,Filtro!$A$5:$AW$2943,2,FALSE),0) -> 38358 | E27: =IFERROR(VLOOKUP($A27,Filtro!$A$5:$AW$2943,3,FALSE),0) -> 38327 | F27: =IFERROR(VLOOKUP($A27,Filtro!$A$5:$AW$2943,4,FALSE),0) -> 38327 | G27: =IFERROR(VLOOKUP($A27,Filtro!$A$5:$AW$2943,5,FALSE),0) -> 0 | H27: =IFERROR(VLOOKUP($A27,Filtro!$A$5:$AW$2943,6,FALSE),0) -> 31 | I27: =IFERROR(VLOOKUP($A27,Filtro!$A$5:$AW$2943,7,FALSE),0) -> 0 | J27: =IFERROR(VLOOKUP($A27,Filtro!$A$5:$AW$2943,8,FALSE),0) -> 0 | K27: =IFERROR(VLOOKUP($A27,Filtro!$A$5:$AW$2943,9,FALSE),0) -> 0 | L27: =IFERROR(VLOOKUP($A27,Filtro!$A$5:$AW$2943,10,FALSE),0) -> 0 | M27: =IFERROR(VLOOKUP($A27,Filtro!$A$5:$AW$2943,11,FALSE),0) -> 0 | N27: =IFERROR(VLOOKUP($A27,Filtro!$A$5:$AW$2943,12,FALSE),0) -> 0 | O27: =IFERROR(VLOOKUP($A27,Filtro!$A$5:$AW$2943,13,FALSE),0) -> 0 | P27: =IFERROR(VLOOKUP($A27,Filtro!$A$5:$AW$2943,14,FALSE),0) -> 0 | Q27: =IFERROR(VLOOKUP($A27,Filtro!$A$5:$AW$2943,15,FALSE),0) -> 0 | R27: =IFERROR(VLOOKUP($A27,Filtro!$A$5:$AW$2943,16,FALSE),0) -> 0 | S27: =IFERROR(VLOOKUP($A27,Filtro!$A$5:$AW$2943,17,FALSE),0) -> 0 | T27: =IFERROR(VLOOKUP($A27,Filtro!$A$5:$AW$2943,18,FALSE),0) -> 0 | U27: =IFERROR(VLOOKUP($A27,Filtro!$A$5:$AW$2943,19,FALSE),0) -> 0 | V27: =IFERROR(VLOOKUP($A27,Filtro!$A$5:$AW$2943,20,FALSE),0) -> 0 | W27: =IFERROR(VLOOKUP($A27,Filtro!$A$5:$AW$2943,21,FALSE),0) -> 0 | X27: =IFERROR(VLOOKUP($A27,Filtro!$A$5:$AW$2943,22,FALSE),0) -> 0 | Y27: =IFERROR(VLOOKUP($A27,Filtro!$A$5:$AW$2943,23,FALSE),0) -> 0 | Z27: =IFERROR(VLOOKUP($A27,Filtro!$A$5:$AW$2943,24,FALSE),0) -> 0 | AA27: =IFERROR(VLOOKUP($A27,Filtro!$A$5:$AW$2943,25,FALSE),0) -> 0 | AB27: =IFERROR(VLOOKUP($A27,Filtro!$A$5:$AW$2943,26,FALSE),0) -> 208 | AC27: =IFERROR(VLOOKUP($A27,Filtro!$A$5:$AW$2943,27,FALSE),0) -> 36567 | AD27: =IFERROR(VLOOKUP($A27,Filtro!$A$5:$AW$2943,28,FALSE),0) -> 1464 | AE27: =IFERROR(VLOOKUP($A27,Filtro!$A$5:$AW$2943,29,FALSE),0) -> 537 | AF27: =IFERROR(VLOOKUP($A27,Filtro!$A$5:$AW$2943,30,FALSE),0) -> 0 | AG27: =IFERROR(VLOOKUP($A27,Filtro!$A$5:$AW$2943,31,FALSE),0) -> 0 | AH27: =IFERROR(VLOOKUP($A27,Filtro!$A$5:$AW$2943,32,FALSE),0) -> 0 | AI27: =IFERROR(VLOOKUP($A27,Filtro!$A$5:$AW$2943,33,FALSE),0) -> 0 | AJ27: =IFERROR(VLOOKUP($A27,Filtro!$A$5:$AW$2943,34,FALSE),0) -> 0 | AK27: =IFERROR(VLOOKUP($A27,Filtro!$A$5:$AW$2943,35,FALSE),0) -> 0 | AL27: 9,050 | AM27: 346,859,350
A28: 01014296 | B28: 0101309 | C28: Consulta Médica de Especialidad en Pediatría | D28: =IFERROR(VLOOKUP($A28,Filtro!$A$5:$AW$2943,2,FALSE),0) -> 11021 | E28: =IFERROR(VLOOKUP($A28,Filtro!$A$5:$AW$2943,3,FALSE),0) -> 11013 | F28: =IFERROR(VLOOKUP($A28,Filtro!$A$5:$AW$2943,4,FALSE),0) -> 11013 | G28: =IFERROR(VLOOKUP($A28,Filtro!$A$5:$AW$2943,5,FALSE),0) -> 0 | H28: =IFERROR(VLOOKUP($A28,Filtro!$A$5:$AW$2943,6,FALSE),0) -> 8 | I28: =IFERROR(VLOOKUP($A28,Filtro!$A$5:$AW$2943,7,FALSE),0) -> 0 | J28: =IFERROR(VLOOKUP($A28,Filtro!$A$5:$AW$2943,8,FALSE),0) -> 0 | K28: =IFERROR(VLOOKUP($A28,Filtro!$A$5:$AW$2943,9,FALSE),0) -> 0 | L28: =IFERROR(VLOOKUP($A28,Filtro!$A$5:$AW$2943,10,FALSE),0) -> 0 | M28: =IFERROR(VLOOKUP($A28,Filtro!$A$5:$AW$2943,11,FALSE),0) -> 0 | N28: =IFERROR(VLOOKUP($A28,Filtro!$A$5:$AW$2943,12,FALSE),0) -> 0 | O28: =IFERROR(VLOOKUP($A28,Filtro!$A$5:$AW$2943,13,FALSE),0) -> 0 | P28: =IFERROR(VLOOKUP($A28,Filtro!$A$5:$AW$2943,14,FALSE),0) -> 0 | Q28: =IFERROR(VLOOKUP($A28,Filtro!$A$5:$AW$2943,15,FALSE),0) -> 0 | R28: =IFERROR(VLOOKUP($A28,Filtro!$A$5:$AW$2943,16,FALSE),0) -> 0 | S28: =IFERROR(VLOOKUP($A28,Filtro!$A$5:$AW$2943,17,FALSE),0) -> 0 | T28: =IFERROR(VLOOKUP($A28,Filtro!$A$5:$AW$2943,18,FALSE),0) -> 0 | U28: =IFERROR(VLOOKUP($A28,Filtro!$A$5:$AW$2943,19,FALSE),0) -> 0 | V28: =IFERROR(VLOOKUP($A28,Filtro!$A$5:$AW$2943,20,FALSE),0) -> 0 | W28: =IFERROR(VLOOKUP($A28,Filtro!$A$5:$AW$2943,21,FALSE),0) -> 0 | X28: =IFERROR(VLOOKUP($A28,Filtro!$A$5:$AW$2943,22,FALSE),0) -> 0 | Y28: =IFERROR(VLOOKUP($A28,Filtro!$A$5:$AW$2943,23,FALSE),0) -> 0 | Z28: =IFERROR(VLOOKUP($A28,Filtro!$A$5:$AW$2943,24,FALSE),0) -> 0 | AA28: =IFERROR(VLOOKUP($A28,Filtro!$A$5:$AW$2943,25,FALSE),0) -> 0 | AB28: =IFERROR(VLOOKUP($A28,Filtro!$A$5:$AW$2943,26,FALSE),0) -> 0 | AC28: =IFERROR(VLOOKUP($A28,Filtro!$A$5:$AW$2943,27,FALSE),0) -> 10890 | AD28: =IFERROR(VLOOKUP($A28,Filtro!$A$5:$AW$2943,28,FALSE),0) -> 0 | AE28: =IFERROR(VLOOKUP($A28,Filtro!$A$5:$AW$2943,29,FALSE),0) -> 0 | AF28: =IFERROR(VLOOKUP($A28,Filtro!$A$5:$AW$2943,30,FALSE),0) -> 0 | AG28: =IFERROR(VLOOKUP($A28,Filtro!$A$5:$AW$2943,31,FALSE),0) -> 0 | AH28: =IFERROR(VLOOKUP($A28,Filtro!$A$5:$AW$2943,32,FALSE),0) -> 0 | AI28: =IFERROR(VLOOKUP($A28,Filtro!$A$5:$AW$2943,33,FALSE),0) -> 0 | AJ28: =IFERROR(VLOOKUP($A28,Filtro!$A$5:$AW$2943,34,FALSE),0) -> 0 | AK28: =IFERROR(VLOOKUP($A28,Filtro!$A$5:$AW$2943,35,FALSE),0) -> 0 | AL28: 9,050 | AM28: 99,667,650
A29: 01014297 | B29: 0101310 | C29: Consulta Médica de Especialidad en Traumatología y Ortopedia | D29: =IFERROR(VLOOKUP($A29,Filtro!$A$5:$AW$2943,2,FALSE),0) -> 29334 | E29: =IFERROR(VLOOKUP($A29,Filtro!$A$5:$AW$2943,3,FALSE),0) -> 28961 | F29: =IFERROR(VLOOKUP($A29,Filtro!$A$5:$AW$2943,4,FALSE),0) -> 28961 | G29: =IFERROR(VLOOKUP($A29,Filtro!$A$5:$AW$2943,5,FALSE),0) -> 0 | H29: =IFERROR(VLOOKUP($A29,Filtro!$A$5:$AW$2943,6,FALSE),0) -> 373 | I29: =IFERROR(VLOOKUP($A29,Filtro!$A$5:$AW$2943,7,FALSE),0) -> 0 | J29: =IFERROR(VLOOKUP($A29,Filtro!$A$5:$AW$2943,8,FALSE),0) -> 0 | K29: =IFERROR(VLOOKUP($A29,Filtro!$A$5:$AW$2943,9,FALSE),0) -> 0 | L29: =IFERROR(VLOOKUP($A29,Filtro!$A$5:$AW$2943,10,FALSE),0) -> 0 | M29: =IFERROR(VLOOKUP($A29,Filtro!$A$5:$AW$2943,11,FALSE),0) -> 0 | N29: =IFERROR(VLOOKUP($A29,Filtro!$A$5:$AW$2943,12,FALSE),0) -> 0 | O29: =IFERROR(VLOOKUP($A29,Filtro!$A$5:$AW$2943,13,FALSE),0) -> 0 | P29: =IFERROR(VLOOKUP($A29,Filtro!$A$5:$AW$2943,14,FALSE),0) -> 0 | Q29: =IFERROR(VLOOKUP($A29,Filtro!$A$5:$AW$2943,15,FALSE),0) -> 0 | R29: =IFERROR(VLOOKUP($A29,Filtro!$A$5:$AW$2943,16,FALSE),0) -> 0 | S29: =IFERROR(VLOOKUP($A29,Filtro!$A$5:$AW$2943,17,FALSE),0) -> 0 | T29: =IFERROR(VLOOKUP($A29,Filtro!$A$5:$AW$2943,18,FALSE),0) -> 0 | U29: =IFERROR(VLOOKUP($A29,Filtro!$A$5:$AW$2943,19,FALSE),0) -> 0 | V29: =IFERROR(VLOOKUP($A29,Filtro!$A$5:$AW$2943,20,FALSE),0) -> 0 | W29: =IFERROR(VLOOKUP($A29,Filtro!$A$5:$AW$2943,21,FALSE),0) -> 0 | X29: =IFERROR(VLOOKUP($A29,Filtro!$A$5:$AW$2943,22,FALSE),0) -> 0 | Y29: =IFERROR(VLOOKUP($A29,Filtro!$A$5:$AW$2943,23,FALSE),0) -> 0 | Z29: =IFERROR(VLOOKUP($A29,Filtro!$A$5:$AW$2943,24,FALSE),0) -> 0 | AA29: =IFERROR(VLOOKUP($A29,Filtro!$A$5:$AW$2943,25,FALSE),0) -> 0 | AB29: =IFERROR(VLOOKUP($A29,Filtro!$A$5:$AW$2943,26,FALSE),0) -> 0 | AC29: =IFERROR(VLOOKUP($A29,Filtro!$A$5:$AW$2943,27,FALSE),0) -> 29334 | AD29: =IFERROR(VLOOKUP($A29,Filtro!$A$5:$AW$2943,28,FALSE),0) -> 0 | AE29: =IFERROR(VLOOKUP($A29,Filtro!$A$5:$AW$2943,29,FALSE),0) -> 865 | AF29: =IFERROR(VLOOKUP($A29,Filtro!$A$5:$AW$2943,30,FALSE),0) -> 0 | AG29: =IFERROR(VLOOKUP($A29,Filtro!$A$5:$AW$2943,31,FALSE),0) -> 0 | AH29: =IFERROR(VLOOKUP($A29,Filtro!$A$5:$AW$2943,32,FALSE),0) -> 0 | AI29: =IFERROR(VLOOKUP($A29,Filtro!$A$5:$AW$2943,33,FALSE),0) -> 0 | AJ29: =IFERROR(VLOOKUP($A29,Filtro!$A$5:$AW$2943,34,FALSE),0) -> 0 | AK29: =IFERROR(VLOOKUP($A29,Filtro!$A$5:$AW$2943,35,FALSE),0) -> 0 | AL29: 9,050 | AM29: 262,097,050
A30: 01014298 | B30: 0101311 | C30: Consulta Médica de Especialidad en Urología | D30: =IFERROR(VLOOKUP($A30,Filtro!$A$5:$AW$2943,2,FALSE),0) -> 14835 | E30: =IFERROR(VLOOKUP($A30,Filtro!$A$5:$AW$2943,3,FALSE),0) -> 14827 | F30: =IFERROR(VLOOKUP($A30,Filtro!$A$5:$AW$2943,4,FALSE),0) -> 14827 | G30: =IFERROR(VLOOKUP($A30,Filtro!$A$5:$AW$2943,5,FALSE),0) -> 0 | H30: =IFERROR(VLOOKUP($A30,Filtro!$A$5:$AW$2943,6,FALSE),0) -> 8 | I30: =IFERROR(VLOOKUP($A30,Filtro!$A$5:$AW$2943,7,FALSE),0) -> 0 | J30: =IFERROR(VLOOKUP($A30,Filtro!$A$5:$AW$2943,8,FALSE),0) -> 0 | K30: =IFERROR(VLOOKUP($A30,Filtro!$A$5:$AW$2943,9,FALSE),0) -> 0 | L30: =IFERROR(VLOOKUP($A30,Filtro!$A$5:$AW$2943,10,FALSE),0) -> 0 | M30: =IFERROR(VLOOKUP($A30,Filtro!$A$5:$AW$2943,11,FALSE),0) -> 0 | N30: =IFERROR(VLOOKUP($A30,Filtro!$A$5:$AW$2943,12,FALSE),0) -> 0 | O30: =IFERROR(VLOOKUP($A30,Filtro!$A$5:$AW$2943,13,FALSE),0) -> 0 | P30: =IFERROR(VLOOKUP($A30,Filtro!$A$5:$AW$2943,14,FALSE),0) -> 0 | Q30: =IFERROR(VLOOKUP($A30,Filtro!$A$5:$AW$2943,15,FALSE),0) -> 0 | R30: =IFERROR(VLOOKUP($A30,Filtro!$A$5:$AW$2943,16,FALSE),0) -> 0 | S30: =IFERROR(VLOOKUP($A30,Filtro!$A$5:$AW$2943,17,FALSE),0) -> 0 | T30: =IFERROR(VLOOKUP($A30,Filtro!$A$5:$AW$2943,18,FALSE),0) -> 0 | U30: =IFERROR(VLOOKUP($A30,Filtro!$A$5:$AW$2943,19,FALSE),0) -> 0 | V30: =IFERROR(VLOOKUP($A30,Filtro!$A$5:$AW$2943,20,FALSE),0) -> 0 | W30: =IFERROR(VLOOKUP($A30,Filtro!$A$5:$AW$2943,21,FALSE),0) -> 0 | X30: =IFERROR(VLOOKUP($A30,Filtro!$A$5:$AW$2943,22,FALSE),0) -> 0 | Y30: =IFERROR(VLOOKUP($A30,Filtro!$A$5:$AW$2943,23,FALSE),0) -> 0 | Z30: =IFERROR(VLOOKUP($A30,Filtro!$A$5:$AW$2943,24,FALSE),0) -> 0 | AA30: =IFERROR(VLOOKUP($A30,Filtro!$A$5:$AW$2943,25,FALSE),0) -> 0 | AB30: =IFERROR(VLOOKUP($A30,Filtro!$A$5:$AW$2943,26,FALSE),0) -> 0 | AC30: =IFERROR(VLOOKUP($A30,Filtro!$A$5:$AW$2943,27,FALSE),0) -> 14835 | AD30: =IFERROR(VLOOKUP($A30,Filtro!$A$5:$AW$2943,28,FALSE),0) -> 0 | AE30: =IFERROR(VLOOKUP($A30,Filtro!$A$5:$AW$2943,29,FALSE),0) -> 2071 | AF30: =IFERROR(VLOOKUP($A30,Filtro!$A$5:$AW$2943,30,FALSE),0) -> 0 | AG30: =IFERROR(VLOOKUP($A30,Filtro!$A$5:$AW$2943,31,FALSE),0) -> 0 | AH30: =IFERROR(VLOOKUP($A30,Filtro!$A$5:$AW$2943,32,FALSE),0) -> 0 | AI30: =IFERROR(VLOOKUP($A30,Filtro!$A$5:$AW$2943,33,FALSE),0) -> 0 | AJ30: =IFERROR(VLOOKUP($A30,Filtro!$A$5:$AW$2943,34,FALSE),0) -> 0 | AK30: =IFERROR(VLOOKUP($A30,Filtro!$A$5:$AW$2943,35,FALSE),0) -> 0 | AL30: 9,050 | AM30: 134,184,350
A31: 01014299 | B31: 0101312 | C31: Consulta Médica de Especialidad en Cirugía General | D31: =IFERROR(VLOOKUP($A31,Filtro!$A$5:$AW$2943,2,FALSE),0) -> 21958 | E31: =IFERROR(VLOOKUP($A31,Filtro!$A$5:$AW$2943,3,FALSE),0) -> 21954 | F31: =IFERROR(VLOOKUP($A31,Filtro!$A$5:$AW$2943,4,FALSE),0) -> 21954 | G31: =IFERROR(VLOOKUP($A31,Filtro!$A$5:$AW$2943,5,FALSE),0) -> 0 | H31: =IFERROR(VLOOKUP($A31,Filtro!$A$5:$AW$2943,6,FALSE),0) -> 4 | I31: =IFERROR(VLOOKUP($A31,Filtro!$A$5:$AW$2943,7,FALSE),0) -> 0 | J31: =IFERROR(VLOOKUP($A31,Filtro!$A$5:$AW$2943,8,FALSE),0) -> 0 | K31: =IFERROR(VLOOKUP($A31,Filtro!$A$5:$AW$2943,9,FALSE),0) -> 0 | L31: =IFERROR(VLOOKUP($A31,Filtro!$A$5:$AW$2943,10,FALSE),0) -> 0 | M31: =IFERROR(VLOOKUP($A31,Filtro!$A$5:$AW$2943,11,FALSE),0) -> 0 | N31: =IFERROR(VLOOKUP($A31,Filtro!$A$5:$AW$2943,12,FALSE),0) -> 0 | O31: =IFERROR(VLOOKUP($A31,Filtro!$A$5:$AW$2943,13,FALSE),0) -> 0 | P31: =IFERROR(VLOOKUP($A31,Filtro!$A$5:$AW$2943,14,FALSE),0) -> 0 | Q31: =IFERROR(VLOOKUP($A31,Filtro!$A$5:$AW$2943,15,FALSE),0) -> 0 | R31: =IFERROR(VLOOKUP($A31,Filtro!$A$5:$AW$2943,16,FALSE),0) -> 0 | S31: =IFERROR(VLOOKUP($A31,Filtro!$A$5:$AW$2943,17,FALSE),0) -> 0 | T31: =IFERROR(VLOOKUP($A31,Filtro!$A$5:$AW$2943,18,FALSE),0) -> 0 | U31: =IFERROR(VLOOKUP($A31,Filtro!$A$5:$AW$2943,19,FALSE),0) -> 0 | V31: =IFERROR(VLOOKUP($A31,Filtro!$A$5:$AW$2943,20,FALSE),0) -> 0 | W31: =IFERROR(VLOOKUP($A31,Filtro!$A$5:$AW$2943,21,FALSE),0) -> 0 | X31: =IFERROR(VLOOKUP($A31,Filtro!$A$5:$AW$2943,22,FALSE),0) -> 0 | Y31: =IFERROR(VLOOKUP($A31,Filtro!$A$5:$AW$2943,23,FALSE),0) -> 0 | Z31: =IFERROR(VLOOKUP($A31,Filtro!$A$5:$AW$2943,24,FALSE),0) -> 0 | AA31: =IFERROR(VLOOKUP($A31,Filtro!$A$5:$AW$2943,25,FALSE),0) -> 0 | AB31: =IFERROR(VLOOKUP($A31,Filtro!$A$5:$AW$2943,26,FALSE),0) -> 0 | AC31: =IFERROR(VLOOKUP($A31,Filtro!$A$5:$AW$2943,27,FALSE),0) -> 21958 | AD31: =IFERROR(VLOOKUP($A31,Filtro!$A$5:$AW$2943,28,FALSE),0) -> 0 | AE31: =IFERROR(VLOOKUP($A31,Filtro!$A$5:$AW$2943,29,FALSE),0) -> 2643 | AF31: =IFERROR(VLOOKUP($A31,Filtro!$A$5:$AW$2943,30,FALSE),0) -> 0 | AG31: =IFERROR(VLOOKUP($A31,Filtro!$A$5:$AW$2943,31,FALSE),0) -> 0 | AH31: =IFERROR(VLOOKUP($A31,Filtro!$A$5:$AW$2943,32,FALSE),0) -> 0 | AI31: =IFERROR(VLOOKUP($A31,Filtro!$A$5:$AW$2943,33,FALSE),0) -> 0 | AJ31: =IFERROR(VLOOKUP($A31,Filtro!$A$5:$AW$2943,34,FALSE),0) -> 0 | AK31: =IFERROR(VLOOKUP($A31,Filtro!$A$5:$AW$2943,35,FALSE),0) -> 0 | AL31: 9,050 | AM31: 198,683,700
A32: 01014300 | B32: 0101313 | C32: Consulta Médica de Especialidad en Cirugía de Cabeza, Cuello y Maxilofacial | D32: =IFERROR(VLOOKUP($A32,Filtro!$A$5:$AW$2943,2,FALSE),0) -> 969 | E32: =IFERROR(VLOOKUP($A32,Filtro!$A$5:$AW$2943,3,FALSE),0) -> 966 | F32: =IFERROR(VLOOKUP($A32,Filtro!$A$5:$AW$2943,4,FALSE),0) -> 966 | G32: =IFERROR(VLOOKUP($A32,Filtro!$A$5:$AW$2943,5,FALSE),0) -> 0 | H32: =IFERROR(VLOOKUP($A32,Filtro!$A$5:$AW$2943,6,FALSE),0) -> 3 | I32: =IFERROR(VLOOKUP($A32,Filtro!$A$5:$AW$2943,7,FALSE),0) -> 0 | J32: =IFERROR(VLOOKUP($A32,Filtro!$A$5:$AW$2943,8,FALSE),0) -> 0 | K32: =IFERROR(VLOOKUP($A32,Filtro!$A$5:$AW$2943,9,FALSE),0) -> 0 | L32: =IFERROR(VLOOKUP($A32,Filtro!$A$5:$AW$2943,10,FALSE),0) -> 0 | M32: =IFERROR(VLOOKUP($A32,Filtro!$A$5:$AW$2943,11,FALSE),0) -> 0 | N32: =IFERROR(VLOOKUP($A32,Filtro!$A$5:$AW$2943,12,FALSE),0) -> 0 | O32: =IFERROR(VLOOKUP($A32,Filtro!$A$5:$AW$2943,13,FALSE),0) -> 0 | P32: =IFERROR(VLOOKUP($A32,Filtro!$A$5:$AW$2943,14,FALSE),0) -> 0 | Q32: =IFERROR(VLOOKUP($A32,Filtro!$A$5:$AW$2943,15,FALSE),0) -> 0 | R32: =IFERROR(VLOOKUP($A32,Filtro!$A$5:$AW$2943,16,FALSE),0) -> 0 | S32: =IFERROR(VLOOKUP($A32,Filtro!$A$5:$AW$2943,17,FALSE),0) -> 0 | T32: =IFERROR(VLOOKUP($A32,Filtro!$A$5:$AW$2943,18,FALSE),0) -> 0 | U32: =IFERROR(VLOOKUP($A32,Filtro!$A$5:$AW$2943,19,FALSE),0) -> 0 | V32: =IFERROR(VLOOKUP($A32,Filtro!$A$5:$AW$2943,20,FALSE),0) -> 0 | W32: =IFERROR(VLOOKUP($A32,Filtro!$A$5:$AW$2943,21,FALSE),0) -> 0 | X32: =IFERROR(VLOOKUP($A32,Filtro!$A$5:$AW$2943,22,FALSE),0) -> 0 | Y32: =IFERROR(VLOOKUP($A32,Filtro!$A$5:$AW$2943,23,FALSE),0) -> 0 | Z32: =IFERROR(VLOOKUP($A32,Filtro!$A$5:$AW$2943,24,FALSE),0) -> 0 | AA32: =IFERROR(VLOOKUP($A32,Filtro!$A$5:$AW$2943,25,FALSE),0) -> 0 | AB32: =IFERROR(VLOOKUP($A32,Filtro!$A$5:$AW$2943,26,FALSE),0) -> 0 | AC32: =IFERROR(VLOOKUP($A32,Filtro!$A$5:$AW$2943,27,FALSE),0) -> 969 | AD32: =IFERROR(VLOOKUP($A32,Filtro!$A$5:$AW$2943,28,FALSE),0) -> 0 | AE32: =IFERROR(VLOOKUP($A32,Filtro!$A$5:$AW$2943,29,FALSE),0) -> 0 | AF32: =IFERROR(VLOOKUP($A32,Filtro!$A$5:$AW$2943,30,FALSE),0) -> 0 | AG32: =IFERROR(VLOOKUP($A32,Filtro!$A$5:$AW$2943,31,FALSE),0) -> 0 | AH32: =IFERROR(VLOOKUP($A32,Filtro!$A$5:$AW$2943,32,FALSE),0) -> 0 | AI32: =IFERROR(VLOOKUP($A32,Filtro!$A$5:$AW$2943,33,FALSE),0) -> 0 | AJ32: =IFERROR(VLOOKUP($A32,Filtro!$A$5:$AW$2943,34,FALSE),0) -> 0 | AK32: =IFERROR(VLOOKUP($A32,Filtro!$A$5:$AW$2943,35,FALSE),0) -> 0 | AL32: 9,050 | AM32: 8,742,300
A33: 01014301 | B33: 0101314 | C33: Consulta Médica de Especialidad en Cirugía Cardiovascular | D33: =IFERROR(VLOOKUP($A33,Filtro!$A$5:$AW$2943,2,FALSE),0) -> 0 | E33: =IFERROR(VLOOKUP($A33,Filtro!$A$5:$AW$2943,3,FALSE),0) -> 0 | F33: =IFERROR(VLOOKUP($A33,Filtro!$A$5:$AW$2943,4,FALSE),0) -> 0 | G33: =IFERROR(VLOOKUP($A33,Filtro!$A$5:$AW$2943,5,FALSE),0) -> 0 | H33: =IFERROR(VLOOKUP($A33,Filtro!$A$5:$AW$2943,6,FALSE),0) -> 0 | I33: =IFERROR(VLOOKUP($A33,Filtro!$A$5:$AW$2943,7,FALSE),0) -> 0 | J33: =IFERROR(VLOOKUP($A33,Filtro!$A$5:$AW$2943,8,FALSE),0) -> 0 | K33: =IFERROR(VLOOKUP($A33,Filtro!$A$5:$AW$2943,9,FALSE),0) -> 0 | L33: =IFERROR(VLOOKUP($A33,Filtro!$A$5:$AW$2943,10,FALSE),0) -> 0 | M33: =IFERROR(VLOOKUP($A33,Filtro!$A$5:$AW$2943,11,FALSE),0) -> 0 | N33: =IFERROR(VLOOKUP($A33,Filtro!$A$5:$AW$2943,12,FALSE),0) -> 0 | O33: =IFERROR(VLOOKUP($A33,Filtro!$A$5:$AW$2943,13,FALSE),0) -> 0 | P33: =IFERROR(VLOOKUP($A33,Filtro!$A$5:$AW$2943,14,FALSE),0) -> 0 | Q33: =IFERROR(VLOOKUP($A33,Filtro!$A$5:$AW$2943,15,FALSE),0) -> 0 | R33: =IFERROR(VLOOKUP($A33,Filtro!$A$5:$AW$2943,16,FALSE),0) -> 0 | S33: =IFERROR(VLOOKUP($A33,Filtro!$A$5:$AW$2943,17,FALSE),0) -> 0 | T33: =IFERROR(VLOOKUP($A33,Filtro!$A$5:$AW$2943,18,FALSE),0) -> 0 | U33: =IFERROR(VLOOKUP($A33,Filtro!$A$5:$AW$2943,19,FALSE),0) -> 0 | V33: =IFERROR(VLOOKUP($A33,Filtro!$A$5:$AW$2943,20,FALSE),0) -> 0 | W33: =IFERROR(VLOOKUP($A33,Filtro!$A$5:$AW$2943,21,FALSE),0) -> 0 | X33: =IFERROR(VLOOKUP($A33,Filtro!$A$5:$AW$2943,22,FALSE),0) -> 0 | Y33: =IFERROR(VLOOKUP($A33,Filtro!$A$5:$AW$2943,23,FALSE),0) -> 0 | Z33: =IFERROR(VLOOKUP($A33,Filtro!$A$5:$AW$2943,24,FALSE),0) -> 0 | AA33: =IFERROR(VLOOKUP($A33,Filtro!$A$5:$AW$2943,25,FALSE),0) -> 0 | AB33: =IFERROR(VLOOKUP($A33,Filtro!$A$5:$AW$2943,26,FALSE),0) -> 0 | AC33: =IFERROR(VLOOKUP($A33,Filtro!$A$5:$AW$2943,27,FALSE),0) -> 0 | AD33: =IFERROR(VLOOKUP($A33,Filtro!$A$5:$AW$2943,28,FALSE),0) -> 0 | AE33: =IFERROR(VLOOKUP($A33,Filtro!$A$5:$AW$2943,29,FALSE),0) -> 0 | AF33: =IFERROR(VLOOKUP($A33,Filtro!$A$5:$AW$2943,30,FALSE),0) -> 0 | AG33: =IFERROR(VLOOKUP($A33,Filtro!$A$5:$AW$2943,31,FALSE),0) -> 0 | AH33: =IFERROR(VLOOKUP($A33,Filtro!$A$5:$AW$2943,32,FALSE),0) -> 0 | AI33: =IFERROR(VLOOKUP($A33,Filtro!$A$5:$AW$2943,33,FALSE),0) -> 0 | AJ33: =IFERROR(VLOOKUP($A33,Filtro!$A$5:$AW$2943,34,FALSE),0) -> 0 | AK33: =IFERROR(VLOOKUP($A33,Filtro!$A$5:$AW$2943,35,FALSE),0) -> 0 | AL33: 9,050 | AM33: 0
A34: 01014302 | B34: 0101315 | C34: Consulta Médica de Especialidad en Cirugía de Tórax | D34: =IFERROR(VLOOKUP($A34,Filtro!$A$5:$AW$2943,2,FALSE),0) -> 897 | E34: =IFERROR(VLOOKUP($A34,Filtro!$A$5:$AW$2943,3,FALSE),0) -> 897 | F34: =IFERROR(VLOOKUP($A34,Filtro!$A$5:$AW$2943,4,FALSE),0) -> 897 | G34: =IFERROR(VLOOKUP($A34,Filtro!$A$5:$AW$2943,5,FALSE),0) -> 0 | H34: =IFERROR(VLOOKUP($A34,Filtro!$A$5:$AW$2943,6,FALSE),0) -> 0 | I34: =IFERROR(VLOOKUP($A34,Filtro!$A$5:$AW$2943,7,FALSE),0) -> 0 | J34: =IFERROR(VLOOKUP($A34,Filtro!$A$5:$AW$2943,8,FALSE),0) -> 0 | K34: =IFERROR(VLOOKUP($A34,Filtro!$A$5:$AW$2943,9,FALSE),0) -> 0 | L34: =IFERROR(VLOOKUP($A34,Filtro!$A$5:$AW$2943,10,FALSE),0) -> 0 | M34: =IFERROR(VLOOKUP($A34,Filtro!$A$5:$AW$2943,11,FALSE),0) -> 0 | N34: =IFERROR(VLOOKUP($A34,Filtro!$A$5:$AW$2943,12,FALSE),0) -> 0 | O34: =IFERROR(VLOOKUP($A34,Filtro!$A$5:$AW$2943,13,FALSE),0) -> 0 | P34: =IFERROR(VLOOKUP($A34,Filtro!$A$5:$AW$2943,14,FALSE),0) -> 0 | Q34: =IFERROR(VLOOKUP($A34,Filtro!$A$5:$AW$2943,15,FALSE),0) -> 0 | R34: =IFERROR(VLOOKUP($A34,Filtro!$A$5:$AW$2943,16,FALSE),0) -> 0 | S34: =IFERROR(VLOOKUP($A34,Filtro!$A$5:$AW$2943,17,FALSE),0) -> 0 | T34: =IFERROR(VLOOKUP($A34,Filtro!$A$5:$AW$2943,18,FALSE),0) -> 0 | U34: =IFERROR(VLOOKUP($A34,Filtro!$A$5:$AW$2943,19,FALSE),0) -> 0 | V34: =IFERROR(VLOOKUP($A34,Filtro!$A$5:$AW$2943,20,FALSE),0) -> 0 | W34: =IFERROR(VLOOKUP($A34,Filtro!$A$5:$AW$2943,21,FALSE),0) -> 0 | X34: =IFERROR(VLOOKUP($A34,Filtro!$A$5:$AW$2943,22,FALSE),0) -> 0 | Y34: =IFERROR(VLOOKUP($A34,Filtro!$A$5:$AW$2943,23,FALSE),0) -> 0 | Z34: =IFERROR(VLOOKUP($A34,Filtro!$A$5:$AW$2943,24,FALSE),0) -> 0 | AA34: =IFERROR(VLOOKUP($A34,Filtro!$A$5:$AW$2943,25,FALSE),0) -> 0 | AB34: =IFERROR(VLOOKUP($A34,Filtro!$A$5:$AW$2943,26,FALSE),0) -> 0 | AC34: =IFERROR(VLOOKUP($A34,Filtro!$A$5:$AW$2943,27,FALSE),0) -> 897 | AD34: =IFERROR(VLOOKUP($A34,Filtro!$A$5:$AW$2943,28,FALSE),0) -> 0 | AE34: =IFERROR(VLOOKUP($A34,Filtro!$A$5:$AW$2943,29,FALSE),0) -> 0 | AF34: =IFERROR(VLOOKUP($A34,Filtro!$A$5:$AW$2943,30,FALSE),0) -> 0 | AG34: =IFERROR(VLOOKUP($A34,Filtro!$A$5:$AW$2943,31,FALSE),0) -> 0 | AH34: =IFERROR(VLOOKUP($A34,Filtro!$A$5:$AW$2943,32,FALSE),0) -> 0 | AI34: =IFERROR(VLOOKUP($A34,Filtro!$A$5:$AW$2943,33,FALSE),0) -> 0 | AJ34: =IFERROR(VLOOKUP($A34,Filtro!$A$5:$AW$2943,34,FALSE),0) -> 0 | AK34: =IFERROR(VLOOKUP($A34,Filtro!$A$5:$AW$2943,35,FALSE),0) -> 0 | AL34: 9,050 | AM34: 8,117,850
A35: 01014303 | B35: 0101316 | C35: Consulta Médica de Especialidad en Cirugía Plástica y Reparadora | D35: =IFERROR(VLOOKUP($A35,Filtro!$A$5:$AW$2943,2,FALSE),0) -> 336 | E35: =IFERROR(VLOOKUP($A35,Filtro!$A$5:$AW$2943,3,FALSE),0) -> 334 | F35: =IFERROR(VLOOKUP($A35,Filtro!$A$5:$AW$2943,4,FALSE),0) -> 334 | G35: =IFERROR(VLOOKUP($A35,Filtro!$A$5:$AW$2943,5,FALSE),0) -> 0 | H35: =IFERROR(VLOOKUP($A35,Filtro!$A$5:$AW$2943,6,FALSE),0) -> 2 | I35: =IFERROR(VLOOKUP($A35,Filtro!$A$5:$AW$2943,7,FALSE),0) -> 0 | J35: =IFERROR(VLOOKUP($A35,Filtro!$A$5:$AW$2943,8,FALSE),0) -> 0 | K35: =IFERROR(VLOOKUP($A35,Filtro!$A$5:$AW$2943,9,FALSE),0) -> 0 | L35: =IFERROR(VLOOKUP($A35,Filtro!$A$5:$AW$2943,10,FALSE),0) -> 0 | M35: =IFERROR(VLOOKUP($A35,Filtro!$A$5:$AW$2943,11,FALSE),0) -> 0 | N35: =IFERROR(VLOOKUP($A35,Filtro!$A$5:$AW$2943,12,FALSE),0) -> 0 | O35: =IFERROR(VLOOKUP($A35,Filtro!$A$5:$AW$2943,13,FALSE),0) -> 0 | P35: =IFERROR(VLOOKUP($A35,Filtro!$A$5:$AW$2943,14,FALSE),0) -> 0 | Q35: =IFERROR(VLOOKUP($A35,Filtro!$A$5:$AW$2943,15,FALSE),0) -> 0 | R35: =IFERROR(VLOOKUP($A35,Filtro!$A$5:$AW$2943,16,FALSE),0) -> 0 | S35: =IFERROR(VLOOKUP($A35,Filtro!$A$5:$AW$2943,17,FALSE),0) -> 0 | T35: =IFERROR(VLOOKUP($A35,Filtro!$A$5:$AW$2943,18,FALSE),0) -> 0 | U35: =IFERROR(VLOOKUP($A35,Filtro!$A$5:$AW$2943,19,FALSE),0) -> 0 | V35: =IFERROR(VLOOKUP($A35,Filtro!$A$5:$AW$2943,20,FALSE),0) -> 0 | W35: =IFERROR(VLOOKUP($A35,Filtro!$A$5:$AW$2943,21,FALSE),0) -> 0 | X35: =IFERROR(VLOOKUP($A35,Filtro!$A$5:$AW$2943,22,FALSE),0) -> 0 | Y35: =IFERROR(VLOOKUP($A35,Filtro!$A$5:$AW$2943,23,FALSE),0) -> 0 | Z35: =IFERROR(VLOOKUP($A35,Filtro!$A$5:$AW$2943,24,FALSE),0) -> 0 | AA35: =IFERROR(VLOOKUP($A35,Filtro!$A$5:$AW$2943,25,FALSE),0) -> 0 | AB35: =IFERROR(VLOOKUP($A35,Filtro!$A$5:$AW$2943,26,FALSE),0) -> 0 | AC35: =IFERROR(VLOOKUP($A35,Filtro!$A$5:$AW$2943,27,FALSE),0) -> 336 | AD35: =IFERROR(VLOOKUP($A35,Filtro!$A$5:$AW$2943,28,FALSE),0) -> 0 | AE35: =IFERROR(VLOOKUP($A35,Filtro!$A$5:$AW$2943,29,FALSE),0) -> 0 | AF35: =IFERROR(VLOOKUP($A35,Filtro!$A$5:$AW$2943,30,FALSE),0) -> 0 | AG35: =IFERROR(VLOOKUP($A35,Filtro!$A$5:$AW$2943,31,FALSE),0) -> 0 | AH35: =IFERROR(VLOOKUP($A35,Filtro!$A$5:$AW$2943,32,FALSE),0) -> 0 | AI35: =IFERROR(VLOOKUP($A35,Filtro!$A$5:$AW$2943,33,FALSE),0) -> 0 | AJ35: =IFERROR(VLOOKUP($A35,Filtro!$A$5:$AW$2943,34,FALSE),0) -> 0 | AK35: =IFERROR(VLOOKUP($A35,Filtro!$A$5:$AW$2943,35,FALSE),0) -> 0 | AL35: 9,050 | AM35: 3,022,700
A36: 01014304 | B36: 0101317 | C36: Consulta Médica de Especialidad en Cirugía Pediátrica | D36: =IFERROR(VLOOKUP($A36,Filtro!$A$5:$AW$2943,2,FALSE),0) -> 8694 | E36: =IFERROR(VLOOKUP($A36,Filtro!$A$5:$AW$2943,3,FALSE),0) -> 8671 | F36: =IFERROR(VLOOKUP($A36,Filtro!$A$5:$AW$2943,4,FALSE),0) -> 8671 | G36: =IFERROR(VLOOKUP($A36,Filtro!$A$5:$AW$2943,5,FALSE),0) -> 0 | H36: =IFERROR(VLOOKUP($A36,Filtro!$A$5:$AW$2943,6,FALSE),0) -> 23 | I36: =IFERROR(VLOOKUP($A36,Filtro!$A$5:$AW$2943,7,FALSE),0) -> 0 | J36: =IFERROR(VLOOKUP($A36,Filtro!$A$5:$AW$2943,8,FALSE),0) -> 0 | K36: =IFERROR(VLOOKUP($A36,Filtro!$A$5:$AW$2943,9,FALSE),0) -> 0 | L36: =IFERROR(VLOOKUP($A36,Filtro!$A$5:$AW$2943,10,FALSE),0) -> 0 | M36: =IFERROR(VLOOKUP($A36,Filtro!$A$5:$AW$2943,11,FALSE),0) -> 0 | N36: =IFERROR(VLOOKUP($A36,Filtro!$A$5:$AW$2943,12,FALSE),0) -> 0 | O36: =IFERROR(VLOOKUP($A36,Filtro!$A$5:$AW$2943,13,FALSE),0) -> 0 | P36: =IFERROR(VLOOKUP($A36,Filtro!$A$5:$AW$2943,14,FALSE),0) -> 0 | Q36: =IFERROR(VLOOKUP($A36,Filtro!$A$5:$AW$2943,15,FALSE),0) -> 0 | R36: =IFERROR(VLOOKUP($A36,Filtro!$A$5:$AW$2943,16,FALSE),0) -> 0 | S36: =IFERROR(VLOOKUP($A36,Filtro!$A$5:$AW$2943,17,FALSE),0) -> 0 | T36: =IFERROR(VLOOKUP($A36,Filtro!$A$5:$AW$2943,18,FALSE),0) -> 0 | U36: =IFERROR(VLOOKUP($A36,Filtro!$A$5:$AW$2943,19,FALSE),0) -> 0 | V36: =IFERROR(VLOOKUP($A36,Filtro!$A$5:$AW$2943,20,FALSE),0) -> 0 | W36: =IFERROR(VLOOKUP($A36,Filtro!$A$5:$AW$2943,21,FALSE),0) -> 0 | X36: =IFERROR(VLOOKUP($A36,Filtro!$A$5:$AW$2943,22,FALSE),0) -> 0 | Y36: =IFERROR(VLOOKUP($A36,Filtro!$A$5:$AW$2943,23,FALSE),0) -> 0 | Z36: =IFERROR(VLOOKUP($A36,Filtro!$A$5:$AW$2943,24,FALSE),0) -> 0 | AA36: =IFERROR(VLOOKUP($A36,Filtro!$A$5:$AW$2943,25,FALSE),0) -> 0 | AB36: =IFERROR(VLOOKUP($A36,Filtro!$A$5:$AW$2943,26,FALSE),0) -> 0 | AC36: =IFERROR(VLOOKUP($A36,Filtro!$A$5:$AW$2943,27,FALSE),0) -> 8694 | AD36: =IFERROR(VLOOKUP($A36,Filtro!$A$5:$AW$2943,28,FALSE),0) -> 0 | AE36: =IFERROR(VLOOKUP($A36,Filtro!$A$5:$AW$2943,29,FALSE),0) -> 0 | AF36: =IFERROR(VLOOKUP($A36,Filtro!$A$5:$AW$2943,30,FALSE),0) -> 0 | AG36: =IFERROR(VLOOKUP($A36,Filtro!$A$5:$AW$2943,31,FALSE),0) -> 0 | AH36: =IFERROR(VLOOKUP($A36,Filtro!$A$5:$AW$2943,32,FALSE),0) -> 0 | AI36: =IFERROR(VLOOKUP($A36,Filtro!$A$5:$AW$2943,33,FALSE),0) -> 0 | AJ36: =IFERROR(VLOOKUP($A36,Filtro!$A$5:$AW$2943,34,FALSE),0) -> 0 | AK36: =IFERROR(VLOOKUP($A36,Filtro!$A$5:$AW$2943,35,FALSE),0) -> 0 | AL36: 9,050 | AM36: 78,472,550
A37: 01014305 | B37: 0101318 | C37: Consulta Médica de Especialidad en Cirugía Vascular Periférica | D37: =IFERROR(VLOOKUP($A37,Filtro!$A$5:$AW$2943,2,FALSE),0) -> 2388 | E37: =IFERROR(VLOOKUP($A37,Filtro!$A$5:$AW$2943,3,FALSE),0) -> 2388 | F37: =IFERROR(VLOOKUP($A37,Filtro!$A$5:$AW$2943,4,FALSE),0) -> 2388 | G37: =IFERROR(VLOOKUP($A37,Filtro!$A$5:$AW$2943,5,FALSE),0) -> 0 | H37: =IFERROR(VLOOKUP($A37,Filtro!$A$5:$AW$2943,6,FALSE),0) -> 0 | I37: =IFERROR(VLOOKUP($A37,Filtro!$A$5:$AW$2943,7,FALSE),0) -> 0 | J37: =IFERROR(VLOOKUP($A37,Filtro!$A$5:$AW$2943,8,FALSE),0) -> 0 | K37: =IFERROR(VLOOKUP($A37,Filtro!$A$5:$AW$2943,9,FALSE),0) -> 0 | L37: =IFERROR(VLOOKUP($A37,Filtro!$A$5:$AW$2943,10,FALSE),0) -> 0 | M37: =IFERROR(VLOOKUP($A37,Filtro!$A$5:$AW$2943,11,FALSE),0) -> 0 | N37: =IFERROR(VLOOKUP($A37,Filtro!$A$5:$AW$2943,12,FALSE),0) -> 0 | O37: =IFERROR(VLOOKUP($A37,Filtro!$A$5:$AW$2943,13,FALSE),0) -> 0 | P37: =IFERROR(VLOOKUP($A37,Filtro!$A$5:$AW$2943,14,FALSE),0) -> 0 | Q37: =IFERROR(VLOOKUP($A37,Filtro!$A$5:$AW$2943,15,FALSE),0) -> 0 | R37: =IFERROR(VLOOKUP($A37,Filtro!$A$5:$AW$2943,16,FALSE),0) -> 0 | S37: =IFERROR(VLOOKUP($A37,Filtro!$A$5:$AW$2943,17,FALSE),0) -> 0 | T37: =IFERROR(VLOOKUP($A37,Filtro!$A$5:$AW$2943,18,FALSE),0) -> 0 | U37: =IFERROR(VLOOKUP($A37,Filtro!$A$5:$AW$2943,19,FALSE),0) -> 0 | V37: =IFERROR(VLOOKUP($A37,Filtro!$A$5:$AW$2943,20,FALSE),0) -> 0 | W37: =IFERROR(VLOOKUP($A37,Filtro!$A$5:$AW$2943,21,FALSE),0) -> 0 | X37: =IFERROR(VLOOKUP($A37,Filtro!$A$5:$AW$2943,22,FALSE),0) -> 0 | Y37: =IFERROR(VLOOKUP($A37,Filtro!$A$5:$AW$2943,23,FALSE),0) -> 0 | Z37: =IFERROR(VLOOKUP($A37,Filtro!$A$5:$AW$2943,24,FALSE),0) -> 0 | AA37: =IFERROR(VLOOKUP($A37,Filtro!$A$5:$AW$2943,25,FALSE),0) -> 0 | AB37: =IFERROR(VLOOKUP($A37,Filtro!$A$5:$AW$2943,26,FALSE),0) -> 0 | AC37: =IFERROR(VLOOKUP($A37,Filtro!$A$5:$AW$2943,27,FALSE),0) -> 2388 | AD37: =IFERROR(VLOOKUP($A37,Filtro!$A$5:$AW$2943,28,FALSE),0) -> 0 | AE37: =IFERROR(VLOOKUP($A37,Filtro!$A$5:$AW$2943,29,FALSE),0) -> 0 | AF37: =IFERROR(VLOOKUP($A37,Filtro!$A$5:$AW$2943,30,FALSE),0) -> 0 | AG37: =IFERROR(VLOOKUP($A37,Filtro!$A$5:$AW$2943,31,FALSE),0) -> 0 | AH37: =IFERROR(VLOOKUP($A37,Filtro!$A$5:$AW$2943,32,FALSE),0) -> 0 | AI37: =IFERROR(VLOOKUP($A37,Filtro!$A$5:$AW$2943,33,FALSE),0) -> 0 | AJ37: =IFERROR(VLOOKUP($A37,Filtro!$A$5:$AW$2943,34,FALSE),0) -> 0 | AK37: =IFERROR(VLOOKUP($A37,Filtro!$A$5:$AW$2943,35,FALSE),0) -> 0 | AL37: 9,050 | AM37: 21,611,400
A38: 01014306 | B38: 0101319 | C38: Consulta Médica de Especialidad en Coloproctología | D38: =IFERROR(VLOOKUP($A38,Filtro!$A$5:$AW$2943,2,FALSE),0) -> 2530 | E38: =IFERROR(VLOOKUP($A38,Filtro!$A$5:$AW$2943,3,FALSE),0) -> 2529 | F38: =IFERROR(VLOOKUP($A38,Filtro!$A$5:$AW$2943,4,FALSE),0) -> 2529 | G38: =IFERROR(VLOOKUP($A38,Filtro!$A$5:$AW$2943,5,FALSE),0) -> 0 | H38: =IFERROR(VLOOKUP($A38,Filtro!$A$5:$AW$2943,6,FALSE),0) -> 1 | I38: =IFERROR(VLOOKUP($A38,Filtro!$A$5:$AW$2943,7,FALSE),0) -> 0 | J38: =IFERROR(VLOOKUP($A38,Filtro!$A$5:$AW$2943,8,FALSE),0) -> 0 | K38: =IFERROR(VLOOKUP($A38,Filtro!$A$5:$AW$2943,9,FALSE),0) -> 0 | L38: =IFERROR(VLOOKUP($A38,Filtro!$A$5:$AW$2943,10,FALSE),0) -> 0 | M38: =IFERROR(VLOOKUP($A38,Filtro!$A$5:$AW$2943,11,FALSE),0) -> 0 | N38: =IFERROR(VLOOKUP($A38,Filtro!$A$5:$AW$2943,12,FALSE),0) -> 0 | O38: =IFERROR(VLOOKUP($A38,Filtro!$A$5:$AW$2943,13,FALSE),0) -> 0 | P38: =IFERROR(VLOOKUP($A38,Filtro!$A$5:$AW$2943,14,FALSE),0) -> 0 | Q38: =IFERROR(VLOOKUP($A38,Filtro!$A$5:$AW$2943,15,FALSE),0) -> 0 | R38: =IFERROR(VLOOKUP($A38,Filtro!$A$5:$AW$2943,16,FALSE),0) -> 0 | S38: =IFERROR(VLOOKUP($A38,Filtro!$A$5:$AW$2943,17,FALSE),0) -> 0 | T38: =IFERROR(VLOOKUP($A38,Filtro!$A$5:$AW$2943,18,FALSE),0) -> 0 | U38: =IFERROR(VLOOKUP($A38,Filtro!$A$5:$AW$2943,19,FALSE),0) -> 0 | V38: =IFERROR(VLOOKUP($A38,Filtro!$A$5:$AW$2943,20,FALSE),0) -> 0 | W38: =IFERROR(VLOOKUP($A38,Filtro!$A$5:$AW$2943,21,FALSE),0) -> 0 | X38: =IFERROR(VLOOKUP($A38,Filtro!$A$5:$AW$2943,22,FALSE),0) -> 0 | Y38: =IFERROR(VLOOKUP($A38,Filtro!$A$5:$AW$2943,23,FALSE),0) -> 0 | Z38: =IFERROR(VLOOKUP($A38,Filtro!$A$5:$AW$2943,24,FALSE),0) -> 0 | AA38: =IFERROR(VLOOKUP($A38,Filtro!$A$5:$AW$2943,25,FALSE),0) -> 0 | AB38: =IFERROR(VLOOKUP($A38,Filtro!$A$5:$AW$2943,26,FALSE),0) -> 0 | AC38: =IFERROR(VLOOKUP($A38,Filtro!$A$5:$AW$2943,27,FALSE),0) -> 2530 | AD38: =IFERROR(VLOOKUP($A38,Filtro!$A$5:$AW$2943,28,FALSE),0) -> 0 | AE38: =IFERROR(VLOOKUP($A38,Filtro!$A$5:$AW$2943,29,FALSE),0) -> 0 | AF38: =IFERROR(VLOOKUP($A38,Filtro!$A$5:$AW$2943,30,FALSE),0) -> 0 | AG38: =IFERROR(VLOOKUP($A38,Filtro!$A$5:$AW$2943,31,FALSE),0) -> 0 | AH38: =IFERROR(VLOOKUP($A38,Filtro!$A$5:$AW$2943,32,FALSE),0) -> 0 | AI38: =IFERROR(VLOOKUP($A38,Filtro!$A$5:$AW$2943,33,FALSE),0) -> 0 | AJ38: =IFERROR(VLOOKUP($A38,Filtro!$A$5:$AW$2943,34,FALSE),0) -> 0 | AK38: =IFERROR(VLOOKUP($A38,Filtro!$A$5:$AW$2943,35,FALSE),0) -> 0 | AL38: 9,050 | AM38: 22,887,450
A39: 01014307 | B39: 0101320 | C39: Consulta Médica de Especialidad en Diabetología | D39: =IFERROR(VLOOKUP($A39,Filtro!$A$5:$AW$2943,2,FALSE),0) -> 564 | E39: =IFERROR(VLOOKUP($A39,Filtro!$A$5:$AW$2943,3,FALSE),0) -> 564 | F39: =IFERROR(VLOOKUP($A39,Filtro!$A$5:$AW$2943,4,FALSE),0) -> 564 | G39: =IFERROR(VLOOKUP($A39,Filtro!$A$5:$AW$2943,5,FALSE),0) -> 0 | H39: =IFERROR(VLOOKUP($A39,Filtro!$A$5:$AW$2943,6,FALSE),0) -> 0 | I39: =IFERROR(VLOOKUP($A39,Filtro!$A$5:$AW$2943,7,FALSE),0) -> 0 | J39: =IFERROR(VLOOKUP($A39,Filtro!$A$5:$AW$2943,8,FALSE),0) -> 0 | K39: =IFERROR(VLOOKUP($A39,Filtro!$A$5:$AW$2943,9,FALSE),0) -> 0 | L39: =IFERROR(VLOOKUP($A39,Filtro!$A$5:$AW$2943,10,FALSE),0) -> 0 | M39: =IFERROR(VLOOKUP($A39,Filtro!$A$5:$AW$2943,11,FALSE),0) -> 0 | N39: =IFERROR(VLOOKUP($A39,Filtro!$A$5:$AW$2943,12,FALSE),0) -> 0 | O39: =IFERROR(VLOOKUP($A39,Filtro!$A$5:$AW$2943,13,FALSE),0) -> 0 | P39: =IFERROR(VLOOKUP($A39,Filtro!$A$5:$AW$2943,14,FALSE),0) -> 0 | Q39: =IFERROR(VLOOKUP($A39,Filtro!$A$5:$AW$2943,15,FALSE),0) -> 0 | R39: =IFERROR(VLOOKUP($A39,Filtro!$A$5:$AW$2943,16,FALSE),0) -> 0 | S39: =IFERROR(VLOOKUP($A39,Filtro!$A$5:$AW$2943,17,FALSE),0) -> 0 | T39: =IFERROR(VLOOKUP($A39,Filtro!$A$5:$AW$2943,18,FALSE),0) -> 0 | U39: =IFERROR(VLOOKUP($A39,Filtro!$A$5:$AW$2943,19,FALSE),0) -> 0 | V39: =IFERROR(VLOOKUP($A39,Filtro!$A$5:$AW$2943,20,FALSE),0) -> 0 | W39: =IFERROR(VLOOKUP($A39,Filtro!$A$5:$AW$2943,21,FALSE),0) -> 0 | X39: =IFERROR(VLOOKUP($A39,Filtro!$A$5:$AW$2943,22,FALSE),0) -> 0 | Y39: =IFERROR(VLOOKUP($A39,Filtro!$A$5:$AW$2943,23,FALSE),0) -> 0 | Z39: =IFERROR(VLOOKUP($A39,Filtro!$A$5:$AW$2943,24,FALSE),0) -> 0 | AA39: =IFERROR(VLOOKUP($A39,Filtro!$A$5:$AW$2943,25,FALSE),0) -> 0 | AB39: =IFERROR(VLOOKUP($A39,Filtro!$A$5:$AW$2943,26,FALSE),0) -> 0 | AC39: =IFERROR(VLOOKUP($A39,Filtro!$A$5:$AW$2943,27,FALSE),0) -> 564 | AD39: =IFERROR(VLOOKUP($A39,Filtro!$A$5:$AW$2943,28,FALSE),0) -> 0 | AE39: =IFERROR(VLOOKUP($A39,Filtro!$A$5:$AW$2943,29,FALSE),0) -> 0 | AF39: =IFERROR(VLOOKUP($A39,Filtro!$A$5:$AW$2943,30,FALSE),0) -> 0 | AG39: =IFERROR(VLOOKUP($A39,Filtro!$A$5:$AW$2943,31,FALSE),0) -> 0 | AH39: =IFERROR(VLOOKUP($A39,Filtro!$A$5:$AW$2943,32,FALSE),0) -> 0 | AI39: =IFERROR(VLOOKUP($A39,Filtro!$A$5:$AW$2943,33,FALSE),0) -> 0 | AJ39: =IFERROR(VLOOKUP($A39,Filtro!$A$5:$AW$2943,34,FALSE),0) -> 0 | AK39: =IFERROR(VLOOKUP($A39,Filtro!$A$5:$AW$2943,35,FALSE),0) -> 0 | AL39: 9,050 | AM39: 5,104,200
A40: 01014308 | B40: 0101321 | C40: Consulta Médica de Especialidad en Enfermedades Respiratorias Adulto | D40: =IFERROR(VLOOKUP($A40,Filtro!$A$5:$AW$2943,2,FALSE),0) -> 4275 | E40: =IFERROR(VLOOKUP($A40,Filtro!$A$5:$AW$2943,3,FALSE),0) -> 4274 | F40: =IFERROR(VLOOKUP($A40,Filtro!$A$5:$AW$2943,4,FALSE),0) -> 4274 | G40: =IFERROR(VLOOKUP($A40,Filtro!$A$5:$AW$2943,5,FALSE),0) -> 0 | H40: =IFERROR(VLOOKUP($A40,Filtro!$A$5:$AW$2943,6,FALSE),0) -> 1 | I40: =IFERROR(VLOOKUP($A40,Filtro!$A$5:$AW$2943,7,FALSE),0) -> 0 | J40: =IFERROR(VLOOKUP($A40,Filtro!$A$5:$AW$2943,8,FALSE),0) -> 0 | K40: =IFERROR(VLOOKUP($A40,Filtro!$A$5:$AW$2943,9,FALSE),0) -> 0 | L40: =IFERROR(VLOOKUP($A40,Filtro!$A$5:$AW$2943,10,FALSE),0) -> 0 | M40: =IFERROR(VLOOKUP($A40,Filtro!$A$5:$AW$2943,11,FALSE),0) -> 0 | N40: =IFERROR(VLOOKUP($A40,Filtro!$A$5:$AW$2943,12,FALSE),0) -> 0 | O40: =IFERROR(VLOOKUP($A40,Filtro!$A$5:$AW$2943,13,FALSE),0) -> 0 | P40: =IFERROR(VLOOKUP($A40,Filtro!$A$5:$AW$2943,14,FALSE),0) -> 0 | Q40: =IFERROR(VLOOKUP($A40,Filtro!$A$5:$AW$2943,15,FALSE),0) -> 0 | R40: =IFERROR(VLOOKUP($A40,Filtro!$A$5:$AW$2943,16,FALSE),0) -> 0 | S40: =IFERROR(VLOOKUP($A40,Filtro!$A$5:$AW$2943,17,FALSE),0) -> 0 | T40: =IFERROR(VLOOKUP($A40,Filtro!$A$5:$AW$2943,18,FALSE),0) -> 0 | U40: =IFERROR(VLOOKUP($A40,Filtro!$A$5:$AW$2943,19,FALSE),0) -> 0 | V40: =IFERROR(VLOOKUP($A40,Filtro!$A$5:$AW$2943,20,FALSE),0) -> 0 | W40: =IFERROR(VLOOKUP($A40,Filtro!$A$5:$AW$2943,21,FALSE),0) -> 0 | X40: =IFERROR(VLOOKUP($A40,Filtro!$A$5:$AW$2943,22,FALSE),0) -> 0 | Y40: =IFERROR(VLOOKUP($A40,Filtro!$A$5:$AW$2943,23,FALSE),0) -> 0 | Z40: =IFERROR(VLOOKUP($A40,Filtro!$A$5:$AW$2943,24,FALSE),0) -> 0 | AA40: =IFERROR(VLOOKUP($A40,Filtro!$A$5:$AW$2943,25,FALSE),0) -> 0 | AB40: =IFERROR(VLOOKUP($A40,Filtro!$A$5:$AW$2943,26,FALSE),0) -> 0 | AC40: =IFERROR(VLOOKUP($A40,Filtro!$A$5:$AW$2943,27,FALSE),0) -> 4275 | AD40: =IFERROR(VLOOKUP($A40,Filtro!$A$5:$AW$2943,28,FALSE),0) -> 0 | AE40: =IFERROR(VLOOKUP($A40,Filtro!$A$5:$AW$2943,29,FALSE),0) -> 76 | AF40: =IFERROR(VLOOKUP($A40,Filtro!$A$5:$AW$2943,30,FALSE),0) -> 0 | AG40: =IFERROR(VLOOKUP($A40,Filtro!$A$5:$AW$2943,31,FALSE),0) -> 0 | AH40: =IFERROR(VLOOKUP($A40,Filtro!$A$5:$AW$2943,32,FALSE),0) -> 0 | AI40: =IFERROR(VLOOKUP($A40,Filtro!$A$5:$AW$2943,33,FALSE),0) -> 0 | AJ40: =IFERROR(VLOOKUP($A40,Filtro!$A$5:$AW$2943,34,FALSE),0) -> 0 | AK40: =IFERROR(VLOOKUP($A40,Filtro!$A$5:$AW$2943,35,FALSE),0) -> 0 | AL40: 9,050 | AM40: 38,679,700
A41: 01014309 | B41: 0101322 | C41: Consulta Médica de Especialidad en Enfermedades Respiratorias Pediátricas | D41: =IFERROR(VLOOKUP($A41,Filtro!$A$5:$AW$2943,2,FALSE),0) -> 3358 | E41: =IFERROR(VLOOKUP($A41,Filtro!$A$5:$AW$2943,3,FALSE),0) -> 3353 | F41: =IFERROR(VLOOKUP($A41,Filtro!$A$5:$AW$2943,4,FALSE),0) -> 3353 | G41: =IFERROR(VLOOKUP($A41,Filtro!$A$5:$AW$2943,5,FALSE),0) -> 0 | H41: =IFERROR(VLOOKUP($A41,Filtro!$A$5:$AW$2943,6,FALSE),0) -> 5 | I41: =IFERROR(VLOOKUP($A41,Filtro!$A$5:$AW$2943,7,FALSE),0) -> 0 | J41: =IFERROR(VLOOKUP($A41,Filtro!$A$5:$AW$2943,8,FALSE),0) -> 0 | K41: =IFERROR(VLOOKUP($A41,Filtro!$A$5:$AW$2943,9,FALSE),0) -> 0 | L41: =IFERROR(VLOOKUP($A41,Filtro!$A$5:$AW$2943,10,FALSE),0) -> 0 | M41: =IFERROR(VLOOKUP($A41,Filtro!$A$5:$AW$2943,11,FALSE),0) -> 0 | N41: =IFERROR(VLOOKUP($A41,Filtro!$A$5:$AW$2943,12,FALSE),0) -> 0 | O41: =IFERROR(VLOOKUP($A41,Filtro!$A$5:$AW$2943,13,FALSE),0) -> 0 | P41: =IFERROR(VLOOKUP($A41,Filtro!$A$5:$AW$2943,14,FALSE),0) -> 0 | Q41: =IFERROR(VLOOKUP($A41,Filtro!$A$5:$AW$2943,15,FALSE),0) -> 0 | R41: =IFERROR(VLOOKUP($A41,Filtro!$A$5:$AW$2943,16,FALSE),0) -> 0 | S41: =IFERROR(VLOOKUP($A41,Filtro!$A$5:$AW$2943,17,FALSE),0) -> 0 | T41: =IFERROR(VLOOKUP($A41,Filtro!$A$5:$AW$2943,18,FALSE),0) -> 0 | U41: =IFERROR(VLOOKUP($A41,Filtro!$A$5:$AW$2943,19,FALSE),0) -> 0 | V41: =IFERROR(VLOOKUP($A41,Filtro!$A$5:$AW$2943,20,FALSE),0) -> 0 | W41: =IFERROR(VLOOKUP($A41,Filtro!$A$5:$AW$2943,21,FALSE),0) -> 0 | X41: =IFERROR(VLOOKUP($A41,Filtro!$A$5:$AW$2943,22,FALSE),0) -> 0 | Y41: =IFERROR(VLOOKUP($A41,Filtro!$A$5:$AW$2943,23,FALSE),0) -> 0 | Z41: =IFERROR(VLOOKUP($A41,Filtro!$A$5:$AW$2943,24,FALSE),0) -> 0 | AA41: =IFERROR(VLOOKUP($A41,Filtro!$A$5:$AW$2943,25,FALSE),0) -> 0 | AB41: =IFERROR(VLOOKUP($A41,Filtro!$A$5:$AW$2943,26,FALSE),0) -> 0 | AC41: =IFERROR(VLOOKUP($A41,Filtro!$A$5:$AW$2943,27,FALSE),0) -> 3358 | AD41: =IFERROR(VLOOKUP($A41,Filtro!$A$5:$AW$2943,28,FALSE),0) -> 0 | AE41: =IFERROR(VLOOKUP($A41,Filtro!$A$5:$AW$2943,29,FALSE),0) -> 0 | AF41: =IFERROR(VLOOKUP($A41,Filtro!$A$5:$AW$2943,30,FALSE),0) -> 0 | AG41: =IFERROR(VLOOKUP($A41,Filtro!$A$5:$AW$2943,31,FALSE),0) -> 0 | AH41: =IFERROR(VLOOKUP($A41,Filtro!$A$5:$AW$2943,32,FALSE),0) -> 0 | AI41: =IFERROR(VLOOKUP($A41,Filtro!$A$5:$AW$2943,33,FALSE),0) -> 0 | AJ41: =IFERROR(VLOOKUP($A41,Filtro!$A$5:$AW$2943,34,FALSE),0) -> 0 | AK41: =IFERROR(VLOOKUP($A41,Filtro!$A$5:$AW$2943,35,FALSE),0) -> 0 | AL41: 9,050 | AM41: 30,344,650
A42: 01014310 | B42: 0101323 | C42: Consulta Médica de Especialidad en Gastroenterología Adulto | D42: =IFERROR(VLOOKUP($A42,Filtro!$A$5:$AW$2943,2,FALSE),0) -> 4263 | E42: =IFERROR(VLOOKUP($A42,Filtro!$A$5:$AW$2943,3,FALSE),0) -> 4262 | F42: =IFERROR(VLOOKUP($A42,Filtro!$A$5:$AW$2943,4,FALSE),0) -> 4262 | G42: =IFERROR(VLOOKUP($A42,Filtro!$A$5:$AW$2943,5,FALSE),0) -> 0 | H42: =IFERROR(VLOOKUP($A42,Filtro!$A$5:$AW$2943,6,FALSE),0) -> 1 | I42: =IFERROR(VLOOKUP($A42,Filtro!$A$5:$AW$2943,7,FALSE),0) -> 0 | J42: =IFERROR(VLOOKUP($A42,Filtro!$A$5:$AW$2943,8,FALSE),0) -> 0 | K42: =IFERROR(VLOOKUP($A42,Filtro!$A$5:$AW$2943,9,FALSE),0) -> 0 | L42: =IFERROR(VLOOKUP($A42,Filtro!$A$5:$AW$2943,10,FALSE),0) -> 0 | M42: =IFERROR(VLOOKUP($A42,Filtro!$A$5:$AW$2943,11,FALSE),0) -> 0 | N42: =IFERROR(VLOOKUP($A42,Filtro!$A$5:$AW$2943,12,FALSE),0) -> 0 | O42: =IFERROR(VLOOKUP($A42,Filtro!$A$5:$AW$2943,13,FALSE),0) -> 0 | P42: =IFERROR(VLOOKUP($A42,Filtro!$A$5:$AW$2943,14,FALSE),0) -> 0 | Q42: =IFERROR(VLOOKUP($A42,Filtro!$A$5:$AW$2943,15,FALSE),0) -> 0 | R42: =IFERROR(VLOOKUP($A42,Filtro!$A$5:$AW$2943,16,FALSE),0) -> 0 | S42: =IFERROR(VLOOKUP($A42,Filtro!$A$5:$AW$2943,17,FALSE),0) -> 0 | T42: =IFERROR(VLOOKUP($A42,Filtro!$A$5:$AW$2943,18,FALSE),0) -> 0 | U42: =IFERROR(VLOOKUP($A42,Filtro!$A$5:$AW$2943,19,FALSE),0) -> 0 | V42: =IFERROR(VLOOKUP($A42,Filtro!$A$5:$AW$2943,20,FALSE),0) -> 0 | W42: =IFERROR(VLOOKUP($A42,Filtro!$A$5:$AW$2943,21,FALSE),0) -> 0 | X42: =IFERROR(VLOOKUP($A42,Filtro!$A$5:$AW$2943,22,FALSE),0) -> 0 | Y42: =IFERROR(VLOOKUP($A42,Filtro!$A$5:$AW$2943,23,FALSE),0) -> 0 | Z42: =IFERROR(VLOOKUP($A42,Filtro!$A$5:$AW$2943,24,FALSE),0) -> 0 | AA42: =IFERROR(VLOOKUP($A42,Filtro!$A$5:$AW$2943,25,FALSE),0) -> 0 | AB42: =IFERROR(VLOOKUP($A42,Filtro!$A$5:$AW$2943,26,FALSE),0) -> 0 | AC42: =IFERROR(VLOOKUP($A42,Filtro!$A$5:$AW$2943,27,FALSE),0) -> 4263 | AD42: =IFERROR(VLOOKUP($A42,Filtro!$A$5:$AW$2943,28,FALSE),0) -> 0 | AE42: =IFERROR(VLOOKUP($A42,Filtro!$A$5:$AW$2943,29,FALSE),0) -> 0 | AF42: =IFERROR(VLOOKUP($A42,Filtro!$A$5:$AW$2943,30,FALSE),0) -> 0 | AG42: =IFERROR(VLOOKUP($A42,Filtro!$A$5:$AW$2943,31,FALSE),0) -> 0 | AH42: =IFERROR(VLOOKUP($A42,Filtro!$A$5:$AW$2943,32,FALSE),0) -> 0 | AI42: =IFERROR(VLOOKUP($A42,Filtro!$A$5:$AW$2943,33,FALSE),0) -> 0 | AJ42: =IFERROR(VLOOKUP($A42,Filtro!$A$5:$AW$2943,34,FALSE),0) -> 0 | AK42: =IFERROR(VLOOKUP($A42,Filtro!$A$5:$AW$2943,35,FALSE),0) -> 0 | AL42: 9,050 | AM42: 38,571,100
A43: 01014311 | B43: 0101324 | C43: Consulta Médica de Especialidad en Gastroenterología Pediátrico | D43: =IFERROR(VLOOKUP($A43,Filtro!$A$5:$AW$2943,2,FALSE),0) -> 2834 | E43: =IFERROR(VLOOKUP($A43,Filtro!$A$5:$AW$2943,3,FALSE),0) -> 2831 | F43: =IFERROR(VLOOKUP($A43,Filtro!$A$5:$AW$2943,4,FALSE),0) -> 2831 | G43: =IFERROR(VLOOKUP($A43,Filtro!$A$5:$AW$2943,5,FALSE),0) -> 0 | H43: =IFERROR(VLOOKUP($A43,Filtro!$A$5:$AW$2943,6,FALSE),0) -> 3 | I43: =IFERROR(VLOOKUP($A43,Filtro!$A$5:$AW$2943,7,FALSE),0) -> 0 | J43: =IFERROR(VLOOKUP($A43,Filtro!$A$5:$AW$2943,8,FALSE),0) -> 0 | K43: =IFERROR(VLOOKUP($A43,Filtro!$A$5:$AW$2943,9,FALSE),0) -> 0 | L43: =IFERROR(VLOOKUP($A43,Filtro!$A$5:$AW$2943,10,FALSE),0) -> 0 | M43: =IFERROR(VLOOKUP($A43,Filtro!$A$5:$AW$2943,11,FALSE),0) -> 0 | N43: =IFERROR(VLOOKUP($A43,Filtro!$A$5:$AW$2943,12,FALSE),0) -> 0 | O43: =IFERROR(VLOOKUP($A43,Filtro!$A$5:$AW$2943,13,FALSE),0) -> 0 | P43: =IFERROR(VLOOKUP($A43,Filtro!$A$5:$AW$2943,14,FALSE),0) -> 0 | Q43: =IFERROR(VLOOKUP($A43,Filtro!$A$5:$AW$2943,15,FALSE),0) -> 0 | R43: =IFERROR(VLOOKUP($A43,Filtro!$A$5:$AW$2943,16,FALSE),0) -> 0 | S43: =IFERROR(VLOOKUP($A43,Filtro!$A$5:$AW$2943,17,FALSE),0) -> 0 | T43: =IFERROR(VLOOKUP($A43,Filtro!$A$5:$AW$2943,18,FALSE),0) -> 0 | U43: =IFERROR(VLOOKUP($A43,Filtro!$A$5:$AW$2943,19,FALSE),0) -> 0 | V43: =IFERROR(VLOOKUP($A43,Filtro!$A$5:$AW$2943,20,FALSE),0) -> 0 | W43: =IFERROR(VLOOKUP($A43,Filtro!$A$5:$AW$2943,21,FALSE),0) -> 0 | X43: =IFERROR(VLOOKUP($A43,Filtro!$A$5:$AW$2943,22,FALSE),0) -> 0 | Y43: =IFERROR(VLOOKUP($A43,Filtro!$A$5:$AW$2943,23,FALSE),0) -> 0 | Z43: =IFERROR(VLOOKUP($A43,Filtro!$A$5:$AW$2943,24,FALSE),0) -> 0 | AA43: =IFERROR(VLOOKUP($A43,Filtro!$A$5:$AW$2943,25,FALSE),0) -> 0 | AB43: =IFERROR(VLOOKUP($A43,Filtro!$A$5:$AW$2943,26,FALSE),0) -> 0 | AC43: =IFERROR(VLOOKUP($A43,Filtro!$A$5:$AW$2943,27,FALSE),0) -> 2834 | AD43: =IFERROR(VLOOKUP($A43,Filtro!$A$5:$AW$2943,28,FALSE),0) -> 0 | AE43: =IFERROR(VLOOKUP($A43,Filtro!$A$5:$AW$2943,29,FALSE),0) -> 0 | AF43: =IFERROR(VLOOKUP($A43,Filtro!$A$5:$AW$2943,30,FALSE),0) -> 0 | AG43: =IFERROR(VLOOKUP($A43,Filtro!$A$5:$AW$2943,31,FALSE),0) -> 0 | AH43: =IFERROR(VLOOKUP($A43,Filtro!$A$5:$AW$2943,32,FALSE),0) -> 0 | AI43: =IFERROR(VLOOKUP($A43,Filtro!$A$5:$AW$2943,33,FALSE),0) -> 0 | AJ43: =IFERROR(VLOOKUP($A43,Filtro!$A$5:$AW$2943,34,FALSE),0) -> 0 | AK43: =IFERROR(VLOOKUP($A43,Filtro!$A$5:$AW$2943,35,FALSE),0) -> 0 | AL43: 9,050 | AM43: 25,620,550
A44: 01014312 | B44: 0101325 | C44: Consulta Médica de Especialidad en Genética Clínica | D44: =IFERROR(VLOOKUP($A44,Filtro!$A$5:$AW$2943,2,FALSE),0) -> 0 | E44: =IFERROR(VLOOKUP($A44,Filtro!$A$5:$AW$2943,3,FALSE),0) -> 0 | F44: =IFERROR(VLOOKUP($A44,Filtro!$A$5:$AW$2943,4,FALSE),0) -> 0 | G44: =IFERROR(VLOOKUP($A44,Filtro!$A$5:$AW$2943,5,FALSE),0) -> 0 | H44: =IFERROR(VLOOKUP($A44,Filtro!$A$5:$AW$2943,6,FALSE),0) -> 0 | I44: =IFERROR(VLOOKUP($A44,Filtro!$A$5:$AW$2943,7,FALSE),0) -> 0 | J44: =IFERROR(VLOOKUP($A44,Filtro!$A$5:$AW$2943,8,FALSE),0) -> 0 | K44: =IFERROR(VLOOKUP($A44,Filtro!$A$5:$AW$2943,9,FALSE),0) -> 0 | L44: =IFERROR(VLOOKUP($A44,Filtro!$A$5:$AW$2943,10,FALSE),0) -> 0 | M44: =IFERROR(VLOOKUP($A44,Filtro!$A$5:$AW$2943,11,FALSE),0) -> 0 | N44: =IFERROR(VLOOKUP($A44,Filtro!$A$5:$AW$2943,12,FALSE),0) -> 0 | O44: =IFERROR(VLOOKUP($A44,Filtro!$A$5:$AW$2943,13,FALSE),0) -> 0 | P44: =IFERROR(VLOOKUP($A44,Filtro!$A$5:$AW$2943,14,FALSE),0) -> 0 | Q44: =IFERROR(VLOOKUP($A44,Filtro!$A$5:$AW$2943,15,FALSE),0) -> 0 | R44: =IFERROR(VLOOKUP($A44,Filtro!$A$5:$AW$2943,16,FALSE),0) -> 0 | S44: =IFERROR(VLOOKUP($A44,Filtro!$A$5:$AW$2943,17,FALSE),0) -> 0 | T44: =IFERROR(VLOOKUP($A44,Filtro!$A$5:$AW$2943,18,FALSE),0) -> 0 | U44: =IFERROR(VLOOKUP($A44,Filtro!$A$5:$AW$2943,19,FALSE),0) -> 0 | V44: =IFERROR(VLOOKUP($A44,Filtro!$A$5:$AW$2943,20,FALSE),0) -> 0 | W44: =IFERROR(VLOOKUP($A44,Filtro!$A$5:$AW$2943,21,FALSE),0) -> 0 | X44: =IFERROR(VLOOKUP($A44,Filtro!$A$5:$AW$2943,22,FALSE),0) -> 0 | Y44: =IFERROR(VLOOKUP($A44,Filtro!$A$5:$AW$2943,23,FALSE),0) -> 0 | Z44: =IFERROR(VLOOKUP($A44,Filtro!$A$5:$AW$2943,24,FALSE),0) -> 0 | AA44: =IFERROR(VLOOKUP($A44,Filtro!$A$5:$AW$2943,25,FALSE),0) -> 0 | AB44: =IFERROR(VLOOKUP($A44,Filtro!$A$5:$AW$2943,26,FALSE),0) -> 0 | AC44: =IFERROR(VLOOKUP($A44,Filtro!$A$5:$AW$2943,27,FALSE),0) -> 0 | AD44: =IFERROR(VLOOKUP($A44,Filtro!$A$5:$AW$2943,28,FALSE),0) -> 0 | AE44: =IFERROR(VLOOKUP($A44,Filtro!$A$5:$AW$2943,29,FALSE),0) -> 0 | AF44: =IFERROR(VLOOKUP($A44,Filtro!$A$5:$AW$2943,30,FALSE),0) -> 0 | AG44: =IFERROR(VLOOKUP($A44,Filtro!$A$5:$AW$2943,31,FALSE),0) -> 0 | AH44: =IFERROR(VLOOKUP($A44,Filtro!$A$5:$AW$2943,32,FALSE),0) -> 0 | AI44: =IFERROR(VLOOKUP($A44,Filtro!$A$5:$AW$2943,33,FALSE),0) -> 0 | AJ44: =IFERROR(VLOOKUP($A44,Filtro!$A$5:$AW$2943,34,FALSE),0) -> 0 | AK44: =IFERROR(VLOOKUP($A44,Filtro!$A$5:$AW$2943,35,FALSE),0) -> 0 | AL44: 9,050 | AM44: 0
A45: 01014313 | B45: 0101326 | C45: Consulta Médica de Especialidad en Nefrología Adulto | D45: =IFERROR(VLOOKUP($A45,Filtro!$A$5:$AW$2943,2,FALSE),0) -> 8349 | E45: =IFERROR(VLOOKUP($A45,Filtro!$A$5:$AW$2943,3,FALSE),0) -> 8347 | F45: =IFERROR(VLOOKUP($A45,Filtro!$A$5:$AW$2943,4,FALSE),0) -> 8347 | G45: =IFERROR(VLOOKUP($A45,Filtro!$A$5:$AW$2943,5,FALSE),0) -> 0 | H45: =IFERROR(VLOOKUP($A45,Filtro!$A$5:$AW$2943,6,FALSE),0) -> 2 | I45: =IFERROR(VLOOKUP($A45,Filtro!$A$5:$AW$2943,7,FALSE),0) -> 0 | J45: =IFERROR(VLOOKUP($A45,Filtro!$A$5:$AW$2943,8,FALSE),0) -> 0 | K45: =IFERROR(VLOOKUP($A45,Filtro!$A$5:$AW$2943,9,FALSE),0) -> 0 | L45: =IFERROR(VLOOKUP($A45,Filtro!$A$5:$AW$2943,10,FALSE),0) -> 0 | M45: =IFERROR(VLOOKUP($A45,Filtro!$A$5:$AW$2943,11,FALSE),0) -> 0 | N45: =IFERROR(VLOOKUP($A45,Filtro!$A$5:$AW$2943,12,FALSE),0) -> 0 | O45: =IFERROR(VLOOKUP($A45,Filtro!$A$5:$AW$2943,13,FALSE),0) -> 0 | P45: =IFERROR(VLOOKUP($A45,Filtro!$A$5:$AW$2943,14,FALSE),0) -> 0 | Q45: =IFERROR(VLOOKUP($A45,Filtro!$A$5:$AW$2943,15,FALSE),0) -> 0 | R45: =IFERROR(VLOOKUP($A45,Filtro!$A$5:$AW$2943,16,FALSE),0) -> 0 | S45: =IFERROR(VLOOKUP($A45,Filtro!$A$5:$AW$2943,17,FALSE),0) -> 0 | T45: =IFERROR(VLOOKUP($A45,Filtro!$A$5:$AW$2943,18,FALSE),0) -> 0 | U45: =IFERROR(VLOOKUP($A45,Filtro!$A$5:$AW$2943,19,FALSE),0) -> 0 | V45: =IFERROR(VLOOKUP($A45,Filtro!$A$5:$AW$2943,20,FALSE),0) -> 0 | W45: =IFERROR(VLOOKUP($A45,Filtro!$A$5:$AW$2943,21,FALSE),0) -> 0 | X45: =IFERROR(VLOOKUP($A45,Filtro!$A$5:$AW$2943,22,FALSE),0) -> 0 | Y45: =IFERROR(VLOOKUP($A45,Filtro!$A$5:$AW$2943,23,FALSE),0) -> 0 | Z45: =IFERROR(VLOOKUP($A45,Filtro!$A$5:$AW$2943,24,FALSE),0) -> 0 | AA45: =IFERROR(VLOOKUP($A45,Filtro!$A$5:$AW$2943,25,FALSE),0) -> 0 | AB45: =IFERROR(VLOOKUP($A45,Filtro!$A$5:$AW$2943,26,FALSE),0) -> 0 | AC45: =IFERROR(VLOOKUP($A45,Filtro!$A$5:$AW$2943,27,FALSE),0) -> 8349 | AD45: =IFERROR(VLOOKUP($A45,Filtro!$A$5:$AW$2943,28,FALSE),0) -> 0 | AE45: =IFERROR(VLOOKUP($A45,Filtro!$A$5:$AW$2943,29,FALSE),0) -> 0 | AF45: =IFERROR(VLOOKUP($A45,Filtro!$A$5:$AW$2943,30,FALSE),0) -> 0 | AG45: =IFERROR(VLOOKUP($A45,Filtro!$A$5:$AW$2943,31,FALSE),0) -> 0 | AH45: =IFERROR(VLOOKUP($A45,Filtro!$A$5:$AW$2943,32,FALSE),0) -> 0 | AI45: =IFERROR(VLOOKUP($A45,Filtro!$A$5:$AW$2943,33,FALSE),0) -> 0 | AJ45: =IFERROR(VLOOKUP($A45,Filtro!$A$5:$AW$2943,34,FALSE),0) -> 0 | AK45: =IFERROR(VLOOKUP($A45,Filtro!$A$5:$AW$2943,35,FALSE),0) -> 0 | AL45: 9,050 | AM45: 75,540,350
A46: 01014314 | B46: 0101327 | C46: Consulta Médica de Especialidad en Nefrología Pediátrico | D46: =IFERROR(VLOOKUP($A46,Filtro!$A$5:$AW$2943,2,FALSE),0) -> 1444 | E46: =IFERROR(VLOOKUP($A46,Filtro!$A$5:$AW$2943,3,FALSE),0) -> 1436 | F46: =IFERROR(VLOOKUP($A46,Filtro!$A$5:$AW$2943,4,FALSE),0) -> 1436 | G46: =IFERROR(VLOOKUP($A46,Filtro!$A$5:$AW$2943,5,FALSE),0) -> 0 | H46: =IFERROR(VLOOKUP($A46,Filtro!$A$5:$AW$2943,6,FALSE),0) -> 8 | I46: =IFERROR(VLOOKUP($A46,Filtro!$A$5:$AW$2943,7,FALSE),0) -> 0 | J46: =IFERROR(VLOOKUP($A46,Filtro!$A$5:$AW$2943,8,FALSE),0) -> 0 | K46: =IFERROR(VLOOKUP($A46,Filtro!$A$5:$AW$2943,9,FALSE),0) -> 0 | L46: =IFERROR(VLOOKUP($A46,Filtro!$A$5:$AW$2943,10,FALSE),0) -> 0 | M46: =IFERROR(VLOOKUP($A46,Filtro!$A$5:$AW$2943,11,FALSE),0) -> 0 | N46: =IFERROR(VLOOKUP($A46,Filtro!$A$5:$AW$2943,12,FALSE),0) -> 0 | O46: =IFERROR(VLOOKUP($A46,Filtro!$A$5:$AW$2943,13,FALSE),0) -> 0 | P46: =IFERROR(VLOOKUP($A46,Filtro!$A$5:$AW$2943,14,FALSE),0) -> 0 | Q46: =IFERROR(VLOOKUP($A46,Filtro!$A$5:$AW$2943,15,FALSE),0) -> 0 | R46: =IFERROR(VLOOKUP($A46,Filtro!$A$5:$AW$2943,16,FALSE),0) -> 0 | S46: =IFERROR(VLOOKUP($A46,Filtro!$A$5:$AW$2943,17,FALSE),0) -> 0 | T46: =IFERROR(VLOOKUP($A46,Filtro!$A$5:$AW$2943,18,FALSE),0) -> 0 | U46: =IFERROR(VLOOKUP($A46,Filtro!$A$5:$AW$2943,19,FALSE),0) -> 0 | V46: =IFERROR(VLOOKUP($A46,Filtro!$A$5:$AW$2943,20,FALSE),0) -> 0 | W46: =IFERROR(VLOOKUP($A46,Filtro!$A$5:$AW$2943,21,FALSE),0) -> 0 | X46: =IFERROR(VLOOKUP($A46,Filtro!$A$5:$AW$2943,22,FALSE),0) -> 0 | Y46: =IFERROR(VLOOKUP($A46,Filtro!$A$5:$AW$2943,23,FALSE),0) -> 0 | Z46: =IFERROR(VLOOKUP($A46,Filtro!$A$5:$AW$2943,24,FALSE),0) -> 0 | AA46: =IFERROR(VLOOKUP($A46,Filtro!$A$5:$AW$2943,25,FALSE),0) -> 0 | AB46: =IFERROR(VLOOKUP($A46,Filtro!$A$5:$AW$2943,26,FALSE),0) -> 0 | AC46: =IFERROR(VLOOKUP($A46,Filtro!$A$5:$AW$2943,27,FALSE),0) -> 1444 | AD46: =IFERROR(VLOOKUP($A46,Filtro!$A$5:$AW$2943,28,FALSE),0) -> 0 | AE46: =IFERROR(VLOOKUP($A46,Filtro!$A$5:$AW$2943,29,FALSE),0) -> 0 | AF46: =IFERROR(VLOOKUP($A46,Filtro!$A$5:$AW$2943,30,FALSE),0) -> 0 | AG46: =IFERROR(VLOOKUP($A46,Filtro!$A$5:$AW$2943,31,FALSE),0) -> 0 | AH46: =IFERROR(VLOOKUP($A46,Filtro!$A$5:$AW$2943,32,FALSE),0) -> 0 | AI46: =IFERROR(VLOOKUP($A46,Filtro!$A$5:$AW$2943,33,FALSE),0) -> 0 | AJ46: =IFERROR(VLOOKUP($A46,Filtro!$A$5:$AW$2943,34,FALSE),0) -> 0 | AK46: =IFERROR(VLOOKUP($A46,Filtro!$A$5:$AW$2943,35,FALSE),0) -> 0 | AL46: 9,050 | AM46: 12,995,800
A47: 01014315 | B47: 0101328 | C47: Consulta Médica de Especialidad en Neonatología | D47: =IFERROR(VLOOKUP($A47,Filtro!$A$5:$AW$2943,2,FALSE),0) -> 1692 | E47: =IFERROR(VLOOKUP($A47,Filtro!$A$5:$AW$2943,3,FALSE),0) -> 1682 | F47: =IFERROR(VLOOKUP($A47,Filtro!$A$5:$AW$2943,4,FALSE),0) -> 1682 | G47: =IFERROR(VLOOKUP($A47,Filtro!$A$5:$AW$2943,5,FALSE),0) -> 0 | H47: =IFERROR(VLOOKUP($A47,Filtro!$A$5:$AW$2943,6,FALSE),0) -> 10 | I47: =IFERROR(VLOOKUP($A47,Filtro!$A$5:$AW$2943,7,FALSE),0) -> 0 | J47: =IFERROR(VLOOKUP($A47,Filtro!$A$5:$AW$2943,8,FALSE),0) -> 0 | K47: =IFERROR(VLOOKUP($A47,Filtro!$A$5:$AW$2943,9,FALSE),0) -> 0 | L47: =IFERROR(VLOOKUP($A47,Filtro!$A$5:$AW$2943,10,FALSE),0) -> 0 | M47: =IFERROR(VLOOKUP($A47,Filtro!$A$5:$AW$2943,11,FALSE),0) -> 0 | N47: =IFERROR(VLOOKUP($A47,Filtro!$A$5:$AW$2943,12,FALSE),0) -> 0 | O47: =IFERROR(VLOOKUP($A47,Filtro!$A$5:$AW$2943,13,FALSE),0) -> 0 | P47: =IFERROR(VLOOKUP($A47,Filtro!$A$5:$AW$2943,14,FALSE),0) -> 0 | Q47: =IFERROR(VLOOKUP($A47,Filtro!$A$5:$AW$2943,15,FALSE),0) -> 0 | R47: =IFERROR(VLOOKUP($A47,Filtro!$A$5:$AW$2943,16,FALSE),0) -> 0 | S47: =IFERROR(VLOOKUP($A47,Filtro!$A$5:$AW$2943,17,FALSE),0) -> 0 | T47: =IFERROR(VLOOKUP($A47,Filtro!$A$5:$AW$2943,18,FALSE),0) -> 0 | U47: =IFERROR(VLOOKUP($A47,Filtro!$A$5:$AW$2943,19,FALSE),0) -> 0 | V47: =IFERROR(VLOOKUP($A47,Filtro!$A$5:$AW$2943,20,FALSE),0) -> 0 | W47: =IFERROR(VLOOKUP($A47,Filtro!$A$5:$AW$2943,21,FALSE),0) -> 0 | X47: =IFERROR(VLOOKUP($A47,Filtro!$A$5:$AW$2943,22,FALSE),0) -> 0 | Y47: =IFERROR(VLOOKUP($A47,Filtro!$A$5:$AW$2943,23,FALSE),0) -> 0 | Z47: =IFERROR(VLOOKUP($A47,Filtro!$A$5:$AW$2943,24,FALSE),0) -> 0 | AA47: =IFERROR(VLOOKUP($A47,Filtro!$A$5:$AW$2943,25,FALSE),0) -> 0 | AB47: =IFERROR(VLOOKUP($A47,Filtro!$A$5:$AW$2943,26,FALSE),0) -> 0 | AC47: =IFERROR(VLOOKUP($A47,Filtro!$A$5:$AW$2943,27,FALSE),0) -> 1692 | AD47: =IFERROR(VLOOKUP($A47,Filtro!$A$5:$AW$2943,28,FALSE),0) -> 0 | AE47: =IFERROR(VLOOKUP($A47,Filtro!$A$5:$AW$2943,29,FALSE),0) -> 0 | AF47: =IFERROR(VLOOKUP($A47,Filtro!$A$5:$AW$2943,30,FALSE),0) -> 0 | AG47: =IFERROR(VLOOKUP($A47,Filtro!$A$5:$AW$2943,31,FALSE),0) -> 0 | AH47: =IFERROR(VLOOKUP($A47,Filtro!$A$5:$AW$2943,32,FALSE),0) -> 0 | AI47: =IFERROR(VLOOKUP($A47,Filtro!$A$5:$AW$2943,33,FALSE),0) -> 0 | AJ47: =IFERROR(VLOOKUP($A47,Filtro!$A$5:$AW$2943,34,FALSE),0) -> 0 | AK47: =IFERROR(VLOOKUP($A47,Filtro!$A$5:$AW$2943,35,FALSE),0) -> 0 | AL47: 9,050 | AM47: 15,222,100
A48: 01014316 | B48: 0101329 | C48: Consulta Médica de Especialidad en Anestesiología | D48: =IFERROR(VLOOKUP($A48,Filtro!$A$5:$AW$2943,2,FALSE),0) -> 5750 | E48: =IFERROR(VLOOKUP($A48,Filtro!$A$5:$AW$2943,3,FALSE),0) -> 5749 | F48: =IFERROR(VLOOKUP($A48,Filtro!$A$5:$AW$2943,4,FALSE),0) -> 5749 | G48: =IFERROR(VLOOKUP($A48,Filtro!$A$5:$AW$2943,5,FALSE),0) -> 0 | H48: =IFERROR(VLOOKUP($A48,Filtro!$A$5:$AW$2943,6,FALSE),0) -> 1 | I48: =IFERROR(VLOOKUP($A48,Filtro!$A$5:$AW$2943,7,FALSE),0) -> 0 | J48: =IFERROR(VLOOKUP($A48,Filtro!$A$5:$AW$2943,8,FALSE),0) -> 0 | K48: =IFERROR(VLOOKUP($A48,Filtro!$A$5:$AW$2943,9,FALSE),0) -> 0 | L48: =IFERROR(VLOOKUP($A48,Filtro!$A$5:$AW$2943,10,FALSE),0) -> 0 | M48: =IFERROR(VLOOKUP($A48,Filtro!$A$5:$AW$2943,11,FALSE),0) -> 0 | N48: =IFERROR(VLOOKUP($A48,Filtro!$A$5:$AW$2943,12,FALSE),0) -> 0 | O48: =IFERROR(VLOOKUP($A48,Filtro!$A$5:$AW$2943,13,FALSE),0) -> 0 | P48: =IFERROR(VLOOKUP($A48,Filtro!$A$5:$AW$2943,14,FALSE),0) -> 0 | Q48: =IFERROR(VLOOKUP($A48,Filtro!$A$5:$AW$2943,15,FALSE),0) -> 0 | R48: =IFERROR(VLOOKUP($A48,Filtro!$A$5:$AW$2943,16,FALSE),0) -> 0 | S48: =IFERROR(VLOOKUP($A48,Filtro!$A$5:$AW$2943,17,FALSE),0) -> 0 | T48: =IFERROR(VLOOKUP($A48,Filtro!$A$5:$AW$2943,18,FALSE),0) -> 0 | U48: =IFERROR(VLOOKUP($A48,Filtro!$A$5:$AW$2943,19,FALSE),0) -> 0 | V48: =IFERROR(VLOOKUP($A48,Filtro!$A$5:$AW$2943,20,FALSE),0) -> 0 | W48: =IFERROR(VLOOKUP($A48,Filtro!$A$5:$AW$2943,21,FALSE),0) -> 0 | X48: =IFERROR(VLOOKUP($A48,Filtro!$A$5:$AW$2943,22,FALSE),0) -> 0 | Y48: =IFERROR(VLOOKUP($A48,Filtro!$A$5:$AW$2943,23,FALSE),0) -> 0 | Z48: =IFERROR(VLOOKUP($A48,Filtro!$A$5:$AW$2943,24,FALSE),0) -> 0 | AA48: =IFERROR(VLOOKUP($A48,Filtro!$A$5:$AW$2943,25,FALSE),0) -> 0 | AB48: =IFERROR(VLOOKUP($A48,Filtro!$A$5:$AW$2943,26,FALSE),0) -> 0 | AC48: =IFERROR(VLOOKUP($A48,Filtro!$A$5:$AW$2943,27,FALSE),0) -> 5750 | AD48: =IFERROR(VLOOKUP($A48,Filtro!$A$5:$AW$2943,28,FALSE),0) -> 0 | AE48: =IFERROR(VLOOKUP($A48,Filtro!$A$5:$AW$2943,29,FALSE),0) -> 0 | AF48: =IFERROR(VLOOKUP($A48,Filtro!$A$5:$AW$2943,30,FALSE),0) -> 0 | AG48: =IFERROR(VLOOKUP($A48,Filtro!$A$5:$AW$2943,31,FALSE),0) -> 0 | AH48: =IFERROR(VLOOKUP($A48,Filtro!$A$5:$AW$2943,32,FALSE),0) -> 0 | AI48: =IFERROR(VLOOKUP($A48,Filtro!$A$5:$AW$2943,33,FALSE),0) -> 0 | AJ48: =IFERROR(VLOOKUP($A48,Filtro!$A$5:$AW$2943,34,FALSE),0) -> 0 | AK48: =IFERROR(VLOOKUP($A48,Filtro!$A$5:$AW$2943,35,FALSE),0) -> 0 | AL48: 9,050 | AM48: 52,028,450
A49: 01014703 | B49: 0101330 | C49: Consulta Médica de Especialidad en Medicina de Urgencia | D49: =IFERROR(VLOOKUP($A49,Filtro!$A$5:$AW$2943,2,FALSE),0) -> 0 | E49: =IFERROR(VLOOKUP($A49,Filtro!$A$5:$AW$2943,3,FALSE),0) -> 0 | F49: =IFERROR(VLOOKUP($A49,Filtro!$A$5:$AW$2943,4,FALSE),0) -> 0 | G49: =IFERROR(VLOOKUP($A49,Filtro!$A$5:$AW$2943,5,FALSE),0) -> 0 | H49: =IFERROR(VLOOKUP($A49,Filtro!$A$5:$AW$2943,6,FALSE),0) -> 0 | I49: =IFERROR(VLOOKUP($A49,Filtro!$A$5:$AW$2943,7,FALSE),0) -> 0 | J49: =IFERROR(VLOOKUP($A49,Filtro!$A$5:$AW$2943,8,FALSE),0) -> 0 | K49: =IFERROR(VLOOKUP($A49,Filtro!$A$5:$AW$2943,9,FALSE),0) -> 0 | L49: =IFERROR(VLOOKUP($A49,Filtro!$A$5:$AW$2943,10,FALSE),0) -> 0 | M49: =IFERROR(VLOOKUP($A49,Filtro!$A$5:$AW$2943,11,FALSE),0) -> 0 | N49: =IFERROR(VLOOKUP($A49,Filtro!$A$5:$AW$2943,12,FALSE),0) -> 0 | O49: =IFERROR(VLOOKUP($A49,Filtro!$A$5:$AW$2943,13,FALSE),0) -> 0 | P49: =IFERROR(VLOOKUP($A49,Filtro!$A$5:$AW$2943,14,FALSE),0) -> 0 | Q49: =IFERROR(VLOOKUP($A49,Filtro!$A$5:$AW$2943,15,FALSE),0) -> 0 | R49: =IFERROR(VLOOKUP($A49,Filtro!$A$5:$AW$2943,16,FALSE),0) -> 0 | S49: =IFERROR(VLOOKUP($A49,Filtro!$A$5:$AW$2943,17,FALSE),0) -> 0 | T49: =IFERROR(VLOOKUP($A49,Filtro!$A$5:$AW$2943,18,FALSE),0) -> 0 | U49: =IFERROR(VLOOKUP($A49,Filtro!$A$5:$AW$2943,19,FALSE),0) -> 0 | V49: =IFERROR(VLOOKUP($A49,Filtro!$A$5:$AW$2943,20,FALSE),0) -> 0 | W49: =IFERROR(VLOOKUP($A49,Filtro!$A$5:$AW$2943,21,FALSE),0) -> 0 | X49: =IFERROR(VLOOKUP($A49,Filtro!$A$5:$AW$2943,22,FALSE),0) -> 0 | Y49: =IFERROR(VLOOKUP($A49,Filtro!$A$5:$AW$2943,23,FALSE),0) -> 0 | Z49: =IFERROR(VLOOKUP($A49,Filtro!$A$5:$AW$2943,24,FALSE),0) -> 0 | AA49: =IFERROR(VLOOKUP($A49,Filtro!$A$5:$AW$2943,25,FALSE),0) -> 0 | AB49: =IFERROR(VLOOKUP($A49,Filtro!$A$5:$AW$2943,26,FALSE),0) -> 0 | AC49: =IFERROR(VLOOKUP($A49,Filtro!$A$5:$AW$2943,27,FALSE),0) -> 0 | AD49: =IFERROR(VLOOKUP($A49,Filtro!$A$5:$AW$2943,28,FALSE),0) -> 0 | AE49: =IFERROR(VLOOKUP($A49,Filtro!$A$5:$AW$2943,29,FALSE),0) -> 0 | AF49: =IFERROR(VLOOKUP($A49,Filtro!$A$5:$AW$2943,30,FALSE),0) -> 0 | AG49: =IFERROR(VLOOKUP($A49,Filtro!$A$5:$AW$2943,31,FALSE),0) -> 0 | AH49: =IFERROR(VLOOKUP($A49,Filtro!$A$5:$AW$2943,32,FALSE),0) -> 0 | AI49: =IFERROR(VLOOKUP($A49,Filtro!$A$5:$AW$2943,33,FALSE),0) -> 0 | AJ49: =IFERROR(VLOOKUP($A49,Filtro!$A$5:$AW$2943,34,FALSE),0) -> 0 | AK49: =IFERROR(VLOOKUP($A49,Filtro!$A$5:$AW$2943,35,FALSE),0) -> 0 | AL49: 0 | AM49: 0
A50: 01014317 | B50: 0101331 | C50: Consulta Médica de Especialidad en Radioterapia Oncológica | D50: =IFERROR(VLOOKUP($A50,Filtro!$A$5:$AW$2943,2,FALSE),0) -> 0 | E50: =IFERROR(VLOOKUP($A50,Filtro!$A$5:$AW$2943,3,FALSE),0) -> 0 | F50: =IFERROR(VLOOKUP($A50,Filtro!$A$5:$AW$2943,4,FALSE),0) -> 0 | G50: =IFERROR(VLOOKUP($A50,Filtro!$A$5:$AW$2943,5,FALSE),0) -> 0 | H50: =IFERROR(VLOOKUP($A50,Filtro!$A$5:$AW$2943,6,FALSE),0) -> 0 | I50: =IFERROR(VLOOKUP($A50,Filtro!$A$5:$AW$2943,7,FALSE),0) -> 0 | J50: =IFERROR(VLOOKUP($A50,Filtro!$A$5:$AW$2943,8,FALSE),0) -> 0 | K50: =IFERROR(VLOOKUP($A50,Filtro!$A$5:$AW$2943,9,FALSE),0) -> 0 | L50: =IFERROR(VLOOKUP($A50,Filtro!$A$5:$AW$2943,10,FALSE),0) -> 0 | M50: =IFERROR(VLOOKUP($A50,Filtro!$A$5:$AW$2943,11,FALSE),0) -> 0 | N50: =IFERROR(VLOOKUP($A50,Filtro!$A$5:$AW$2943,12,FALSE),0) -> 0 | O50: =IFERROR(VLOOKUP($A50,Filtro!$A$5:$AW$2943,13,FALSE),0) -> 0 | P50: =IFERROR(VLOOKUP($A50,Filtro!$A$5:$AW$2943,14,FALSE),0) -> 0 | Q50: =IFERROR(VLOOKUP($A50,Filtro!$A$5:$AW$2943,15,FALSE),0) -> 0 | R50: =IFERROR(VLOOKUP($A50,Filtro!$A$5:$AW$2943,16,FALSE),0) -> 0 | S50: =IFERROR(VLOOKUP($A50,Filtro!$A$5:$AW$2943,17,FALSE),0) -> 0 | T50: =IFERROR(VLOOKUP($A50,Filtro!$A$5:$AW$2943,18,FALSE),0) -> 0 | U50: =IFERROR(VLOOKUP($A50,Filtro!$A$5:$AW$2943,19,FALSE),0) -> 0 | V50: =IFERROR(VLOOKUP($A50,Filtro!$A$5:$AW$2943,20,FALSE),0) -> 0 | W50: =IFERROR(VLOOKUP($A50,Filtro!$A$5:$AW$2943,21,FALSE),0) -> 0 | X50: =IFERROR(VLOOKUP($A50,Filtro!$A$5:$AW$2943,22,FALSE),0) -> 0 | Y50: =IFERROR(VLOOKUP($A50,Filtro!$A$5:$AW$2943,23,FALSE),0) -> 0 | Z50: =IFERROR(VLOOKUP($A50,Filtro!$A$5:$AW$2943,24,FALSE),0) -> 0 | AA50: =IFERROR(VLOOKUP($A50,Filtro!$A$5:$AW$2943,25,FALSE),0) -> 0 | AB50: =IFERROR(VLOOKUP($A50,Filtro!$A$5:$AW$2943,26,FALSE),0) -> 0 | AC50: =IFERROR(VLOOKUP($A50,Filtro!$A$5:$AW$2943,27,FALSE),0) -> 0 | AD50: =IFERROR(VLOOKUP($A50,Filtro!$A$5:$AW$2943,28,FALSE),0) -> 0 | AE50: =IFERROR(VLOOKUP($A50,Filtro!$A$5:$AW$2943,29,FALSE),0) -> 0 | AF50: =IFERROR(VLOOKUP($A50,Filtro!$A$5:$AW$2943,30,FALSE),0) -> 0 | AG50: =IFERROR(VLOOKUP($A50,Filtro!$A$5:$AW$2943,31,FALSE),0) -> 0 | AH50: =IFERROR(VLOOKUP($A50,Filtro!$A$5:$AW$2943,32,FALSE),0) -> 0 | AI50: =IFERROR(VLOOKUP($A50,Filtro!$A$5:$AW$2943,33,FALSE),0) -> 0 | AJ50: =IFERROR(VLOOKUP($A50,Filtro!$A$5:$AW$2943,34,FALSE),0) -> 0 | AK50: =IFERROR(VLOOKUP($A50,Filtro!$A$5:$AW$2943,35,FALSE),0) -> 0 | AL50: 9,050 | AM50: =AL50*F50 -> 0
A51: 01014318 | B51: 0101332 | C51: Consulta Médica de Especialidad en Ginecología Pediátrica y de la Adolescencia | D51: =IFERROR(VLOOKUP($A51,Filtro!$A$5:$AW$2943,2,FALSE),0) -> 450 | E51: =IFERROR(VLOOKUP($A51,Filtro!$A$5:$AW$2943,3,FALSE),0) -> 449 | F51: =IFERROR(VLOOKUP($A51,Filtro!$A$5:$AW$2943,4,FALSE),0) -> 449 | G51: =IFERROR(VLOOKUP($A51,Filtro!$A$5:$AW$2943,5,FALSE),0) -> 0 | H51: =IFERROR(VLOOKUP($A51,Filtro!$A$5:$AW$2943,6,FALSE),0) -> 1 | I51: =IFERROR(VLOOKUP($A51,Filtro!$A$5:$AW$2943,7,FALSE),0) -> 0 | J51: =IFERROR(VLOOKUP($A51,Filtro!$A$5:$AW$2943,8,FALSE),0) -> 0 | K51: =IFERROR(VLOOKUP($A51,Filtro!$A$5:$AW$2943,9,FALSE),0) -> 0 | L51: =IFERROR(VLOOKUP($A51,Filtro!$A$5:$AW$2943,10,FALSE),0) -> 0 | M51: =IFERROR(VLOOKUP($A51,Filtro!$A$5:$AW$2943,11,FALSE),0) -> 0 | N51: =IFERROR(VLOOKUP($A51,Filtro!$A$5:$AW$2943,12,FALSE),0) -> 0 | O51: =IFERROR(VLOOKUP($A51,Filtro!$A$5:$AW$2943,13,FALSE),0) -> 0 | P51: =IFERROR(VLOOKUP($A51,Filtro!$A$5:$AW$2943,14,FALSE),0) -> 0 | Q51: =IFERROR(VLOOKUP($A51,Filtro!$A$5:$AW$2943,15,FALSE),0) -> 0 | R51: =IFERROR(VLOOKUP($A51,Filtro!$A$5:$AW$2943,16,FALSE),0) -> 0 | S51: =IFERROR(VLOOKUP($A51,Filtro!$A$5:$AW$2943,17,FALSE),0) -> 0 | T51: =IFERROR(VLOOKUP($A51,Filtro!$A$5:$AW$2943,18,FALSE),0) -> 0 | U51: =IFERROR(VLOOKUP($A51,Filtro!$A$5:$AW$2943,19,FALSE),0) -> 0 | V51: =IFERROR(VLOOKUP($A51,Filtro!$A$5:$AW$2943,20,FALSE),0) -> 0 | W51: =IFERROR(VLOOKUP($A51,Filtro!$A$5:$AW$2943,21,FALSE),0) -> 0 | X51: =IFERROR(VLOOKUP($A51,Filtro!$A$5:$AW$2943,22,FALSE),0) -> 0 | Y51: =IFERROR(VLOOKUP($A51,Filtro!$A$5:$AW$2943,23,FALSE),0) -> 0 | Z51: =IFERROR(VLOOKUP($A51,Filtro!$A$5:$AW$2943,24,FALSE),0) -> 0 | AA51: =IFERROR(VLOOKUP($A51,Filtro!$A$5:$AW$2943,25,FALSE),0) -> 0 | AB51: =IFERROR(VLOOKUP($A51,Filtro!$A$5:$AW$2943,26,FALSE),0) -> 0 | AC51: =IFERROR(VLOOKUP($A51,Filtro!$A$5:$AW$2943,27,FALSE),0) -> 450 | AD51: =IFERROR(VLOOKUP($A51,Filtro!$A$5:$AW$2943,28,FALSE),0) -> 0 | AE51: =IFERROR(VLOOKUP($A51,Filtro!$A$5:$AW$2943,29,FALSE),0) -> 0 | AF51: =IFERROR(VLOOKUP($A51,Filtro!$A$5:$AW$2943,30,FALSE),0) -> 0 | AG51: =IFERROR(VLOOKUP($A51,Filtro!$A$5:$AW$2943,31,FALSE),0) -> 0 | AH51: =IFERROR(VLOOKUP($A51,Filtro!$A$5:$AW$2943,32,FALSE),0) -> 0 | AI51: =IFERROR(VLOOKUP($A51,Filtro!$A$5:$AW$2943,33,FALSE),0) -> 0 | AJ51: =IFERROR(VLOOKUP($A51,Filtro!$A$5:$AW$2943,34,FALSE),0) -> 0 | AK51: =IFERROR(VLOOKUP($A51,Filtro!$A$5:$AW$2943,35,FALSE),0) -> 0 | AL51: 9,050 | AM51: =AL51*F51 -> 4,063,450
A52: 01014704 | B52: 0101333 | C52: Consulta Médica de Especialidad en Medicina Materno Fetal | D52: =IFERROR(VLOOKUP($A52,Filtro!$A$5:$AW$2943,2,FALSE),0) -> 0 | E52: =IFERROR(VLOOKUP($A52,Filtro!$A$5:$AW$2943,3,FALSE),0) -> 0 | F52: =IFERROR(VLOOKUP($A52,Filtro!$A$5:$AW$2943,4,FALSE),0) -> 0 | G52: =IFERROR(VLOOKUP($A52,Filtro!$A$5:$AW$2943,5,FALSE),0) -> 0 | H52: =IFERROR(VLOOKUP($A52,Filtro!$A$5:$AW$2943,6,FALSE),0) -> 0 | I52: =IFERROR(VLOOKUP($A52,Filtro!$A$5:$AW$2943,7,FALSE),0) -> 0 | J52: =IFERROR(VLOOKUP($A52,Filtro!$A$5:$AW$2943,8,FALSE),0) -> 0 | K52: =IFERROR(VLOOKUP($A52,Filtro!$A$5:$AW$2943,9,FALSE),0) -> 0 | L52: =IFERROR(VLOOKUP($A52,Filtro!$A$5:$AW$2943,10,FALSE),0) -> 0 | M52: =IFERROR(VLOOKUP($A52,Filtro!$A$5:$AW$2943,11,FALSE),0) -> 0 | N52: =IFERROR(VLOOKUP($A52,Filtro!$A$5:$AW$2943,12,FALSE),0) -> 0 | O52: =IFERROR(VLOOKUP($A52,Filtro!$A$5:$AW$2943,13,FALSE),0) -> 0 | P52: =IFERROR(VLOOKUP($A52,Filtro!$A$5:$AW$2943,14,FALSE),0) -> 0 | Q52: =IFERROR(VLOOKUP($A52,Filtro!$A$5:$AW$2943,15,FALSE),0) -> 0 | R52: =IFERROR(VLOOKUP($A52,Filtro!$A$5:$AW$2943,16,FALSE),0) -> 0 | S52: =IFERROR(VLOOKUP($A52,Filtro!$A$5:$AW$2943,17,FALSE),0) -> 0 | T52: =IFERROR(VLOOKUP($A52,Filtro!$A$5:$AW$2943,18,FALSE),0) -> 0 | U52: =IFERROR(VLOOKUP($A52,Filtro!$A$5:$AW$2943,19,FALSE),0) -> 0 | V52: =IFERROR(VLOOKUP($A52,Filtro!$A$5:$AW$2943,20,FALSE),0) -> 0 | W52: =IFERROR(VLOOKUP($A52,Filtro!$A$5:$AW$2943,21,FALSE),0) -> 0 | X52: =IFERROR(VLOOKUP($A52,Filtro!$A$5:$AW$2943,22,FALSE),0) -> 0 | Y52: =IFERROR(VLOOKUP($A52,Filtro!$A$5:$AW$2943,23,FALSE),0) -> 0 | Z52: =IFERROR(VLOOKUP($A52,Filtro!$A$5:$AW$2943,24,FALSE),0) -> 0 | AA52: =IFERROR(VLOOKUP($A52,Filtro!$A$5:$AW$2943,25,FALSE),0) -> 0 | AB52: =IFERROR(VLOOKUP($A52,Filtro!$A$5:$AW$2943,26,FALSE),0) -> 0 | AC52: =IFERROR(VLOOKUP($A52,Filtro!$A$5:$AW$2943,27,FALSE),0) -> 0 | AD52: =IFERROR(VLOOKUP($A52,Filtro!$A$5:$AW$2943,28,FALSE),0) -> 0 | AE52: =IFERROR(VLOOKUP($A52,Filtro!$A$5:$AW$2943,29,FALSE),0) -> 0 | AF52: =IFERROR(VLOOKUP($A52,Filtro!$A$5:$AW$2943,30,FALSE),0) -> 0 | AG52: =IFERROR(VLOOKUP($A52,Filtro!$A$5:$AW$2943,31,FALSE),0) -> 0 | AH52: =IFERROR(VLOOKUP($A52,Filtro!$A$5:$AW$2943,32,FALSE),0) -> 0 | AI52: =IFERROR(VLOOKUP($A52,Filtro!$A$5:$AW$2943,33,FALSE),0) -> 0 | AJ52: =IFERROR(VLOOKUP($A52,Filtro!$A$5:$AW$2943,34,FALSE),0) -> 0 | AK52: =IFERROR(VLOOKUP($A52,Filtro!$A$5:$AW$2943,35,FALSE),0) -> 0 | AL52: 0 | AM52: 0
A53: 01014319 | B53: 0101334 | C53: Consulta Médica de Especialidad en Medicina Nuclear | D53: =IFERROR(VLOOKUP($A53,Filtro!$A$5:$AW$2943,2,FALSE),0) -> 0 | E53: =IFERROR(VLOOKUP($A53,Filtro!$A$5:$AW$2943,3,FALSE),0) -> 0 | F53: =IFERROR(VLOOKUP($A53,Filtro!$A$5:$AW$2943,4,FALSE),0) -> 0 | G53: =IFERROR(VLOOKUP($A53,Filtro!$A$5:$AW$2943,5,FALSE),0) -> 0 | H53: =IFERROR(VLOOKUP($A53,Filtro!$A$5:$AW$2943,6,FALSE),0) -> 0 | I53: =IFERROR(VLOOKUP($A53,Filtro!$A$5:$AW$2943,7,FALSE),0) -> 0 | J53: =IFERROR(VLOOKUP($A53,Filtro!$A$5:$AW$2943,8,FALSE),0) -> 0 | K53: =IFERROR(VLOOKUP($A53,Filtro!$A$5:$AW$2943,9,FALSE),0) -> 0 | L53: =IFERROR(VLOOKUP($A53,Filtro!$A$5:$AW$2943,10,FALSE),0) -> 0 | M53: =IFERROR(VLOOKUP($A53,Filtro!$A$5:$AW$2943,11,FALSE),0) -> 0 | N53: =IFERROR(VLOOKUP($A53,Filtro!$A$5:$AW$2943,12,FALSE),0) -> 0 | O53: =IFERROR(VLOOKUP($A53,Filtro!$A$5:$AW$2943,13,FALSE),0) -> 0 | P53: =IFERROR(VLOOKUP($A53,Filtro!$A$5:$AW$2943,14,FALSE),0) -> 0 | Q53: =IFERROR(VLOOKUP($A53,Filtro!$A$5:$AW$2943,15,FALSE),0) -> 0 | R53: =IFERROR(VLOOKUP($A53,Filtro!$A$5:$AW$2943,16,FALSE),0) -> 0 | S53: =IFERROR(VLOOKUP($A53,Filtro!$A$5:$AW$2943,17,FALSE),0) -> 0 | T53: =IFERROR(VLOOKUP($A53,Filtro!$A$5:$AW$2943,18,FALSE),0) -> 0 | U53: =IFERROR(VLOOKUP($A53,Filtro!$A$5:$AW$2943,19,FALSE),0) -> 0 | V53: =IFERROR(VLOOKUP($A53,Filtro!$A$5:$AW$2943,20,FALSE),0) -> 0 | W53: =IFERROR(VLOOKUP($A53,Filtro!$A$5:$AW$2943,21,FALSE),0) -> 0 | X53: =IFERROR(VLOOKUP($A53,Filtro!$A$5:$AW$2943,22,FALSE),0) -> 0 | Y53: =IFERROR(VLOOKUP($A53,Filtro!$A$5:$AW$2943,23,FALSE),0) -> 0 | Z53: =IFERROR(VLOOKUP($A53,Filtro!$A$5:$AW$2943,24,FALSE),0) -> 0 | AA53: =IFERROR(VLOOKUP($A53,Filtro!$A$5:$AW$2943,25,FALSE),0) -> 0 | AB53: =IFERROR(VLOOKUP($A53,Filtro!$A$5:$AW$2943,26,FALSE),0) -> 0 | AC53: =IFERROR(VLOOKUP($A53,Filtro!$A$5:$AW$2943,27,FALSE),0) -> 0 | AD53: =IFERROR(VLOOKUP($A53,Filtro!$A$5:$AW$2943,28,FALSE),0) -> 0 | AE53: =IFERROR(VLOOKUP($A53,Filtro!$A$5:$AW$2943,29,FALSE),0) -> 0 | AF53: =IFERROR(VLOOKUP($A53,Filtro!$A$5:$AW$2943,30,FALSE),0) -> 0 | AG53: =IFERROR(VLOOKUP($A53,Filtro!$A$5:$AW$2943,31,FALSE),0) -> 0 | AH53: =IFERROR(VLOOKUP($A53,Filtro!$A$5:$AW$2943,32,FALSE),0) -> 0 | AI53: =IFERROR(VLOOKUP($A53,Filtro!$A$5:$AW$2943,33,FALSE),0) -> 0 | AJ53: =IFERROR(VLOOKUP($A53,Filtro!$A$5:$AW$2943,34,FALSE),0) -> 0 | AK53: =IFERROR(VLOOKUP($A53,Filtro!$A$5:$AW$2943,35,FALSE),0) -> 0 | AL53: 9,050 | AM53: =AL53*F53 -> 0
C54: TOTAL ARANCEL MAI | D54: =SUM(D6:D53) -> 342808 | E54: =SUM(E6:E53) -> 342027 | F54: =SUM(F6:F53) -> 342024 | G54: =SUM(G6:G53) -> 3 | H54: =SUM(H6:H53) -> 781 | AB54: =SUM(AB6:AB53) -> 208 | AC54: 341133 | AD54: 1467 | AE54: 9687 | AF54: 0 | AG54: 0 | AH54: 0 | AI54: 0 | AJ54: 0 | AK54: 0 | AM54: =SUM(AM6:AM53) -> 3,095,317,200
C55: OTRAS CONSULTAS MEDICAS
A56: 01010014 | B56: 0101001 | C56: Consulta Medicina General | D56: =IFERROR(VLOOKUP($A56,Filtro!$A$5:$AW$2943,2,FALSE),0) -> 61494 | E56: =IFERROR(VLOOKUP($A56,Filtro!$A$5:$AW$2943,3,FALSE),0) -> 61494 | F56: =IFERROR(VLOOKUP($A56,Filtro!$A$5:$AW$2943,4,FALSE),0) -> 61494 | G56: =IFERROR(VLOOKUP($A56,Filtro!$A$5:$AW$2943,5,FALSE),0) -> 0 | H56: =IFERROR(VLOOKUP($A56,Filtro!$A$5:$AW$2943,6,FALSE),0) -> 0 | AB56: =IFERROR(VLOOKUP($A56,Filtro!$A$5:$AW$2943,26,FALSE),0) -> 0 | AC56: =IFERROR(VLOOKUP($A56,Filtro!$A$5:$AW$2943,27,FALSE),0) -> 61461 | AD56: =IFERROR(VLOOKUP($A56,Filtro!$A$5:$AW$2943,28,FALSE),0) -> 33 | AE56: =IFERROR(VLOOKUP($A56,Filtro!$A$5:$AW$2943,29,FALSE),0) -> 0 | AF56: =IFERROR(VLOOKUP($A56,Filtro!$A$5:$AW$2943,30,FALSE),0) -> 0 | AG56: =IFERROR(VLOOKUP($A56,Filtro!$A$5:$AW$2943,31,FALSE),0) -> 0 | AH56: =IFERROR(VLOOKUP($A56,Filtro!$A$5:$AW$2943,32,FALSE),0) -> 0 | AI56: =IFERROR(VLOOKUP($A56,Filtro!$A$5:$AW$2943,33,FALSE),0) -> 0 | AJ56: =IFERROR(VLOOKUP($A56,Filtro!$A$5:$AW$2943,34,FALSE),0) -> 0 | AK56: =IFERROR(VLOOKUP($A56,Filtro!$A$5:$AW$2943,35,FALSE),0) -> 0 | AL56: 6,360 | AM56: =AL56*F56 -> 391,101,840
A57: 01014320 | B57: 0101007 | C57: Atención médica del recién nacido en sala de parto o pabellón quirúrgico c/s reanimación cardio-respiratoria | D57: =IFERROR(VLOOKUP($A57,Filtro!$A$5:$AW$2943,2,FALSE),0) -> 3362 | E57: =IFERROR(VLOOKUP($A57,Filtro!$A$5:$AW$2943,3,FALSE),0) -> 3308 | F57: =IFERROR(VLOOKUP($A57,Filtro!$A$5:$AW$2943,4,FALSE),0) -> 2977 | G57: =IFERROR(VLOOKUP($A57,Filtro!$A$5:$AW$2943,5,FALSE),0) -> 331 | H57: =IFERROR(VLOOKUP($A57,Filtro!$A$5:$AW$2943,6,FALSE),0) -> 54 | AB57: =IFERROR(VLOOKUP($A57,Filtro!$A$5:$AW$2943,26,FALSE),0) -> 1718 | AC57: =IFERROR(VLOOKUP($A57,Filtro!$A$5:$AW$2943,27,FALSE),0) -> 812 | AD57: =IFERROR(VLOOKUP($A57,Filtro!$A$5:$AW$2943,28,FALSE),0) -> 832 | AE57: =IFERROR(VLOOKUP($A57,Filtro!$A$5:$AW$2943,29,FALSE),0) -> 0 | AF57: =IFERROR(VLOOKUP($A57,Filtro!$A$5:$AW$2943,30,FALSE),0) -> 0 | AG57: =IFERROR(VLOOKUP($A57,Filtro!$A$5:$AW$2943,31,FALSE),0) -> 0 | AH57: =IFERROR(VLOOKUP($A57,Filtro!$A$5:$AW$2943,32,FALSE),0) -> 0 | AI57: =IFERROR(VLOOKUP($A57,Filtro!$A$5:$AW$2943,33,FALSE),0) -> 0 | AJ57: =IFERROR(VLOOKUP($A57,Filtro!$A$5:$AW$2943,34,FALSE),0) -> 0 | AK57: =IFERROR(VLOOKUP($A57,Filtro!$A$5:$AW$2943,35,FALSE),0) -> 0 | AL57: 16,790 | AM57: =AL57*F57 -> 49,983,830
A58: 01014321 | B58: 0101103 | C58: Consulta en Unidades de Urgencia Hospitalaria | D58: =IFERROR(VLOOKUP($A58,Filtro!$A$5:$AW$2943,2,FALSE),0) -> 254580 | E58: =IFERROR(VLOOKUP($A58,Filtro!$A$5:$AW$2943,3,FALSE),0) -> 242468 | F58: =IFERROR(VLOOKUP($A58,Filtro!$A$5:$AW$2943,4,FALSE),0) -> 242468 | G58: =IFERROR(VLOOKUP($A58,Filtro!$A$5:$AW$2943,5,FALSE),0) -> 0 | H58: =IFERROR(VLOOKUP($A58,Filtro!$A$5:$AW$2943,6,FALSE),0) -> 12112 | AB58: =IFERROR(VLOOKUP($A58,Filtro!$A$5:$AW$2943,26,FALSE),0) -> 0 | AC58: =IFERROR(VLOOKUP($A58,Filtro!$A$5:$AW$2943,27,FALSE),0) -> 8370 | AD58: =IFERROR(VLOOKUP($A58,Filtro!$A$5:$AW$2943,28,FALSE),0) -> 239750 | AE58: =IFERROR(VLOOKUP($A58,Filtro!$A$5:$AW$2943,29,FALSE),0) -> 0 | AF58: =IFERROR(VLOOKUP($A58,Filtro!$A$5:$AW$2943,30,FALSE),0) -> 0 | AG58: =IFERROR(VLOOKUP($A58,Filtro!$A$5:$AW$2943,31,FALSE),0) -> 0 | AH58: =IFERROR(VLOOKUP($A58,Filtro!$A$5:$AW$2943,32,FALSE),0) -> 0 | AI58: =IFERROR(VLOOKUP($A58,Filtro!$A$5:$AW$2943,33,FALSE),0) -> 0 | AJ58: =IFERROR(VLOOKUP($A58,Filtro!$A$5:$AW$2943,34,FALSE),0) -> 0 | AK58: =IFERROR(VLOOKUP($A58,Filtro!$A$5:$AW$2943,35,FALSE),0) -> 0 | AL58: 9,050 | AM58: =AL58*F58 -> 2,194,335,400
C59: TOTAL OTRAS CONSULTAS MÉDICAS | D59: =SUM(D56:D58) -> 319436 | E59: =SUM(E56:E58) -> 307270 | F59: =SUM(F56:F58) -> 306939 | G59: =SUM(G56:G58) -> 331 | H59: =SUM(H56:H58) -> 12166 | AB59: =SUM(AB56:AB58) -> 1718 | AC59: 70643 | AD59: 240615 | AE59: 0 | AF59: 0 | AG59: 0 | AH59: 0 | AI59: 0 | AJ59: 0 | AK59: 0 | AM59: =SUM(AM56:AM58) -> 2635421070
C60: TOTAL PRODUCCION | D60: =SUM(D54+D59) -> 662244 | E60: =SUM(E54+E59) -> 649297 | F60: =SUM(F54+F59) -> 648963 | G60: =SUM(G54+G59) -> 334 | H60: =SUM(H54+H59) -> 12947 | AB60: =SUM(AB54+AB59) -> 1926 | AC60: 411776 | AD60: 242082 | AE60: 9687 | AF60: 0 | AG60: 0 | AH60: 0 | AI60: 0 | AJ60: 0 | AK60: 0 | AM60: =SUM(AM54+AM59) -> 5730738270
C61: CONSULTAS POR OTROS PROFESIONALES DE LA SALUD
A62: 01010020 | B62: 0102002 | C62: Control de salud niño con EDP por enfermera | D62: =IFERROR(VLOOKUP($A62,Filtro!$A$5:$AW$2943,2,FALSE),0) -> 1979 | E62: =IFERROR(VLOOKUP($A62,Filtro!$A$5:$AW$2943,3,FALSE),0) -> 1979 | F62: =IFERROR(VLOOKUP($A62,Filtro!$A$5:$AW$2943,4,FALSE),0) -> 1979 | G62: =IFERROR(VLOOKUP($A62,Filtro!$A$5:$AW$2943,5,FALSE),0) -> 0 | H62: =IFERROR(VLOOKUP($A62,Filtro!$A$5:$AW$2943,6,FALSE),0) -> 0 | AB62: =IFERROR(VLOOKUP($A62,Filtro!$A$5:$AW$2943,26,FALSE),0) -> 0 | AC62: =IFERROR(VLOOKUP($A62,Filtro!$A$5:$AW$2943,27,FALSE),0) -> 1979 | AD62: =IFERROR(VLOOKUP($A62,Filtro!$A$5:$AW$2943,28,FALSE),0) -> 0 | AE62: =IFERROR(VLOOKUP($A62,Filtro!$A$5:$AW$2943,29,FALSE),0) -> 0 | AF62: =IFERROR(VLOOKUP($A62,Filtro!$A$5:$AW$2943,30,FALSE),0) -> 0 | AG62: =IFERROR(VLOOKUP($A62,Filtro!$A$5:$AW$2943,31,FALSE),0) -> 0 | AH62: =IFERROR(VLOOKUP($A62,Filtro!$A$5:$AW$2943,32,FALSE),0) -> 0 | AI62: =IFERROR(VLOOKUP($A62,Filtro!$A$5:$AW$2943,33,FALSE),0) -> 0 | AJ62: =IFERROR(VLOOKUP($A62,Filtro!$A$5:$AW$2943,34,FALSE),0) -> 0 | AK62: =IFERROR(VLOOKUP($A62,Filtro!$A$5:$AW$2943,35,FALSE),0) -> 0 | AL62: 2,410 | AM62: =AL62*F62 -> 4,769,390
A63: 01010021 | B63: 0102003 | C63: Consulta o control por auxiliar de enfermería | D63: =IFERROR(VLOOKUP($A63,Filtro!$A$5:$AW$2943,2,FALSE),0) -> 23511 | E63: =IFERROR(VLOOKUP($A63,Filtro!$A$5:$AW$2943,3,FALSE),0) -> 23510 | F63: =IFERROR(VLOOKUP($A63,Filtro!$A$5:$AW$2943,4,FALSE),0) -> 23510 | G63: =IFERROR(VLOOKUP($A63,Filtro!$A$5:$AW$2943,5,FALSE),0) -> 0 | H63: =IFERROR(VLOOKUP($A63,Filtro!$A$5:$AW$2943,6,FALSE),0) -> 1 | AB63: =IFERROR(VLOOKUP($A63,Filtro!$A$5:$AW$2943,26,FALSE),0) -> 0 | AC63: =IFERROR(VLOOKUP($A63,Filtro!$A$5:$AW$2943,27,FALSE),0) -> 2769 | AD63: =IFERROR(VLOOKUP($A63,Filtro!$A$5:$AW$2943,28,FALSE),0) -> 20745 | AE63: =IFERROR(VLOOKUP($A63,Filtro!$A$5:$AW$2943,29,FALSE),0) -> 0 | AF63: =IFERROR(VLOOKUP($A63,Filtro!$A$5:$AW$2943,30,FALSE),0) -> 0 | AG63: =IFERROR(VLOOKUP($A63,Filtro!$A$5:$AW$2943,31,FALSE),0) -> 0 | AH63: =IFERROR(VLOOKUP($A63,Filtro!$A$5:$AW$2943,32,FALSE),0) -> 0 | AI63: =IFERROR(VLOOKUP($A63,Filtro!$A$5:$AW$2943,33,FALSE),0) -> 0 | AJ63: =IFERROR(VLOOKUP($A63,Filtro!$A$5:$AW$2943,34,FALSE),0) -> 0 | AK63: =IFERROR(VLOOKUP($A63,Filtro!$A$5:$AW$2943,35,FALSE),0) -> 0 | AL63: 780 | AM63: 18,337,800
A64: 01010022 | B64: 0102005 | C64: Consulta por fonoaudiólogo | D64: =IFERROR(VLOOKUP($A64,Filtro!$A$5:$AW$2943,2,FALSE),0) -> 19383 | E64: =IFERROR(VLOOKUP($A64,Filtro!$A$5:$AW$2943,3,FALSE),0) -> 19358 | F64: =IFERROR(VLOOKUP($A64,Filtro!$A$5:$AW$2943,4,FALSE),0) -> 19358 | G64: =IFERROR(VLOOKUP($A64,Filtro!$A$5:$AW$2943,5,FALSE),0) -> 0 | H64: =IFERROR(VLOOKUP($A64,Filtro!$A$5:$AW$2943,6,FALSE),0) -> 25 | AB64: =IFERROR(VLOOKUP($A64,Filtro!$A$5:$AW$2943,26,FALSE),0) -> 8922 | AC64: =IFERROR(VLOOKUP($A64,Filtro!$A$5:$AW$2943,27,FALSE),0) -> 10084 | AD64: =IFERROR(VLOOKUP($A64,Filtro!$A$5:$AW$2943,28,FALSE),0) -> 377 | AE64: =IFERROR(VLOOKUP($A64,Filtro!$A$5:$AW$2943,29,FALSE),0) -> 0 | AF64: =IFERROR(VLOOKUP($A64,Filtro!$A$5:$AW$2943,30,FALSE),0) -> 0 | AG64: =IFERROR(VLOOKUP($A64,Filtro!$A$5:$AW$2943,31,FALSE),0) -> 0 | AH64: =IFERROR(VLOOKUP($A64,Filtro!$A$5:$AW$2943,32,FALSE),0) -> 0 | AI64: =IFERROR(VLOOKUP($A64,Filtro!$A$5:$AW$2943,33,FALSE),0) -> 0 | AJ64: =IFERROR(VLOOKUP($A64,Filtro!$A$5:$AW$2943,34,FALSE),0) -> 0 | AK64: =IFERROR(VLOOKUP($A64,Filtro!$A$5:$AW$2943,35,FALSE),0) -> 0 | AL64: 1,920 | AM64: 37,167,360
A65: 01014322 | B65: 0102008 | C65: Consulta o control por enfermera | D65: =IFERROR(VLOOKUP($A65,Filtro!$A$5:$AW$2943,2,FALSE),0) -> 105513 | E65: =IFERROR(VLOOKUP($A65,Filtro!$A$5:$AW$2943,3,FALSE),0) -> 105227 | F65: =IFERROR(VLOOKUP($A65,Filtro!$A$5:$AW$2943,4,FALSE),0) -> 105227 | G65: =IFERROR(VLOOKUP($A65,Filtro!$A$5:$AW$2943,5,FALSE),0) -> 0 | H65: =IFERROR(VLOOKUP($A65,Filtro!$A$5:$AW$2943,6,FALSE),0) -> 286 | AB65: =IFERROR(VLOOKUP($A65,Filtro!$A$5:$AW$2943,26,FALSE),0) -> 0 | AC65: =IFERROR(VLOOKUP($A65,Filtro!$A$5:$AW$2943,27,FALSE),0) -> 82585 | AD65: =IFERROR(VLOOKUP($A65,Filtro!$A$5:$AW$2943,28,FALSE),0) -> 22928 | AE65: =IFERROR(VLOOKUP($A65,Filtro!$A$5:$AW$2943,29,FALSE),0) -> 0 | AF65: =IFERROR(VLOOKUP($A65,Filtro!$A$5:$AW$2943,30,FALSE),0) -> 0 | AG65: =IFERROR(VLOOKUP($A65,Filtro!$A$5:$AW$2943,31,FALSE),0) -> 0 | AH65: =IFERROR(VLOOKUP($A65,Filtro!$A$5:$AW$2943,32,FALSE),0) -> 0 | AI65: =IFERROR(VLOOKUP($A65,Filtro!$A$5:$AW$2943,33,FALSE),0) -> 0 | AJ65: =IFERROR(VLOOKUP($A65,Filtro!$A$5:$AW$2943,34,FALSE),0) -> 0 | AK65: =IFERROR(VLOOKUP($A65,Filtro!$A$5:$AW$2943,35,FALSE),0) -> 0 | AL65: 1,410 | AM65: 148,370,070
A66: 01014323 | B66: 0102009 | C66: Consulta o control por matrona | D66: =IFERROR(VLOOKUP($A66,Filtro!$A$5:$AW$2943,2,FALSE),0) -> 46021 | E66: =IFERROR(VLOOKUP($A66,Filtro!$A$5:$AW$2943,3,FALSE),0) -> 45824 | F66: =IFERROR(VLOOKUP($A66,Filtro!$A$5:$AW$2943,4,FALSE),0) -> 45824 | G66: =IFERROR(VLOOKUP($A66,Filtro!$A$5:$AW$2943,5,FALSE),0) -> 0 | H66: =IFERROR(VLOOKUP($A66,Filtro!$A$5:$AW$2943,6,FALSE),0) -> 197 | AB66: =IFERROR(VLOOKUP($A66,Filtro!$A$5:$AW$2943,26,FALSE),0) -> 361 | AC66: =IFERROR(VLOOKUP($A66,Filtro!$A$5:$AW$2943,27,FALSE),0) -> 41456 | AD66: =IFERROR(VLOOKUP($A66,Filtro!$A$5:$AW$2943,28,FALSE),0) -> 4204 | AE66: =IFERROR(VLOOKUP($A66,Filtro!$A$5:$AW$2943,29,FALSE),0) -> 0 | AF66: =IFERROR(VLOOKUP($A66,Filtro!$A$5:$AW$2943,30,FALSE),0) -> 0 | AG66: =IFERROR(VLOOKUP($A66,Filtro!$A$5:$AW$2943,31,FALSE),0) -> 0 | AH66: =IFERROR(VLOOKUP($A66,Filtro!$A$5:$AW$2943,32,FALSE),0) -> 0 | AI66: =IFERROR(VLOOKUP($A66,Filtro!$A$5:$AW$2943,33,FALSE),0) -> 0 | AJ66: =IFERROR(VLOOKUP($A66,Filtro!$A$5:$AW$2943,34,FALSE),0) -> 0 | AK66: =IFERROR(VLOOKUP($A66,Filtro!$A$5:$AW$2943,35,FALSE),0) -> 0 | AL66: 1,410 | AM66: 64,611,840
A67: 01014324 | B67: 0102010 | C67: Consulta o control por nutricionista | D67: =IFERROR(VLOOKUP($A67,Filtro!$A$5:$AW$2943,2,FALSE),0) -> 23096 | E67: =IFERROR(VLOOKUP($A67,Filtro!$A$5:$AW$2943,3,FALSE),0) -> 23063 | F67: =IFERROR(VLOOKUP($A67,Filtro!$A$5:$AW$2943,4,FALSE),0) -> 23063 | G67: =IFERROR(VLOOKUP($A67,Filtro!$A$5:$AW$2943,5,FALSE),0) -> 0 | H67: =IFERROR(VLOOKUP($A67,Filtro!$A$5:$AW$2943,6,FALSE),0) -> 33 | AB67: =IFERROR(VLOOKUP($A67,Filtro!$A$5:$AW$2943,26,FALSE),0) -> 0 | AC67: =IFERROR(VLOOKUP($A67,Filtro!$A$5:$AW$2943,27,FALSE),0) -> 22844 | AD67: =IFERROR(VLOOKUP($A67,Filtro!$A$5:$AW$2943,28,FALSE),0) -> 252 | AE67: =IFERROR(VLOOKUP($A67,Filtro!$A$5:$AW$2943,29,FALSE),0) -> 0 | AF67: =IFERROR(VLOOKUP($A67,Filtro!$A$5:$AW$2943,30,FALSE),0) -> 0 | AG67: =IFERROR(VLOOKUP($A67,Filtro!$A$5:$AW$2943,31,FALSE),0) -> 0 | AH67: =IFERROR(VLOOKUP($A67,Filtro!$A$5:$AW$2943,32,FALSE),0) -> 0 | AI67: =IFERROR(VLOOKUP($A67,Filtro!$A$5:$AW$2943,33,FALSE),0) -> 0 | AJ67: =IFERROR(VLOOKUP($A67,Filtro!$A$5:$AW$2943,34,FALSE),0) -> 0 | AK67: =IFERROR(VLOOKUP($A67,Filtro!$A$5:$AW$2943,35,FALSE),0) -> 0 | AL67: 1,410 | AM67: 32,518,830
C68: TOTAL ARANCEL MAI | D68: =SUM(D62:D67) -> 219503 | E68: =SUM(E62:E67) -> 218961 | F68: =SUM(F62:F67) -> 218961 | G68: =SUM(G62:G67) -> 0 | H68: =SUM(H62:H67) -> 542 | AB68: =SUM(AB62:AB67) -> 9283 | AC68: 161717 | AD68: 48506 | AE68: 0 | AF68: 0 | AG68: 0 | AH68: 0 | AI68: 0 | AJ68: 0 | AK68: 0 | AM68: =SUM(AM62:AM67) -> 305,775,290
A69: 01010025 | B69: 01010025 | C69: Consulta por otros profesionales | D69: =IFERROR(VLOOKUP($A69,Filtro!$A$5:$AW$2943,2,FALSE),0) -> 22090 | E69: =IFERROR(VLOOKUP($A69,Filtro!$A$5:$AW$2943,3,FALSE),0) -> 21957 | F69: =IFERROR(VLOOKUP($A69,Filtro!$A$5:$AW$2943,4,FALSE),0) -> 21957 | G69: =IFERROR(VLOOKUP($A69,Filtro!$A$5:$AW$2943,5,FALSE),0) -> 0 | H69: =IFERROR(VLOOKUP($A69,Filtro!$A$5:$AW$2943,6,FALSE),0) -> 133 | AB69: =IFERROR(VLOOKUP($A69,Filtro!$A$5:$AW$2943,26,FALSE),0) -> 0 | AC69: =IFERROR(VLOOKUP($A69,Filtro!$A$5:$AW$2943,27,FALSE),0) -> 21836 | AD69: =IFERROR(VLOOKUP($A69,Filtro!$A$5:$AW$2943,28,FALSE),0) -> 254 | AE69: =IFERROR(VLOOKUP($A69,Filtro!$A$5:$AW$2943,29,FALSE),0) -> 637 | AF69: =IFERROR(VLOOKUP($A69,Filtro!$A$5:$AW$2943,30,FALSE),0) -> 0 | AG69: =IFERROR(VLOOKUP($A69,Filtro!$A$5:$AW$2943,31,FALSE),0) -> 0 | AH69: =IFERROR(VLOOKUP($A69,Filtro!$A$5:$AW$2943,32,FALSE),0) -> 0 | AI69: =IFERROR(VLOOKUP($A69,Filtro!$A$5:$AW$2943,33,FALSE),0) -> 0 | AJ69: =IFERROR(VLOOKUP($A69,Filtro!$A$5:$AW$2943,34,FALSE),0) -> 0 | AK69: =IFERROR(VLOOKUP($A69,Filtro!$A$5:$AW$2943,35,FALSE),0) -> 0 | AL69: 0 | AM69: 0
A70: 01012817 | B70: 01012817 | C70: Consulta por Trabajador(a) Social | D70: =IFERROR(VLOOKUP($A70,Filtro!$A$5:$AW$2943,2,FALSE),0) -> 11805 | E70: =IFERROR(VLOOKUP($A70,Filtro!$A$5:$AW$2943,3,FALSE),0) -> 11342 | F70: =IFERROR(VLOOKUP($A70,Filtro!$A$5:$AW$2943,4,FALSE),0) -> 11342 | G70: =IFERROR(VLOOKUP($A70,Filtro!$A$5:$AW$2943,5,FALSE),0) -> 0 | H70: =IFERROR(VLOOKUP($A70,Filtro!$A$5:$AW$2943,6,FALSE),0) -> 463 | AB70: =IFERROR(VLOOKUP($A70,Filtro!$A$5:$AW$2943,26,FALSE),0) -> 34 | AC70: =IFERROR(VLOOKUP($A70,Filtro!$A$5:$AW$2943,27,FALSE),0) -> 11684 | AD70: =IFERROR(VLOOKUP($A70,Filtro!$A$5:$AW$2943,28,FALSE),0) -> 87 | AE70: =IFERROR(VLOOKUP($A70,Filtro!$A$5:$AW$2943,29,FALSE),0) -> 0 | AF70: =IFERROR(VLOOKUP($A70,Filtro!$A$5:$AW$2943,30,FALSE),0) -> 0 | AG70: =IFERROR(VLOOKUP($A70,Filtro!$A$5:$AW$2943,31,FALSE),0) -> 0 | AH70: =IFERROR(VLOOKUP($A70,Filtro!$A$5:$AW$2943,32,FALSE),0) -> 0 | AI70: =IFERROR(VLOOKUP($A70,Filtro!$A$5:$AW$2943,33,FALSE),0) -> 0 | AJ70: =IFERROR(VLOOKUP($A70,Filtro!$A$5:$AW$2943,34,FALSE),0) -> 0 | AK70: =IFERROR(VLOOKUP($A70,Filtro!$A$5:$AW$2943,35,FALSE),0) -> 0 | AL70: 0 | AM70: 0
C71: TOTAL ARANCEL MLE Y NO ARANCELADO | D71: =SUM(D69:D70) -> 33895 | E71: =SUM(E69:E70) -> 33299 | F71: =SUM(F69:F70) -> 33299 | G71: =SUM(G69:G70) -> 0 | H71: =SUM(H69:H70) -> 596 | AB71: =SUM(AB69:AB70) -> 34 | AC71: 33520 | AD71: 341 | AE71: 637 | AF71: 0 | AG71: 0 | AH71: 0 | AI71: 0 | AJ71: 0 | AK71: 0
C72: TOTAL PRODUCCION | D72: =SUM(D68+D71) -> 253398 | E72: =SUM(E68+E71) -> 252260 | F72: =SUM(F68+F71) -> 252260 | G72: =SUM(G68+G71) -> 0 | H72: =SUM(H68+H71) -> 1138 | AB72: =SUM(AB68+AB71) -> 9317 | AC72: 195237 | AD72: 48847 | AE72: 637 | AF72: 0 | AG72: 0 | AH72: 0 | AI72: 0 | AJ72: 0 | AK72: 0 | AM72: =SUM(AM68+AM71) -> 305,775,290
C73: TELEMEDICINA POR PROFESIONALES MÉDICOS
C74: TELECONSULTAS
A75: 01013100 | B75: 0108001 | C75: Teleconsulta Medicina General | D75: =IFERROR(VLOOKUP($A75,Filtro!$A$5:$AW$2943,2,FALSE),0) -> 0 | E75: =IFERROR(VLOOKUP($A75,Filtro!$A$5:$AW$2943,3,FALSE),0) -> 0 | F75: =IFERROR(VLOOKUP($A75,Filtro!$A$5:$AW$2943,4,FALSE),0) -> 0 | G75: =IFERROR(VLOOKUP($A75,Filtro!$A$5:$AW$2943,5,FALSE),0) -> 0 | H75: =IFERROR(VLOOKUP($A75,Filtro!$A$5:$AW$2943,6,FALSE),0) -> 0 | AB75: =IFERROR(VLOOKUP($A75,Filtro!$A$5:$AW$2943,26,FALSE),0) -> 0 | AC75: =IFERROR(VLOOKUP($A75,Filtro!$A$5:$AW$2943,27,FALSE),0) -> 0 | AD75: =IFERROR(VLOOKUP($A75,Filtro!$A$5:$AW$2943,28,FALSE),0) -> 0 | AE75: =IFERROR(VLOOKUP($A75,Filtro!$A$5:$AW$2943,29,FALSE),0) -> 0 | AF75: =IFERROR(VLOOKUP($A75,Filtro!$A$5:$AW$2943,30,FALSE),0) -> 0 | AG75: =IFERROR(VLOOKUP($A75,Filtro!$A$5:$AW$2943,31,FALSE),0) -> 0 | AH75: =IFERROR(VLOOKUP($A75,Filtro!$A$5:$AW$2943,32,FALSE),0) -> 0 | AI75: =IFERROR(VLOOKUP($A75,Filtro!$A$5:$AW$2943,33,FALSE),0) -> 0 | AJ75: =IFERROR(VLOOKUP($A75,Filtro!$A$5:$AW$2943,34,FALSE),0) -> 0 | AK75: =IFERROR(VLOOKUP($A75,Filtro!$A$5:$AW$2943,35,FALSE),0) -> 0 | AL75: 5,290 | AM75: =AL75*F75 -> 0
A76: 01014325 | B76: 0108201 | C76: Teleconsulta Médica de Especialidad en Dermatología | D76: =IFERROR(VLOOKUP($A76,Filtro!$A$5:$AW$2943,2,FALSE),0) -> 134 | E76: =IFERROR(VLOOKUP($A76,Filtro!$A$5:$AW$2943,3,FALSE),0) -> 134 | F76: =IFERROR(VLOOKUP($A76,Filtro!$A$5:$AW$2943,4,FALSE),0) -> 134 | G76: =IFERROR(VLOOKUP($A76,Filtro!$A$5:$AW$2943,5,FALSE),0) -> 0 | H76: =IFERROR(VLOOKUP($A76,Filtro!$A$5:$AW$2943,6,FALSE),0) -> 0 | AB76: =IFERROR(VLOOKUP($A76,Filtro!$A$5:$AW$2943,26,FALSE),0) -> 0 | AC76: =IFERROR(VLOOKUP($A76,Filtro!$A$5:$AW$2943,27,FALSE),0) -> 134 | AD76: =IFERROR(VLOOKUP($A76,Filtro!$A$5:$AW$2943,28,FALSE),0) -> 0 | AE76: =IFERROR(VLOOKUP($A76,Filtro!$A$5:$AW$2943,29,FALSE),0) -> 0 | AF76: =IFERROR(VLOOKUP($A76,Filtro!$A$5:$AW$2943,30,FALSE),0) -> 0 | AG76: =IFERROR(VLOOKUP($A76,Filtro!$A$5:$AW$2943,31,FALSE),0) -> 0 | AH76: =IFERROR(VLOOKUP($A76,Filtro!$A$5:$AW$2943,32,FALSE),0) -> 0 | AI76: =IFERROR(VLOOKUP($A76,Filtro!$A$5:$AW$2943,33,FALSE),0) -> 0 | AJ76: =IFERROR(VLOOKUP($A76,Filtro!$A$5:$AW$2943,34,FALSE),0) -> 0 | AK76: =IFERROR(VLOOKUP($A76,Filtro!$A$5:$AW$2943,35,FALSE),0) -> 0 | AL76: 7,530 | AM76: 1,009,020
A77: 01014326 | B77: 0108202 | C77: Teleconsulta Médica de Especialidad en Geriatría | D77: =IFERROR(VLOOKUP($A77,Filtro!$A$5:$AW$2943,2,FALSE),0) -> 3 | E77: =IFERROR(VLOOKUP($A77,Filtro!$A$5:$AW$2943,3,FALSE),0) -> 3 | F77: =IFERROR(VLOOKUP($A77,Filtro!$A$5:$AW$2943,4,FALSE),0) -> 3 | G77: =IFERROR(VLOOKUP($A77,Filtro!$A$5:$AW$2943,5,FALSE),0) -> 0 | H77: =IFERROR(VLOOKUP($A77,Filtro!$A$5:$AW$2943,6,FALSE),0) -> 0 | AB77: =IFERROR(VLOOKUP($A77,Filtro!$A$5:$AW$2943,26,FALSE),0) -> 0 | AC77: =IFERROR(VLOOKUP($A77,Filtro!$A$5:$AW$2943,27,FALSE),0) -> 3 | AD77: =IFERROR(VLOOKUP($A77,Filtro!$A$5:$AW$2943,28,FALSE),0) -> 0 | AE77: =IFERROR(VLOOKUP($A77,Filtro!$A$5:$AW$2943,29,FALSE),0) -> 0 | AF77: =IFERROR(VLOOKUP($A77,Filtro!$A$5:$AW$2943,30,FALSE),0) -> 0 | AG77: =IFERROR(VLOOKUP($A77,Filtro!$A$5:$AW$2943,31,FALSE),0) -> 0 | AH77: =IFERROR(VLOOKUP($A77,Filtro!$A$5:$AW$2943,32,FALSE),0) -> 0 | AI77: =IFERROR(VLOOKUP($A77,Filtro!$A$5:$AW$2943,33,FALSE),0) -> 0 | AJ77: =IFERROR(VLOOKUP($A77,Filtro!$A$5:$AW$2943,34,FALSE),0) -> 0 | AK77: =IFERROR(VLOOKUP($A77,Filtro!$A$5:$AW$2943,35,FALSE),0) -> 0 | AL77: 7,530 | AM77: 22,590
A78: 01014327 | B78: 0108206 | C78: Teleconsulta Médica de Especialidad en Reumatología | D78: =IFERROR(VLOOKUP($A78,Filtro!$A$5:$AW$2943,2,FALSE),0) -> 68 | E78: =IFERROR(VLOOKUP($A78,Filtro!$A$5:$AW$2943,3,FALSE),0) -> 68 | F78: =IFERROR(VLOOKUP($A78,Filtro!$A$5:$AW$2943,4,FALSE),0) -> 68 | G78: =IFERROR(VLOOKUP($A78,Filtro!$A$5:$AW$2943,5,FALSE),0) -> 0 | H78: =IFERROR(VLOOKUP($A78,Filtro!$A$5:$AW$2943,6,FALSE),0) -> 0 | AB78: =IFERROR(VLOOKUP($A78,Filtro!$A$5:$AW$2943,26,FALSE),0) -> 0 | AC78: =IFERROR(VLOOKUP($A78,Filtro!$A$5:$AW$2943,27,FALSE),0) -> 68 | AD78: =IFERROR(VLOOKUP($A78,Filtro!$A$5:$AW$2943,28,FALSE),0) -> 0 | AE78: =IFERROR(VLOOKUP($A78,Filtro!$A$5:$AW$2943,29,FALSE),0) -> 0 | AF78: =IFERROR(VLOOKUP($A78,Filtro!$A$5:$AW$2943,30,FALSE),0) -> 0 | AG78: =IFERROR(VLOOKUP($A78,Filtro!$A$5:$AW$2943,31,FALSE),0) -> 0 | AH78: =IFERROR(VLOOKUP($A78,Filtro!$A$5:$AW$2943,32,FALSE),0) -> 0 | AI78: =IFERROR(VLOOKUP($A78,Filtro!$A$5:$AW$2943,33,FALSE),0) -> 0 | AJ78: =IFERROR(VLOOKUP($A78,Filtro!$A$5:$AW$2943,34,FALSE),0) -> 0 | AK78: =IFERROR(VLOOKUP($A78,Filtro!$A$5:$AW$2943,35,FALSE),0) -> 0 | AL78: 7,530 | AM78: 512,040
A79: 01014328 | B79: 0108207 | C79: Teleconsulta Médica de Especialidad en Endocrinología Adulto | D79: =IFERROR(VLOOKUP($A79,Filtro!$A$5:$AW$2943,2,FALSE),0) -> 184 | E79: =IFERROR(VLOOKUP($A79,Filtro!$A$5:$AW$2943,3,FALSE),0) -> 184 | F79: =IFERROR(VLOOKUP($A79,Filtro!$A$5:$AW$2943,4,FALSE),0) -> 184 | G79: =IFERROR(VLOOKUP($A79,Filtro!$A$5:$AW$2943,5,FALSE),0) -> 0 | H79: =IFERROR(VLOOKUP($A79,Filtro!$A$5:$AW$2943,6,FALSE),0) -> 0 | AB79: =IFERROR(VLOOKUP($A79,Filtro!$A$5:$AW$2943,26,FALSE),0) -> 0 | AC79: =IFERROR(VLOOKUP($A79,Filtro!$A$5:$AW$2943,27,FALSE),0) -> 184 | AD79: =IFERROR(VLOOKUP($A79,Filtro!$A$5:$AW$2943,28,FALSE),0) -> 0 | AE79: =IFERROR(VLOOKUP($A79,Filtro!$A$5:$AW$2943,29,FALSE),0) -> 0 | AF79: =IFERROR(VLOOKUP($A79,Filtro!$A$5:$AW$2943,30,FALSE),0) -> 0 | AG79: =IFERROR(VLOOKUP($A79,Filtro!$A$5:$AW$2943,31,FALSE),0) -> 0 | AH79: =IFERROR(VLOOKUP($A79,Filtro!$A$5:$AW$2943,32,FALSE),0) -> 0 | AI79: =IFERROR(VLOOKUP($A79,Filtro!$A$5:$AW$2943,33,FALSE),0) -> 0 | AJ79: =IFERROR(VLOOKUP($A79,Filtro!$A$5:$AW$2943,34,FALSE),0) -> 0 | AK79: =IFERROR(VLOOKUP($A79,Filtro!$A$5:$AW$2943,35,FALSE),0) -> 0 | AL79: 7,530 | AM79: 1,385,520
A80: 01014329 | B80: 0108208 | C80: Teleconsulta Médica de Especialidad en Endocrinología Pediátrica | D80: =IFERROR(VLOOKUP($A80,Filtro!$A$5:$AW$2943,2,FALSE),0) -> 62 | E80: =IFERROR(VLOOKUP($A80,Filtro!$A$5:$AW$2943,3,FALSE),0) -> 62 | F80: =IFERROR(VLOOKUP($A80,Filtro!$A$5:$AW$2943,4,FALSE),0) -> 62 | G80: =IFERROR(VLOOKUP($A80,Filtro!$A$5:$AW$2943,5,FALSE),0) -> 0 | H80: =IFERROR(VLOOKUP($A80,Filtro!$A$5:$AW$2943,6,FALSE),0) -> 0 | AB80: =IFERROR(VLOOKUP($A80,Filtro!$A$5:$AW$2943,26,FALSE),0) -> 0 | AC80: =IFERROR(VLOOKUP($A80,Filtro!$A$5:$AW$2943,27,FALSE),0) -> 62 | AD80: =IFERROR(VLOOKUP($A80,Filtro!$A$5:$AW$2943,28,FALSE),0) -> 0 | AE80: =IFERROR(VLOOKUP($A80,Filtro!$A$5:$AW$2943,29,FALSE),0) -> 0 | AF80: =IFERROR(VLOOKUP($A80,Filtro!$A$5:$AW$2943,30,FALSE),0) -> 0 | AG80: =IFERROR(VLOOKUP($A80,Filtro!$A$5:$AW$2943,31,FALSE),0) -> 0 | AH80: =IFERROR(VLOOKUP($A80,Filtro!$A$5:$AW$2943,32,FALSE),0) -> 0 | AI80: =IFERROR(VLOOKUP($A80,Filtro!$A$5:$AW$2943,33,FALSE),0) -> 0 | AJ80: =IFERROR(VLOOKUP($A80,Filtro!$A$5:$AW$2943,34,FALSE),0) -> 0 | AK80: =IFERROR(VLOOKUP($A80,Filtro!$A$5:$AW$2943,35,FALSE),0) -> 0 | AL80: 7,530 | AM80: 466,860
A81: 01014330 | B81: 0108209 | C81: Teleconsulta Médica de Especialidad en Neurología Adultos | D81: =IFERROR(VLOOKUP($A81,Filtro!$A$5:$AW$2943,2,FALSE),0) -> 249 | E81: =IFERROR(VLOOKUP($A81,Filtro!$A$5:$AW$2943,3,FALSE),0) -> 249 | F81: =IFERROR(VLOOKUP($A81,Filtro!$A$5:$AW$2943,4,FALSE),0) -> 249 | G81: =IFERROR(VLOOKUP($A81,Filtro!$A$5:$AW$2943,5,FALSE),0) -> 0 | H81: =IFERROR(VLOOKUP($A81,Filtro!$A$5:$AW$2943,6,FALSE),0) -> 0 | AB81: =IFERROR(VLOOKUP($A81,Filtro!$A$5:$AW$2943,26,FALSE),0) -> 26 | AC81: =IFERROR(VLOOKUP($A81,Filtro!$A$5:$AW$2943,27,FALSE),0) -> 223 | AD81: =IFERROR(VLOOKUP($A81,Filtro!$A$5:$AW$2943,28,FALSE),0) -> 0 | AE81: =IFERROR(VLOOKUP($A81,Filtro!$A$5:$AW$2943,29,FALSE),0) -> 0 | AF81: =IFERROR(VLOOKUP($A81,Filtro!$A$5:$AW$2943,30,FALSE),0) -> 0 | AG81: =IFERROR(VLOOKUP($A81,Filtro!$A$5:$AW$2943,31,FALSE),0) -> 0 | AH81: =IFERROR(VLOOKUP($A81,Filtro!$A$5:$AW$2943,32,FALSE),0) -> 0 | AI81: =IFERROR(VLOOKUP($A81,Filtro!$A$5:$AW$2943,33,FALSE),0) -> 0 | AJ81: =IFERROR(VLOOKUP($A81,Filtro!$A$5:$AW$2943,34,FALSE),0) -> 0 | AK81: =IFERROR(VLOOKUP($A81,Filtro!$A$5:$AW$2943,35,FALSE),0) -> 0 | AL81: 7,530 | AM81: 1,874,970
A82: 01014331 | B82: 0108210 | C82: Teleconsulta Médica de Especialidad en Neurología Pediátrica | D82: =IFERROR(VLOOKUP($A82,Filtro!$A$5:$AW$2943,2,FALSE),0) -> 92 | E82: =IFERROR(VLOOKUP($A82,Filtro!$A$5:$AW$2943,3,FALSE),0) -> 92 | F82: =IFERROR(VLOOKUP($A82,Filtro!$A$5:$AW$2943,4,FALSE),0) -> 92 | G82: =IFERROR(VLOOKUP($A82,Filtro!$A$5:$AW$2943,5,FALSE),0) -> 0 | H82: =IFERROR(VLOOKUP($A82,Filtro!$A$5:$AW$2943,6,FALSE),0) -> 0 | AB82: =IFERROR(VLOOKUP($A82,Filtro!$A$5:$AW$2943,26,FALSE),0) -> 16 | AC82: =IFERROR(VLOOKUP($A82,Filtro!$A$5:$AW$2943,27,FALSE),0) -> 76 | AD82: =IFERROR(VLOOKUP($A82,Filtro!$A$5:$AW$2943,28,FALSE),0) -> 0 | AE82: =IFERROR(VLOOKUP($A82,Filtro!$A$5:$AW$2943,29,FALSE),0) -> 0 | AF82: =IFERROR(VLOOKUP($A82,Filtro!$A$5:$AW$2943,30,FALSE),0) -> 0 | AG82: =IFERROR(VLOOKUP($A82,Filtro!$A$5:$AW$2943,31,FALSE),0) -> 0 | AH82: =IFERROR(VLOOKUP($A82,Filtro!$A$5:$AW$2943,32,FALSE),0) -> 0 | AI82: =IFERROR(VLOOKUP($A82,Filtro!$A$5:$AW$2943,33,FALSE),0) -> 0 | AJ82: =IFERROR(VLOOKUP($A82,Filtro!$A$5:$AW$2943,34,FALSE),0) -> 0 | AK82: =IFERROR(VLOOKUP($A82,Filtro!$A$5:$AW$2943,35,FALSE),0) -> 0 | AL82: 7,530 | AM82: 692,760
A83: 01014332 | B83: 0108211 | C83: Teleconsulta Médica de Especialidad en Oncología Médica | D83: =IFERROR(VLOOKUP($A83,Filtro!$A$5:$AW$2943,2,FALSE),0) -> 6694 | E83: =IFERROR(VLOOKUP($A83,Filtro!$A$5:$AW$2943,3,FALSE),0) -> 6694 | F83: =IFERROR(VLOOKUP($A83,Filtro!$A$5:$AW$2943,4,FALSE),0) -> 6694 | G83: =IFERROR(VLOOKUP($A83,Filtro!$A$5:$AW$2943,5,FALSE),0) -> 0 | H83: =IFERROR(VLOOKUP($A83,Filtro!$A$5:$AW$2943,6,FALSE),0) -> 0 | AB83: =IFERROR(VLOOKUP($A83,Filtro!$A$5:$AW$2943,26,FALSE),0) -> 0 | AC83: =IFERROR(VLOOKUP($A83,Filtro!$A$5:$AW$2943,27,FALSE),0) -> 6694 | AD83: =IFERROR(VLOOKUP($A83,Filtro!$A$5:$AW$2943,28,FALSE),0) -> 0 | AE83: =IFERROR(VLOOKUP($A83,Filtro!$A$5:$AW$2943,29,FALSE),0) -> 0 | AF83: =IFERROR(VLOOKUP($A83,Filtro!$A$5:$AW$2943,30,FALSE),0) -> 0 | AG83: =IFERROR(VLOOKUP($A83,Filtro!$A$5:$AW$2943,31,FALSE),0) -> 0 | AH83: =IFERROR(VLOOKUP($A83,Filtro!$A$5:$AW$2943,32,FALSE),0) -> 0 | AI83: =IFERROR(VLOOKUP($A83,Filtro!$A$5:$AW$2943,33,FALSE),0) -> 0 | AJ83: =IFERROR(VLOOKUP($A83,Filtro!$A$5:$AW$2943,34,FALSE),0) -> 0 | AK83: =IFERROR(VLOOKUP($A83,Filtro!$A$5:$AW$2943,35,FALSE),0) -> 0 | AL83: 7,530 | AM83: 50,405,820
A84: 01014333 | B84: 0108212 | C84: Teleconsulta Médica de Especialidad en Psiquiatría adultos | D84: =IFERROR(VLOOKUP($A84,Filtro!$A$5:$AW$2943,2,FALSE),0) -> 711 | E84: =IFERROR(VLOOKUP($A84,Filtro!$A$5:$AW$2943,3,FALSE),0) -> 711 | F84: =IFERROR(VLOOKUP($A84,Filtro!$A$5:$AW$2943,4,FALSE),0) -> 711 | G84: =IFERROR(VLOOKUP($A84,Filtro!$A$5:$AW$2943,5,FALSE),0) -> 0 | H84: =IFERROR(VLOOKUP($A84,Filtro!$A$5:$AW$2943,6,FALSE),0) -> 0 | AB84: =IFERROR(VLOOKUP($A84,Filtro!$A$5:$AW$2943,26,FALSE),0) -> 0 | AC84: =IFERROR(VLOOKUP($A84,Filtro!$A$5:$AW$2943,27,FALSE),0) -> 711 | AD84: =IFERROR(VLOOKUP($A84,Filtro!$A$5:$AW$2943,28,FALSE),0) -> 0 | AE84: =IFERROR(VLOOKUP($A84,Filtro!$A$5:$AW$2943,29,FALSE),0) -> 0 | AF84: =IFERROR(VLOOKUP($A84,Filtro!$A$5:$AW$2943,30,FALSE),0) -> 0 | AG84: =IFERROR(VLOOKUP($A84,Filtro!$A$5:$AW$2943,31,FALSE),0) -> 0 | AH84: =IFERROR(VLOOKUP($A84,Filtro!$A$5:$AW$2943,32,FALSE),0) -> 0 | AI84: =IFERROR(VLOOKUP($A84,Filtro!$A$5:$AW$2943,33,FALSE),0) -> 0 | AJ84: =IFERROR(VLOOKUP($A84,Filtro!$A$5:$AW$2943,34,FALSE),0) -> 0 | AK84: =IFERROR(VLOOKUP($A84,Filtro!$A$5:$AW$2943,35,FALSE),0) -> 0 | AL84: 7,530 | AM84: 5,353,830
A85: 01014334 | B85: 0108213 | C85: Teleconsulta Médica de Especialidad en Psiquiatría pediátrica y de la adolescencia | D85: =IFERROR(VLOOKUP($A85,Filtro!$A$5:$AW$2943,2,FALSE),0) -> 236 | E85: =IFERROR(VLOOKUP($A85,Filtro!$A$5:$AW$2943,3,FALSE),0) -> 236 | F85: =IFERROR(VLOOKUP($A85,Filtro!$A$5:$AW$2943,4,FALSE),0) -> 236 | G85: =IFERROR(VLOOKUP($A85,Filtro!$A$5:$AW$2943,5,FALSE),0) -> 0 | H85: =IFERROR(VLOOKUP($A85,Filtro!$A$5:$AW$2943,6,FALSE),0) -> 0 | AB85: =IFERROR(VLOOKUP($A85,Filtro!$A$5:$AW$2943,26,FALSE),0) -> 0 | AC85: =IFERROR(VLOOKUP($A85,Filtro!$A$5:$AW$2943,27,FALSE),0) -> 221 | AD85: =IFERROR(VLOOKUP($A85,Filtro!$A$5:$AW$2943,28,FALSE),0) -> 0 | AE85: =IFERROR(VLOOKUP($A85,Filtro!$A$5:$AW$2943,29,FALSE),0) -> 0 | AF85: =IFERROR(VLOOKUP($A85,Filtro!$A$5:$AW$2943,30,FALSE),0) -> 0 | AG85: =IFERROR(VLOOKUP($A85,Filtro!$A$5:$AW$2943,31,FALSE),0) -> 0 | AH85: =IFERROR(VLOOKUP($A85,Filtro!$A$5:$AW$2943,32,FALSE),0) -> 0 | AI85: =IFERROR(VLOOKUP($A85,Filtro!$A$5:$AW$2943,33,FALSE),0) -> 0 | AJ85: =IFERROR(VLOOKUP($A85,Filtro!$A$5:$AW$2943,34,FALSE),0) -> 0 | AK85: =IFERROR(VLOOKUP($A85,Filtro!$A$5:$AW$2943,35,FALSE),0) -> 0 | AL85: 7,530 | AM85: 1,777,080
A86: 01014335 | B86: 0108301 | C86: Teleconsulta Médica de Especialidad en Cardiología | D86: =IFERROR(VLOOKUP($A86,Filtro!$A$5:$AW$2943,2,FALSE),0) -> 8 | E86: =IFERROR(VLOOKUP($A86,Filtro!$A$5:$AW$2943,3,FALSE),0) -> 8 | F86: =IFERROR(VLOOKUP($A86,Filtro!$A$5:$AW$2943,4,FALSE),0) -> 8 | G86: =IFERROR(VLOOKUP($A86,Filtro!$A$5:$AW$2943,5,FALSE),0) -> 0 | H86: =IFERROR(VLOOKUP($A86,Filtro!$A$5:$AW$2943,6,FALSE),0) -> 0 | AB86: =IFERROR(VLOOKUP($A86,Filtro!$A$5:$AW$2943,26,FALSE),0) -> 0 | AC86: =IFERROR(VLOOKUP($A86,Filtro!$A$5:$AW$2943,27,FALSE),0) -> 8 | AD86: =IFERROR(VLOOKUP($A86,Filtro!$A$5:$AW$2943,28,FALSE),0) -> 0 | AE86: =IFERROR(VLOOKUP($A86,Filtro!$A$5:$AW$2943,29,FALSE),0) -> 0 | AF86: =IFERROR(VLOOKUP($A86,Filtro!$A$5:$AW$2943,30,FALSE),0) -> 0 | AG86: =IFERROR(VLOOKUP($A86,Filtro!$A$5:$AW$2943,31,FALSE),0) -> 0 | AH86: =IFERROR(VLOOKUP($A86,Filtro!$A$5:$AW$2943,32,FALSE),0) -> 0 | AI86: =IFERROR(VLOOKUP($A86,Filtro!$A$5:$AW$2943,33,FALSE),0) -> 0 | AJ86: =IFERROR(VLOOKUP($A86,Filtro!$A$5:$AW$2943,34,FALSE),0) -> 0 | AK86: =IFERROR(VLOOKUP($A86,Filtro!$A$5:$AW$2943,35,FALSE),0) -> 0 | AL86: 7,530 | AM86: 60,240
A87: 01014336 | B87: 0108302 | C87: Teleconsulta Médica de Especialidad en Hematología | D87: =IFERROR(VLOOKUP($A87,Filtro!$A$5:$AW$2943,2,FALSE),0) -> 1727 | E87: =IFERROR(VLOOKUP($A87,Filtro!$A$5:$AW$2943,3,FALSE),0) -> 1727 | F87: =IFERROR(VLOOKUP($A87,Filtro!$A$5:$AW$2943,4,FALSE),0) -> 1727 | G87: =IFERROR(VLOOKUP($A87,Filtro!$A$5:$AW$2943,5,FALSE),0) -> 0 | H87: =IFERROR(VLOOKUP($A87,Filtro!$A$5:$AW$2943,6,FALSE),0) -> 0 | AB87: =IFERROR(VLOOKUP($A87,Filtro!$A$5:$AW$2943,26,FALSE),0) -> 0 | AC87: =IFERROR(VLOOKUP($A87,Filtro!$A$5:$AW$2943,27,FALSE),0) -> 1727 | AD87: =IFERROR(VLOOKUP($A87,Filtro!$A$5:$AW$2943,28,FALSE),0) -> 0 | AE87: =IFERROR(VLOOKUP($A87,Filtro!$A$5:$AW$2943,29,FALSE),0) -> 0 | AF87: =IFERROR(VLOOKUP($A87,Filtro!$A$5:$AW$2943,30,FALSE),0) -> 0 | AG87: =IFERROR(VLOOKUP($A87,Filtro!$A$5:$AW$2943,31,FALSE),0) -> 0 | AH87: =IFERROR(VLOOKUP($A87,Filtro!$A$5:$AW$2943,32,FALSE),0) -> 0 | AI87: =IFERROR(VLOOKUP($A87,Filtro!$A$5:$AW$2943,33,FALSE),0) -> 0 | AJ87: =IFERROR(VLOOKUP($A87,Filtro!$A$5:$AW$2943,34,FALSE),0) -> 0 | AK87: =IFERROR(VLOOKUP($A87,Filtro!$A$5:$AW$2943,35,FALSE),0) -> 0 | AL87: 7,530 | AM87: 13,004,310
A88: 01014337 | B88: 0108303 | C88: Teleconsulta Médica de Especialidad en Infectología | D88: =IFERROR(VLOOKUP($A88,Filtro!$A$5:$AW$2943,2,FALSE),0) -> 3 | E88: =IFERROR(VLOOKUP($A88,Filtro!$A$5:$AW$2943,3,FALSE),0) -> 3 | F88: =IFERROR(VLOOKUP($A88,Filtro!$A$5:$AW$2943,4,FALSE),0) -> 3 | G88: =IFERROR(VLOOKUP($A88,Filtro!$A$5:$AW$2943,5,FALSE),0) -> 0 | H88: =IFERROR(VLOOKUP($A88,Filtro!$A$5:$AW$2943,6,FALSE),0) -> 0 | AB88: =IFERROR(VLOOKUP($A88,Filtro!$A$5:$AW$2943,26,FALSE),0) -> 0 | AC88: =IFERROR(VLOOKUP($A88,Filtro!$A$5:$AW$2943,27,FALSE),0) -> 3 | AD88: =IFERROR(VLOOKUP($A88,Filtro!$A$5:$AW$2943,28,FALSE),0) -> 0 | AE88: =IFERROR(VLOOKUP($A88,Filtro!$A$5:$AW$2943,29,FALSE),0) -> 0 | AF88: =IFERROR(VLOOKUP($A88,Filtro!$A$5:$AW$2943,30,FALSE),0) -> 0 | AG88: =IFERROR(VLOOKUP($A88,Filtro!$A$5:$AW$2943,31,FALSE),0) -> 0 | AH88: =IFERROR(VLOOKUP($A88,Filtro!$A$5:$AW$2943,32,FALSE),0) -> 0 | AI88: =IFERROR(VLOOKUP($A88,Filtro!$A$5:$AW$2943,33,FALSE),0) -> 0 | AJ88: =IFERROR(VLOOKUP($A88,Filtro!$A$5:$AW$2943,34,FALSE),0) -> 0 | AK88: =IFERROR(VLOOKUP($A88,Filtro!$A$5:$AW$2943,35,FALSE),0) -> 0 | AL88: 7,530 | AM88: 22,590
A89: 01014338 | B89: 0108304 | C89: Teleconsulta Médica de Especialidad en Inmunología | D89: =IFERROR(VLOOKUP($A89,Filtro!$A$5:$AW$2943,2,FALSE),0) -> 283 | E89: =IFERROR(VLOOKUP($A89,Filtro!$A$5:$AW$2943,3,FALSE),0) -> 283 | F89: =IFERROR(VLOOKUP($A89,Filtro!$A$5:$AW$2943,4,FALSE),0) -> 283 | G89: =IFERROR(VLOOKUP($A89,Filtro!$A$5:$AW$2943,5,FALSE),0) -> 0 | H89: =IFERROR(VLOOKUP($A89,Filtro!$A$5:$AW$2943,6,FALSE),0) -> 0 | AB89: =IFERROR(VLOOKUP($A89,Filtro!$A$5:$AW$2943,26,FALSE),0) -> 0 | AC89: =IFERROR(VLOOKUP($A89,Filtro!$A$5:$AW$2943,27,FALSE),0) -> 283 | AD89: =IFERROR(VLOOKUP($A89,Filtro!$A$5:$AW$2943,28,FALSE),0) -> 0 | AE89: =IFERROR(VLOOKUP($A89,Filtro!$A$5:$AW$2943,29,FALSE),0) -> 0 | AF89: =IFERROR(VLOOKUP($A89,Filtro!$A$5:$AW$2943,30,FALSE),0) -> 0 | AG89: =IFERROR(VLOOKUP($A89,Filtro!$A$5:$AW$2943,31,FALSE),0) -> 0 | AH89: =IFERROR(VLOOKUP($A89,Filtro!$A$5:$AW$2943,32,FALSE),0) -> 0 | AI89: =IFERROR(VLOOKUP($A89,Filtro!$A$5:$AW$2943,33,FALSE),0) -> 0 | AJ89: =IFERROR(VLOOKUP($A89,Filtro!$A$5:$AW$2943,34,FALSE),0) -> 0 | AK89: =IFERROR(VLOOKUP($A89,Filtro!$A$5:$AW$2943,35,FALSE),0) -> 0 | AL89: 7,530 | AM89: 2,130,990
A90: 01014339 | B90: 0108305 | C90: Teleconsulta Médica de Especialidad en Medicina Familiar | D90: =IFERROR(VLOOKUP($A90,Filtro!$A$5:$AW$2943,2,FALSE),0) -> 0 | E90: =IFERROR(VLOOKUP($A90,Filtro!$A$5:$AW$2943,3,FALSE),0) -> 0 | F90: =IFERROR(VLOOKUP($A90,Filtro!$A$5:$AW$2943,4,FALSE),0) -> 0 | G90: =IFERROR(VLOOKUP($A90,Filtro!$A$5:$AW$2943,5,FALSE),0) -> 0 | H90: =IFERROR(VLOOKUP($A90,Filtro!$A$5:$AW$2943,6,FALSE),0) -> 0 | AB90: =IFERROR(VLOOKUP($A90,Filtro!$A$5:$AW$2943,26,FALSE),0) -> 0 | AC90: =IFERROR(VLOOKUP($A90,Filtro!$A$5:$AW$2943,27,FALSE),0) -> 0 | AD90: =IFERROR(VLOOKUP($A90,Filtro!$A$5:$AW$2943,28,FALSE),0) -> 0 | AE90: =IFERROR(VLOOKUP($A90,Filtro!$A$5:$AW$2943,29,FALSE),0) -> 0 | AF90: =IFERROR(VLOOKUP($A90,Filtro!$A$5:$AW$2943,30,FALSE),0) -> 0 | AG90: =IFERROR(VLOOKUP($A90,Filtro!$A$5:$AW$2943,31,FALSE),0) -> 0 | AH90: =IFERROR(VLOOKUP($A90,Filtro!$A$5:$AW$2943,32,FALSE),0) -> 0 | AI90: =IFERROR(VLOOKUP($A90,Filtro!$A$5:$AW$2943,33,FALSE),0) -> 0 | AJ90: =IFERROR(VLOOKUP($A90,Filtro!$A$5:$AW$2943,34,FALSE),0) -> 0 | AK90: =IFERROR(VLOOKUP($A90,Filtro!$A$5:$AW$2943,35,FALSE),0) -> 0 | AL90: 7,530 | AM90: 0
A91: 01014340 | B91: 0108306 | C91: Teleconsulta Médica de Especialidad en Medicina Física y Rehabilitación | D91: =IFERROR(VLOOKUP($A91,Filtro!$A$5:$AW$2943,2,FALSE),0) -> 53 | E91: =IFERROR(VLOOKUP($A91,Filtro!$A$5:$AW$2943,3,FALSE),0) -> 53 | F91: =IFERROR(VLOOKUP($A91,Filtro!$A$5:$AW$2943,4,FALSE),0) -> 53 | G91: =IFERROR(VLOOKUP($A91,Filtro!$A$5:$AW$2943,5,FALSE),0) -> 0 | H91: =IFERROR(VLOOKUP($A91,Filtro!$A$5:$AW$2943,6,FALSE),0) -> 0 | AB91: =IFERROR(VLOOKUP($A91,Filtro!$A$5:$AW$2943,26,FALSE),0) -> 0 | AC91: =IFERROR(VLOOKUP($A91,Filtro!$A$5:$AW$2943,27,FALSE),0) -> 53 | AD91: =IFERROR(VLOOKUP($A91,Filtro!$A$5:$AW$2943,28,FALSE),0) -> 0 | AE91: =IFERROR(VLOOKUP($A91,Filtro!$A$5:$AW$2943,29,FALSE),0) -> 0 | AF91: =IFERROR(VLOOKUP($A91,Filtro!$A$5:$AW$2943,30,FALSE),0) -> 0 | AG91: =IFERROR(VLOOKUP($A91,Filtro!$A$5:$AW$2943,31,FALSE),0) -> 0 | AH91: =IFERROR(VLOOKUP($A91,Filtro!$A$5:$AW$2943,32,FALSE),0) -> 0 | AI91: =IFERROR(VLOOKUP($A91,Filtro!$A$5:$AW$2943,33,FALSE),0) -> 0 | AJ91: =IFERROR(VLOOKUP($A91,Filtro!$A$5:$AW$2943,34,FALSE),0) -> 0 | AK91: =IFERROR(VLOOKUP($A91,Filtro!$A$5:$AW$2943,35,FALSE),0) -> 0 | AL91: 7,530 | AM91: 399,090
A92: 01014341 | B92: 0108307 | C92: Teleconsulta Médica de Especialidad en Medicina Interna | D92: =IFERROR(VLOOKUP($A92,Filtro!$A$5:$AW$2943,2,FALSE),0) -> 4786 | E92: =IFERROR(VLOOKUP($A92,Filtro!$A$5:$AW$2943,3,FALSE),0) -> 4763 | F92: =IFERROR(VLOOKUP($A92,Filtro!$A$5:$AW$2943,4,FALSE),0) -> 4763 | G92: =IFERROR(VLOOKUP($A92,Filtro!$A$5:$AW$2943,5,FALSE),0) -> 0 | H92: =IFERROR(VLOOKUP($A92,Filtro!$A$5:$AW$2943,6,FALSE),0) -> 23 | AB92: =IFERROR(VLOOKUP($A92,Filtro!$A$5:$AW$2943,26,FALSE),0) -> 0 | AC92: =IFERROR(VLOOKUP($A92,Filtro!$A$5:$AW$2943,27,FALSE),0) -> 4786 | AD92: =IFERROR(VLOOKUP($A92,Filtro!$A$5:$AW$2943,28,FALSE),0) -> 0 | AE92: =IFERROR(VLOOKUP($A92,Filtro!$A$5:$AW$2943,29,FALSE),0) -> 0 | AF92: =IFERROR(VLOOKUP($A92,Filtro!$A$5:$AW$2943,30,FALSE),0) -> 0 | AG92: =IFERROR(VLOOKUP($A92,Filtro!$A$5:$AW$2943,31,FALSE),0) -> 0 | AH92: =IFERROR(VLOOKUP($A92,Filtro!$A$5:$AW$2943,32,FALSE),0) -> 0 | AI92: =IFERROR(VLOOKUP($A92,Filtro!$A$5:$AW$2943,33,FALSE),0) -> 0 | AJ92: =IFERROR(VLOOKUP($A92,Filtro!$A$5:$AW$2943,34,FALSE),0) -> 0 | AK92: =IFERROR(VLOOKUP($A92,Filtro!$A$5:$AW$2943,35,FALSE),0) -> 0 | AL92: 7,530 | AM92: 35,865,390
A93: 01014342 | B93: 0108308 | C93: Teleconsulta Médica de Especialidad en Obstetricia y Ginecología | D93: =IFERROR(VLOOKUP($A93,Filtro!$A$5:$AW$2943,2,FALSE),0) -> 21 | E93: =IFERROR(VLOOKUP($A93,Filtro!$A$5:$AW$2943,3,FALSE),0) -> 21 | F93: =IFERROR(VLOOKUP($A93,Filtro!$A$5:$AW$2943,4,FALSE),0) -> 21 | G93: =IFERROR(VLOOKUP($A93,Filtro!$A$5:$AW$2943,5,FALSE),0) -> 0 | H93: =IFERROR(VLOOKUP($A93,Filtro!$A$5:$AW$2943,6,FALSE),0) -> 0 | AB93: =IFERROR(VLOOKUP($A93,Filtro!$A$5:$AW$2943,26,FALSE),0) -> 0 | AC93: =IFERROR(VLOOKUP($A93,Filtro!$A$5:$AW$2943,27,FALSE),0) -> 21 | AD93: =IFERROR(VLOOKUP($A93,Filtro!$A$5:$AW$2943,28,FALSE),0) -> 0 | AE93: =IFERROR(VLOOKUP($A93,Filtro!$A$5:$AW$2943,29,FALSE),0) -> 0 | AF93: =IFERROR(VLOOKUP($A93,Filtro!$A$5:$AW$2943,30,FALSE),0) -> 0 | AG93: =IFERROR(VLOOKUP($A93,Filtro!$A$5:$AW$2943,31,FALSE),0) -> 0 | AH93: =IFERROR(VLOOKUP($A93,Filtro!$A$5:$AW$2943,32,FALSE),0) -> 0 | AI93: =IFERROR(VLOOKUP($A93,Filtro!$A$5:$AW$2943,33,FALSE),0) -> 0 | AJ93: =IFERROR(VLOOKUP($A93,Filtro!$A$5:$AW$2943,34,FALSE),0) -> 0 | AK93: =IFERROR(VLOOKUP($A93,Filtro!$A$5:$AW$2943,35,FALSE),0) -> 0 | AL93: 7,530 | AM93: 158,130
A94: 01014343 | B94: 0108309 | C94: Teleconsulta Médica de Especialidad en Pediatría | D94: =IFERROR(VLOOKUP($A94,Filtro!$A$5:$AW$2943,2,FALSE),0) -> 362 | E94: =IFERROR(VLOOKUP($A94,Filtro!$A$5:$AW$2943,3,FALSE),0) -> 358 | F94: =IFERROR(VLOOKUP($A94,Filtro!$A$5:$AW$2943,4,FALSE),0) -> 358 | G94: =IFERROR(VLOOKUP($A94,Filtro!$A$5:$AW$2943,5,FALSE),0) -> 0 | H94: =IFERROR(VLOOKUP($A94,Filtro!$A$5:$AW$2943,6,FALSE),0) -> 4 | AB94: =IFERROR(VLOOKUP($A94,Filtro!$A$5:$AW$2943,26,FALSE),0) -> 0 | AC94: =IFERROR(VLOOKUP($A94,Filtro!$A$5:$AW$2943,27,FALSE),0) -> 362 | AD94: =IFERROR(VLOOKUP($A94,Filtro!$A$5:$AW$2943,28,FALSE),0) -> 0 | AE94: =IFERROR(VLOOKUP($A94,Filtro!$A$5:$AW$2943,29,FALSE),0) -> 0 | AF94: =IFERROR(VLOOKUP($A94,Filtro!$A$5:$AW$2943,30,FALSE),0) -> 0 | AG94: =IFERROR(VLOOKUP($A94,Filtro!$A$5:$AW$2943,31,FALSE),0) -> 0 | AH94: =IFERROR(VLOOKUP($A94,Filtro!$A$5:$AW$2943,32,FALSE),0) -> 0 | AI94: =IFERROR(VLOOKUP($A94,Filtro!$A$5:$AW$2943,33,FALSE),0) -> 0 | AJ94: =IFERROR(VLOOKUP($A94,Filtro!$A$5:$AW$2943,34,FALSE),0) -> 0 | AK94: =IFERROR(VLOOKUP($A94,Filtro!$A$5:$AW$2943,35,FALSE),0) -> 0 | AL94: 7,530 | AM94: 2,695,740
A95: 01014344 | B95: 0108310 | C95: Teleconsulta Médica de Especialidad en Traumatología y Ortopedia | D95: =IFERROR(VLOOKUP($A95,Filtro!$A$5:$AW$2943,2,FALSE),0) -> 0 | E95: =IFERROR(VLOOKUP($A95,Filtro!$A$5:$AW$2943,3,FALSE),0) -> 0 | F95: =IFERROR(VLOOKUP($A95,Filtro!$A$5:$AW$2943,4,FALSE),0) -> 0 | G95: =IFERROR(VLOOKUP($A95,Filtro!$A$5:$AW$2943,5,FALSE),0) -> 0 | H95: =IFERROR(VLOOKUP($A95,Filtro!$A$5:$AW$2943,6,FALSE),0) -> 0 | AB95: =IFERROR(VLOOKUP($A95,Filtro!$A$5:$AW$2943,26,FALSE),0) -> 0 | AC95: =IFERROR(VLOOKUP($A95,Filtro!$A$5:$AW$2943,27,FALSE),0) -> 0 | AD95: =IFERROR(VLOOKUP($A95,Filtro!$A$5:$AW$2943,28,FALSE),0) -> 0 | AE95: =IFERROR(VLOOKUP($A95,Filtro!$A$5:$AW$2943,29,FALSE),0) -> 0 | AF95: =IFERROR(VLOOKUP($A95,Filtro!$A$5:$AW$2943,30,FALSE),0) -> 0 | AG95: =IFERROR(VLOOKUP($A95,Filtro!$A$5:$AW$2943,31,FALSE),0) -> 0 | AH95: =IFERROR(VLOOKUP($A95,Filtro!$A$5:$AW$2943,32,FALSE),0) -> 0 | AI95: =IFERROR(VLOOKUP($A95,Filtro!$A$5:$AW$2943,33,FALSE),0) -> 0 | AJ95: =IFERROR(VLOOKUP($A95,Filtro!$A$5:$AW$2943,34,FALSE),0) -> 0 | AK95: =IFERROR(VLOOKUP($A95,Filtro!$A$5:$AW$2943,35,FALSE),0) -> 0 | AL95: 7,530 | AM95: 0
A96: 01014345 | B96: 0108311 | C96: Teleconsulta Médica de Especialidad en Urología | D96: =IFERROR(VLOOKUP($A96,Filtro!$A$5:$AW$2943,2,FALSE),0) -> 1 | E96: =IFERROR(VLOOKUP($A96,Filtro!$A$5:$AW$2943,3,FALSE),0) -> 1 | F96: =IFERROR(VLOOKUP($A96,Filtro!$A$5:$AW$2943,4,FALSE),0) -> 1 | G96: =IFERROR(VLOOKUP($A96,Filtro!$A$5:$AW$2943,5,FALSE),0) -> 0 | H96: =IFERROR(VLOOKUP($A96,Filtro!$A$5:$AW$2943,6,FALSE),0) -> 0 | AB96: =IFERROR(VLOOKUP($A96,Filtro!$A$5:$AW$2943,26,FALSE),0) -> 0 | AC96: =IFERROR(VLOOKUP($A96,Filtro!$A$5:$AW$2943,27,FALSE),0) -> 1 | AD96: =IFERROR(VLOOKUP($A96,Filtro!$A$5:$AW$2943,28,FALSE),0) -> 0 | AE96: =IFERROR(VLOOKUP($A96,Filtro!$A$5:$AW$2943,29,FALSE),0) -> 0 | AF96: =IFERROR(VLOOKUP($A96,Filtro!$A$5:$AW$2943,30,FALSE),0) -> 0 | AG96: =IFERROR(VLOOKUP($A96,Filtro!$A$5:$AW$2943,31,FALSE),0) -> 0 | AH96: =IFERROR(VLOOKUP($A96,Filtro!$A$5:$AW$2943,32,FALSE),0) -> 0 | AI96: =IFERROR(VLOOKUP($A96,Filtro!$A$5:$AW$2943,33,FALSE),0) -> 0 | AJ96: =IFERROR(VLOOKUP($A96,Filtro!$A$5:$AW$2943,34,FALSE),0) -> 0 | AK96: =IFERROR(VLOOKUP($A96,Filtro!$A$5:$AW$2943,35,FALSE),0) -> 0 | AL96: 7,530 | AM96: 7,530
A97: 01014346 | B97: 0108319 | C97: Teleconsulta Médica de Especialidad en Coloproctología | D97: =IFERROR(VLOOKUP($A97,Filtro!$A$5:$AW$2943,2,FALSE),0) -> 5 | E97: =IFERROR(VLOOKUP($A97,Filtro!$A$5:$AW$2943,3,FALSE),0) -> 5 | F97: =IFERROR(VLOOKUP($A97,Filtro!$A$5:$AW$2943,4,FALSE),0) -> 5 | G97: =IFERROR(VLOOKUP($A97,Filtro!$A$5:$AW$2943,5,FALSE),0) -> 0 | H97: =IFERROR(VLOOKUP($A97,Filtro!$A$5:$AW$2943,6,FALSE),0) -> 0 | AB97: =IFERROR(VLOOKUP($A97,Filtro!$A$5:$AW$2943,26,FALSE),0) -> 0 | AC97: =IFERROR(VLOOKUP($A97,Filtro!$A$5:$AW$2943,27,FALSE),0) -> 5 | AD97: =IFERROR(VLOOKUP($A97,Filtro!$A$5:$AW$2943,28,FALSE),0) -> 0 | AE97: =IFERROR(VLOOKUP($A97,Filtro!$A$5:$AW$2943,29,FALSE),0) -> 0 | AF97: =IFERROR(VLOOKUP($A97,Filtro!$A$5:$AW$2943,30,FALSE),0) -> 0 | AG97: =IFERROR(VLOOKUP($A97,Filtro!$A$5:$AW$2943,31,FALSE),0) -> 0 | AH97: =IFERROR(VLOOKUP($A97,Filtro!$A$5:$AW$2943,32,FALSE),0) -> 0 | AI97: =IFERROR(VLOOKUP($A97,Filtro!$A$5:$AW$2943,33,FALSE),0) -> 0 | AJ97: =IFERROR(VLOOKUP($A97,Filtro!$A$5:$AW$2943,34,FALSE),0) -> 0 | AK97: =IFERROR(VLOOKUP($A97,Filtro!$A$5:$AW$2943,35,FALSE),0) -> 0 | AL97: 7,530 | AM97: 37,650
A98: 01014347 | B98: 0108320 | C98: Teleconsulta Médica de Especialidad en Diabetología | D98: =IFERROR(VLOOKUP($A98,Filtro!$A$5:$AW$2943,2,FALSE),0) -> 14 | E98: =IFERROR(VLOOKUP($A98,Filtro!$A$5:$AW$2943,3,FALSE),0) -> 14 | F98: =IFERROR(VLOOKUP($A98,Filtro!$A$5:$AW$2943,4,FALSE),0) -> 14 | G98: =IFERROR(VLOOKUP($A98,Filtro!$A$5:$AW$2943,5,FALSE),0) -> 0 | H98: =IFERROR(VLOOKUP($A98,Filtro!$A$5:$AW$2943,6,FALSE),0) -> 0 | AB98: =IFERROR(VLOOKUP($A98,Filtro!$A$5:$AW$2943,26,FALSE),0) -> 0 | AC98: =IFERROR(VLOOKUP($A98,Filtro!$A$5:$AW$2943,27,FALSE),0) -> 14 | AD98: =IFERROR(VLOOKUP($A98,Filtro!$A$5:$AW$2943,28,FALSE),0) -> 0 | AE98: =IFERROR(VLOOKUP($A98,Filtro!$A$5:$AW$2943,29,FALSE),0) -> 0 | AF98: =IFERROR(VLOOKUP($A98,Filtro!$A$5:$AW$2943,30,FALSE),0) -> 0 | AG98: =IFERROR(VLOOKUP($A98,Filtro!$A$5:$AW$2943,31,FALSE),0) -> 0 | AH98: =IFERROR(VLOOKUP($A98,Filtro!$A$5:$AW$2943,32,FALSE),0) -> 0 | AI98: =IFERROR(VLOOKUP($A98,Filtro!$A$5:$AW$2943,33,FALSE),0) -> 0 | AJ98: =IFERROR(VLOOKUP($A98,Filtro!$A$5:$AW$2943,34,FALSE),0) -> 0 | AK98: =IFERROR(VLOOKUP($A98,Filtro!$A$5:$AW$2943,35,FALSE),0) -> 0 | AL98: 7,530 | AM98: 105,420
A99: 01014348 | B99: 0108321 | C99: Teleconsulta Médica de Especialidad en Enfermedades Respiratorias Adulto | D99: =IFERROR(VLOOKUP($A99,Filtro!$A$5:$AW$2943,2,FALSE),0) -> 49 | E99: =IFERROR(VLOOKUP($A99,Filtro!$A$5:$AW$2943,3,FALSE),0) -> 49 | F99: =IFERROR(VLOOKUP($A99,Filtro!$A$5:$AW$2943,4,FALSE),0) -> 49 | G99: =IFERROR(VLOOKUP($A99,Filtro!$A$5:$AW$2943,5,FALSE),0) -> 0 | H99: =IFERROR(VLOOKUP($A99,Filtro!$A$5:$AW$2943,6,FALSE),0) -> 0 | AB99: =IFERROR(VLOOKUP($A99,Filtro!$A$5:$AW$2943,26,FALSE),0) -> 0 | AC99: =IFERROR(VLOOKUP($A99,Filtro!$A$5:$AW$2943,27,FALSE),0) -> 49 | AD99: =IFERROR(VLOOKUP($A99,Filtro!$A$5:$AW$2943,28,FALSE),0) -> 0 | AE99: =IFERROR(VLOOKUP($A99,Filtro!$A$5:$AW$2943,29,FALSE),0) -> 0 | AF99: =IFERROR(VLOOKUP($A99,Filtro!$A$5:$AW$2943,30,FALSE),0) -> 0 | AG99: =IFERROR(VLOOKUP($A99,Filtro!$A$5:$AW$2943,31,FALSE),0) -> 0 | AH99: =IFERROR(VLOOKUP($A99,Filtro!$A$5:$AW$2943,32,FALSE),0) -> 0 | AI99: =IFERROR(VLOOKUP($A99,Filtro!$A$5:$AW$2943,33,FALSE),0) -> 0 | AJ99: =IFERROR(VLOOKUP($A99,Filtro!$A$5:$AW$2943,34,FALSE),0) -> 0 | AK99: =IFERROR(VLOOKUP($A99,Filtro!$A$5:$AW$2943,35,FALSE),0) -> 0 | AL99: 7,530 | AM99: 368,970
A100: 01014349 | B100: 0108322 | C100: Teleconsulta Médica de Especialidad en Enfermedades Respiratorias Pediátricas | D100: =IFERROR(VLOOKUP($A100,Filtro!$A$5:$AW$2943,2,FALSE),0) -> 130 | E100: =IFERROR(VLOOKUP($A100,Filtro!$A$5:$AW$2943,3,FALSE),0) -> 130 | F100: =IFERROR(VLOOKUP($A100,Filtro!$A$5:$AW$2943,4,FALSE),0) -> 130 | G100: =IFERROR(VLOOKUP($A100,Filtro!$A$5:$AW$2943,5,FALSE),0) -> 0 | H100: =IFERROR(VLOOKUP($A100,Filtro!$A$5:$AW$2943,6,FALSE),0) -> 0 | AB100: =IFERROR(VLOOKUP($A100,Filtro!$A$5:$AW$2943,26,FALSE),0) -> 0 | AC100: =IFERROR(VLOOKUP($A100,Filtro!$A$5:$AW$2943,27,FALSE),0) -> 130 | AD100: =IFERROR(VLOOKUP($A100,Filtro!$A$5:$AW$2943,28,FALSE),0) -> 0 | AE100: =IFERROR(VLOOKUP($A100,Filtro!$A$5:$AW$2943,29,FALSE),0) -> 0 | AF100: =IFERROR(VLOOKUP($A100,Filtro!$A$5:$AW$2943,30,FALSE),0) -> 0 | AG100: =IFERROR(VLOOKUP($A100,Filtro!$A$5:$AW$2943,31,FALSE),0) -> 0 | AH100: =IFERROR(VLOOKUP($A100,Filtro!$A$5:$AW$2943,32,FALSE),0) -> 0 | AI100: =IFERROR(VLOOKUP($A100,Filtro!$A$5:$AW$2943,33,FALSE),0) -> 0 | AJ100: =IFERROR(VLOOKUP($A100,Filtro!$A$5:$AW$2943,34,FALSE),0) -> 0 | AK100: =IFERROR(VLOOKUP($A100,Filtro!$A$5:$AW$2943,35,FALSE),0) -> 0 | AL100: 7,530 | AM100: 978,900
A101: 01014350 | B101: 0108323 | C101: Teleconsulta Médica de Especialidad en Gastroenterología Adulto | D101: =IFERROR(VLOOKUP($A101,Filtro!$A$5:$AW$2943,2,FALSE),0) -> 26 | E101: =IFERROR(VLOOKUP($A101,Filtro!$A$5:$AW$2943,3,FALSE),0) -> 26 | F101: =IFERROR(VLOOKUP($A101,Filtro!$A$5:$AW$2943,4,FALSE),0) -> 26 | G101: =IFERROR(VLOOKUP($A101,Filtro!$A$5:$AW$2943,5,FALSE),0) -> 0 | H101: =IFERROR(VLOOKUP($A101,Filtro!$A$5:$AW$2943,6,FALSE),0) -> 0 | AB101: =IFERROR(VLOOKUP($A101,Filtro!$A$5:$AW$2943,26,FALSE),0) -> 0 | AC101: =IFERROR(VLOOKUP($A101,Filtro!$A$5:$AW$2943,27,FALSE),0) -> 26 | AD101: =IFERROR(VLOOKUP($A101,Filtro!$A$5:$AW$2943,28,FALSE),0) -> 0 | AE101: =IFERROR(VLOOKUP($A101,Filtro!$A$5:$AW$2943,29,FALSE),0) -> 0 | AF101: =IFERROR(VLOOKUP($A101,Filtro!$A$5:$AW$2943,30,FALSE),0) -> 0 | AG101: =IFERROR(VLOOKUP($A101,Filtro!$A$5:$AW$2943,31,FALSE),0) -> 0 | AH101: =IFERROR(VLOOKUP($A101,Filtro!$A$5:$AW$2943,32,FALSE),0) -> 0 | AI101: =IFERROR(VLOOKUP($A101,Filtro!$A$5:$AW$2943,33,FALSE),0) -> 0 | AJ101: =IFERROR(VLOOKUP($A101,Filtro!$A$5:$AW$2943,34,FALSE),0) -> 0 | AK101: =IFERROR(VLOOKUP($A101,Filtro!$A$5:$AW$2943,35,FALSE),0) -> 0 | AL101: 7,530 | AM101: 195,780
A102: 01014351 | B102: 0108324 | C102: Teleconsulta Médica de Especialidad en Gastroenterología Pediátrico | D102: =IFERROR(VLOOKUP($A102,Filtro!$A$5:$AW$2943,2,FALSE),0) -> 42 | E102: =IFERROR(VLOOKUP($A102,Filtro!$A$5:$AW$2943,3,FALSE),0) -> 42 | F102: =IFERROR(VLOOKUP($A102,Filtro!$A$5:$AW$2943,4,FALSE),0) -> 42 | G102: =IFERROR(VLOOKUP($A102,Filtro!$A$5:$AW$2943,5,FALSE),0) -> 0 | H102: =IFERROR(VLOOKUP($A102,Filtro!$A$5:$AW$2943,6,FALSE),0) -> 0 | AB102: =IFERROR(VLOOKUP($A102,Filtro!$A$5:$AW$2943,26,FALSE),0) -> 0 | AC102: =IFERROR(VLOOKUP($A102,Filtro!$A$5:$AW$2943,27,FALSE),0) -> 42 | AD102: =IFERROR(VLOOKUP($A102,Filtro!$A$5:$AW$2943,28,FALSE),0) -> 0 | AE102: =IFERROR(VLOOKUP($A102,Filtro!$A$5:$AW$2943,29,FALSE),0) -> 0 | AF102: =IFERROR(VLOOKUP($A102,Filtro!$A$5:$AW$2943,30,FALSE),0) -> 0 | AG102: =IFERROR(VLOOKUP($A102,Filtro!$A$5:$AW$2943,31,FALSE),0) -> 0 | AH102: =IFERROR(VLOOKUP($A102,Filtro!$A$5:$AW$2943,32,FALSE),0) -> 0 | AI102: =IFERROR(VLOOKUP($A102,Filtro!$A$5:$AW$2943,33,FALSE),0) -> 0 | AJ102: =IFERROR(VLOOKUP($A102,Filtro!$A$5:$AW$2943,34,FALSE),0) -> 0 | AK102: =IFERROR(VLOOKUP($A102,Filtro!$A$5:$AW$2943,35,FALSE),0) -> 0 | AL102: 7,530 | AM102: 316,260
A103: 01014352 | B103: 0108325 | C103: Teleconsulta Médica de Especialidad en Genética Clínica | D103: =IFERROR(VLOOKUP($A103,Filtro!$A$5:$AW$2943,2,FALSE),0) -> 0 | E103: =IFERROR(VLOOKUP($A103,Filtro!$A$5:$AW$2943,3,FALSE),0) -> 0 | F103: =IFERROR(VLOOKUP($A103,Filtro!$A$5:$AW$2943,4,FALSE),0) -> 0 | G103: =IFERROR(VLOOKUP($A103,Filtro!$A$5:$AW$2943,5,FALSE),0) -> 0 | H103: =IFERROR(VLOOKUP($A103,Filtro!$A$5:$AW$2943,6,FALSE),0) -> 0 | AB103: =IFERROR(VLOOKUP($A103,Filtro!$A$5:$AW$2943,26,FALSE),0) -> 0 | AC103: =IFERROR(VLOOKUP($A103,Filtro!$A$5:$AW$2943,27,FALSE),0) -> 0 | AD103: =IFERROR(VLOOKUP($A103,Filtro!$A$5:$AW$2943,28,FALSE),0) -> 0 | AE103: =IFERROR(VLOOKUP($A103,Filtro!$A$5:$AW$2943,29,FALSE),0) -> 0 | AF103: =IFERROR(VLOOKUP($A103,Filtro!$A$5:$AW$2943,30,FALSE),0) -> 0 | AG103: =IFERROR(VLOOKUP($A103,Filtro!$A$5:$AW$2943,31,FALSE),0) -> 0 | AH103: =IFERROR(VLOOKUP($A103,Filtro!$A$5:$AW$2943,32,FALSE),0) -> 0 | AI103: =IFERROR(VLOOKUP($A103,Filtro!$A$5:$AW$2943,33,FALSE),0) -> 0 | AJ103: =IFERROR(VLOOKUP($A103,Filtro!$A$5:$AW$2943,34,FALSE),0) -> 0 | AK103: =IFERROR(VLOOKUP($A103,Filtro!$A$5:$AW$2943,35,FALSE),0) -> 0 | AL103: 7,530 | AM103: 0
A104: 01014353 | B104: 0108326 | C104: Teleconsulta Médica de Especialidad en Nefrología Adulto | D104: =IFERROR(VLOOKUP($A104,Filtro!$A$5:$AW$2943,2,FALSE),0) -> 611 | E104: =IFERROR(VLOOKUP($A104,Filtro!$A$5:$AW$2943,3,FALSE),0) -> 607 | F104: =IFERROR(VLOOKUP($A104,Filtro!$A$5:$AW$2943,4,FALSE),0) -> 607 | G104: =IFERROR(VLOOKUP($A104,Filtro!$A$5:$AW$2943,5,FALSE),0) -> 0 | H104: =IFERROR(VLOOKUP($A104,Filtro!$A$5:$AW$2943,6,FALSE),0) -> 4 | AB104: =IFERROR(VLOOKUP($A104,Filtro!$A$5:$AW$2943,26,FALSE),0) -> 0 | AC104: =IFERROR(VLOOKUP($A104,Filtro!$A$5:$AW$2943,27,FALSE),0) -> 611 | AD104: =IFERROR(VLOOKUP($A104,Filtro!$A$5:$AW$2943,28,FALSE),0) -> 0 | AE104: =IFERROR(VLOOKUP($A104,Filtro!$A$5:$AW$2943,29,FALSE),0) -> 0 | AF104: =IFERROR(VLOOKUP($A104,Filtro!$A$5:$AW$2943,30,FALSE),0) -> 0 | AG104: =IFERROR(VLOOKUP($A104,Filtro!$A$5:$AW$2943,31,FALSE),0) -> 0 | AH104: =IFERROR(VLOOKUP($A104,Filtro!$A$5:$AW$2943,32,FALSE),0) -> 0 | AI104: =IFERROR(VLOOKUP($A104,Filtro!$A$5:$AW$2943,33,FALSE),0) -> 0 | AJ104: =IFERROR(VLOOKUP($A104,Filtro!$A$5:$AW$2943,34,FALSE),0) -> 0 | AK104: =IFERROR(VLOOKUP($A104,Filtro!$A$5:$AW$2943,35,FALSE),0) -> 0 | AL104: 7,530 | AM104: 4,570,710
A105: 01014354 | B105: 0108327 | C105: Teleconsulta Médica de Especialidad en Nefrología Pediátrico | D105: =IFERROR(VLOOKUP($A105,Filtro!$A$5:$AW$2943,2,FALSE),0) -> 34 | E105: =IFERROR(VLOOKUP($A105,Filtro!$A$5:$AW$2943,3,FALSE),0) -> 34 | F105: =IFERROR(VLOOKUP($A105,Filtro!$A$5:$AW$2943,4,FALSE),0) -> 34 | G105: =IFERROR(VLOOKUP($A105,Filtro!$A$5:$AW$2943,5,FALSE),0) -> 0 | H105: =IFERROR(VLOOKUP($A105,Filtro!$A$5:$AW$2943,6,FALSE),0) -> 0 | AB105: =IFERROR(VLOOKUP($A105,Filtro!$A$5:$AW$2943,26,FALSE),0) -> 0 | AC105: =IFERROR(VLOOKUP($A105,Filtro!$A$5:$AW$2943,27,FALSE),0) -> 34 | AD105: =IFERROR(VLOOKUP($A105,Filtro!$A$5:$AW$2943,28,FALSE),0) -> 0 | AE105: =IFERROR(VLOOKUP($A105,Filtro!$A$5:$AW$2943,29,FALSE),0) -> 0 | AF105: =IFERROR(VLOOKUP($A105,Filtro!$A$5:$AW$2943,30,FALSE),0) -> 0 | AG105: =IFERROR(VLOOKUP($A105,Filtro!$A$5:$AW$2943,31,FALSE),0) -> 0 | AH105: =IFERROR(VLOOKUP($A105,Filtro!$A$5:$AW$2943,32,FALSE),0) -> 0 | AI105: =IFERROR(VLOOKUP($A105,Filtro!$A$5:$AW$2943,33,FALSE),0) -> 0 | AJ105: =IFERROR(VLOOKUP($A105,Filtro!$A$5:$AW$2943,34,FALSE),0) -> 0 | AK105: =IFERROR(VLOOKUP($A105,Filtro!$A$5:$AW$2943,35,FALSE),0) -> 0 | AL105: 7,530 | AM105: 256,020
A106: 01014355 | B106: 0108331 | C106: Teleconsulta Médica de Especialidad en Radioterapia Oncológica | D106: =IFERROR(VLOOKUP($A106,Filtro!$A$5:$AW$2943,2,FALSE),0) -> 0 | E106: =IFERROR(VLOOKUP($A106,Filtro!$A$5:$AW$2943,3,FALSE),0) -> 0 | F106: =IFERROR(VLOOKUP($A106,Filtro!$A$5:$AW$2943,4,FALSE),0) -> 0 | G106: =IFERROR(VLOOKUP($A106,Filtro!$A$5:$AW$2943,5,FALSE),0) -> 0 | H106: =IFERROR(VLOOKUP($A106,Filtro!$A$5:$AW$2943,6,FALSE),0) -> 0 | AB106: =IFERROR(VLOOKUP($A106,Filtro!$A$5:$AW$2943,26,FALSE),0) -> 0 | AC106: =IFERROR(VLOOKUP($A106,Filtro!$A$5:$AW$2943,27,FALSE),0) -> 0 | AD106: =IFERROR(VLOOKUP($A106,Filtro!$A$5:$AW$2943,28,FALSE),0) -> 0 | AE106: =IFERROR(VLOOKUP($A106,Filtro!$A$5:$AW$2943,29,FALSE),0) -> 0 | AF106: =IFERROR(VLOOKUP($A106,Filtro!$A$5:$AW$2943,30,FALSE),0) -> 0 | AG106: =IFERROR(VLOOKUP($A106,Filtro!$A$5:$AW$2943,31,FALSE),0) -> 0 | AH106: =IFERROR(VLOOKUP($A106,Filtro!$A$5:$AW$2943,32,FALSE),0) -> 0 | AI106: =IFERROR(VLOOKUP($A106,Filtro!$A$5:$AW$2943,33,FALSE),0) -> 0 | AJ106: =IFERROR(VLOOKUP($A106,Filtro!$A$5:$AW$2943,34,FALSE),0) -> 0 | AK106: =IFERROR(VLOOKUP($A106,Filtro!$A$5:$AW$2943,35,FALSE),0) -> 0 | AL106: 7,530 | AM106: 0
A107: 01014356 | B107: 0108203 | C107: Teleconsulta Médica de Especialidad en Neurocirugía | D107: =IFERROR(VLOOKUP($A107,Filtro!$A$5:$AW$2943,2,FALSE),0) -> 0 | E107: =IFERROR(VLOOKUP($A107,Filtro!$A$5:$AW$2943,3,FALSE),0) -> 0 | F107: =IFERROR(VLOOKUP($A107,Filtro!$A$5:$AW$2943,4,FALSE),0) -> 0 | G107: =IFERROR(VLOOKUP($A107,Filtro!$A$5:$AW$2943,5,FALSE),0) -> 0 | H107: =IFERROR(VLOOKUP($A107,Filtro!$A$5:$AW$2943,6,FALSE),0) -> 0 | AB107: =IFERROR(VLOOKUP($A107,Filtro!$A$5:$AW$2943,26,FALSE),0) -> 0 | AC107: =IFERROR(VLOOKUP($A107,Filtro!$A$5:$AW$2943,27,FALSE),0) -> 0 | AD107: =IFERROR(VLOOKUP($A107,Filtro!$A$5:$AW$2943,28,FALSE),0) -> 0 | AE107: =IFERROR(VLOOKUP($A107,Filtro!$A$5:$AW$2943,29,FALSE),0) -> 0 | AF107: =IFERROR(VLOOKUP($A107,Filtro!$A$5:$AW$2943,30,FALSE),0) -> 0 | AG107: =IFERROR(VLOOKUP($A107,Filtro!$A$5:$AW$2943,31,FALSE),0) -> 0 | AH107: =IFERROR(VLOOKUP($A107,Filtro!$A$5:$AW$2943,32,FALSE),0) -> 0 | AI107: =IFERROR(VLOOKUP($A107,Filtro!$A$5:$AW$2943,33,FALSE),0) -> 0 | AJ107: =IFERROR(VLOOKUP($A107,Filtro!$A$5:$AW$2943,34,FALSE),0) -> 0 | AK107: =IFERROR(VLOOKUP($A107,Filtro!$A$5:$AW$2943,35,FALSE),0) -> 0 | AL107: 7,530 | AM107: 0
A108: 01014357 | B108: 0108204 | C108: Teleconsulta Médica de Especialidad en Oftalmología | D108: =IFERROR(VLOOKUP($A108,Filtro!$A$5:$AW$2943,2,FALSE),0) -> 183 | E108: =IFERROR(VLOOKUP($A108,Filtro!$A$5:$AW$2943,3,FALSE),0) -> 183 | F108: =IFERROR(VLOOKUP($A108,Filtro!$A$5:$AW$2943,4,FALSE),0) -> 183 | G108: =IFERROR(VLOOKUP($A108,Filtro!$A$5:$AW$2943,5,FALSE),0) -> 0 | H108: =IFERROR(VLOOKUP($A108,Filtro!$A$5:$AW$2943,6,FALSE),0) -> 0 | AB108: =IFERROR(VLOOKUP($A108,Filtro!$A$5:$AW$2943,26,FALSE),0) -> 0 | AC108: =IFERROR(VLOOKUP($A108,Filtro!$A$5:$AW$2943,27,FALSE),0) -> 183 | AD108: =IFERROR(VLOOKUP($A108,Filtro!$A$5:$AW$2943,28,FALSE),0) -> 0 | AE108: =IFERROR(VLOOKUP($A108,Filtro!$A$5:$AW$2943,29,FALSE),0) -> 0 | AF108: =IFERROR(VLOOKUP($A108,Filtro!$A$5:$AW$2943,30,FALSE),0) -> 0 | AG108: =IFERROR(VLOOKUP($A108,Filtro!$A$5:$AW$2943,31,FALSE),0) -> 0 | AH108: =IFERROR(VLOOKUP($A108,Filtro!$A$5:$AW$2943,32,FALSE),0) -> 0 | AI108: =IFERROR(VLOOKUP($A108,Filtro!$A$5:$AW$2943,33,FALSE),0) -> 0 | AJ108: =IFERROR(VLOOKUP($A108,Filtro!$A$5:$AW$2943,34,FALSE),0) -> 0 | AK108: =IFERROR(VLOOKUP($A108,Filtro!$A$5:$AW$2943,35,FALSE),0) -> 0 | AL108: 7,530 | AM108: 1,377,990
A109: 01014358 | B109: 0108205 | C109: Teleconsulta Médica de Especialidad en Otorrinolaringología | D109: =IFERROR(VLOOKUP($A109,Filtro!$A$5:$AW$2943,2,FALSE),0) -> 1 | E109: =IFERROR(VLOOKUP($A109,Filtro!$A$5:$AW$2943,3,FALSE),0) -> 1 | F109: =IFERROR(VLOOKUP($A109,Filtro!$A$5:$AW$2943,4,FALSE),0) -> 1 | G109: =IFERROR(VLOOKUP($A109,Filtro!$A$5:$AW$2943,5,FALSE),0) -> 0 | H109: =IFERROR(VLOOKUP($A109,Filtro!$A$5:$AW$2943,6,FALSE),0) -> 0 | AB109: =IFERROR(VLOOKUP($A109,Filtro!$A$5:$AW$2943,26,FALSE),0) -> 0 | AC109: =IFERROR(VLOOKUP($A109,Filtro!$A$5:$AW$2943,27,FALSE),0) -> 1 | AD109: =IFERROR(VLOOKUP($A109,Filtro!$A$5:$AW$2943,28,FALSE),0) -> 0 | AE109: =IFERROR(VLOOKUP($A109,Filtro!$A$5:$AW$2943,29,FALSE),0) -> 0 | AF109: =IFERROR(VLOOKUP($A109,Filtro!$A$5:$AW$2943,30,FALSE),0) -> 0 | AG109: =IFERROR(VLOOKUP($A109,Filtro!$A$5:$AW$2943,31,FALSE),0) -> 0 | AH109: =IFERROR(VLOOKUP($A109,Filtro!$A$5:$AW$2943,32,FALSE),0) -> 0 | AI109: =IFERROR(VLOOKUP($A109,Filtro!$A$5:$AW$2943,33,FALSE),0) -> 0 | AJ109: =IFERROR(VLOOKUP($A109,Filtro!$A$5:$AW$2943,34,FALSE),0) -> 0 | AK109: =IFERROR(VLOOKUP($A109,Filtro!$A$5:$AW$2943,35,FALSE),0) -> 0 | AL109: 7,530 | AM109: 7,530
A110: 01014359 | B110: 0108312 | C110: Teleconsulta Médica de Especialidad en Cirugía General | D110: =IFERROR(VLOOKUP($A110,Filtro!$A$5:$AW$2943,2,FALSE),0) -> 69 | E110: =IFERROR(VLOOKUP($A110,Filtro!$A$5:$AW$2943,3,FALSE),0) -> 69 | F110: =IFERROR(VLOOKUP($A110,Filtro!$A$5:$AW$2943,4,FALSE),0) -> 69 | G110: =IFERROR(VLOOKUP($A110,Filtro!$A$5:$AW$2943,5,FALSE),0) -> 0 | H110: =IFERROR(VLOOKUP($A110,Filtro!$A$5:$AW$2943,6,FALSE),0) -> 0 | AB110: =IFERROR(VLOOKUP($A110,Filtro!$A$5:$AW$2943,26,FALSE),0) -> 0 | AC110: =IFERROR(VLOOKUP($A110,Filtro!$A$5:$AW$2943,27,FALSE),0) -> 69 | AD110: =IFERROR(VLOOKUP($A110,Filtro!$A$5:$AW$2943,28,FALSE),0) -> 0 | AE110: =IFERROR(VLOOKUP($A110,Filtro!$A$5:$AW$2943,29,FALSE),0) -> 0 | AF110: =IFERROR(VLOOKUP($A110,Filtro!$A$5:$AW$2943,30,FALSE),0) -> 0 | AG110: =IFERROR(VLOOKUP($A110,Filtro!$A$5:$AW$2943,31,FALSE),0) -> 0 | AH110: =IFERROR(VLOOKUP($A110,Filtro!$A$5:$AW$2943,32,FALSE),0) -> 0 | AI110: =IFERROR(VLOOKUP($A110,Filtro!$A$5:$AW$2943,33,FALSE),0) -> 0 | AJ110: =IFERROR(VLOOKUP($A110,Filtro!$A$5:$AW$2943,34,FALSE),0) -> 0 | AK110: =IFERROR(VLOOKUP($A110,Filtro!$A$5:$AW$2943,35,FALSE),0) -> 0 | AL110: 7,530 | AM110: 519,570
A111: 01014360 | B111: 0108313 | C111: Teleconsulta Médica de Especialidad en Cirugía de Cabeza, Cuello y Maxilofacial | D111: =IFERROR(VLOOKUP($A111,Filtro!$A$5:$AW$2943,2,FALSE),0) -> 1 | E111: =IFERROR(VLOOKUP($A111,Filtro!$A$5:$AW$2943,3,FALSE),0) -> 1 | F111: =IFERROR(VLOOKUP($A111,Filtro!$A$5:$AW$2943,4,FALSE),0) -> 1 | G111: =IFERROR(VLOOKUP($A111,Filtro!$A$5:$AW$2943,5,FALSE),0) -> 0 | H111: =IFERROR(VLOOKUP($A111,Filtro!$A$5:$AW$2943,6,FALSE),0) -> 0 | AB111: =IFERROR(VLOOKUP($A111,Filtro!$A$5:$AW$2943,26,FALSE),0) -> 0 | AC111: =IFERROR(VLOOKUP($A111,Filtro!$A$5:$AW$2943,27,FALSE),0) -> 1 | AD111: =IFERROR(VLOOKUP($A111,Filtro!$A$5:$AW$2943,28,FALSE),0) -> 0 | AE111: =IFERROR(VLOOKUP($A111,Filtro!$A$5:$AW$2943,29,FALSE),0) -> 0 | AF111: =IFERROR(VLOOKUP($A111,Filtro!$A$5:$AW$2943,30,FALSE),0) -> 0 | AG111: =IFERROR(VLOOKUP($A111,Filtro!$A$5:$AW$2943,31,FALSE),0) -> 0 | AH111: =IFERROR(VLOOKUP($A111,Filtro!$A$5:$AW$2943,32,FALSE),0) -> 0 | AI111: =IFERROR(VLOOKUP($A111,Filtro!$A$5:$AW$2943,33,FALSE),0) -> 0 | AJ111: =IFERROR(VLOOKUP($A111,Filtro!$A$5:$AW$2943,34,FALSE),0) -> 0 | AK111: =IFERROR(VLOOKUP($A111,Filtro!$A$5:$AW$2943,35,FALSE),0) -> 0 | AL111: 7,530 | AM111: 7,530
A112: 01014361 | B112: 0108314 | C112: Teleconsulta Médica de Especialidad en Cirugía Cardiovascular | D112: =IFERROR(VLOOKUP($A112,Filtro!$A$5:$AW$2943,2,FALSE),0) -> 0 | E112: =IFERROR(VLOOKUP($A112,Filtro!$A$5:$AW$2943,3,FALSE),0) -> 0 | F112: =IFERROR(VLOOKUP($A112,Filtro!$A$5:$AW$2943,4,FALSE),0) -> 0 | G112: =IFERROR(VLOOKUP($A112,Filtro!$A$5:$AW$2943,5,FALSE),0) -> 0 | H112: =IFERROR(VLOOKUP($A112,Filtro!$A$5:$AW$2943,6,FALSE),0) -> 0 | AB112: =IFERROR(VLOOKUP($A112,Filtro!$A$5:$AW$2943,26,FALSE),0) -> 0 | AC112: =IFERROR(VLOOKUP($A112,Filtro!$A$5:$AW$2943,27,FALSE),0) -> 0 | AD112: =IFERROR(VLOOKUP($A112,Filtro!$A$5:$AW$2943,28,FALSE),0) -> 0 | AE112: =IFERROR(VLOOKUP($A112,Filtro!$A$5:$AW$2943,29,FALSE),0) -> 0 | AF112: =IFERROR(VLOOKUP($A112,Filtro!$A$5:$AW$2943,30,FALSE),0) -> 0 | AG112: =IFERROR(VLOOKUP($A112,Filtro!$A$5:$AW$2943,31,FALSE),0) -> 0 | AH112: =IFERROR(VLOOKUP($A112,Filtro!$A$5:$AW$2943,32,FALSE),0) -> 0 | AI112: =IFERROR(VLOOKUP($A112,Filtro!$A$5:$AW$2943,33,FALSE),0) -> 0 | AJ112: =IFERROR(VLOOKUP($A112,Filtro!$A$5:$AW$2943,34,FALSE),0) -> 0 | AK112: =IFERROR(VLOOKUP($A112,Filtro!$A$5:$AW$2943,35,FALSE),0) -> 0 | AL112: 7,530 | AM112: 0
A113: 01014362 | B113: 0108315 | C113: Teleconsulta Médica de Especialidad en Cirugía de Tórax | D113: =IFERROR(VLOOKUP($A113,Filtro!$A$5:$AW$2943,2,FALSE),0) -> 2 | E113: =IFERROR(VLOOKUP($A113,Filtro!$A$5:$AW$2943,3,FALSE),0) -> 2 | F113: =IFERROR(VLOOKUP($A113,Filtro!$A$5:$AW$2943,4,FALSE),0) -> 2 | G113: =IFERROR(VLOOKUP($A113,Filtro!$A$5:$AW$2943,5,FALSE),0) -> 0 | H113: =IFERROR(VLOOKUP($A113,Filtro!$A$5:$AW$2943,6,FALSE),0) -> 0 | AB113: =IFERROR(VLOOKUP($A113,Filtro!$A$5:$AW$2943,26,FALSE),0) -> 0 | AC113: =IFERROR(VLOOKUP($A113,Filtro!$A$5:$AW$2943,27,FALSE),0) -> 2 | AD113: =IFERROR(VLOOKUP($A113,Filtro!$A$5:$AW$2943,28,FALSE),0) -> 0 | AE113: =IFERROR(VLOOKUP($A113,Filtro!$A$5:$AW$2943,29,FALSE),0) -> 0 | AF113: =IFERROR(VLOOKUP($A113,Filtro!$A$5:$AW$2943,30,FALSE),0) -> 0 | AG113: =IFERROR(VLOOKUP($A113,Filtro!$A$5:$AW$2943,31,FALSE),0) -> 0 | AH113: =IFERROR(VLOOKUP($A113,Filtro!$A$5:$AW$2943,32,FALSE),0) -> 0 | AI113: =IFERROR(VLOOKUP($A113,Filtro!$A$5:$AW$2943,33,FALSE),0) -> 0 | AJ113: =IFERROR(VLOOKUP($A113,Filtro!$A$5:$AW$2943,34,FALSE),0) -> 0 | AK113: =IFERROR(VLOOKUP($A113,Filtro!$A$5:$AW$2943,35,FALSE),0) -> 0 | AL113: 7,530 | AM113: 15,060
A114: 01014363 | B114: 0108316 | C114: Teleconsulta Médica de Especialidad en Cirugía Plástica y Reparadora | D114: =IFERROR(VLOOKUP($A114,Filtro!$A$5:$AW$2943,2,FALSE),0) -> 0 | E114: =IFERROR(VLOOKUP($A114,Filtro!$A$5:$AW$2943,3,FALSE),0) -> 0 | F114: =IFERROR(VLOOKUP($A114,Filtro!$A$5:$AW$2943,4,FALSE),0) -> 0 | G114: =IFERROR(VLOOKUP($A114,Filtro!$A$5:$AW$2943,5,FALSE),0) -> 0 | H114: =IFERROR(VLOOKUP($A114,Filtro!$A$5:$AW$2943,6,FALSE),0) -> 0 | AB114: =IFERROR(VLOOKUP($A114,Filtro!$A$5:$AW$2943,26,FALSE),0) -> 0 | AC114: =IFERROR(VLOOKUP($A114,Filtro!$A$5:$AW$2943,27,FALSE),0) -> 0 | AD114: =IFERROR(VLOOKUP($A114,Filtro!$A$5:$AW$2943,28,FALSE),0) -> 0 | AE114: =IFERROR(VLOOKUP($A114,Filtro!$A$5:$AW$2943,29,FALSE),0) -> 0 | AF114: =IFERROR(VLOOKUP($A114,Filtro!$A$5:$AW$2943,30,FALSE),0) -> 0 | AG114: =IFERROR(VLOOKUP($A114,Filtro!$A$5:$AW$2943,31,FALSE),0) -> 0 | AH114: =IFERROR(VLOOKUP($A114,Filtro!$A$5:$AW$2943,32,FALSE),0) -> 0 | AI114: =IFERROR(VLOOKUP($A114,Filtro!$A$5:$AW$2943,33,FALSE),0) -> 0 | AJ114: =IFERROR(VLOOKUP($A114,Filtro!$A$5:$AW$2943,34,FALSE),0) -> 0 | AK114: =IFERROR(VLOOKUP($A114,Filtro!$A$5:$AW$2943,35,FALSE),0) -> 0 | AL114: 7,530 | AM114: 0
A115: 01014364 | B115: 0108317 | C115: Teleconsulta Médica de Especialidad en Cirugía Pediátrica | D115: =IFERROR(VLOOKUP($A115,Filtro!$A$5:$AW$2943,2,FALSE),0) -> 3 | E115: =IFERROR(VLOOKUP($A115,Filtro!$A$5:$AW$2943,3,FALSE),0) -> 3 | F115: =IFERROR(VLOOKUP($A115,Filtro!$A$5:$AW$2943,4,FALSE),0) -> 3 | G115: =IFERROR(VLOOKUP($A115,Filtro!$A$5:$AW$2943,5,FALSE),0) -> 0 | H115: =IFERROR(VLOOKUP($A115,Filtro!$A$5:$AW$2943,6,FALSE),0) -> 0 | AB115: =IFERROR(VLOOKUP($A115,Filtro!$A$5:$AW$2943,26,FALSE),0) -> 0 | AC115: =IFERROR(VLOOKUP($A115,Filtro!$A$5:$AW$2943,27,FALSE),0) -> 3 | AD115: =IFERROR(VLOOKUP($A115,Filtro!$A$5:$AW$2943,28,FALSE),0) -> 0 | AE115: =IFERROR(VLOOKUP($A115,Filtro!$A$5:$AW$2943,29,FALSE),0) -> 0 | AF115: =IFERROR(VLOOKUP($A115,Filtro!$A$5:$AW$2943,30,FALSE),0) -> 0 | AG115: =IFERROR(VLOOKUP($A115,Filtro!$A$5:$AW$2943,31,FALSE),0) -> 0 | AH115: =IFERROR(VLOOKUP($A115,Filtro!$A$5:$AW$2943,32,FALSE),0) -> 0 | AI115: =IFERROR(VLOOKUP($A115,Filtro!$A$5:$AW$2943,33,FALSE),0) -> 0 | AJ115: =IFERROR(VLOOKUP($A115,Filtro!$A$5:$AW$2943,34,FALSE),0) -> 0 | AK115: =IFERROR(VLOOKUP($A115,Filtro!$A$5:$AW$2943,35,FALSE),0) -> 0 | AL115: 7,530 | AM115: 22,590
A116: 01014365 | B116: 0108318 | C116: Teleconsulta Médica de Especialidad en Cirugía Vascular Periférica | D116: =IFERROR(VLOOKUP($A116,Filtro!$A$5:$AW$2943,2,FALSE),0) -> 0 | E116: =IFERROR(VLOOKUP($A116,Filtro!$A$5:$AW$2943,3,FALSE),0) -> 0 | F116: =IFERROR(VLOOKUP($A116,Filtro!$A$5:$AW$2943,4,FALSE),0) -> 0 | G116: =IFERROR(VLOOKUP($A116,Filtro!$A$5:$AW$2943,5,FALSE),0) -> 0 | H116: =IFERROR(VLOOKUP($A116,Filtro!$A$5:$AW$2943,6,FALSE),0) -> 0 | AB116: =IFERROR(VLOOKUP($A116,Filtro!$A$5:$AW$2943,26,FALSE),0) -> 0 | AC116: =IFERROR(VLOOKUP($A116,Filtro!$A$5:$AW$2943,27,FALSE),0) -> 0 | AD116: =IFERROR(VLOOKUP($A116,Filtro!$A$5:$AW$2943,28,FALSE),0) -> 0 | AE116: =IFERROR(VLOOKUP($A116,Filtro!$A$5:$AW$2943,29,FALSE),0) -> 0 | AF116: =IFERROR(VLOOKUP($A116,Filtro!$A$5:$AW$2943,30,FALSE),0) -> 0 | AG116: =IFERROR(VLOOKUP($A116,Filtro!$A$5:$AW$2943,31,FALSE),0) -> 0 | AH116: =IFERROR(VLOOKUP($A116,Filtro!$A$5:$AW$2943,32,FALSE),0) -> 0 | AI116: =IFERROR(VLOOKUP($A116,Filtro!$A$5:$AW$2943,33,FALSE),0) -> 0 | AJ116: =IFERROR(VLOOKUP($A116,Filtro!$A$5:$AW$2943,34,FALSE),0) -> 0 | AK116: =IFERROR(VLOOKUP($A116,Filtro!$A$5:$AW$2943,35,FALSE),0) -> 0 | AL116: 7,530 | AM116: 0
A117: 01014366 | B117: 0108329 | C117: Teleconsulta Médica de Especialidad en Anestesiología | D117: =IFERROR(VLOOKUP($A117,Filtro!$A$5:$AW$2943,2,FALSE),0) -> 2644 | E117: =IFERROR(VLOOKUP($A117,Filtro!$A$5:$AW$2943,3,FALSE),0) -> 2618 | F117: =IFERROR(VLOOKUP($A117,Filtro!$A$5:$AW$2943,4,FALSE),0) -> 2618 | G117: =IFERROR(VLOOKUP($A117,Filtro!$A$5:$AW$2943,5,FALSE),0) -> 0 | H117: =IFERROR(VLOOKUP($A117,Filtro!$A$5:$AW$2943,6,FALSE),0) -> 26 | AB117: =IFERROR(VLOOKUP($A117,Filtro!$A$5:$AW$2943,26,FALSE),0) -> 0 | AC117: =IFERROR(VLOOKUP($A117,Filtro!$A$5:$AW$2943,27,FALSE),0) -> 2644 | AD117: =IFERROR(VLOOKUP($A117,Filtro!$A$5:$AW$2943,28,FALSE),0) -> 0 | AE117: =IFERROR(VLOOKUP($A117,Filtro!$A$5:$AW$2943,29,FALSE),0) -> 1375 | AF117: =IFERROR(VLOOKUP($A117,Filtro!$A$5:$AW$2943,30,FALSE),0) -> 0 | AG117: =IFERROR(VLOOKUP($A117,Filtro!$A$5:$AW$2943,31,FALSE),0) -> 0 | AH117: =IFERROR(VLOOKUP($A117,Filtro!$A$5:$AW$2943,32,FALSE),0) -> 0 | AI117: =IFERROR(VLOOKUP($A117,Filtro!$A$5:$AW$2943,33,FALSE),0) -> 0 | AJ117: =IFERROR(VLOOKUP($A117,Filtro!$A$5:$AW$2943,34,FALSE),0) -> 0 | AK117: =IFERROR(VLOOKUP($A117,Filtro!$A$5:$AW$2943,35,FALSE),0) -> 0 | AL117: 7,530 | AM117: 19,713,540
A118: 01014367 | B118: 0108332 | C118: Teleconsulta Médica de Especialidad en Ginecología Pediátrica y de la Adolescencia | D118: =IFERROR(VLOOKUP($A118,Filtro!$A$5:$AW$2943,2,FALSE),0) -> 0 | E118: =IFERROR(VLOOKUP($A118,Filtro!$A$5:$AW$2943,3,FALSE),0) -> 0 | F118: =IFERROR(VLOOKUP($A118,Filtro!$A$5:$AW$2943,4,FALSE),0) -> 0 | G118: =IFERROR(VLOOKUP($A118,Filtro!$A$5:$AW$2943,5,FALSE),0) -> 0 | H118: =IFERROR(VLOOKUP($A118,Filtro!$A$5:$AW$2943,6,FALSE),0) -> 0 | AB118: =IFERROR(VLOOKUP($A118,Filtro!$A$5:$AW$2943,26,FALSE),0) -> 0 | AC118: =IFERROR(VLOOKUP($A118,Filtro!$A$5:$AW$2943,27,FALSE),0) -> 0 | AD118: =IFERROR(VLOOKUP($A118,Filtro!$A$5:$AW$2943,28,FALSE),0) -> 0 | AE118: =IFERROR(VLOOKUP($A118,Filtro!$A$5:$AW$2943,29,FALSE),0) -> 0 | AF118: =IFERROR(VLOOKUP($A118,Filtro!$A$5:$AW$2943,30,FALSE),0) -> 0 | AG118: =IFERROR(VLOOKUP($A118,Filtro!$A$5:$AW$2943,31,FALSE),0) -> 0 | AH118: =IFERROR(VLOOKUP($A118,Filtro!$A$5:$AW$2943,32,FALSE),0) -> 0 | AI118: =IFERROR(VLOOKUP($A118,Filtro!$A$5:$AW$2943,33,FALSE),0) -> 0 | AJ118: =IFERROR(VLOOKUP($A118,Filtro!$A$5:$AW$2943,34,FALSE),0) -> 0 | AK118: =IFERROR(VLOOKUP($A118,Filtro!$A$5:$AW$2943,35,FALSE),0) -> 0 | AL118: 7,530 | AM118: 0
A119: 01014368 | B119: 0108333 | C119: Teleconsulta Médica de Especialidad en Medicina Materno Fetal | D119: =IFERROR(VLOOKUP($A119,Filtro!$A$5:$AW$2943,2,FALSE),0) -> 0 | E119: =IFERROR(VLOOKUP($A119,Filtro!$A$5:$AW$2943,3,FALSE),0) -> 0 | F119: =IFERROR(VLOOKUP($A119,Filtro!$A$5:$AW$2943,4,FALSE),0) -> 0 | G119: =IFERROR(VLOOKUP($A119,Filtro!$A$5:$AW$2943,5,FALSE),0) -> 0 | H119: =IFERROR(VLOOKUP($A119,Filtro!$A$5:$AW$2943,6,FALSE),0) -> 0 | AB119: =IFERROR(VLOOKUP($A119,Filtro!$A$5:$AW$2943,26,FALSE),0) -> 0 | AC119: =IFERROR(VLOOKUP($A119,Filtro!$A$5:$AW$2943,27,FALSE),0) -> 0 | AD119: =IFERROR(VLOOKUP($A119,Filtro!$A$5:$AW$2943,28,FALSE),0) -> 0 | AE119: =IFERROR(VLOOKUP($A119,Filtro!$A$5:$AW$2943,29,FALSE),0) -> 0 | AF119: =IFERROR(VLOOKUP($A119,Filtro!$A$5:$AW$2943,30,FALSE),0) -> 0 | AG119: =IFERROR(VLOOKUP($A119,Filtro!$A$5:$AW$2943,31,FALSE),0) -> 0 | AH119: =IFERROR(VLOOKUP($A119,Filtro!$A$5:$AW$2943,32,FALSE),0) -> 0 | AI119: =IFERROR(VLOOKUP($A119,Filtro!$A$5:$AW$2943,33,FALSE),0) -> 0 | AJ119: =IFERROR(VLOOKUP($A119,Filtro!$A$5:$AW$2943,34,FALSE),0) -> 0 | AK119: =IFERROR(VLOOKUP($A119,Filtro!$A$5:$AW$2943,35,FALSE),0) -> 0 | AL119: 7,530 | AM119: 0
A120: 01014369 | B120: 0108334 | C120: Teleconsulta Médica de Especialidad en Medicina Nuclear | D120: =IFERROR(VLOOKUP($A120,Filtro!$A$5:$AW$2943,2,FALSE),0) -> 0 | E120: =IFERROR(VLOOKUP($A120,Filtro!$A$5:$AW$2943,3,FALSE),0) -> 0 | F120: =IFERROR(VLOOKUP($A120,Filtro!$A$5:$AW$2943,4,FALSE),0) -> 0 | G120: =IFERROR(VLOOKUP($A120,Filtro!$A$5:$AW$2943,5,FALSE),0) -> 0 | H120: =IFERROR(VLOOKUP($A120,Filtro!$A$5:$AW$2943,6,FALSE),0) -> 0 | AB120: =IFERROR(VLOOKUP($A120,Filtro!$A$5:$AW$2943,26,FALSE),0) -> 0 | AC120: =IFERROR(VLOOKUP($A120,Filtro!$A$5:$AW$2943,27,FALSE),0) -> 0 | AD120: =IFERROR(VLOOKUP($A120,Filtro!$A$5:$AW$2943,28,FALSE),0) -> 0 | AE120: =IFERROR(VLOOKUP($A120,Filtro!$A$5:$AW$2943,29,FALSE),0) -> 0 | AF120: =IFERROR(VLOOKUP($A120,Filtro!$A$5:$AW$2943,30,FALSE),0) -> 0 | AG120: =IFERROR(VLOOKUP($A120,Filtro!$A$5:$AW$2943,31,FALSE),0) -> 0 | AH120: =IFERROR(VLOOKUP($A120,Filtro!$A$5:$AW$2943,32,FALSE),0) -> 0 | AI120: =IFERROR(VLOOKUP($A120,Filtro!$A$5:$AW$2943,33,FALSE),0) -> 0 | AJ120: =IFERROR(VLOOKUP($A120,Filtro!$A$5:$AW$2943,34,FALSE),0) -> 0 | AK120: =IFERROR(VLOOKUP($A120,Filtro!$A$5:$AW$2943,35,FALSE),0) -> 0 | AL120: 7,530 | AM120: 0
C121: TOTAL | D121: =SUM(D75:D120) -> 19491 | E121: =SUM(E75:E120) -> 19434 | F121: =SUM(F75:F120) -> 19434 | G121: =SUM(G75:G120) -> 0 | H121: =SUM(H75:H120) -> 57 | AB121: =SUM(AB75:AB120) -> 42 | AC121: 19434 | AD121: 0 | AE121: 1375 | AF121: 0 | AG121: 0 | AH121: 0 | AI121: 0 | AJ121: 0 | AK121: 0 | AM121: =SUM(AM75:AM120) -> 146338020
C122: TELEMEDICINA PROFESIONALES NO MÉDICOS
A123: 01014370 | B123: 0108400 | C123: Teleconsulta: Atención Integral de Nutricionista (incluye 3 sesiones) | D123: =IFERROR(VLOOKUP($A123,Filtro!$A$5:$AW$2943,2,FALSE),0) -> 0 | E123: =IFERROR(VLOOKUP($A123,Filtro!$A$5:$AW$2943,3,FALSE),0) -> 0 | F123: =IFERROR(VLOOKUP($A123,Filtro!$A$5:$AW$2943,4,FALSE),0) -> 0 | G123: =IFERROR(VLOOKUP($A123,Filtro!$A$5:$AW$2943,5,FALSE),0) -> 0 | H123: =IFERROR(VLOOKUP($A123,Filtro!$A$5:$AW$2943,6,FALSE),0) -> 0 | AB123: =IFERROR(VLOOKUP($A123,Filtro!$A$5:$AW$2943,26,FALSE),0) -> 0 | AC123: =IFERROR(VLOOKUP($A123,Filtro!$A$5:$AW$2943,27,FALSE),0) -> 0 | AD123: =IFERROR(VLOOKUP($A123,Filtro!$A$5:$AW$2943,28,FALSE),0) -> 0 | AE123: =IFERROR(VLOOKUP($A123,Filtro!$A$5:$AW$2943,29,FALSE),0) -> 0 | AF123: =IFERROR(VLOOKUP($A123,Filtro!$A$5:$AW$2943,30,FALSE),0) -> 0 | AG123: =IFERROR(VLOOKUP($A123,Filtro!$A$5:$AW$2943,31,FALSE),0) -> 0 | AH123: =IFERROR(VLOOKUP($A123,Filtro!$A$5:$AW$2943,32,FALSE),0) -> 0 | AI123: =IFERROR(VLOOKUP($A123,Filtro!$A$5:$AW$2943,33,FALSE),0) -> 0 | AJ123: =IFERROR(VLOOKUP($A123,Filtro!$A$5:$AW$2943,34,FALSE),0) -> 0 | AK123: =IFERROR(VLOOKUP($A123,Filtro!$A$5:$AW$2943,35,FALSE),0) -> 0 | AL123: 21,750 | AM123: =AL123*F123 -> 0
C124: TOTAL | D124: =SUM(D123) -> 0 | E124: =SUM(E123) -> 0 | F124: =SUM(F123) -> 0 | G124: =SUM(G123) -> 0 | H124: =SUM(H123) -> 0 | AB124: =SUM(AB123) -> 0 | AC124: 0 | AD124: 0 | AE124: 0 | AF124: 0 | AG124: 0 | AH124: 0 | AI124: 0 | AJ124: 0 | AK124: 0 | AM124: =SUM(AM123) -> 0
C125: TELEINTERCONSULTA (TELEMEDICINA)
A126: 01014371 | B126: 0109001 | C126: Teleinterconsulta médica | D126: =IFERROR(VLOOKUP($A126,Filtro!$A$5:$AW$2943,2,FALSE),0) -> 80 | E126: =IFERROR(VLOOKUP($A126,Filtro!$A$5:$AW$2943,3,FALSE),0) -> 80 | F126: =IFERROR(VLOOKUP($A126,Filtro!$A$5:$AW$2943,4,FALSE),0) -> 80 | G126: =IFERROR(VLOOKUP($A126,Filtro!$A$5:$AW$2943,5,FALSE),0) -> 0 | H126: =IFERROR(VLOOKUP($A126,Filtro!$A$5:$AW$2943,6,FALSE),0) -> 0 | AB126: =IFERROR(VLOOKUP($A126,Filtro!$A$5:$AW$2943,26,FALSE),0) -> 0 | AC126: =IFERROR(VLOOKUP($A126,Filtro!$A$5:$AW$2943,27,FALSE),0) -> 80 | AD126: =IFERROR(VLOOKUP($A126,Filtro!$A$5:$AW$2943,28,FALSE),0) -> 0 | AE126: =IFERROR(VLOOKUP($A126,Filtro!$A$5:$AW$2943,29,FALSE),0) -> 0 | AF126: =IFERROR(VLOOKUP($A126,Filtro!$A$5:$AW$2943,30,FALSE),0) -> 0 | AG126: =IFERROR(VLOOKUP($A126,Filtro!$A$5:$AW$2943,31,FALSE),0) -> 0 | AH126: =IFERROR(VLOOKUP($A126,Filtro!$A$5:$AW$2943,32,FALSE),0) -> 0 | AI126: =IFERROR(VLOOKUP($A126,Filtro!$A$5:$AW$2943,33,FALSE),0) -> 0 | AJ126: =IFERROR(VLOOKUP($A126,Filtro!$A$5:$AW$2943,34,FALSE),0) -> 0 | AK126: =IFERROR(VLOOKUP($A126,Filtro!$A$5:$AW$2943,35,FALSE),0) -> 0 | AL126: 7,530 | AM126: =AL126*F126 -> 602,400
A127: 01014372 | B127: 0109002 | C127: Teleinterconsulta no médica | D127: =IFERROR(VLOOKUP($A127,Filtro!$A$5:$AW$2943,2,FALSE),0) -> 0 | E127: =IFERROR(VLOOKUP($A127,Filtro!$A$5:$AW$2943,3,FALSE),0) -> 0 | F127: =IFERROR(VLOOKUP($A127,Filtro!$A$5:$AW$2943,4,FALSE),0) -> 0 | G127: =IFERROR(VLOOKUP($A127,Filtro!$A$5:$AW$2943,5,FALSE),0) -> 0 | H127: =IFERROR(VLOOKUP($A127,Filtro!$A$5:$AW$2943,6,FALSE),0) -> 0 | AB127: =IFERROR(VLOOKUP($A127,Filtro!$A$5:$AW$2943,26,FALSE),0) -> 0 | AC127: =IFERROR(VLOOKUP($A127,Filtro!$A$5:$AW$2943,27,FALSE),0) -> 0 | AD127: =IFERROR(VLOOKUP($A127,Filtro!$A$5:$AW$2943,28,FALSE),0) -> 0 | AE127: =IFERROR(VLOOKUP($A127,Filtro!$A$5:$AW$2943,29,FALSE),0) -> 0 | AF127: =IFERROR(VLOOKUP($A127,Filtro!$A$5:$AW$2943,30,FALSE),0) -> 0 | AG127: =IFERROR(VLOOKUP($A127,Filtro!$A$5:$AW$2943,31,FALSE),0) -> 0 | AH127: =IFERROR(VLOOKUP($A127,Filtro!$A$5:$AW$2943,32,FALSE),0) -> 0 | AI127: =IFERROR(VLOOKUP($A127,Filtro!$A$5:$AW$2943,33,FALSE),0) -> 0 | AJ127: =IFERROR(VLOOKUP($A127,Filtro!$A$5:$AW$2943,34,FALSE),0) -> 0 | AK127: =IFERROR(VLOOKUP($A127,Filtro!$A$5:$AW$2943,35,FALSE),0) -> 0 | AL127: 6,400 | AM127: =AL127*F127 -> 0
C128: TOTAL | D128: =SUM(D126:D127) -> 80 | E128: =SUM(E126:E127) -> 80 | F128: =SUM(F126:F127) -> 80 | G128: =SUM(G126:G127) -> 0 | H128: =SUM(H126:H127) -> 0 | AB128: =SUM(AB126:AB127) -> 0 | AC128: 80 | AD128: 0 | AE128: 0 | AF128: 0 | AG128: 0 | AH128: 0 | AI128: 0 | AJ128: 0 | AK128: 0 | AM128: =SUM(AM126:AM127) -> 602,400
C129: EDUCACION DE GRUPO
A130: 01010029 | B130: 0103001 | C130: Educación de grupo por médico | D130: =IFERROR(VLOOKUP($A130,Filtro!$A$5:$AW$2943,2,FALSE),0) -> 598 | E130: =IFERROR(VLOOKUP($A130,Filtro!$A$5:$AW$2943,3,FALSE),0) -> 598 | F130: =IFERROR(VLOOKUP($A130,Filtro!$A$5:$AW$2943,4,FALSE),0) -> 598 | G130: =IFERROR(VLOOKUP($A130,Filtro!$A$5:$AW$2943,5,FALSE),0) -> 0 | H130: =IFERROR(VLOOKUP($A130,Filtro!$A$5:$AW$2943,6,FALSE),0) -> 0 | AB130: =IFERROR(VLOOKUP($A130,Filtro!$A$5:$AW$2943,26,FALSE),0) -> 0 | AC130: =IFERROR(VLOOKUP($A130,Filtro!$A$5:$AW$2943,27,FALSE),0) -> 598 | AD130: =IFERROR(VLOOKUP($A130,Filtro!$A$5:$AW$2943,28,FALSE),0) -> 0 | AE130: =IFERROR(VLOOKUP($A130,Filtro!$A$5:$AW$2943,29,FALSE),0) -> 0 | AF130: =IFERROR(VLOOKUP($A130,Filtro!$A$5:$AW$2943,30,FALSE),0) -> 0 | AG130: =IFERROR(VLOOKUP($A130,Filtro!$A$5:$AW$2943,31,FALSE),0) -> 0 | AH130: =IFERROR(VLOOKUP($A130,Filtro!$A$5:$AW$2943,32,FALSE),0) -> 0 | AI130: =IFERROR(VLOOKUP($A130,Filtro!$A$5:$AW$2943,33,FALSE),0) -> 0 | AJ130: =IFERROR(VLOOKUP($A130,Filtro!$A$5:$AW$2943,34,FALSE),0) -> 0 | AK130: =IFERROR(VLOOKUP($A130,Filtro!$A$5:$AW$2943,35,FALSE),0) -> 0 | AL130: 4,640 | AM130: =AL130*F130 -> 2,774,720
A131: 01010031 | B131: 0103003 | C131: Educación de grupo por Trabajador/a Social | D131: =IFERROR(VLOOKUP($A131,Filtro!$A$5:$AW$2943,2,FALSE),0) -> 236 | E131: =IFERROR(VLOOKUP($A131,Filtro!$A$5:$AW$2943,3,FALSE),0) -> 236 | F131: =IFERROR(VLOOKUP($A131,Filtro!$A$5:$AW$2943,4,FALSE),0) -> 236 | G131: =IFERROR(VLOOKUP($A131,Filtro!$A$5:$AW$2943,5,FALSE),0) -> 0 | H131: =IFERROR(VLOOKUP($A131,Filtro!$A$5:$AW$2943,6,FALSE),0) -> 0 | AB131: =IFERROR(VLOOKUP($A131,Filtro!$A$5:$AW$2943,26,FALSE),0) -> 0 | AC131: =IFERROR(VLOOKUP($A131,Filtro!$A$5:$AW$2943,27,FALSE),0) -> 236 | AD131: =IFERROR(VLOOKUP($A131,Filtro!$A$5:$AW$2943,28,FALSE),0) -> 0 | AE131: =IFERROR(VLOOKUP($A131,Filtro!$A$5:$AW$2943,29,FALSE),0) -> 0 | AF131: =IFERROR(VLOOKUP($A131,Filtro!$A$5:$AW$2943,30,FALSE),0) -> 0 | AG131: =IFERROR(VLOOKUP($A131,Filtro!$A$5:$AW$2943,31,FALSE),0) -> 0 | AH131: =IFERROR(VLOOKUP($A131,Filtro!$A$5:$AW$2943,32,FALSE),0) -> 0 | AI131: =IFERROR(VLOOKUP($A131,Filtro!$A$5:$AW$2943,33,FALSE),0) -> 0 | AJ131: =IFERROR(VLOOKUP($A131,Filtro!$A$5:$AW$2943,34,FALSE),0) -> 0 | AK131: =IFERROR(VLOOKUP($A131,Filtro!$A$5:$AW$2943,35,FALSE),0) -> 0 | AL131: 2,550 | AM131: 601,800
A132: 01010032 | B132: 0103004 | C132: Educación de grupo por auxiliar de enfermería | D132: =IFERROR(VLOOKUP($A132,Filtro!$A$5:$AW$2943,2,FALSE),0) -> 0 | E132: =IFERROR(VLOOKUP($A132,Filtro!$A$5:$AW$2943,3,FALSE),0) -> 0 | F132: =IFERROR(VLOOKUP($A132,Filtro!$A$5:$AW$2943,4,FALSE),0) -> 0 | G132: =IFERROR(VLOOKUP($A132,Filtro!$A$5:$AW$2943,5,FALSE),0) -> 0 | H132: =IFERROR(VLOOKUP($A132,Filtro!$A$5:$AW$2943,6,FALSE),0) -> 0 | AB132: =IFERROR(VLOOKUP($A132,Filtro!$A$5:$AW$2943,26,FALSE),0) -> 0 | AC132: =IFERROR(VLOOKUP($A132,Filtro!$A$5:$AW$2943,27,FALSE),0) -> 0 | AD132: =IFERROR(VLOOKUP($A132,Filtro!$A$5:$AW$2943,28,FALSE),0) -> 0 | AE132: =IFERROR(VLOOKUP($A132,Filtro!$A$5:$AW$2943,29,FALSE),0) -> 0 | AF132: =IFERROR(VLOOKUP($A132,Filtro!$A$5:$AW$2943,30,FALSE),0) -> 0 | AG132: =IFERROR(VLOOKUP($A132,Filtro!$A$5:$AW$2943,31,FALSE),0) -> 0 | AH132: =IFERROR(VLOOKUP($A132,Filtro!$A$5:$AW$2943,32,FALSE),0) -> 0 | AI132: =IFERROR(VLOOKUP($A132,Filtro!$A$5:$AW$2943,33,FALSE),0) -> 0 | AJ132: =IFERROR(VLOOKUP($A132,Filtro!$A$5:$AW$2943,34,FALSE),0) -> 0 | AK132: =IFERROR(VLOOKUP($A132,Filtro!$A$5:$AW$2943,35,FALSE),0) -> 0 | AL132: 780 | AM132: 0
A133: 01014373 | B133: 0103005 | C133: Educación de grupo por enfermera | D133: =IFERROR(VLOOKUP($A133,Filtro!$A$5:$AW$2943,2,FALSE),0) -> 23676 | E133: =IFERROR(VLOOKUP($A133,Filtro!$A$5:$AW$2943,3,FALSE),0) -> 23676 | F133: =IFERROR(VLOOKUP($A133,Filtro!$A$5:$AW$2943,4,FALSE),0) -> 23463 | G133: =IFERROR(VLOOKUP($A133,Filtro!$A$5:$AW$2943,5,FALSE),0) -> 213 | H133: =IFERROR(VLOOKUP($A133,Filtro!$A$5:$AW$2943,6,FALSE),0) -> 0 | AB133: =IFERROR(VLOOKUP($A133,Filtro!$A$5:$AW$2943,26,FALSE),0) -> 22237 | AC133: =IFERROR(VLOOKUP($A133,Filtro!$A$5:$AW$2943,27,FALSE),0) -> 1439 | AD133: =IFERROR(VLOOKUP($A133,Filtro!$A$5:$AW$2943,28,FALSE),0) -> 0 | AE133: =IFERROR(VLOOKUP($A133,Filtro!$A$5:$AW$2943,29,FALSE),0) -> 0 | AF133: =IFERROR(VLOOKUP($A133,Filtro!$A$5:$AW$2943,30,FALSE),0) -> 0 | AG133: =IFERROR(VLOOKUP($A133,Filtro!$A$5:$AW$2943,31,FALSE),0) -> 0 | AH133: =IFERROR(VLOOKUP($A133,Filtro!$A$5:$AW$2943,32,FALSE),0) -> 0 | AI133: =IFERROR(VLOOKUP($A133,Filtro!$A$5:$AW$2943,33,FALSE),0) -> 0 | AJ133: =IFERROR(VLOOKUP($A133,Filtro!$A$5:$AW$2943,34,FALSE),0) -> 0 | AK133: =IFERROR(VLOOKUP($A133,Filtro!$A$5:$AW$2943,35,FALSE),0) -> 0 | AL133: 2,550 | AM133: 59,830,650
A134: 01014374 | B134: 0103006 | C134: Educación de grupo por matrona | D134: =IFERROR(VLOOKUP($A134,Filtro!$A$5:$AW$2943,2,FALSE),0) -> 2160 | E134: =IFERROR(VLOOKUP($A134,Filtro!$A$5:$AW$2943,3,FALSE),0) -> 2160 | F134: =IFERROR(VLOOKUP($A134,Filtro!$A$5:$AW$2943,4,FALSE),0) -> 2160 | G134: =IFERROR(VLOOKUP($A134,Filtro!$A$5:$AW$2943,5,FALSE),0) -> 0 | H134: =IFERROR(VLOOKUP($A134,Filtro!$A$5:$AW$2943,6,FALSE),0) -> 0 | AB134: =IFERROR(VLOOKUP($A134,Filtro!$A$5:$AW$2943,26,FALSE),0) -> 0 | AC134: =IFERROR(VLOOKUP($A134,Filtro!$A$5:$AW$2943,27,FALSE),0) -> 2160 | AD134: =IFERROR(VLOOKUP($A134,Filtro!$A$5:$AW$2943,28,FALSE),0) -> 0 | AE134: =IFERROR(VLOOKUP($A134,Filtro!$A$5:$AW$2943,29,FALSE),0) -> 0 | AF134: =IFERROR(VLOOKUP($A134,Filtro!$A$5:$AW$2943,30,FALSE),0) -> 0 | AG134: =IFERROR(VLOOKUP($A134,Filtro!$A$5:$AW$2943,31,FALSE),0) -> 0 | AH134: =IFERROR(VLOOKUP($A134,Filtro!$A$5:$AW$2943,32,FALSE),0) -> 0 | AI134: =IFERROR(VLOOKUP($A134,Filtro!$A$5:$AW$2943,33,FALSE),0) -> 0 | AJ134: =IFERROR(VLOOKUP($A134,Filtro!$A$5:$AW$2943,34,FALSE),0) -> 0 | AK134: =IFERROR(VLOOKUP($A134,Filtro!$A$5:$AW$2943,35,FALSE),0) -> 0 | AL134: 2,550 | AM134: 5,508,000
A135: 01014375 | B135: 0103007 | C135: Educación de grupo por nutricionista | D135: =IFERROR(VLOOKUP($A135,Filtro!$A$5:$AW$2943,2,FALSE),0) -> 89 | E135: =IFERROR(VLOOKUP($A135,Filtro!$A$5:$AW$2943,3,FALSE),0) -> 89 | F135: =IFERROR(VLOOKUP($A135,Filtro!$A$5:$AW$2943,4,FALSE),0) -> 89 | G135: =IFERROR(VLOOKUP($A135,Filtro!$A$5:$AW$2943,5,FALSE),0) -> 0 | H135: =IFERROR(VLOOKUP($A135,Filtro!$A$5:$AW$2943,6,FALSE),0) -> 0 | AB135: =IFERROR(VLOOKUP($A135,Filtro!$A$5:$AW$2943,26,FALSE),0) -> 0 | AC135: =IFERROR(VLOOKUP($A135,Filtro!$A$5:$AW$2943,27,FALSE),0) -> 89 | AD135: =IFERROR(VLOOKUP($A135,Filtro!$A$5:$AW$2943,28,FALSE),0) -> 0 | AE135: =IFERROR(VLOOKUP($A135,Filtro!$A$5:$AW$2943,29,FALSE),0) -> 0 | AF135: =IFERROR(VLOOKUP($A135,Filtro!$A$5:$AW$2943,30,FALSE),0) -> 0 | AG135: =IFERROR(VLOOKUP($A135,Filtro!$A$5:$AW$2943,31,FALSE),0) -> 0 | AH135: =IFERROR(VLOOKUP($A135,Filtro!$A$5:$AW$2943,32,FALSE),0) -> 0 | AI135: =IFERROR(VLOOKUP($A135,Filtro!$A$5:$AW$2943,33,FALSE),0) -> 0 | AJ135: =IFERROR(VLOOKUP($A135,Filtro!$A$5:$AW$2943,34,FALSE),0) -> 0 | AK135: =IFERROR(VLOOKUP($A135,Filtro!$A$5:$AW$2943,35,FALSE),0) -> 0 | AL135: 2,550 | AM135: 226,950
C136: TOTAL ARANCEL MAI | D136: =SUM(D130:D135) -> 26759 | E136: =SUM(E130:E135) -> 26759 | F136: =SUM(F130:F135) -> 26546 | G136: =SUM(G130:G135) -> 213 | H136: =SUM(H130:H135) -> 0 | AB136: =SUM(AB130:AB135) -> 22237 | AC136: 4522 | AD136: 0 | AE136: 0 | AF136: 0 | AG136: 0 | AH136: 0 | AI136: 0 | AJ136: 0 | AK136: 0 | AM136: =SUM(AM130:AM135) -> 68,942,120
A137: 01010033 | B137: 01010033 | C137: Educación de grupo por otro integrante del equipo de salud | D137: =IFERROR(VLOOKUP($A137,Filtro!$A$5:$AW$2943,2,FALSE),0) -> 1450 | E137: =IFERROR(VLOOKUP($A137,Filtro!$A$5:$AW$2943,3,FALSE),0) -> 1450 | F137: =IFERROR(VLOOKUP($A137,Filtro!$A$5:$AW$2943,4,FALSE),0) -> 1450 | G137: =IFERROR(VLOOKUP($A137,Filtro!$A$5:$AW$2943,5,FALSE),0) -> 0 | H137: =IFERROR(VLOOKUP($A137,Filtro!$A$5:$AW$2943,6,FALSE),0) -> 0 | AB137: =IFERROR(VLOOKUP($A137,Filtro!$A$5:$AW$2943,26,FALSE),0) -> 338 | AC137: =IFERROR(VLOOKUP($A137,Filtro!$A$5:$AW$2943,27,FALSE),0) -> 1083 | AD137: =IFERROR(VLOOKUP($A137,Filtro!$A$5:$AW$2943,28,FALSE),0) -> 0 | AE137: =IFERROR(VLOOKUP($A137,Filtro!$A$5:$AW$2943,29,FALSE),0) -> 0 | AF137: =IFERROR(VLOOKUP($A137,Filtro!$A$5:$AW$2943,30,FALSE),0) -> 0 | AG137: =IFERROR(VLOOKUP($A137,Filtro!$A$5:$AW$2943,31,FALSE),0) -> 0 | AH137: =IFERROR(VLOOKUP($A137,Filtro!$A$5:$AW$2943,32,FALSE),0) -> 0 | AI137: =IFERROR(VLOOKUP($A137,Filtro!$A$5:$AW$2943,33,FALSE),0) -> 0 | AJ137: =IFERROR(VLOOKUP($A137,Filtro!$A$5:$AW$2943,34,FALSE),0) -> 0 | AK137: =IFERROR(VLOOKUP($A137,Filtro!$A$5:$AW$2943,35,FALSE),0) -> 0 | AL137: 0 | AM137: 0
C138: TOTAL ARANCEL MLE Y NO ARANCELADO | D138: =+D137 -> 1450 | E138: =+E137 -> 1450 | F138: =+F137 -> 1450 | G138: =+G137 -> 0 | H138: =+H137 -> 0 | AB138: =+AB137 -> 338 | AC138: 1083 | AD138: 0 | AE138: 0 | AF138: 0 | AG138: 0 | AH138: 0 | AI138: 0 | AJ138: 0 | AK138: 0 | AM138: 0
C139: TOTAL PRODUCCION | D139: =+D138+D136 -> 28209 | E139: =+E138+E136 -> 28209 | F139: =+F138+F136 -> 27996 | G139: =+G138+G136 -> 213 | H139: =+H138+H136 -> 0 | AB139: =+AB138+AB136 -> 22575 | AC139: 5605 | AD139: 0 | AE139: 0 | AF139: 0 | AG139: 0 | AH139: 0 | AI139: 0 | AJ139: 0 | AK139: 0 | AM139: =SUM(AM136+AM138) -> 68,942,120
C140: VISITAS DOMICILIARIAS
A141: 01010035 | B141: 0104002 | C141: Visita a domicilio por asistente social | D141: =IFERROR(VLOOKUP($A141,Filtro!$A$5:$AW$2943,2,FALSE),0) -> 2261 | E141: =IFERROR(VLOOKUP($A141,Filtro!$A$5:$AW$2943,3,FALSE),0) -> 2260 | F141: =IFERROR(VLOOKUP($A141,Filtro!$A$5:$AW$2943,4,FALSE),0) -> 2260 | G141: =IFERROR(VLOOKUP($A141,Filtro!$A$5:$AW$2943,5,FALSE),0) -> 0 | H141: =IFERROR(VLOOKUP($A141,Filtro!$A$5:$AW$2943,6,FALSE),0) -> 1 | AB141: =IFERROR(VLOOKUP($A141,Filtro!$A$5:$AW$2943,26,FALSE),0) -> 2 | AC141: =IFERROR(VLOOKUP($A141,Filtro!$A$5:$AW$2943,27,FALSE),0) -> 2245 | AD141: =IFERROR(VLOOKUP($A141,Filtro!$A$5:$AW$2943,28,FALSE),0) -> 0 | AE141: =IFERROR(VLOOKUP($A141,Filtro!$A$5:$AW$2943,29,FALSE),0) -> 0 | AF141: =IFERROR(VLOOKUP($A141,Filtro!$A$5:$AW$2943,30,FALSE),0) -> 0 | AG141: =IFERROR(VLOOKUP($A141,Filtro!$A$5:$AW$2943,31,FALSE),0) -> 0 | AH141: =IFERROR(VLOOKUP($A141,Filtro!$A$5:$AW$2943,32,FALSE),0) -> 0 | AI141: =IFERROR(VLOOKUP($A141,Filtro!$A$5:$AW$2943,33,FALSE),0) -> 0 | AJ141: =IFERROR(VLOOKUP($A141,Filtro!$A$5:$AW$2943,34,FALSE),0) -> 0 | AK141: =IFERROR(VLOOKUP($A141,Filtro!$A$5:$AW$2943,35,FALSE),0) -> 0 | AL141: 2,210 | AM141: =AL141*F141 -> 4,994,600
A142: 01010036 | B142: 0104003 | C142: Visita a domicilio por auxiliar de enfermería | D142: =IFERROR(VLOOKUP($A142,Filtro!$A$5:$AW$2943,2,FALSE),0) -> 10083 | E142: =IFERROR(VLOOKUP($A142,Filtro!$A$5:$AW$2943,3,FALSE),0) -> 10083 | F142: =IFERROR(VLOOKUP($A142,Filtro!$A$5:$AW$2943,4,FALSE),0) -> 10083 | G142: =IFERROR(VLOOKUP($A142,Filtro!$A$5:$AW$2943,5,FALSE),0) -> 0 | H142: =IFERROR(VLOOKUP($A142,Filtro!$A$5:$AW$2943,6,FALSE),0) -> 0 | AB142: =IFERROR(VLOOKUP($A142,Filtro!$A$5:$AW$2943,26,FALSE),0) -> 9371 | AC142: =IFERROR(VLOOKUP($A142,Filtro!$A$5:$AW$2943,27,FALSE),0) -> 712 | AD142: =IFERROR(VLOOKUP($A142,Filtro!$A$5:$AW$2943,28,FALSE),0) -> 0 | AE142: =IFERROR(VLOOKUP($A142,Filtro!$A$5:$AW$2943,29,FALSE),0) -> 0 | AF142: =IFERROR(VLOOKUP($A142,Filtro!$A$5:$AW$2943,30,FALSE),0) -> 0 | AG142: =IFERROR(VLOOKUP($A142,Filtro!$A$5:$AW$2943,31,FALSE),0) -> 0 | AH142: =IFERROR(VLOOKUP($A142,Filtro!$A$5:$AW$2943,32,FALSE),0) -> 0 | AI142: =IFERROR(VLOOKUP($A142,Filtro!$A$5:$AW$2943,33,FALSE),0) -> 0 | AJ142: =IFERROR(VLOOKUP($A142,Filtro!$A$5:$AW$2943,34,FALSE),0) -> 0 | AK142: =IFERROR(VLOOKUP($A142,Filtro!$A$5:$AW$2943,35,FALSE),0) -> 0 | AL142: 1,270 | AM142: =AL142*F142 -> 12,805,410
A143: 01014376 | B143: 0104004 | C143: Visita a domicilio por enfermera | D143: =IFERROR(VLOOKUP($A143,Filtro!$A$5:$AW$2943,2,FALSE),0) -> 23804 | E143: =IFERROR(VLOOKUP($A143,Filtro!$A$5:$AW$2943,3,FALSE),0) -> 23702 | F143: =IFERROR(VLOOKUP($A143,Filtro!$A$5:$AW$2943,4,FALSE),0) -> 23700 | G143: =IFERROR(VLOOKUP($A143,Filtro!$A$5:$AW$2943,5,FALSE),0) -> 2 | H143: =IFERROR(VLOOKUP($A143,Filtro!$A$5:$AW$2943,6,FALSE),0) -> 102 | AB143: =IFERROR(VLOOKUP($A143,Filtro!$A$5:$AW$2943,26,FALSE),0) -> 15694 | AC143: =IFERROR(VLOOKUP($A143,Filtro!$A$5:$AW$2943,27,FALSE),0) -> 7778 | AD143: =IFERROR(VLOOKUP($A143,Filtro!$A$5:$AW$2943,28,FALSE),0) -> 206 | AE143: =IFERROR(VLOOKUP($A143,Filtro!$A$5:$AW$2943,29,FALSE),0) -> 0 | AF143: =IFERROR(VLOOKUP($A143,Filtro!$A$5:$AW$2943,30,FALSE),0) -> 0 | AG143: =IFERROR(VLOOKUP($A143,Filtro!$A$5:$AW$2943,31,FALSE),0) -> 0 | AH143: =IFERROR(VLOOKUP($A143,Filtro!$A$5:$AW$2943,32,FALSE),0) -> 0 | AI143: =IFERROR(VLOOKUP($A143,Filtro!$A$5:$AW$2943,33,FALSE),0) -> 0 | AJ143: =IFERROR(VLOOKUP($A143,Filtro!$A$5:$AW$2943,34,FALSE),0) -> 0 | AK143: =IFERROR(VLOOKUP($A143,Filtro!$A$5:$AW$2943,35,FALSE),0) -> 0 | AL143: 2,210 | AM143: =AL143*F143 -> 52,377,000
A144: 01014377 | B144: 0104005 | C144: Visita a domicilio por matrona | D144: =IFERROR(VLOOKUP($A144,Filtro!$A$5:$AW$2943,2,FALSE),0) -> 131 | E144: =IFERROR(VLOOKUP($A144,Filtro!$A$5:$AW$2943,3,FALSE),0) -> 131 | F144: =IFERROR(VLOOKUP($A144,Filtro!$A$5:$AW$2943,4,FALSE),0) -> 131 | G144: =IFERROR(VLOOKUP($A144,Filtro!$A$5:$AW$2943,5,FALSE),0) -> 0 | H144: =IFERROR(VLOOKUP($A144,Filtro!$A$5:$AW$2943,6,FALSE),0) -> 0 | AB144: =IFERROR(VLOOKUP($A144,Filtro!$A$5:$AW$2943,26,FALSE),0) -> 0 | AC144: =IFERROR(VLOOKUP($A144,Filtro!$A$5:$AW$2943,27,FALSE),0) -> 131 | AD144: =IFERROR(VLOOKUP($A144,Filtro!$A$5:$AW$2943,28,FALSE),0) -> 0 | AE144: =IFERROR(VLOOKUP($A144,Filtro!$A$5:$AW$2943,29,FALSE),0) -> 0 | AF144: =IFERROR(VLOOKUP($A144,Filtro!$A$5:$AW$2943,30,FALSE),0) -> 0 | AG144: =IFERROR(VLOOKUP($A144,Filtro!$A$5:$AW$2943,31,FALSE),0) -> 0 | AH144: =IFERROR(VLOOKUP($A144,Filtro!$A$5:$AW$2943,32,FALSE),0) -> 0 | AI144: =IFERROR(VLOOKUP($A144,Filtro!$A$5:$AW$2943,33,FALSE),0) -> 0 | AJ144: =IFERROR(VLOOKUP($A144,Filtro!$A$5:$AW$2943,34,FALSE),0) -> 0 | AK144: =IFERROR(VLOOKUP($A144,Filtro!$A$5:$AW$2943,35,FALSE),0) -> 0 | AL144: 2,210 | AM144: =AL144*F144 -> 289,510
A145: 01014378 | B145: 0104006 | C145: Visita a domicilio por nutricionista | D145: =IFERROR(VLOOKUP($A145,Filtro!$A$5:$AW$2943,2,FALSE),0) -> 938 | E145: =IFERROR(VLOOKUP($A145,Filtro!$A$5:$AW$2943,3,FALSE),0) -> 938 | F145: =IFERROR(VLOOKUP($A145,Filtro!$A$5:$AW$2943,4,FALSE),0) -> 938 | G145: =IFERROR(VLOOKUP($A145,Filtro!$A$5:$AW$2943,5,FALSE),0) -> 0 | H145: =IFERROR(VLOOKUP($A145,Filtro!$A$5:$AW$2943,6,FALSE),0) -> 0 | AB145: =IFERROR(VLOOKUP($A145,Filtro!$A$5:$AW$2943,26,FALSE),0) -> 415 | AC145: =IFERROR(VLOOKUP($A145,Filtro!$A$5:$AW$2943,27,FALSE),0) -> 469 | AD145: =IFERROR(VLOOKUP($A145,Filtro!$A$5:$AW$2943,28,FALSE),0) -> 0 | AE145: =IFERROR(VLOOKUP($A145,Filtro!$A$5:$AW$2943,29,FALSE),0) -> 0 | AF145: =IFERROR(VLOOKUP($A145,Filtro!$A$5:$AW$2943,30,FALSE),0) -> 0 | AG145: =IFERROR(VLOOKUP($A145,Filtro!$A$5:$AW$2943,31,FALSE),0) -> 0 | AH145: =IFERROR(VLOOKUP($A145,Filtro!$A$5:$AW$2943,32,FALSE),0) -> 0 | AI145: =IFERROR(VLOOKUP($A145,Filtro!$A$5:$AW$2943,33,FALSE),0) -> 0 | AJ145: =IFERROR(VLOOKUP($A145,Filtro!$A$5:$AW$2943,34,FALSE),0) -> 0 | AK145: =IFERROR(VLOOKUP($A145,Filtro!$A$5:$AW$2943,35,FALSE),0) -> 0 | AL145: 2,210 | AM145: =AL145*F145 -> 2,072,980
C146: TOTAL ARANCEL MAI | D146: =SUM(D141:D145) -> 37217 | E146: =SUM(E141:E145) -> 37114 | F146: =SUM(F141:F145) -> 37112 | G146: =SUM(G141:G145) -> 2 | H146: =SUM(H141:H145) -> 103 | AB146: =SUM(AB141:AB145) -> 25482 | AC146: 11335 | AD146: 206 | AE146: 0 | AF146: 0 | AG146: 0 | AH146: 0 | AI146: 0 | AJ146: 0 | AK146: 0 | AM146: =SUM(AM141:AM145) -> 72,539,500
A147: 01010037 | B147: 01010037 | C147: Visita a domicilio por otro integrante del equipo de salud | D147: =IFERROR(VLOOKUP($A147,Filtro!$A$5:$AW$2943,2,FALSE),0) -> 18688 | E147: =IFERROR(VLOOKUP($A147,Filtro!$A$5:$AW$2943,3,FALSE),0) -> 18601 | F147: =IFERROR(VLOOKUP($A147,Filtro!$A$5:$AW$2943,4,FALSE),0) -> 18601 | G147: =IFERROR(VLOOKUP($A147,Filtro!$A$5:$AW$2943,5,FALSE),0) -> 0 | H147: =IFERROR(VLOOKUP($A147,Filtro!$A$5:$AW$2943,6,FALSE),0) -> 87 | AB147: =IFERROR(VLOOKUP($A147,Filtro!$A$5:$AW$2943,26,FALSE),0) -> 13522 | AC147: =IFERROR(VLOOKUP($A147,Filtro!$A$5:$AW$2943,27,FALSE),0) -> 5132 | AD147: =IFERROR(VLOOKUP($A147,Filtro!$A$5:$AW$2943,28,FALSE),0) -> 0 | AE147: =IFERROR(VLOOKUP($A147,Filtro!$A$5:$AW$2943,29,FALSE),0) -> 0 | AF147: =IFERROR(VLOOKUP($A147,Filtro!$A$5:$AW$2943,30,FALSE),0) -> 0 | AG147: =IFERROR(VLOOKUP($A147,Filtro!$A$5:$AW$2943,31,FALSE),0) -> 0 | AH147: =IFERROR(VLOOKUP($A147,Filtro!$A$5:$AW$2943,32,FALSE),0) -> 0 | AI147: =IFERROR(VLOOKUP($A147,Filtro!$A$5:$AW$2943,33,FALSE),0) -> 0 | AJ147: =IFERROR(VLOOKUP($A147,Filtro!$A$5:$AW$2943,34,FALSE),0) -> 0 | AK147: =IFERROR(VLOOKUP($A147,Filtro!$A$5:$AW$2943,35,FALSE),0) -> 0 | AL147: 0 | AM147: 0
A148: 01010038 | B148: 01010038 | C148: Visita domiciaria por otro profesional y técnicos paramédico | D148: =IFERROR(VLOOKUP($A148,Filtro!$A$5:$AW$2943,2,FALSE),0) -> 7496 | E148: =IFERROR(VLOOKUP($A148,Filtro!$A$5:$AW$2943,3,FALSE),0) -> 7496 | F148: =IFERROR(VLOOKUP($A148,Filtro!$A$5:$AW$2943,4,FALSE),0) -> 7496 | G148: =IFERROR(VLOOKUP($A148,Filtro!$A$5:$AW$2943,5,FALSE),0) -> 0 | H148: =IFERROR(VLOOKUP($A148,Filtro!$A$5:$AW$2943,6,FALSE),0) -> 0 | AB148: =IFERROR(VLOOKUP($A148,Filtro!$A$5:$AW$2943,26,FALSE),0) -> 6555 | AC148: =IFERROR(VLOOKUP($A148,Filtro!$A$5:$AW$2943,27,FALSE),0) -> 850 | AD148: =IFERROR(VLOOKUP($A148,Filtro!$A$5:$AW$2943,28,FALSE),0) -> 58 | AE148: =IFERROR(VLOOKUP($A148,Filtro!$A$5:$AW$2943,29,FALSE),0) -> 0 | AF148: =IFERROR(VLOOKUP($A148,Filtro!$A$5:$AW$2943,30,FALSE),0) -> 0 | AG148: =IFERROR(VLOOKUP($A148,Filtro!$A$5:$AW$2943,31,FALSE),0) -> 0 | AH148: =IFERROR(VLOOKUP($A148,Filtro!$A$5:$AW$2943,32,FALSE),0) -> 0 | AI148: =IFERROR(VLOOKUP($A148,Filtro!$A$5:$AW$2943,33,FALSE),0) -> 0 | AJ148: =IFERROR(VLOOKUP($A148,Filtro!$A$5:$AW$2943,34,FALSE),0) -> 0 | AK148: =IFERROR(VLOOKUP($A148,Filtro!$A$5:$AW$2943,35,FALSE),0) -> 0 | AL148: 0 | AM148: 0
C149: TOTAL ARANCEL MLE Y NO ARANCELADO | D149: =SUM(D147:D148) -> 26184 | E149: =SUM(E147:E148) -> 26097 | F149: =SUM(F147:F148) -> 26097 | G149: =SUM(G147:G148) -> 0 | H149: =SUM(H147:H148) -> 87 | AB149: =SUM(AB147:AB148) -> 20077 | AC149: 5982 | AD149: 58 | AE149: 0 | AF149: 0 | AG149: 0 | AH149: 0 | AI149: 0 | AJ149: 0 | AK149: 0
C150: TOTAL | D150: =SUM(D146+D149) -> 63401 | E150: =SUM(E146+E149) -> 63211 | F150: =SUM(F146+F149) -> 63209 | G150: =SUM(G146+G149) -> 2 | H150: =SUM(H146+H149) -> 190 | AB150: =SUM(AB146+AB149) -> 45559 | AC150: 17317 | AD150: 264 | AE150: 0 | AF150: 0 | AG150: 0 | AH150: 0 | AI150: 0 | AJ150: 0 | AK150: 0 | AM150: =SUM(AM146+AM149) -> 72,539,500
C151: MISCELANEOS
A152: 01010042 | B152: 0106002 | C152: Curación simple ambulatoria | D152: =IFERROR(VLOOKUP($A152,Filtro!$A$5:$AW$2943,2,FALSE),0) -> 33373 | E152: =IFERROR(VLOOKUP($A152,Filtro!$A$5:$AW$2943,3,FALSE),0) -> 33356 | F152: =IFERROR(VLOOKUP($A152,Filtro!$A$5:$AW$2943,4,FALSE),0) -> 33354 | G152: =IFERROR(VLOOKUP($A152,Filtro!$A$5:$AW$2943,5,FALSE),0) -> 2 | H152: =IFERROR(VLOOKUP($A152,Filtro!$A$5:$AW$2943,6,FALSE),0) -> 17 | AB152: =IFERROR(VLOOKUP($A152,Filtro!$A$5:$AW$2943,26,FALSE),0) -> 3745 | AC152: =IFERROR(VLOOKUP($A152,Filtro!$A$5:$AW$2943,27,FALSE),0) -> 26198 | AD152: =IFERROR(VLOOKUP($A152,Filtro!$A$5:$AW$2943,28,FALSE),0) -> 3456 | AE152: =IFERROR(VLOOKUP($A152,Filtro!$A$5:$AW$2943,29,FALSE),0) -> 0 | AF152: =IFERROR(VLOOKUP($A152,Filtro!$A$5:$AW$2943,30,FALSE),0) -> 0 | AG152: =IFERROR(VLOOKUP($A152,Filtro!$A$5:$AW$2943,31,FALSE),0) -> 0 | AH152: =IFERROR(VLOOKUP($A152,Filtro!$A$5:$AW$2943,32,FALSE),0) -> 0 | AI152: =IFERROR(VLOOKUP($A152,Filtro!$A$5:$AW$2943,33,FALSE),0) -> 0 | AJ152: =IFERROR(VLOOKUP($A152,Filtro!$A$5:$AW$2943,34,FALSE),0) -> 0 | AK152: =IFERROR(VLOOKUP($A152,Filtro!$A$5:$AW$2943,35,FALSE),0) -> 0 | AL152: 850 | AM152: =AL152*F152 -> 28,350,900
A153: 01014379 | B153: 0106007 | C153: Oxigenoterapia Hiperbárica (1 sesión) | D153: =IFERROR(VLOOKUP($A153,Filtro!$A$5:$AW$2943,2,FALSE),0) -> 8 | E153: =IFERROR(VLOOKUP($A153,Filtro!$A$5:$AW$2943,3,FALSE),0) -> 8 | F153: =IFERROR(VLOOKUP($A153,Filtro!$A$5:$AW$2943,4,FALSE),0) -> 8 | G153: =IFERROR(VLOOKUP($A153,Filtro!$A$5:$AW$2943,5,FALSE),0) -> 0 | H153: =IFERROR(VLOOKUP($A153,Filtro!$A$5:$AW$2943,6,FALSE),0) -> 0 | AB153: =IFERROR(VLOOKUP($A153,Filtro!$A$5:$AW$2943,26,FALSE),0) -> 0 | AC153: =IFERROR(VLOOKUP($A153,Filtro!$A$5:$AW$2943,27,FALSE),0) -> 8 | AD153: =IFERROR(VLOOKUP($A153,Filtro!$A$5:$AW$2943,28,FALSE),0) -> 0 | AE153: =IFERROR(VLOOKUP($A153,Filtro!$A$5:$AW$2943,29,FALSE),0) -> 0 | AF153: =IFERROR(VLOOKUP($A153,Filtro!$A$5:$AW$2943,30,FALSE),0) -> 0 | AG153: =IFERROR(VLOOKUP($A153,Filtro!$A$5:$AW$2943,31,FALSE),0) -> 0 | AH153: =IFERROR(VLOOKUP($A153,Filtro!$A$5:$AW$2943,32,FALSE),0) -> 0 | AI153: =IFERROR(VLOOKUP($A153,Filtro!$A$5:$AW$2943,33,FALSE),0) -> 0 | AJ153: =IFERROR(VLOOKUP($A153,Filtro!$A$5:$AW$2943,34,FALSE),0) -> 0 | AK153: =IFERROR(VLOOKUP($A153,Filtro!$A$5:$AW$2943,35,FALSE),0) -> 0 | AL153: 26,200 | AM153: =AL153*F153 -> 209,600
A154: 01014705 | B154: 0106101 | C154: Atención Integral de Acupuntura | D154: =IFERROR(VLOOKUP($A154,Filtro!$A$5:$AW$2943,2,FALSE),0) -> 902 | E154: =IFERROR(VLOOKUP($A154,Filtro!$A$5:$AW$2943,3,FALSE),0) -> 902 | F154: =IFERROR(VLOOKUP($A154,Filtro!$A$5:$AW$2943,4,FALSE),0) -> 902 | G154: =IFERROR(VLOOKUP($A154,Filtro!$A$5:$AW$2943,5,FALSE),0) -> 0 | H154: =IFERROR(VLOOKUP($A154,Filtro!$A$5:$AW$2943,6,FALSE),0) -> 0 | AB154: =IFERROR(VLOOKUP($A154,Filtro!$A$5:$AW$2943,26,FALSE),0) -> 0 | AC154: =IFERROR(VLOOKUP($A154,Filtro!$A$5:$AW$2943,27,FALSE),0) -> 902 | AD154: =IFERROR(VLOOKUP($A154,Filtro!$A$5:$AW$2943,28,FALSE),0) -> 0 | AE154: =IFERROR(VLOOKUP($A154,Filtro!$A$5:$AW$2943,29,FALSE),0) -> 0 | AF154: =IFERROR(VLOOKUP($A154,Filtro!$A$5:$AW$2943,30,FALSE),0) -> 0 | AG154: =IFERROR(VLOOKUP($A154,Filtro!$A$5:$AW$2943,31,FALSE),0) -> 0 | AH154: =IFERROR(VLOOKUP($A154,Filtro!$A$5:$AW$2943,32,FALSE),0) -> 0 | AI154: =IFERROR(VLOOKUP($A154,Filtro!$A$5:$AW$2943,33,FALSE),0) -> 0 | AJ154: =IFERROR(VLOOKUP($A154,Filtro!$A$5:$AW$2943,34,FALSE),0) -> 0 | AK154: =IFERROR(VLOOKUP($A154,Filtro!$A$5:$AW$2943,35,FALSE),0) -> 113 | AL154: 6,110 | AM154: =AL154*F154 -> 5,511,220
C155: TOTAL ARANCEL MAI | D155: =SUM(D152:D154) -> 34283 | E155: =SUM(E152:E154) -> 34266 | F155: =SUM(F152:F154) -> 34264 | G155: =SUM(G152:G154) -> 2 | H155: =SUM(H152:H154) -> 17 | AB155: =SUM(AB152:AB154) -> 3745 | AC155: 27108 | AD155: 3456 | AE155: 0 | AF155: 0 | AG155: 0 | AH155: 0 | AI155: 0 | AJ155: 0 | AK155: 113 | AM155: =SUM(AM152:AM154) -> 34071720
A156: 01014706 | B156: 01010043 | C156: Autocontrol pacientes Diabetico insulino dependiente (D.I.D. mensual) | D156: =IFERROR(VLOOKUP($A156,Filtro!$A$5:$AW$2943,2,FALSE),0) -> 7548 | E156: =IFERROR(VLOOKUP($A156,Filtro!$A$5:$AW$2943,3,FALSE),0) -> 7548 | F156: =IFERROR(VLOOKUP($A156,Filtro!$A$5:$AW$2943,4,FALSE),0) -> 7548 | G156: =IFERROR(VLOOKUP($A156,Filtro!$A$5:$AW$2943,5,FALSE),0) -> 0 | H156: =IFERROR(VLOOKUP($A156,Filtro!$A$5:$AW$2943,6,FALSE),0) -> 0 | I156: 0 | J156: 0 | K156: 0 | L156: 0 | M156: 0 | N156: 0 | O156: 0 | P156: 0 | Q156: 0 | R156: 0 | S156: 0 | T156: 0 | U156: 0 | V156: 0 | W156: 0 | X156: 0 | Y156: 0 | Z156: 0 | AA156: 0 | AB156: =IFERROR(VLOOKUP($A156,Filtro!$A$5:$AW$2943,26,FALSE),0) -> 0 | AC156: =IFERROR(VLOOKUP($A156,Filtro!$A$5:$AW$2943,27,FALSE),0) -> 7548 | AD156: =IFERROR(VLOOKUP($A156,Filtro!$A$5:$AW$2943,28,FALSE),0) -> 0 | AE156: =IFERROR(VLOOKUP($A156,Filtro!$A$5:$AW$2943,29,FALSE),0) -> 0 | AF156: =IFERROR(VLOOKUP($A156,Filtro!$A$5:$AW$2943,30,FALSE),0) -> 0 | AG156: =IFERROR(VLOOKUP($A156,Filtro!$A$5:$AW$2943,31,FALSE),0) -> 0 | AH156: =IFERROR(VLOOKUP($A156,Filtro!$A$5:$AW$2943,32,FALSE),0) -> 0 | AI156: =IFERROR(VLOOKUP($A156,Filtro!$A$5:$AW$2943,33,FALSE),0) -> 0 | AJ156: =IFERROR(VLOOKUP($A156,Filtro!$A$5:$AW$2943,34,FALSE),0) -> 0 | AK156: =IFERROR(VLOOKUP($A156,Filtro!$A$5:$AW$2943,35,FALSE),0) -> 0 | AL156: 0 | AM156: 0
A157: 01014707 | B157: 01010044 | C157: Oxigenoterapia domiciliaria (pacientes oxígeno dependientes) | D157: =IFERROR(VLOOKUP($A157,Filtro!$A$5:$AW$2943,2,FALSE),0) -> 213 | E157: =IFERROR(VLOOKUP($A157,Filtro!$A$5:$AW$2943,3,FALSE),0) -> 213 | F157: =IFERROR(VLOOKUP($A157,Filtro!$A$5:$AW$2943,4,FALSE),0) -> 213 | G157: =IFERROR(VLOOKUP($A157,Filtro!$A$5:$AW$2943,5,FALSE),0) -> 0 | H157: =IFERROR(VLOOKUP($A157,Filtro!$A$5:$AW$2943,6,FALSE),0) -> 0 | I157: 0 | J157: 0 | K157: 0 | L157: 0 | M157: 0 | N157: 0 | O157: 0 | P157: 0 | Q157: 0 | R157: 0 | S157: 0 | T157: 0 | U157: 0 | V157: 0 | W157: 0 | X157: 0 | Y157: 0 | Z157: 0 | AA157: 0 | AB157: =IFERROR(VLOOKUP($A157,Filtro!$A$5:$AW$2943,26,FALSE),0) -> 0 | AC157: =IFERROR(VLOOKUP($A157,Filtro!$A$5:$AW$2943,27,FALSE),0) -> 213 | AD157: =IFERROR(VLOOKUP($A157,Filtro!$A$5:$AW$2943,28,FALSE),0) -> 0 | AE157: =IFERROR(VLOOKUP($A157,Filtro!$A$5:$AW$2943,29,FALSE),0) -> 0 | AF157: =IFERROR(VLOOKUP($A157,Filtro!$A$5:$AW$2943,30,FALSE),0) -> 0 | AG157: =IFERROR(VLOOKUP($A157,Filtro!$A$5:$AW$2943,31,FALSE),0) -> 0 | AH157: =IFERROR(VLOOKUP($A157,Filtro!$A$5:$AW$2943,32,FALSE),0) -> 0 | AI157: =IFERROR(VLOOKUP($A157,Filtro!$A$5:$AW$2943,33,FALSE),0) -> 0 | AJ157: =IFERROR(VLOOKUP($A157,Filtro!$A$5:$AW$2943,34,FALSE),0) -> 0 | AK157: =IFERROR(VLOOKUP($A157,Filtro!$A$5:$AW$2943,35,FALSE),0) -> 0 | AL157: 0 | AM157: 0
A158: 01010047 | B158: 01010047 | C158: Procedimientos de podología | D158: =IFERROR(VLOOKUP($A158,Filtro!$A$5:$AW$2943,2,FALSE),0) -> 2281 | E158: =IFERROR(VLOOKUP($A158,Filtro!$A$5:$AW$2943,3,FALSE),0) -> 2281 | F158: =IFERROR(VLOOKUP($A158,Filtro!$A$5:$AW$2943,4,FALSE),0) -> 2281 | G158: =IFERROR(VLOOKUP($A158,Filtro!$A$5:$AW$2943,5,FALSE),0) -> 0 | H158: =IFERROR(VLOOKUP($A158,Filtro!$A$5:$AW$2943,6,FALSE),0) -> 0 | I158: 0 | J158: 0 | K158: 0 | L158: 0 | M158: 0 | N158: 0 | O158: 0 | P158: 0 | Q158: 0 | R158: 0 | S158: 0 | T158: 0 | U158: 0 | V158: 0 | W158: 0 | X158: 0 | Y158: 0 | Z158: 0 | AA158: 0 | AB158: =IFERROR(VLOOKUP($A158,Filtro!$A$5:$AW$2943,26,FALSE),0) -> 100 | AC158: =IFERROR(VLOOKUP($A158,Filtro!$A$5:$AW$2943,27,FALSE),0) -> 2164 | AD158: =IFERROR(VLOOKUP($A158,Filtro!$A$5:$AW$2943,28,FALSE),0) -> 0 | AE158: =IFERROR(VLOOKUP($A158,Filtro!$A$5:$AW$2943,29,FALSE),0) -> 0 | AF158: =IFERROR(VLOOKUP($A158,Filtro!$A$5:$AW$2943,30,FALSE),0) -> 0 | AG158: =IFERROR(VLOOKUP($A158,Filtro!$A$5:$AW$2943,31,FALSE),0) -> 0 | AH158: =IFERROR(VLOOKUP($A158,Filtro!$A$5:$AW$2943,32,FALSE),0) -> 0 | AI158: =IFERROR(VLOOKUP($A158,Filtro!$A$5:$AW$2943,33,FALSE),0) -> 0 | AJ158: =IFERROR(VLOOKUP($A158,Filtro!$A$5:$AW$2943,34,FALSE),0) -> 75 | AK158: =IFERROR(VLOOKUP($A158,Filtro!$A$5:$AW$2943,35,FALSE),0) -> 0 | AL158: 0 | AM158: 0
C159: TOTAL ARANCEL MLE Y NO ARANCELADO | D159: =SUM(D156:D158) -> 10042 | E159: =SUM(E156:E158) -> 10042 | F159: =SUM(F156:F158) -> 10042 | G159: =SUM(G156:G158) -> 0 | H159: =SUM(H156:H158) -> 0 | AB159: =SUM(AB156:AB158) -> 100 | AC159: 9925 | AD159: 0 | AE159: 0 | AF159: 0 | AG159: 0 | AH159: 0 | AI159: 0 | AJ159: 75 | AK159: 0
C160: TOTAL PRODUCCION | D160: =SUM(D155+D159) -> 44325 | E160: =SUM(E155+E159) -> 44308 | F160: =SUM(F155+F159) -> 44306 | G160: =SUM(G155+G159) -> 2 | H160: =SUM(H155+H159) -> 17 | AB160: =SUM(AB155+AB159) -> 3845 | AC160: 37033 | AD160: 3456 | AE160: 0 | AF160: 0 | AG160: 0 | AH160: 0 | AI160: 0 | AJ160: 75 | AK160: 113 | AM160: =SUM(AM155+AM159) -> 34,071,720
C161: OTRAS MISCELANEOS
A162: 01010048 | B162: 5099048 | C162: Hemoglucotest instantáneo | D162: =IFERROR(VLOOKUP($A162,Filtro!$A$5:$AW$2943,2,FALSE),0) -> 682161 | E162: =IFERROR(VLOOKUP($A162,Filtro!$A$5:$AW$2943,3,FALSE),0) -> 682161 | F162: =IFERROR(VLOOKUP($A162,Filtro!$A$5:$AW$2943,4,FALSE),0) -> 682161 | G162: =IFERROR(VLOOKUP($A162,Filtro!$A$5:$AW$2943,5,FALSE),0) -> 0 | H162: =IFERROR(VLOOKUP($A162,Filtro!$A$5:$AW$2943,6,FALSE),0) -> 0 | AB162: =IFERROR(VLOOKUP($A162,Filtro!$A$5:$AW$2943,26,FALSE),0) -> 159800 | AC162: =IFERROR(VLOOKUP($A162,Filtro!$A$5:$AW$2943,27,FALSE),0) -> 492006 | AD162: =IFERROR(VLOOKUP($A162,Filtro!$A$5:$AW$2943,28,FALSE),0) -> 30355 | AE162: =IFERROR(VLOOKUP($A162,Filtro!$A$5:$AW$2943,29,FALSE),0) -> 0 | AF162: =IFERROR(VLOOKUP($A162,Filtro!$A$5:$AW$2943,30,FALSE),0) -> 0 | AG162: =IFERROR(VLOOKUP($A162,Filtro!$A$5:$AW$2943,31,FALSE),0) -> 0 | AH162: =IFERROR(VLOOKUP($A162,Filtro!$A$5:$AW$2943,32,FALSE),0) -> 0 | AI162: =IFERROR(VLOOKUP($A162,Filtro!$A$5:$AW$2943,33,FALSE),0) -> 0 | AJ162: =IFERROR(VLOOKUP($A162,Filtro!$A$5:$AW$2943,34,FALSE),0) -> 0 | AK162: =IFERROR(VLOOKUP($A162,Filtro!$A$5:$AW$2943,35,FALSE),0) -> 0 | AL162: 0 | AM162: 0
A163: 01010049 | B163: 5099008 | C163: Actividad Básica | D163: =IFERROR(VLOOKUP($A163,Filtro!$A$5:$AW$2943,2,FALSE),0) -> 1697 | E163: =IFERROR(VLOOKUP($A163,Filtro!$A$5:$AW$2943,3,FALSE),0) -> 1697 | F163: =IFERROR(VLOOKUP($A163,Filtro!$A$5:$AW$2943,4,FALSE),0) -> 1697 | G163: =IFERROR(VLOOKUP($A163,Filtro!$A$5:$AW$2943,5,FALSE),0) -> 0 | H163: =IFERROR(VLOOKUP($A163,Filtro!$A$5:$AW$2943,6,FALSE),0) -> 0 | AB163: =IFERROR(VLOOKUP($A163,Filtro!$A$5:$AW$2943,26,FALSE),0) -> 0 | AC163: =IFERROR(VLOOKUP($A163,Filtro!$A$5:$AW$2943,27,FALSE),0) -> 1697 | AD163: =IFERROR(VLOOKUP($A163,Filtro!$A$5:$AW$2943,28,FALSE),0) -> 0 | AE163: =IFERROR(VLOOKUP($A163,Filtro!$A$5:$AW$2943,29,FALSE),0) -> 0 | AF163: =IFERROR(VLOOKUP($A163,Filtro!$A$5:$AW$2943,30,FALSE),0) -> 0 | AG163: =IFERROR(VLOOKUP($A163,Filtro!$A$5:$AW$2943,31,FALSE),0) -> 0 | AH163: =IFERROR(VLOOKUP($A163,Filtro!$A$5:$AW$2943,32,FALSE),0) -> 0 | AI163: =IFERROR(VLOOKUP($A163,Filtro!$A$5:$AW$2943,33,FALSE),0) -> 0 | AJ163: =IFERROR(VLOOKUP($A163,Filtro!$A$5:$AW$2943,34,FALSE),0) -> 0 | AK163: =IFERROR(VLOOKUP($A163,Filtro!$A$5:$AW$2943,35,FALSE),0) -> 0 | AL163: 0 | AM163: 0
A164: 01010050 | B164: 5099009 | C164: Actividad Terapeutica | D164: =IFERROR(VLOOKUP($A164,Filtro!$A$5:$AW$2943,2,FALSE),0) -> 2172 | E164: =IFERROR(VLOOKUP($A164,Filtro!$A$5:$AW$2943,3,FALSE),0) -> 2172 | F164: =IFERROR(VLOOKUP($A164,Filtro!$A$5:$AW$2943,4,FALSE),0) -> 2172 | G164: =IFERROR(VLOOKUP($A164,Filtro!$A$5:$AW$2943,5,FALSE),0) -> 0 | H164: =IFERROR(VLOOKUP($A164,Filtro!$A$5:$AW$2943,6,FALSE),0) -> 0 | AB164: =IFERROR(VLOOKUP($A164,Filtro!$A$5:$AW$2943,26,FALSE),0) -> 951 | AC164: =IFERROR(VLOOKUP($A164,Filtro!$A$5:$AW$2943,27,FALSE),0) -> 1221 | AD164: =IFERROR(VLOOKUP($A164,Filtro!$A$5:$AW$2943,28,FALSE),0) -> 0 | AE164: =IFERROR(VLOOKUP($A164,Filtro!$A$5:$AW$2943,29,FALSE),0) -> 0 | AF164: =IFERROR(VLOOKUP($A164,Filtro!$A$5:$AW$2943,30,FALSE),0) -> 0 | AG164: =IFERROR(VLOOKUP($A164,Filtro!$A$5:$AW$2943,31,FALSE),0) -> 0 | AH164: =IFERROR(VLOOKUP($A164,Filtro!$A$5:$AW$2943,32,FALSE),0) -> 0 | AI164: =IFERROR(VLOOKUP($A164,Filtro!$A$5:$AW$2943,33,FALSE),0) -> 0 | AJ164: =IFERROR(VLOOKUP($A164,Filtro!$A$5:$AW$2943,34,FALSE),0) -> 0 | AK164: =IFERROR(VLOOKUP($A164,Filtro!$A$5:$AW$2943,35,FALSE),0) -> 0 | AL164: 0 | AM164: 0
A165: 01010051 | B165: 5099010 | C165: Evaluacion Actividad | D165: =IFERROR(VLOOKUP($A165,Filtro!$A$5:$AW$2943,2,FALSE),0) -> 587 | E165: =IFERROR(VLOOKUP($A165,Filtro!$A$5:$AW$2943,3,FALSE),0) -> 587 | F165: =IFERROR(VLOOKUP($A165,Filtro!$A$5:$AW$2943,4,FALSE),0) -> 587 | G165: =IFERROR(VLOOKUP($A165,Filtro!$A$5:$AW$2943,5,FALSE),0) -> 0 | H165: =IFERROR(VLOOKUP($A165,Filtro!$A$5:$AW$2943,6,FALSE),0) -> 0 | AB165: =IFERROR(VLOOKUP($A165,Filtro!$A$5:$AW$2943,26,FALSE),0) -> 115 | AC165: =IFERROR(VLOOKUP($A165,Filtro!$A$5:$AW$2943,27,FALSE),0) -> 472 | AD165: =IFERROR(VLOOKUP($A165,Filtro!$A$5:$AW$2943,28,FALSE),0) -> 0 | AE165: =IFERROR(VLOOKUP($A165,Filtro!$A$5:$AW$2943,29,FALSE),0) -> 0 | AF165: =IFERROR(VLOOKUP($A165,Filtro!$A$5:$AW$2943,30,FALSE),0) -> 0 | AG165: =IFERROR(VLOOKUP($A165,Filtro!$A$5:$AW$2943,31,FALSE),0) -> 0 | AH165: =IFERROR(VLOOKUP($A165,Filtro!$A$5:$AW$2943,32,FALSE),0) -> 0 | AI165: =IFERROR(VLOOKUP($A165,Filtro!$A$5:$AW$2943,33,FALSE),0) -> 0 | AJ165: =IFERROR(VLOOKUP($A165,Filtro!$A$5:$AW$2943,34,FALSE),0) -> 0 | AK165: =IFERROR(VLOOKUP($A165,Filtro!$A$5:$AW$2943,35,FALSE),0) -> 0 | AL165: 0 | AM165: 0
A166: 01010052 | B166: 5099011 | C166: Evaluacion prevocacional | D166: =IFERROR(VLOOKUP($A166,Filtro!$A$5:$AW$2943,2,FALSE),0) -> 0 | E166: =IFERROR(VLOOKUP($A166,Filtro!$A$5:$AW$2943,3,FALSE),0) -> 0 | F166: =IFERROR(VLOOKUP($A166,Filtro!$A$5:$AW$2943,4,FALSE),0) -> 0 | G166: =IFERROR(VLOOKUP($A166,Filtro!$A$5:$AW$2943,5,FALSE),0) -> 0 | H166: =IFERROR(VLOOKUP($A166,Filtro!$A$5:$AW$2943,6,FALSE),0) -> 0 | AB166: =IFERROR(VLOOKUP($A166,Filtro!$A$5:$AW$2943,26,FALSE),0) -> 0 | AC166: =IFERROR(VLOOKUP($A166,Filtro!$A$5:$AW$2943,27,FALSE),0) -> 0 | AD166: =IFERROR(VLOOKUP($A166,Filtro!$A$5:$AW$2943,28,FALSE),0) -> 0 | AE166: =IFERROR(VLOOKUP($A166,Filtro!$A$5:$AW$2943,29,FALSE),0) -> 0 | AF166: =IFERROR(VLOOKUP($A166,Filtro!$A$5:$AW$2943,30,FALSE),0) -> 0 | AG166: =IFERROR(VLOOKUP($A166,Filtro!$A$5:$AW$2943,31,FALSE),0) -> 0 | AH166: =IFERROR(VLOOKUP($A166,Filtro!$A$5:$AW$2943,32,FALSE),0) -> 0 | AI166: =IFERROR(VLOOKUP($A166,Filtro!$A$5:$AW$2943,33,FALSE),0) -> 0 | AJ166: =IFERROR(VLOOKUP($A166,Filtro!$A$5:$AW$2943,34,FALSE),0) -> 0 | AK166: =IFERROR(VLOOKUP($A166,Filtro!$A$5:$AW$2943,35,FALSE),0) -> 0 | AL166: 0 | AM166: 0
A167: 01010053 | B167: 5099063 | C167: Evaluación cognitiva | D167: =IFERROR(VLOOKUP($A167,Filtro!$A$5:$AW$2943,2,FALSE),0) -> 273 | E167: =IFERROR(VLOOKUP($A167,Filtro!$A$5:$AW$2943,3,FALSE),0) -> 273 | F167: =IFERROR(VLOOKUP($A167,Filtro!$A$5:$AW$2943,4,FALSE),0) -> 273 | G167: =IFERROR(VLOOKUP($A167,Filtro!$A$5:$AW$2943,5,FALSE),0) -> 0 | H167: =IFERROR(VLOOKUP($A167,Filtro!$A$5:$AW$2943,6,FALSE),0) -> 0 | AB167: =IFERROR(VLOOKUP($A167,Filtro!$A$5:$AW$2943,26,FALSE),0) -> 181 | AC167: =IFERROR(VLOOKUP($A167,Filtro!$A$5:$AW$2943,27,FALSE),0) -> 92 | AD167: =IFERROR(VLOOKUP($A167,Filtro!$A$5:$AW$2943,28,FALSE),0) -> 0 | AE167: =IFERROR(VLOOKUP($A167,Filtro!$A$5:$AW$2943,29,FALSE),0) -> 0 | AF167: =IFERROR(VLOOKUP($A167,Filtro!$A$5:$AW$2943,30,FALSE),0) -> 0 | AG167: =IFERROR(VLOOKUP($A167,Filtro!$A$5:$AW$2943,31,FALSE),0) -> 0 | AH167: =IFERROR(VLOOKUP($A167,Filtro!$A$5:$AW$2943,32,FALSE),0) -> 0 | AI167: =IFERROR(VLOOKUP($A167,Filtro!$A$5:$AW$2943,33,FALSE),0) -> 0 | AJ167: =IFERROR(VLOOKUP($A167,Filtro!$A$5:$AW$2943,34,FALSE),0) -> 0 | AK167: =IFERROR(VLOOKUP($A167,Filtro!$A$5:$AW$2943,35,FALSE),0) -> 0 | AL167: 0 | AM167: 0
A168: 01010054 | B168: 5099064 | C168: Estimulación cognitiva | D168: =IFERROR(VLOOKUP($A168,Filtro!$A$5:$AW$2943,2,FALSE),0) -> 2009 | E168: =IFERROR(VLOOKUP($A168,Filtro!$A$5:$AW$2943,3,FALSE),0) -> 2009 | F168: =IFERROR(VLOOKUP($A168,Filtro!$A$5:$AW$2943,4,FALSE),0) -> 2009 | G168: =IFERROR(VLOOKUP($A168,Filtro!$A$5:$AW$2943,5,FALSE),0) -> 0 | H168: =IFERROR(VLOOKUP($A168,Filtro!$A$5:$AW$2943,6,FALSE),0) -> 0 | AB168: =IFERROR(VLOOKUP($A168,Filtro!$A$5:$AW$2943,26,FALSE),0) -> 1746 | AC168: =IFERROR(VLOOKUP($A168,Filtro!$A$5:$AW$2943,27,FALSE),0) -> 263 | AD168: =IFERROR(VLOOKUP($A168,Filtro!$A$5:$AW$2943,28,FALSE),0) -> 0 | AE168: =IFERROR(VLOOKUP($A168,Filtro!$A$5:$AW$2943,29,FALSE),0) -> 0 | AF168: =IFERROR(VLOOKUP($A168,Filtro!$A$5:$AW$2943,30,FALSE),0) -> 0 | AG168: =IFERROR(VLOOKUP($A168,Filtro!$A$5:$AW$2943,31,FALSE),0) -> 0 | AH168: =IFERROR(VLOOKUP($A168,Filtro!$A$5:$AW$2943,32,FALSE),0) -> 0 | AI168: =IFERROR(VLOOKUP($A168,Filtro!$A$5:$AW$2943,33,FALSE),0) -> 0 | AJ168: =IFERROR(VLOOKUP($A168,Filtro!$A$5:$AW$2943,34,FALSE),0) -> 0 | AK168: =IFERROR(VLOOKUP($A168,Filtro!$A$5:$AW$2943,35,FALSE),0) -> 0 | AL168: 0 | AM168: 0
A169: 01010055 | B169: 5099111 | C169: Curacion avanzada de herida | D169: =IFERROR(VLOOKUP($A169,Filtro!$A$5:$AW$2943,2,FALSE),0) -> 15791 | E169: =IFERROR(VLOOKUP($A169,Filtro!$A$5:$AW$2943,3,FALSE),0) -> 15791 | F169: =IFERROR(VLOOKUP($A169,Filtro!$A$5:$AW$2943,4,FALSE),0) -> 15791 | G169: =IFERROR(VLOOKUP($A169,Filtro!$A$5:$AW$2943,5,FALSE),0) -> 0 | H169: =IFERROR(VLOOKUP($A169,Filtro!$A$5:$AW$2943,6,FALSE),0) -> 0 | AB169: =IFERROR(VLOOKUP($A169,Filtro!$A$5:$AW$2943,26,FALSE),0) -> 1979 | AC169: =IFERROR(VLOOKUP($A169,Filtro!$A$5:$AW$2943,27,FALSE),0) -> 13423 | AD169: =IFERROR(VLOOKUP($A169,Filtro!$A$5:$AW$2943,28,FALSE),0) -> 281 | AE169: =IFERROR(VLOOKUP($A169,Filtro!$A$5:$AW$2943,29,FALSE),0) -> 0 | AF169: =IFERROR(VLOOKUP($A169,Filtro!$A$5:$AW$2943,30,FALSE),0) -> 0 | AG169: =IFERROR(VLOOKUP($A169,Filtro!$A$5:$AW$2943,31,FALSE),0) -> 0 | AH169: =IFERROR(VLOOKUP($A169,Filtro!$A$5:$AW$2943,32,FALSE),0) -> 0 | AI169: =IFERROR(VLOOKUP($A169,Filtro!$A$5:$AW$2943,33,FALSE),0) -> 0 | AJ169: =IFERROR(VLOOKUP($A169,Filtro!$A$5:$AW$2943,34,FALSE),0) -> 0 | AK169: =IFERROR(VLOOKUP($A169,Filtro!$A$5:$AW$2943,35,FALSE),0) -> 0 | AL169: 0 | AM169: 0
A170: 01010056 | B170: 0102701 | C170: Evaluación Motriz Funcional | D170: =IFERROR(VLOOKUP($A170,Filtro!$A$5:$AW$2943,2,FALSE),0) -> 272 | E170: =IFERROR(VLOOKUP($A170,Filtro!$A$5:$AW$2943,3,FALSE),0) -> 272 | F170: =IFERROR(VLOOKUP($A170,Filtro!$A$5:$AW$2943,4,FALSE),0) -> 272 | G170: =IFERROR(VLOOKUP($A170,Filtro!$A$5:$AW$2943,5,FALSE),0) -> 0 | H170: =IFERROR(VLOOKUP($A170,Filtro!$A$5:$AW$2943,6,FALSE),0) -> 0 | AB170: =IFERROR(VLOOKUP($A170,Filtro!$A$5:$AW$2943,26,FALSE),0) -> 149 | AC170: =IFERROR(VLOOKUP($A170,Filtro!$A$5:$AW$2943,27,FALSE),0) -> 123 | AD170: =IFERROR(VLOOKUP($A170,Filtro!$A$5:$AW$2943,28,FALSE),0) -> 0 | AE170: =IFERROR(VLOOKUP($A170,Filtro!$A$5:$AW$2943,29,FALSE),0) -> 0 | AF170: =IFERROR(VLOOKUP($A170,Filtro!$A$5:$AW$2943,30,FALSE),0) -> 0 | AG170: =IFERROR(VLOOKUP($A170,Filtro!$A$5:$AW$2943,31,FALSE),0) -> 0 | AH170: =IFERROR(VLOOKUP($A170,Filtro!$A$5:$AW$2943,32,FALSE),0) -> 0 | AI170: =IFERROR(VLOOKUP($A170,Filtro!$A$5:$AW$2943,33,FALSE),0) -> 0 | AJ170: =IFERROR(VLOOKUP($A170,Filtro!$A$5:$AW$2943,34,FALSE),0) -> 0 | AK170: =IFERROR(VLOOKUP($A170,Filtro!$A$5:$AW$2943,35,FALSE),0) -> 0 | AL170: 0 | AM170: 0
A171: 01010057 | B171: 0102702 | C171: Evaluación cognitiva-perceptual | D171: =IFERROR(VLOOKUP($A171,Filtro!$A$5:$AW$2943,2,FALSE),0) -> 235 | E171: =IFERROR(VLOOKUP($A171,Filtro!$A$5:$AW$2943,3,FALSE),0) -> 235 | F171: =IFERROR(VLOOKUP($A171,Filtro!$A$5:$AW$2943,4,FALSE),0) -> 235 | G171: =IFERROR(VLOOKUP($A171,Filtro!$A$5:$AW$2943,5,FALSE),0) -> 0 | H171: =IFERROR(VLOOKUP($A171,Filtro!$A$5:$AW$2943,6,FALSE),0) -> 0 | AB171: =IFERROR(VLOOKUP($A171,Filtro!$A$5:$AW$2943,26,FALSE),0) -> 130 | AC171: =IFERROR(VLOOKUP($A171,Filtro!$A$5:$AW$2943,27,FALSE),0) -> 105 | AD171: =IFERROR(VLOOKUP($A171,Filtro!$A$5:$AW$2943,28,FALSE),0) -> 0 | AE171: =IFERROR(VLOOKUP($A171,Filtro!$A$5:$AW$2943,29,FALSE),0) -> 0 | AF171: =IFERROR(VLOOKUP($A171,Filtro!$A$5:$AW$2943,30,FALSE),0) -> 0 | AG171: =IFERROR(VLOOKUP($A171,Filtro!$A$5:$AW$2943,31,FALSE),0) -> 0 | AH171: =IFERROR(VLOOKUP($A171,Filtro!$A$5:$AW$2943,32,FALSE),0) -> 0 | AI171: =IFERROR(VLOOKUP($A171,Filtro!$A$5:$AW$2943,33,FALSE),0) -> 0 | AJ171: =IFERROR(VLOOKUP($A171,Filtro!$A$5:$AW$2943,34,FALSE),0) -> 0 | AK171: =IFERROR(VLOOKUP($A171,Filtro!$A$5:$AW$2943,35,FALSE),0) -> 0 | AL171: 0 | AM171: 0
A172: 01010058 | B172: 0102703 | C172: Evaluación independencia en actividades de la vida diaria | D172: =IFERROR(VLOOKUP($A172,Filtro!$A$5:$AW$2943,2,FALSE),0) -> 290 | E172: =IFERROR(VLOOKUP($A172,Filtro!$A$5:$AW$2943,3,FALSE),0) -> 290 | F172: =IFERROR(VLOOKUP($A172,Filtro!$A$5:$AW$2943,4,FALSE),0) -> 290 | G172: =IFERROR(VLOOKUP($A172,Filtro!$A$5:$AW$2943,5,FALSE),0) -> 0 | H172: =IFERROR(VLOOKUP($A172,Filtro!$A$5:$AW$2943,6,FALSE),0) -> 0 | AB172: =IFERROR(VLOOKUP($A172,Filtro!$A$5:$AW$2943,26,FALSE),0) -> 160 | AC172: =IFERROR(VLOOKUP($A172,Filtro!$A$5:$AW$2943,27,FALSE),0) -> 130 | AD172: =IFERROR(VLOOKUP($A172,Filtro!$A$5:$AW$2943,28,FALSE),0) -> 0 | AE172: =IFERROR(VLOOKUP($A172,Filtro!$A$5:$AW$2943,29,FALSE),0) -> 0 | AF172: =IFERROR(VLOOKUP($A172,Filtro!$A$5:$AW$2943,30,FALSE),0) -> 0 | AG172: =IFERROR(VLOOKUP($A172,Filtro!$A$5:$AW$2943,31,FALSE),0) -> 0 | AH172: =IFERROR(VLOOKUP($A172,Filtro!$A$5:$AW$2943,32,FALSE),0) -> 0 | AI172: =IFERROR(VLOOKUP($A172,Filtro!$A$5:$AW$2943,33,FALSE),0) -> 0 | AJ172: =IFERROR(VLOOKUP($A172,Filtro!$A$5:$AW$2943,34,FALSE),0) -> 0 | AK172: =IFERROR(VLOOKUP($A172,Filtro!$A$5:$AW$2943,35,FALSE),0) -> 0 | AL172: 0 | AM172: 0
A173: 01010059 | B173: 0102704 | C173: Evaluación barreras arquitectónicas | D173: =IFERROR(VLOOKUP($A173,Filtro!$A$5:$AW$2943,2,FALSE),0) -> 0 | E173: =IFERROR(VLOOKUP($A173,Filtro!$A$5:$AW$2943,3,FALSE),0) -> 0 | F173: =IFERROR(VLOOKUP($A173,Filtro!$A$5:$AW$2943,4,FALSE),0) -> 0 | G173: =IFERROR(VLOOKUP($A173,Filtro!$A$5:$AW$2943,5,FALSE),0) -> 0 | H173: =IFERROR(VLOOKUP($A173,Filtro!$A$5:$AW$2943,6,FALSE),0) -> 0 | AB173: =IFERROR(VLOOKUP($A173,Filtro!$A$5:$AW$2943,26,FALSE),0) -> 0 | AC173: =IFERROR(VLOOKUP($A173,Filtro!$A$5:$AW$2943,27,FALSE),0) -> 0 | AD173: =IFERROR(VLOOKUP($A173,Filtro!$A$5:$AW$2943,28,FALSE),0) -> 0 | AE173: =IFERROR(VLOOKUP($A173,Filtro!$A$5:$AW$2943,29,FALSE),0) -> 0 | AF173: =IFERROR(VLOOKUP($A173,Filtro!$A$5:$AW$2943,30,FALSE),0) -> 0 | AG173: =IFERROR(VLOOKUP($A173,Filtro!$A$5:$AW$2943,31,FALSE),0) -> 0 | AH173: =IFERROR(VLOOKUP($A173,Filtro!$A$5:$AW$2943,32,FALSE),0) -> 0 | AI173: =IFERROR(VLOOKUP($A173,Filtro!$A$5:$AW$2943,33,FALSE),0) -> 0 | AJ173: =IFERROR(VLOOKUP($A173,Filtro!$A$5:$AW$2943,34,FALSE),0) -> 0 | AK173: =IFERROR(VLOOKUP($A173,Filtro!$A$5:$AW$2943,35,FALSE),0) -> 0 | AL173: 0 | AM173: 0
A174: 01010060 | B174: 0102705 | C174: Evaluación puesto de trabajo | D174: =IFERROR(VLOOKUP($A174,Filtro!$A$5:$AW$2943,2,FALSE),0) -> 4 | E174: =IFERROR(VLOOKUP($A174,Filtro!$A$5:$AW$2943,3,FALSE),0) -> 4 | F174: =IFERROR(VLOOKUP($A174,Filtro!$A$5:$AW$2943,4,FALSE),0) -> 4 | G174: =IFERROR(VLOOKUP($A174,Filtro!$A$5:$AW$2943,5,FALSE),0) -> 0 | H174: =IFERROR(VLOOKUP($A174,Filtro!$A$5:$AW$2943,6,FALSE),0) -> 0 | AB174: =IFERROR(VLOOKUP($A174,Filtro!$A$5:$AW$2943,26,FALSE),0) -> 2 | AC174: =IFERROR(VLOOKUP($A174,Filtro!$A$5:$AW$2943,27,FALSE),0) -> 2 | AD174: =IFERROR(VLOOKUP($A174,Filtro!$A$5:$AW$2943,28,FALSE),0) -> 0 | AE174: =IFERROR(VLOOKUP($A174,Filtro!$A$5:$AW$2943,29,FALSE),0) -> 0 | AF174: =IFERROR(VLOOKUP($A174,Filtro!$A$5:$AW$2943,30,FALSE),0) -> 0 | AG174: =IFERROR(VLOOKUP($A174,Filtro!$A$5:$AW$2943,31,FALSE),0) -> 0 | AH174: =IFERROR(VLOOKUP($A174,Filtro!$A$5:$AW$2943,32,FALSE),0) -> 0 | AI174: =IFERROR(VLOOKUP($A174,Filtro!$A$5:$AW$2943,33,FALSE),0) -> 0 | AJ174: =IFERROR(VLOOKUP($A174,Filtro!$A$5:$AW$2943,34,FALSE),0) -> 0 | AK174: =IFERROR(VLOOKUP($A174,Filtro!$A$5:$AW$2943,35,FALSE),0) -> 0 | AL174: 0 | AM174: 0
A175: 01010061 | B175: 0102706 | C175: Evaluación del desarrollo Psicomotor | D175: =IFERROR(VLOOKUP($A175,Filtro!$A$5:$AW$2943,2,FALSE),0) -> 389 | E175: =IFERROR(VLOOKUP($A175,Filtro!$A$5:$AW$2943,3,FALSE),0) -> 389 | F175: =IFERROR(VLOOKUP($A175,Filtro!$A$5:$AW$2943,4,FALSE),0) -> 389 | G175: =IFERROR(VLOOKUP($A175,Filtro!$A$5:$AW$2943,5,FALSE),0) -> 0 | H175: =IFERROR(VLOOKUP($A175,Filtro!$A$5:$AW$2943,6,FALSE),0) -> 0 | AB175: =IFERROR(VLOOKUP($A175,Filtro!$A$5:$AW$2943,26,FALSE),0) -> 19 | AC175: =IFERROR(VLOOKUP($A175,Filtro!$A$5:$AW$2943,27,FALSE),0) -> 370 | AD175: =IFERROR(VLOOKUP($A175,Filtro!$A$5:$AW$2943,28,FALSE),0) -> 0 | AE175: =IFERROR(VLOOKUP($A175,Filtro!$A$5:$AW$2943,29,FALSE),0) -> 0 | AF175: =IFERROR(VLOOKUP($A175,Filtro!$A$5:$AW$2943,30,FALSE),0) -> 0 | AG175: =IFERROR(VLOOKUP($A175,Filtro!$A$5:$AW$2943,31,FALSE),0) -> 0 | AH175: =IFERROR(VLOOKUP($A175,Filtro!$A$5:$AW$2943,32,FALSE),0) -> 0 | AI175: =IFERROR(VLOOKUP($A175,Filtro!$A$5:$AW$2943,33,FALSE),0) -> 0 | AJ175: =IFERROR(VLOOKUP($A175,Filtro!$A$5:$AW$2943,34,FALSE),0) -> 0 | AK175: =IFERROR(VLOOKUP($A175,Filtro!$A$5:$AW$2943,35,FALSE),0) -> 0 | AL175: 0 | AM175: 0
A176: 01010062 | B176: 0102707 | C176: Reentrenamiento de las funciones cognitiva-perceptual | D176: =IFERROR(VLOOKUP($A176,Filtro!$A$5:$AW$2943,2,FALSE),0) -> 233 | E176: =IFERROR(VLOOKUP($A176,Filtro!$A$5:$AW$2943,3,FALSE),0) -> 233 | F176: =IFERROR(VLOOKUP($A176,Filtro!$A$5:$AW$2943,4,FALSE),0) -> 233 | G176: =IFERROR(VLOOKUP($A176,Filtro!$A$5:$AW$2943,5,FALSE),0) -> 0 | H176: =IFERROR(VLOOKUP($A176,Filtro!$A$5:$AW$2943,6,FALSE),0) -> 0 | AB176: =IFERROR(VLOOKUP($A176,Filtro!$A$5:$AW$2943,26,FALSE),0) -> 190 | AC176: =IFERROR(VLOOKUP($A176,Filtro!$A$5:$AW$2943,27,FALSE),0) -> 43 | AD176: =IFERROR(VLOOKUP($A176,Filtro!$A$5:$AW$2943,28,FALSE),0) -> 0 | AE176: =IFERROR(VLOOKUP($A176,Filtro!$A$5:$AW$2943,29,FALSE),0) -> 0 | AF176: =IFERROR(VLOOKUP($A176,Filtro!$A$5:$AW$2943,30,FALSE),0) -> 0 | AG176: =IFERROR(VLOOKUP($A176,Filtro!$A$5:$AW$2943,31,FALSE),0) -> 0 | AH176: =IFERROR(VLOOKUP($A176,Filtro!$A$5:$AW$2943,32,FALSE),0) -> 0 | AI176: =IFERROR(VLOOKUP($A176,Filtro!$A$5:$AW$2943,33,FALSE),0) -> 0 | AJ176: =IFERROR(VLOOKUP($A176,Filtro!$A$5:$AW$2943,34,FALSE),0) -> 0 | AK176: =IFERROR(VLOOKUP($A176,Filtro!$A$5:$AW$2943,35,FALSE),0) -> 0 | AL176: 0 | AM176: 0
A177: 01010063 | B177: 0102708 | C177: Reentrenamiento de las actividades de la vida diaria | D177: =IFERROR(VLOOKUP($A177,Filtro!$A$5:$AW$2943,2,FALSE),0) -> 912 | E177: =IFERROR(VLOOKUP($A177,Filtro!$A$5:$AW$2943,3,FALSE),0) -> 912 | F177: =IFERROR(VLOOKUP($A177,Filtro!$A$5:$AW$2943,4,FALSE),0) -> 912 | G177: =IFERROR(VLOOKUP($A177,Filtro!$A$5:$AW$2943,5,FALSE),0) -> 0 | H177: =IFERROR(VLOOKUP($A177,Filtro!$A$5:$AW$2943,6,FALSE),0) -> 0 | AB177: =IFERROR(VLOOKUP($A177,Filtro!$A$5:$AW$2943,26,FALSE),0) -> 523 | AC177: =IFERROR(VLOOKUP($A177,Filtro!$A$5:$AW$2943,27,FALSE),0) -> 389 | AD177: =IFERROR(VLOOKUP($A177,Filtro!$A$5:$AW$2943,28,FALSE),0) -> 0 | AE177: =IFERROR(VLOOKUP($A177,Filtro!$A$5:$AW$2943,29,FALSE),0) -> 0 | AF177: =IFERROR(VLOOKUP($A177,Filtro!$A$5:$AW$2943,30,FALSE),0) -> 0 | AG177: =IFERROR(VLOOKUP($A177,Filtro!$A$5:$AW$2943,31,FALSE),0) -> 0 | AH177: =IFERROR(VLOOKUP($A177,Filtro!$A$5:$AW$2943,32,FALSE),0) -> 0 | AI177: =IFERROR(VLOOKUP($A177,Filtro!$A$5:$AW$2943,33,FALSE),0) -> 0 | AJ177: =IFERROR(VLOOKUP($A177,Filtro!$A$5:$AW$2943,34,FALSE),0) -> 0 | AK177: =IFERROR(VLOOKUP($A177,Filtro!$A$5:$AW$2943,35,FALSE),0) -> 0 | AL177: 0 | AM177: 0
A178: 01010064 | B178: 0102709 | C178: Reentrenamiento laboral | D178: =IFERROR(VLOOKUP($A178,Filtro!$A$5:$AW$2943,2,FALSE),0) -> 0 | E178: =IFERROR(VLOOKUP($A178,Filtro!$A$5:$AW$2943,3,FALSE),0) -> 0 | F178: =IFERROR(VLOOKUP($A178,Filtro!$A$5:$AW$2943,4,FALSE),0) -> 0 | G178: =IFERROR(VLOOKUP($A178,Filtro!$A$5:$AW$2943,5,FALSE),0) -> 0 | H178: =IFERROR(VLOOKUP($A178,Filtro!$A$5:$AW$2943,6,FALSE),0) -> 0 | AB178: =IFERROR(VLOOKUP($A178,Filtro!$A$5:$AW$2943,26,FALSE),0) -> 0 | AC178: =IFERROR(VLOOKUP($A178,Filtro!$A$5:$AW$2943,27,FALSE),0) -> 0 | AD178: =IFERROR(VLOOKUP($A178,Filtro!$A$5:$AW$2943,28,FALSE),0) -> 0 | AE178: =IFERROR(VLOOKUP($A178,Filtro!$A$5:$AW$2943,29,FALSE),0) -> 0 | AF178: =IFERROR(VLOOKUP($A178,Filtro!$A$5:$AW$2943,30,FALSE),0) -> 0 | AG178: =IFERROR(VLOOKUP($A178,Filtro!$A$5:$AW$2943,31,FALSE),0) -> 0 | AH178: =IFERROR(VLOOKUP($A178,Filtro!$A$5:$AW$2943,32,FALSE),0) -> 0 | AI178: =IFERROR(VLOOKUP($A178,Filtro!$A$5:$AW$2943,33,FALSE),0) -> 0 | AJ178: =IFERROR(VLOOKUP($A178,Filtro!$A$5:$AW$2943,34,FALSE),0) -> 0 | AK178: =IFERROR(VLOOKUP($A178,Filtro!$A$5:$AW$2943,35,FALSE),0) -> 0 | AL178: 0 | AM178: 0
A179: 01010065 | B179: 01010065 | C179: Comité junta médica | D179: =IFERROR(VLOOKUP($A179,Filtro!$A$5:$AW$2943,2,FALSE),0) -> 173 | E179: =IFERROR(VLOOKUP($A179,Filtro!$A$5:$AW$2943,3,FALSE),0) -> 173 | F179: =IFERROR(VLOOKUP($A179,Filtro!$A$5:$AW$2943,4,FALSE),0) -> 173 | G179: =IFERROR(VLOOKUP($A179,Filtro!$A$5:$AW$2943,5,FALSE),0) -> 0 | H179: =IFERROR(VLOOKUP($A179,Filtro!$A$5:$AW$2943,6,FALSE),0) -> 0 | AB179: =IFERROR(VLOOKUP($A179,Filtro!$A$5:$AW$2943,26,FALSE),0) -> 0 | AC179: =IFERROR(VLOOKUP($A179,Filtro!$A$5:$AW$2943,27,FALSE),0) -> 173 | AD179: =IFERROR(VLOOKUP($A179,Filtro!$A$5:$AW$2943,28,FALSE),0) -> 0 | AE179: =IFERROR(VLOOKUP($A179,Filtro!$A$5:$AW$2943,29,FALSE),0) -> 0 | AF179: =IFERROR(VLOOKUP($A179,Filtro!$A$5:$AW$2943,30,FALSE),0) -> 0 | AG179: =IFERROR(VLOOKUP($A179,Filtro!$A$5:$AW$2943,31,FALSE),0) -> 0 | AH179: =IFERROR(VLOOKUP($A179,Filtro!$A$5:$AW$2943,32,FALSE),0) -> 0 | AI179: =IFERROR(VLOOKUP($A179,Filtro!$A$5:$AW$2943,33,FALSE),0) -> 0 | AJ179: =IFERROR(VLOOKUP($A179,Filtro!$A$5:$AW$2943,34,FALSE),0) -> 0 | AK179: =IFERROR(VLOOKUP($A179,Filtro!$A$5:$AW$2943,35,FALSE),0) -> 0 | AL179: 0 | AM179: 0
A180: 01010066 | B180: 01010066 | C180: Consultorías médicas de especialidades | D180: =IFERROR(VLOOKUP($A180,Filtro!$A$5:$AW$2943,2,FALSE),0) -> 27059 | E180: =IFERROR(VLOOKUP($A180,Filtro!$A$5:$AW$2943,3,FALSE),0) -> 27059 | F180: =IFERROR(VLOOKUP($A180,Filtro!$A$5:$AW$2943,4,FALSE),0) -> 27059 | G180: =IFERROR(VLOOKUP($A180,Filtro!$A$5:$AW$2943,5,FALSE),0) -> 0 | H180: =IFERROR(VLOOKUP($A180,Filtro!$A$5:$AW$2943,6,FALSE),0) -> 0 | AB180: =IFERROR(VLOOKUP($A180,Filtro!$A$5:$AW$2943,26,FALSE),0) -> 0 | AC180: =IFERROR(VLOOKUP($A180,Filtro!$A$5:$AW$2943,27,FALSE),0) -> 25719 | AD180: =IFERROR(VLOOKUP($A180,Filtro!$A$5:$AW$2943,28,FALSE),0) -> 1340 | AE180: =IFERROR(VLOOKUP($A180,Filtro!$A$5:$AW$2943,29,FALSE),0) -> 0 | AF180: =IFERROR(VLOOKUP($A180,Filtro!$A$5:$AW$2943,30,FALSE),0) -> 0 | AG180: =IFERROR(VLOOKUP($A180,Filtro!$A$5:$AW$2943,31,FALSE),0) -> 747 | AH180: =IFERROR(VLOOKUP($A180,Filtro!$A$5:$AW$2943,32,FALSE),0) -> 0 | AI180: =IFERROR(VLOOKUP($A180,Filtro!$A$5:$AW$2943,33,FALSE),0) -> 0 | AJ180: =IFERROR(VLOOKUP($A180,Filtro!$A$5:$AW$2943,34,FALSE),0) -> 0 | AK180: =IFERROR(VLOOKUP($A180,Filtro!$A$5:$AW$2943,35,FALSE),0) -> 0 | AL180: 0 | AM180: 0
A181: 01010067 | B181: 01010067 | C181: Consultorías odontólogos | D181: =IFERROR(VLOOKUP($A181,Filtro!$A$5:$AW$2943,2,FALSE),0) -> 0 | E181: =IFERROR(VLOOKUP($A181,Filtro!$A$5:$AW$2943,3,FALSE),0) -> 0 | F181: =IFERROR(VLOOKUP($A181,Filtro!$A$5:$AW$2943,4,FALSE),0) -> 0 | G181: =IFERROR(VLOOKUP($A181,Filtro!$A$5:$AW$2943,5,FALSE),0) -> 0 | H181: =IFERROR(VLOOKUP($A181,Filtro!$A$5:$AW$2943,6,FALSE),0) -> 0 | AB181: =IFERROR(VLOOKUP($A181,Filtro!$A$5:$AW$2943,26,FALSE),0) -> 0 | AC181: =IFERROR(VLOOKUP($A181,Filtro!$A$5:$AW$2943,27,FALSE),0) -> 0 | AD181: =IFERROR(VLOOKUP($A181,Filtro!$A$5:$AW$2943,28,FALSE),0) -> 0 | AE181: =IFERROR(VLOOKUP($A181,Filtro!$A$5:$AW$2943,29,FALSE),0) -> 0 | AF181: =IFERROR(VLOOKUP($A181,Filtro!$A$5:$AW$2943,30,FALSE),0) -> 0 | AG181: =IFERROR(VLOOKUP($A181,Filtro!$A$5:$AW$2943,31,FALSE),0) -> 0 | AH181: =IFERROR(VLOOKUP($A181,Filtro!$A$5:$AW$2943,32,FALSE),0) -> 0 | AI181: =IFERROR(VLOOKUP($A181,Filtro!$A$5:$AW$2943,33,FALSE),0) -> 0 | AJ181: =IFERROR(VLOOKUP($A181,Filtro!$A$5:$AW$2943,34,FALSE),0) -> 0 | AK181: =IFERROR(VLOOKUP($A181,Filtro!$A$5:$AW$2943,35,FALSE),0) -> 0 | AL181: 0 | AM181: 0
A182: 01010068 | B182: 01010068 | C182: Consejerias Individual por profesional de salud | D182: =IFERROR(VLOOKUP($A182,Filtro!$A$5:$AW$2943,2,FALSE),0) -> 19986 | E182: =IFERROR(VLOOKUP($A182,Filtro!$A$5:$AW$2943,3,FALSE),0) -> 19986 | F182: =IFERROR(VLOOKUP($A182,Filtro!$A$5:$AW$2943,4,FALSE),0) -> 19984 | G182: =IFERROR(VLOOKUP($A182,Filtro!$A$5:$AW$2943,5,FALSE),0) -> 2 | H182: =IFERROR(VLOOKUP($A182,Filtro!$A$5:$AW$2943,6,FALSE),0) -> 0 | AB182: =IFERROR(VLOOKUP($A182,Filtro!$A$5:$AW$2943,26,FALSE),0) -> 3738 | AC182: =IFERROR(VLOOKUP($A182,Filtro!$A$5:$AW$2943,27,FALSE),0) -> 16248 | AD182: =IFERROR(VLOOKUP($A182,Filtro!$A$5:$AW$2943,28,FALSE),0) -> 0 | AE182: =IFERROR(VLOOKUP($A182,Filtro!$A$5:$AW$2943,29,FALSE),0) -> 0 | AF182: =IFERROR(VLOOKUP($A182,Filtro!$A$5:$AW$2943,30,FALSE),0) -> 0 | AG182: =IFERROR(VLOOKUP($A182,Filtro!$A$5:$AW$2943,31,FALSE),0) -> 0 | AH182: =IFERROR(VLOOKUP($A182,Filtro!$A$5:$AW$2943,32,FALSE),0) -> 0 | AI182: =IFERROR(VLOOKUP($A182,Filtro!$A$5:$AW$2943,33,FALSE),0) -> 0 | AJ182: =IFERROR(VLOOKUP($A182,Filtro!$A$5:$AW$2943,34,FALSE),0) -> 0 | AK182: =IFERROR(VLOOKUP($A182,Filtro!$A$5:$AW$2943,35,FALSE),0) -> 0 | AL182: 0 | AM182: 0
A183: 01010069 | B183: 01010069 | C183: Consejerias Familiar por profesionales de salud | D183: =IFERROR(VLOOKUP($A183,Filtro!$A$5:$AW$2943,2,FALSE),0) -> 745 | E183: =IFERROR(VLOOKUP($A183,Filtro!$A$5:$AW$2943,3,FALSE),0) -> 745 | F183: =IFERROR(VLOOKUP($A183,Filtro!$A$5:$AW$2943,4,FALSE),0) -> 745 | G183: =IFERROR(VLOOKUP($A183,Filtro!$A$5:$AW$2943,5,FALSE),0) -> 0 | H183: =IFERROR(VLOOKUP($A183,Filtro!$A$5:$AW$2943,6,FALSE),0) -> 0 | AB183: =IFERROR(VLOOKUP($A183,Filtro!$A$5:$AW$2943,26,FALSE),0) -> 0 | AC183: =IFERROR(VLOOKUP($A183,Filtro!$A$5:$AW$2943,27,FALSE),0) -> 745 | AD183: =IFERROR(VLOOKUP($A183,Filtro!$A$5:$AW$2943,28,FALSE),0) -> 0 | AE183: =IFERROR(VLOOKUP($A183,Filtro!$A$5:$AW$2943,29,FALSE),0) -> 0 | AF183: =IFERROR(VLOOKUP($A183,Filtro!$A$5:$AW$2943,30,FALSE),0) -> 0 | AG183: =IFERROR(VLOOKUP($A183,Filtro!$A$5:$AW$2943,31,FALSE),0) -> 0 | AH183: =IFERROR(VLOOKUP($A183,Filtro!$A$5:$AW$2943,32,FALSE),0) -> 0 | AI183: =IFERROR(VLOOKUP($A183,Filtro!$A$5:$AW$2943,33,FALSE),0) -> 0 | AJ183: =IFERROR(VLOOKUP($A183,Filtro!$A$5:$AW$2943,34,FALSE),0) -> 0 | AK183: =IFERROR(VLOOKUP($A183,Filtro!$A$5:$AW$2943,35,FALSE),0) -> 0 | AL183: 0 | AM183: 0
A184: 01010070 | B184: 01010070 | C184: Instalación de clips en lesiones sangrantes | D184: =IFERROR(VLOOKUP($A184,Filtro!$A$5:$AW$2943,2,FALSE),0) -> 0 | E184: =IFERROR(VLOOKUP($A184,Filtro!$A$5:$AW$2943,3,FALSE),0) -> 0 | F184: =IFERROR(VLOOKUP($A184,Filtro!$A$5:$AW$2943,4,FALSE),0) -> 0 | G184: =IFERROR(VLOOKUP($A184,Filtro!$A$5:$AW$2943,5,FALSE),0) -> 0 | H184: =IFERROR(VLOOKUP($A184,Filtro!$A$5:$AW$2943,6,FALSE),0) -> 0 | AB184: =IFERROR(VLOOKUP($A184,Filtro!$A$5:$AW$2943,26,FALSE),0) -> 0 | AC184: =IFERROR(VLOOKUP($A184,Filtro!$A$5:$AW$2943,27,FALSE),0) -> 0 | AD184: =IFERROR(VLOOKUP($A184,Filtro!$A$5:$AW$2943,28,FALSE),0) -> 0 | AE184: =IFERROR(VLOOKUP($A184,Filtro!$A$5:$AW$2943,29,FALSE),0) -> 0 | AF184: =IFERROR(VLOOKUP($A184,Filtro!$A$5:$AW$2943,30,FALSE),0) -> 0 | AG184: =IFERROR(VLOOKUP($A184,Filtro!$A$5:$AW$2943,31,FALSE),0) -> 0 | AH184: =IFERROR(VLOOKUP($A184,Filtro!$A$5:$AW$2943,32,FALSE),0) -> 0 | AI184: =IFERROR(VLOOKUP($A184,Filtro!$A$5:$AW$2943,33,FALSE),0) -> 0 | AJ184: =IFERROR(VLOOKUP($A184,Filtro!$A$5:$AW$2943,34,FALSE),0) -> 0 | AK184: =IFERROR(VLOOKUP($A184,Filtro!$A$5:$AW$2943,35,FALSE),0) -> 0 | AL184: 0 | AM184: 0
A185: 01010071 | B185: 01010071 | C185: Instalación vendaje compresivo (Coban) | D185: =IFERROR(VLOOKUP($A185,Filtro!$A$5:$AW$2943,2,FALSE),0) -> 1 | E185: =IFERROR(VLOOKUP($A185,Filtro!$A$5:$AW$2943,3,FALSE),0) -> 1 | F185: =IFERROR(VLOOKUP($A185,Filtro!$A$5:$AW$2943,4,FALSE),0) -> 1 | G185: =IFERROR(VLOOKUP($A185,Filtro!$A$5:$AW$2943,5,FALSE),0) -> 0 | H185: =IFERROR(VLOOKUP($A185,Filtro!$A$5:$AW$2943,6,FALSE),0) -> 0 | AB185: =IFERROR(VLOOKUP($A185,Filtro!$A$5:$AW$2943,26,FALSE),0) -> 1 | AC185: =IFERROR(VLOOKUP($A185,Filtro!$A$5:$AW$2943,27,FALSE),0) -> 0 | AD185: =IFERROR(VLOOKUP($A185,Filtro!$A$5:$AW$2943,28,FALSE),0) -> 0 | AE185: =IFERROR(VLOOKUP($A185,Filtro!$A$5:$AW$2943,29,FALSE),0) -> 0 | AF185: =IFERROR(VLOOKUP($A185,Filtro!$A$5:$AW$2943,30,FALSE),0) -> 0 | AG185: =IFERROR(VLOOKUP($A185,Filtro!$A$5:$AW$2943,31,FALSE),0) -> 0 | AH185: =IFERROR(VLOOKUP($A185,Filtro!$A$5:$AW$2943,32,FALSE),0) -> 0 | AI185: =IFERROR(VLOOKUP($A185,Filtro!$A$5:$AW$2943,33,FALSE),0) -> 0 | AJ185: =IFERROR(VLOOKUP($A185,Filtro!$A$5:$AW$2943,34,FALSE),0) -> 0 | AK185: =IFERROR(VLOOKUP($A185,Filtro!$A$5:$AW$2943,35,FALSE),0) -> 0 | AL185: 0 | AM185: 0
C186: TOTAL | D186: =SUM(D162:D185) -> 754989 | E186: =SUM(E162:E185) -> 754989 | F186: =SUM(F162:F185) -> 754987 | G186: =SUM(G162:G185) -> 2 | H186: =SUM(H162:H185) -> 0 | AB186: =SUM(AB162:AB185) -> 169684 | AC186: 553221 | AD186: 31976 | AE186: 0 | AF186: 0 | AG186: 747 | AH186: 0 | AI186: 0 | AJ186: 0 | AK186: 0
C187: TRASPLANTES
A188: 01010072 | B188: 01010072 | C188: Estudio receptor donante cadáver | D188: =IFERROR(VLOOKUP($A188,Filtro!$A$5:$AW$2943,2,FALSE),0) -> 0 | E188: =IFERROR(VLOOKUP($A188,Filtro!$A$5:$AW$2943,3,FALSE),0) -> 0 | F188: =IFERROR(VLOOKUP($A188,Filtro!$A$5:$AW$2943,4,FALSE),0) -> 0 | G188: =IFERROR(VLOOKUP($A188,Filtro!$A$5:$AW$2943,5,FALSE),0) -> 0 | H188: =IFERROR(VLOOKUP($A188,Filtro!$A$5:$AW$2943,6,FALSE),0) -> 0 | AB188: =IFERROR(VLOOKUP($A188,Filtro!$A$5:$AW$2943,26,FALSE),0) -> 0 | AC188: =IFERROR(VLOOKUP($A188,Filtro!$A$5:$AW$2943,27,FALSE),0) -> 0 | AD188: =IFERROR(VLOOKUP($A188,Filtro!$A$5:$AW$2943,28,FALSE),0) -> 0 | AE188: =IFERROR(VLOOKUP($A188,Filtro!$A$5:$AW$2943,29,FALSE),0) -> 0 | AF188: =IFERROR(VLOOKUP($A188,Filtro!$A$5:$AW$2943,30,FALSE),0) -> 0 | AG188: =IFERROR(VLOOKUP($A188,Filtro!$A$5:$AW$2943,31,FALSE),0) -> 0 | AH188: =IFERROR(VLOOKUP($A188,Filtro!$A$5:$AW$2943,32,FALSE),0) -> 0 | AI188: =IFERROR(VLOOKUP($A188,Filtro!$A$5:$AW$2943,33,FALSE),0) -> 0 | AJ188: =IFERROR(VLOOKUP($A188,Filtro!$A$5:$AW$2943,34,FALSE),0) -> 0 | AK188: =IFERROR(VLOOKUP($A188,Filtro!$A$5:$AW$2943,35,FALSE),0) -> 0 | AL188: 0 | AM188: 0
A189: 01010073 | B189: 01010073 | C189: Estudio receptor donante vivo | D189: =IFERROR(VLOOKUP($A189,Filtro!$A$5:$AW$2943,2,FALSE),0) -> 0 | E189: =IFERROR(VLOOKUP($A189,Filtro!$A$5:$AW$2943,3,FALSE),0) -> 0 | F189: =IFERROR(VLOOKUP($A189,Filtro!$A$5:$AW$2943,4,FALSE),0) -> 0 | G189: =IFERROR(VLOOKUP($A189,Filtro!$A$5:$AW$2943,5,FALSE),0) -> 0 | H189: =IFERROR(VLOOKUP($A189,Filtro!$A$5:$AW$2943,6,FALSE),0) -> 0 | AB189: =IFERROR(VLOOKUP($A189,Filtro!$A$5:$AW$2943,26,FALSE),0) -> 0 | AC189: =IFERROR(VLOOKUP($A189,Filtro!$A$5:$AW$2943,27,FALSE),0) -> 0 | AD189: =IFERROR(VLOOKUP($A189,Filtro!$A$5:$AW$2943,28,FALSE),0) -> 0 | AE189: =IFERROR(VLOOKUP($A189,Filtro!$A$5:$AW$2943,29,FALSE),0) -> 0 | AF189: =IFERROR(VLOOKUP($A189,Filtro!$A$5:$AW$2943,30,FALSE),0) -> 0 | AG189: =IFERROR(VLOOKUP($A189,Filtro!$A$5:$AW$2943,31,FALSE),0) -> 0 | AH189: =IFERROR(VLOOKUP($A189,Filtro!$A$5:$AW$2943,32,FALSE),0) -> 0 | AI189: =IFERROR(VLOOKUP($A189,Filtro!$A$5:$AW$2943,33,FALSE),0) -> 0 | AJ189: =IFERROR(VLOOKUP($A189,Filtro!$A$5:$AW$2943,34,FALSE),0) -> 0 | AK189: =IFERROR(VLOOKUP($A189,Filtro!$A$5:$AW$2943,35,FALSE),0) -> 0 | AL189: 0 | AM189: 0
A190: 01010074 | B190: 01010074 | C190: Estudio receptores corazón-pulmón | D190: =IFERROR(VLOOKUP($A190,Filtro!$A$5:$AW$2943,2,FALSE),0) -> 0 | E190: =IFERROR(VLOOKUP($A190,Filtro!$A$5:$AW$2943,3,FALSE),0) -> 0 | F190: =IFERROR(VLOOKUP($A190,Filtro!$A$5:$AW$2943,4,FALSE),0) -> 0 | G190: =IFERROR(VLOOKUP($A190,Filtro!$A$5:$AW$2943,5,FALSE),0) -> 0 | H190: =IFERROR(VLOOKUP($A190,Filtro!$A$5:$AW$2943,6,FALSE),0) -> 0 | AB190: =IFERROR(VLOOKUP($A190,Filtro!$A$5:$AW$2943,26,FALSE),0) -> 0 | AC190: =IFERROR(VLOOKUP($A190,Filtro!$A$5:$AW$2943,27,FALSE),0) -> 0 | AD190: =IFERROR(VLOOKUP($A190,Filtro!$A$5:$AW$2943,28,FALSE),0) -> 0 | AE190: =IFERROR(VLOOKUP($A190,Filtro!$A$5:$AW$2943,29,FALSE),0) -> 0 | AF190: =IFERROR(VLOOKUP($A190,Filtro!$A$5:$AW$2943,30,FALSE),0) -> 0 | AG190: =IFERROR(VLOOKUP($A190,Filtro!$A$5:$AW$2943,31,FALSE),0) -> 0 | AH190: =IFERROR(VLOOKUP($A190,Filtro!$A$5:$AW$2943,32,FALSE),0) -> 0 | AI190: =IFERROR(VLOOKUP($A190,Filtro!$A$5:$AW$2943,33,FALSE),0) -> 0 | AJ190: =IFERROR(VLOOKUP($A190,Filtro!$A$5:$AW$2943,34,FALSE),0) -> 0 | AK190: =IFERROR(VLOOKUP($A190,Filtro!$A$5:$AW$2943,35,FALSE),0) -> 0 | AL190: 0 | AM190: 0
A191: 01010075 | B191: 01010075 | C191: Estudio pacientes trasplante medula ósea | D191: =IFERROR(VLOOKUP($A191,Filtro!$A$5:$AW$2943,2,FALSE),0) -> 0 | E191: =IFERROR(VLOOKUP($A191,Filtro!$A$5:$AW$2943,3,FALSE),0) -> 0 | F191: =IFERROR(VLOOKUP($A191,Filtro!$A$5:$AW$2943,4,FALSE),0) -> 0 | G191: =IFERROR(VLOOKUP($A191,Filtro!$A$5:$AW$2943,5,FALSE),0) -> 0 | H191: =IFERROR(VLOOKUP($A191,Filtro!$A$5:$AW$2943,6,FALSE),0) -> 0 | AB191: =IFERROR(VLOOKUP($A191,Filtro!$A$5:$AW$2943,26,FALSE),0) -> 0 | AC191: =IFERROR(VLOOKUP($A191,Filtro!$A$5:$AW$2943,27,FALSE),0) -> 0 | AD191: =IFERROR(VLOOKUP($A191,Filtro!$A$5:$AW$2943,28,FALSE),0) -> 0 | AE191: =IFERROR(VLOOKUP($A191,Filtro!$A$5:$AW$2943,29,FALSE),0) -> 0 | AF191: =IFERROR(VLOOKUP($A191,Filtro!$A$5:$AW$2943,30,FALSE),0) -> 0 | AG191: =IFERROR(VLOOKUP($A191,Filtro!$A$5:$AW$2943,31,FALSE),0) -> 0 | AH191: =IFERROR(VLOOKUP($A191,Filtro!$A$5:$AW$2943,32,FALSE),0) -> 0 | AI191: =IFERROR(VLOOKUP($A191,Filtro!$A$5:$AW$2943,33,FALSE),0) -> 0 | AJ191: =IFERROR(VLOOKUP($A191,Filtro!$A$5:$AW$2943,34,FALSE),0) -> 0 | AK191: =IFERROR(VLOOKUP($A191,Filtro!$A$5:$AW$2943,35,FALSE),0) -> 0 | AL191: 0 | AM191: 0
A192: 01010076 | B192: 01010076 | C192: Trasplante de medula autólogo | D192: =IFERROR(VLOOKUP($A192,Filtro!$A$5:$AW$2943,2,FALSE),0) -> 0 | E192: =IFERROR(VLOOKUP($A192,Filtro!$A$5:$AW$2943,3,FALSE),0) -> 0 | F192: =IFERROR(VLOOKUP($A192,Filtro!$A$5:$AW$2943,4,FALSE),0) -> 0 | G192: =IFERROR(VLOOKUP($A192,Filtro!$A$5:$AW$2943,5,FALSE),0) -> 0 | H192: =IFERROR(VLOOKUP($A192,Filtro!$A$5:$AW$2943,6,FALSE),0) -> 0 | AB192: =IFERROR(VLOOKUP($A192,Filtro!$A$5:$AW$2943,26,FALSE),0) -> 0 | AC192: =IFERROR(VLOOKUP($A192,Filtro!$A$5:$AW$2943,27,FALSE),0) -> 0 | AD192: =IFERROR(VLOOKUP($A192,Filtro!$A$5:$AW$2943,28,FALSE),0) -> 0 | AE192: =IFERROR(VLOOKUP($A192,Filtro!$A$5:$AW$2943,29,FALSE),0) -> 0 | AF192: =IFERROR(VLOOKUP($A192,Filtro!$A$5:$AW$2943,30,FALSE),0) -> 0 | AG192: =IFERROR(VLOOKUP($A192,Filtro!$A$5:$AW$2943,31,FALSE),0) -> 0 | AH192: =IFERROR(VLOOKUP($A192,Filtro!$A$5:$AW$2943,32,FALSE),0) -> 0 | AI192: =IFERROR(VLOOKUP($A192,Filtro!$A$5:$AW$2943,33,FALSE),0) -> 0 | AJ192: =IFERROR(VLOOKUP($A192,Filtro!$A$5:$AW$2943,34,FALSE),0) -> 0 | AK192: =IFERROR(VLOOKUP($A192,Filtro!$A$5:$AW$2943,35,FALSE),0) -> 0 | AL192: 0 | AM192: 0
A193: 01010077 | B193: 01010077 | C193: Trasplante de medula alógeno | D193: =IFERROR(VLOOKUP($A193,Filtro!$A$5:$AW$2943,2,FALSE),0) -> 0 | E193: =IFERROR(VLOOKUP($A193,Filtro!$A$5:$AW$2943,3,FALSE),0) -> 0 | F193: =IFERROR(VLOOKUP($A193,Filtro!$A$5:$AW$2943,4,FALSE),0) -> 0 | G193: =IFERROR(VLOOKUP($A193,Filtro!$A$5:$AW$2943,5,FALSE),0) -> 0 | H193: =IFERROR(VLOOKUP($A193,Filtro!$A$5:$AW$2943,6,FALSE),0) -> 0 | AB193: =IFERROR(VLOOKUP($A193,Filtro!$A$5:$AW$2943,26,FALSE),0) -> 0 | AC193: =IFERROR(VLOOKUP($A193,Filtro!$A$5:$AW$2943,27,FALSE),0) -> 0 | AD193: =IFERROR(VLOOKUP($A193,Filtro!$A$5:$AW$2943,28,FALSE),0) -> 0 | AE193: =IFERROR(VLOOKUP($A193,Filtro!$A$5:$AW$2943,29,FALSE),0) -> 0 | AF193: =IFERROR(VLOOKUP($A193,Filtro!$A$5:$AW$2943,30,FALSE),0) -> 0 | AG193: =IFERROR(VLOOKUP($A193,Filtro!$A$5:$AW$2943,31,FALSE),0) -> 0 | AH193: =IFERROR(VLOOKUP($A193,Filtro!$A$5:$AW$2943,32,FALSE),0) -> 0 | AI193: =IFERROR(VLOOKUP($A193,Filtro!$A$5:$AW$2943,33,FALSE),0) -> 0 | AJ193: =IFERROR(VLOOKUP($A193,Filtro!$A$5:$AW$2943,34,FALSE),0) -> 0 | AK193: =IFERROR(VLOOKUP($A193,Filtro!$A$5:$AW$2943,35,FALSE),0) -> 0 | AL193: 0 | AM193: 0
A194: 01010078 | B194: 01010078 | C194: Trasplante medula de cordón | D194: =IFERROR(VLOOKUP($A194,Filtro!$A$5:$AW$2943,2,FALSE),0) -> 0 | E194: =IFERROR(VLOOKUP($A194,Filtro!$A$5:$AW$2943,3,FALSE),0) -> 0 | F194: =IFERROR(VLOOKUP($A194,Filtro!$A$5:$AW$2943,4,FALSE),0) -> 0 | G194: =IFERROR(VLOOKUP($A194,Filtro!$A$5:$AW$2943,5,FALSE),0) -> 0 | H194: =IFERROR(VLOOKUP($A194,Filtro!$A$5:$AW$2943,6,FALSE),0) -> 0 | AB194: =IFERROR(VLOOKUP($A194,Filtro!$A$5:$AW$2943,26,FALSE),0) -> 0 | AC194: =IFERROR(VLOOKUP($A194,Filtro!$A$5:$AW$2943,27,FALSE),0) -> 0 | AD194: =IFERROR(VLOOKUP($A194,Filtro!$A$5:$AW$2943,28,FALSE),0) -> 0 | AE194: =IFERROR(VLOOKUP($A194,Filtro!$A$5:$AW$2943,29,FALSE),0) -> 0 | AF194: =IFERROR(VLOOKUP($A194,Filtro!$A$5:$AW$2943,30,FALSE),0) -> 0 | AG194: =IFERROR(VLOOKUP($A194,Filtro!$A$5:$AW$2943,31,FALSE),0) -> 0 | AH194: =IFERROR(VLOOKUP($A194,Filtro!$A$5:$AW$2943,32,FALSE),0) -> 0 | AI194: =IFERROR(VLOOKUP($A194,Filtro!$A$5:$AW$2943,33,FALSE),0) -> 0 | AJ194: =IFERROR(VLOOKUP($A194,Filtro!$A$5:$AW$2943,34,FALSE),0) -> 0 | AK194: =IFERROR(VLOOKUP($A194,Filtro!$A$5:$AW$2943,35,FALSE),0) -> 0 | AL194: 0 | AM194: 0
A195: 01010079 | B195: 01010079 | C195: Trasplante medula aploidentico | D195: =IFERROR(VLOOKUP($A195,Filtro!$A$5:$AW$2943,2,FALSE),0) -> 0 | E195: =IFERROR(VLOOKUP($A195,Filtro!$A$5:$AW$2943,3,FALSE),0) -> 0 | F195: =IFERROR(VLOOKUP($A195,Filtro!$A$5:$AW$2943,4,FALSE),0) -> 0 | G195: =IFERROR(VLOOKUP($A195,Filtro!$A$5:$AW$2943,5,FALSE),0) -> 0 | H195: =IFERROR(VLOOKUP($A195,Filtro!$A$5:$AW$2943,6,FALSE),0) -> 0 | AB195: =IFERROR(VLOOKUP($A195,Filtro!$A$5:$AW$2943,26,FALSE),0) -> 0 | AC195: =IFERROR(VLOOKUP($A195,Filtro!$A$5:$AW$2943,27,FALSE),0) -> 0 | AD195: =IFERROR(VLOOKUP($A195,Filtro!$A$5:$AW$2943,28,FALSE),0) -> 0 | AE195: =IFERROR(VLOOKUP($A195,Filtro!$A$5:$AW$2943,29,FALSE),0) -> 0 | AF195: =IFERROR(VLOOKUP($A195,Filtro!$A$5:$AW$2943,30,FALSE),0) -> 0 | AG195: =IFERROR(VLOOKUP($A195,Filtro!$A$5:$AW$2943,31,FALSE),0) -> 0 | AH195: =IFERROR(VLOOKUP($A195,Filtro!$A$5:$AW$2943,32,FALSE),0) -> 0 | AI195: =IFERROR(VLOOKUP($A195,Filtro!$A$5:$AW$2943,33,FALSE),0) -> 0 | AJ195: =IFERROR(VLOOKUP($A195,Filtro!$A$5:$AW$2943,34,FALSE),0) -> 0 | AK195: =IFERROR(VLOOKUP($A195,Filtro!$A$5:$AW$2943,35,FALSE),0) -> 0 | AL195: 0 | AM195: 0
A196: 01010080 | B196: 01010080 | C196: Trasplante de córnea (incluye procuramiento y seguimiento por un año) | D196: =IFERROR(VLOOKUP($A196,Filtro!$A$5:$AW$2943,2,FALSE),0) -> 9 | E196: =IFERROR(VLOOKUP($A196,Filtro!$A$5:$AW$2943,3,FALSE),0) -> 9 | F196: =IFERROR(VLOOKUP($A196,Filtro!$A$5:$AW$2943,4,FALSE),0) -> 9 | G196: =IFERROR(VLOOKUP($A196,Filtro!$A$5:$AW$2943,5,FALSE),0) -> 0 | H196: =IFERROR(VLOOKUP($A196,Filtro!$A$5:$AW$2943,6,FALSE),0) -> 0 | AB196: =IFERROR(VLOOKUP($A196,Filtro!$A$5:$AW$2943,26,FALSE),0) -> 8 | AC196: =IFERROR(VLOOKUP($A196,Filtro!$A$5:$AW$2943,27,FALSE),0) -> 1 | AD196: =IFERROR(VLOOKUP($A196,Filtro!$A$5:$AW$2943,28,FALSE),0) -> 0 | AE196: =IFERROR(VLOOKUP($A196,Filtro!$A$5:$AW$2943,29,FALSE),0) -> 0 | AF196: =IFERROR(VLOOKUP($A196,Filtro!$A$5:$AW$2943,30,FALSE),0) -> 0 | AG196: =IFERROR(VLOOKUP($A196,Filtro!$A$5:$AW$2943,31,FALSE),0) -> 0 | AH196: =IFERROR(VLOOKUP($A196,Filtro!$A$5:$AW$2943,32,FALSE),0) -> 0 | AI196: =IFERROR(VLOOKUP($A196,Filtro!$A$5:$AW$2943,33,FALSE),0) -> 0 | AJ196: =IFERROR(VLOOKUP($A196,Filtro!$A$5:$AW$2943,34,FALSE),0) -> 0 | AK196: =IFERROR(VLOOKUP($A196,Filtro!$A$5:$AW$2943,35,FALSE),0) -> 0 | AL196: 0 | AM196: 0
A197: 01010081 | B197: 01010081 | C197: Soporte pretrasplante hepático extracorporeo por sesión | D197: =IFERROR(VLOOKUP($A197,Filtro!$A$5:$AW$2943,2,FALSE),0) -> 0 | E197: =IFERROR(VLOOKUP($A197,Filtro!$A$5:$AW$2943,3,FALSE),0) -> 0 | F197: =IFERROR(VLOOKUP($A197,Filtro!$A$5:$AW$2943,4,FALSE),0) -> 0 | G197: =IFERROR(VLOOKUP($A197,Filtro!$A$5:$AW$2943,5,FALSE),0) -> 0 | H197: =IFERROR(VLOOKUP($A197,Filtro!$A$5:$AW$2943,6,FALSE),0) -> 0 | AB197: =IFERROR(VLOOKUP($A197,Filtro!$A$5:$AW$2943,26,FALSE),0) -> 0 | AC197: =IFERROR(VLOOKUP($A197,Filtro!$A$5:$AW$2943,27,FALSE),0) -> 0 | AD197: =IFERROR(VLOOKUP($A197,Filtro!$A$5:$AW$2943,28,FALSE),0) -> 0 | AE197: =IFERROR(VLOOKUP($A197,Filtro!$A$5:$AW$2943,29,FALSE),0) -> 0 | AF197: =IFERROR(VLOOKUP($A197,Filtro!$A$5:$AW$2943,30,FALSE),0) -> 0 | AG197: =IFERROR(VLOOKUP($A197,Filtro!$A$5:$AW$2943,31,FALSE),0) -> 0 | AH197: =IFERROR(VLOOKUP($A197,Filtro!$A$5:$AW$2943,32,FALSE),0) -> 0 | AI197: =IFERROR(VLOOKUP($A197,Filtro!$A$5:$AW$2943,33,FALSE),0) -> 0 | AJ197: =IFERROR(VLOOKUP($A197,Filtro!$A$5:$AW$2943,34,FALSE),0) -> 0 | AK197: =IFERROR(VLOOKUP($A197,Filtro!$A$5:$AW$2943,35,FALSE),0) -> 0 | AL197: 0 | AM197: 0
A198: 01010082 | B198: 01010082 | C198: Mantención donante cadáver (pulmón, corazón o hígado) (muerte cerebral) | D198: =IFERROR(VLOOKUP($A198,Filtro!$A$5:$AW$2943,2,FALSE),0) -> 4 | E198: =IFERROR(VLOOKUP($A198,Filtro!$A$5:$AW$2943,3,FALSE),0) -> 4 | F198: =IFERROR(VLOOKUP($A198,Filtro!$A$5:$AW$2943,4,FALSE),0) -> 4 | G198: =IFERROR(VLOOKUP($A198,Filtro!$A$5:$AW$2943,5,FALSE),0) -> 0 | H198: =IFERROR(VLOOKUP($A198,Filtro!$A$5:$AW$2943,6,FALSE),0) -> 0 | AB198: =IFERROR(VLOOKUP($A198,Filtro!$A$5:$AW$2943,26,FALSE),0) -> 4 | AC198: =IFERROR(VLOOKUP($A198,Filtro!$A$5:$AW$2943,27,FALSE),0) -> 0 | AD198: =IFERROR(VLOOKUP($A198,Filtro!$A$5:$AW$2943,28,FALSE),0) -> 0 | AE198: =IFERROR(VLOOKUP($A198,Filtro!$A$5:$AW$2943,29,FALSE),0) -> 0 | AF198: =IFERROR(VLOOKUP($A198,Filtro!$A$5:$AW$2943,30,FALSE),0) -> 0 | AG198: =IFERROR(VLOOKUP($A198,Filtro!$A$5:$AW$2943,31,FALSE),0) -> 0 | AH198: =IFERROR(VLOOKUP($A198,Filtro!$A$5:$AW$2943,32,FALSE),0) -> 0 | AI198: =IFERROR(VLOOKUP($A198,Filtro!$A$5:$AW$2943,33,FALSE),0) -> 0 | AJ198: =IFERROR(VLOOKUP($A198,Filtro!$A$5:$AW$2943,34,FALSE),0) -> 0 | AK198: =IFERROR(VLOOKUP($A198,Filtro!$A$5:$AW$2943,35,FALSE),0) -> 0 | AL198: 0 | AM198: 0
C199: TOTAL | D199: =SUM(D188:D198) -> 13 | E199: =SUM(E188:E198) -> 13 | F199: =SUM(F188:F198) -> 13 | G199: =SUM(G188:G198) -> 0 | H199: =SUM(H188:H198) -> 0 | AB199: =SUM(AB188:AB198) -> 12 | AC199: 1 | AD199: 0 | AE199: 0 | AF199: 0 | AG199: 0 | AH199: 0 | AI199: 0 | AJ199: 0 | AK199: 0
C200: ATENCION CERRADA
... 3036 more rows

Sheet B17
B1: SERVICIO DE SALUD / ESTABLECIMIENTO MUNICIPAL
B2: =CONCATENATE("COMUNA: ",[1]NOMBRE!B2," - ","( ",[1]NOMBRE!C2,[1]NOMBRE!D2,[1]NOMBRE!E2,[1]NOMBRE!F2,[1]NOMBRE!G2," )") -> COMUNA: - ( )
B3: =CONCATENATE("ESTABLECIMIENTO/ESTRATEGIA: ",[1]NOMBRE!B3," - ","( ",[1]NOMBRE!C3,[1]NOMBRE!D3,[1]NOMBRE!E3,[1]NOMBRE!F3,[1]NOMBRE!G3,[1]NOMBRE!H3," )") -> ESTABLECIMIENTO/ESTRATEGIA: - ( )
B4: =CONCATENATE("MES: ",[1]NOMBRE!B6," - ","( ",[1]NOMBRE!C6,[1]NOMBRE!D6," )") -> MES: - ( )
B5: =CONCATENATE("AÑO: ",[1]NOMBRE!B7) -> AÑO: 2023
E6: REM-B17. ACTIVIDADES DE APOYO DIAGNOSTICO y TERAPEUTICO
B8: SECCION A: ATENCIONES ABIERTAS | E8: E | F8: AL
B9: CODIGOS | C9: IDENTIFICACION DE PRESTACIONES | D9: TOTAL PRODUCCIÓN | E9: TOTAL BENEFICIARIOS MAI | F9: PAGO POR PRESTACIONES ($)
C10: CONSULTAS Y ATENCION MEDICA | D10: =SUM(D11:D17) -> 690052 | E10: =SUM(E11:E17) -> 676714 | F10: =SUM(F11:F17) -> 5,990,857,990
A11: 99100120 | C11: Consulta Médica general | D11: =IFERROR(VLOOKUP($A11,Filtro!$A$5:$AW$2944,2,FALSE),0) -> 63791 | E11: =IFERROR(VLOOKUP($A11,Filtro!$A$5:$AW$2944,3,FALSE),0) -> 63791 | F11: =IFERROR(VLOOKUP($A11,Filtro!$A$5:$AW$2944,4,FALSE),0) -> 405710760
A12: 17400010 | C12: Consulta Médica de Especialidades | D12: =IFERROR(VLOOKUP($A12,Filtro!$A$5:$AW$2944,2,FALSE),0) -> 343375 | E12: =IFERROR(VLOOKUP($A12,Filtro!$A$5:$AW$2944,3,FALSE),0) -> 342591 | F12: =IFERROR(VLOOKUP($A12,Filtro!$A$5:$AW$2944,4,FALSE),0) -> 3100448550
A13: 17400020 | C13: Consulta en Unidades de Urgencia Hospitalaria | D13: =IFERROR(VLOOKUP($A13,Filtro!$A$5:$AW$2944,2,FALSE),0) -> 258297 | E13: =IFERROR(VLOOKUP($A13,Filtro!$A$5:$AW$2944,3,FALSE),0) -> 246185 | F13: =IFERROR(VLOOKUP($A13,Filtro!$A$5:$AW$2944,4,FALSE),0) -> 2227974250
A14: 17400030 | C14: Atención médica del recién nacido en sala de parto o pabellón quirúrgico c/s reanimación cardio-respiratoria | D14: =IFERROR(VLOOKUP($A14,Filtro!$A$5:$AW$2944,2,FALSE),0) -> 3367 | E14: =IFERROR(VLOOKUP($A14,Filtro!$A$5:$AW$2944,3,FALSE),0) -> 2982 | F14: =IFERROR(VLOOKUP($A14,Filtro!$A$5:$AW$2944,4,FALSE),0) -> 50067780
A15: 17400040 | C15: Telemedicina/ Teleconsulta por profesional médico | D15: =IFERROR(VLOOKUP($A15,Filtro!$A$5:$AW$2944,2,FALSE),0) -> 19507 | E15: =IFERROR(VLOOKUP($A15,Filtro!$A$5:$AW$2944,3,FALSE),0) -> 19450 | F15: =IFERROR(VLOOKUP($A15,Filtro!$A$5:$AW$2944,4,FALSE),0) -> 146458500
A16: 17400060 | C16: Teleinterconsulta (Telemedicina) | D16: =IFERROR(VLOOKUP($A16,Filtro!$A$5:$AW$2944,2,FALSE),0) -> 80 | E16: =IFERROR(VLOOKUP($A16,Filtro!$A$5:$AW$2944,3,FALSE),0) -> 80 | F16: =IFERROR(VLOOKUP($A16,Filtro!$A$5:$AW$2944,4,FALSE),0) -> 602400
A17: 99000130 | B17: 0903006 | C17: Consultoría de salud mental por psiquiatra (sesión 4 hrs.) (mínimo 8 pacientes) | D17: =IFERROR(VLOOKUP($A17,Filtro!$A$5:$AW$2944,2,FALSE),0) -> 1635 | E17: =IFERROR(VLOOKUP($A17,Filtro!$A$5:$AW$2944,3,FALSE),0) -> 1635 | F17: =IFERROR(VLOOKUP($A17,Filtro!$A$5:$AW$2944,4,FALSE),0) -> 59595750
C18: CONSULTAS POR OTROS PROFESIONALES DE LA SALUD | D18: =SUM(D19:D29) -> 293891 | E18: =SUM(E19:E29) -> 293274 | F18: =SUM(F19:F29) -> 638,711,570
A19: 17400070 | B19: 0102008 | C19: Consulta o control por enfermera/o | D19: =IFERROR(VLOOKUP($A19,Filtro!$A$5:$AW$2944,2,FALSE),0) -> 106690 | E19: =IFERROR(VLOOKUP($A19,Filtro!$A$5:$AW$2944,3,FALSE),0) -> 106404 | F19: =IFERROR(VLOOKUP($A19,Filtro!$A$5:$AW$2944,4,FALSE),0) -> 150029640
A20: 99000150 | B20: 0102002 | C20: Control de salud niño con EDP por enfermera/o | D20: =IFERROR(VLOOKUP($A20,Filtro!$A$5:$AW$2944,2,FALSE),0) -> 2113 | E20: =IFERROR(VLOOKUP($A20,Filtro!$A$5:$AW$2944,3,FALSE),0) -> 2113 | F20: =IFERROR(VLOOKUP($A20,Filtro!$A$5:$AW$2944,4,FALSE),0) -> 5092330
A21: 99000160 | B21: 0102003 | C21: Consulta o control por auxiliar de enfermería | D21: =IFERROR(VLOOKUP($A21,Filtro!$A$5:$AW$2944,2,FALSE),0) -> 23668 | E21: =IFERROR(VLOOKUP($A21,Filtro!$A$5:$AW$2944,3,FALSE),0) -> 23667 | F21: =IFERROR(VLOOKUP($A21,Filtro!$A$5:$AW$2944,4,FALSE),0) -> 18460260
A22: 99000170 | B22: 0102005 | C22: Consulta por fonoaudiólogo/a | D22: =IFERROR(VLOOKUP($A22,Filtro!$A$5:$AW$2944,2,FALSE),0) -> 19565 | E22: =IFERROR(VLOOKUP($A22,Filtro!$A$5:$AW$2944,3,FALSE),0) -> 19540 | F22: =IFERROR(VLOOKUP($A22,Filtro!$A$5:$AW$2944,4,FALSE),0) -> 37516800
A23: 17400080 | B23: 0102009 | C23: Consulta o control por matron/a | D23: =IFERROR(VLOOKUP($A23,Filtro!$A$5:$AW$2944,2,FALSE),0) -> 47502 | E23: =IFERROR(VLOOKUP($A23,Filtro!$A$5:$AW$2944,3,FALSE),0) -> 47305 | F23: =IFERROR(VLOOKUP($A23,Filtro!$A$5:$AW$2944,4,FALSE),0) -> 66700050
A24: 17400090 | B24: 0102010 | C24: Consulta o control por nutricionista | D24: =IFERROR(VLOOKUP($A24,Filtro!$A$5:$AW$2944,2,FALSE),0) -> 23617 | E24: =IFERROR(VLOOKUP($A24,Filtro!$A$5:$AW$2944,3,FALSE),0) -> 23584 | F24: =IFERROR(VLOOKUP($A24,Filtro!$A$5:$AW$2944,4,FALSE),0) -> 33253440
A25: 99000200 | B25: 0903002 | C25: Consulta o control psicológico clínico | D25: =IFERROR(VLOOKUP($A25,Filtro!$A$5:$AW$2944,2,FALSE),0) -> 28428 | E25: =IFERROR(VLOOKUP($A25,Filtro!$A$5:$AW$2944,3,FALSE),0) -> 28411 | F25: =IFERROR(VLOOKUP($A25,Filtro!$A$5:$AW$2944,4,FALSE),0) -> 98017950
A26: 99000210 | B26: 0903003 | C26: Consulta de salud mental por otros profesionales | D26: =IFERROR(VLOOKUP($A26,Filtro!$A$5:$AW$2944,2,FALSE),0) -> 35131 | E26: =IFERROR(VLOOKUP($A26,Filtro!$A$5:$AW$2944,3,FALSE),0) -> 35082 | F26: =IFERROR(VLOOKUP($A26,Filtro!$A$5:$AW$2944,4,FALSE),0) -> 121032900
A27: 99000220 | B27: 0903004 | C27: Intervención psicosocial grupal (4 a 8 pacientes, familiares o cuidadores) | D27: =IFERROR(VLOOKUP($A27,Filtro!$A$5:$AW$2944,2,FALSE),0) -> 2791 | E27: =IFERROR(VLOOKUP($A27,Filtro!$A$5:$AW$2944,3,FALSE),0) -> 2782 | F27: =IFERROR(VLOOKUP($A27,Filtro!$A$5:$AW$2944,4,FALSE),0) -> 38169040
A28: 99000230 | B28: 0903005 | C28: Psicoterapia de grupo (por psicólogo o psiquiatra) (4 a 8 pacientes) | D28: =IFERROR(VLOOKUP($A28,Filtro!$A$5:$AW$2944,2,FALSE),0) -> 4386 | E28: =IFERROR(VLOOKUP($A28,Filtro!$A$5:$AW$2944,3,FALSE),0) -> 4386 | F28: =IFERROR(VLOOKUP($A28,Filtro!$A$5:$AW$2944,4,FALSE),0) -> 70439160
A29: 17400050 | C29: Telemedicina/ Teleconsulta por profesional no médico | D29: =IFERROR(VLOOKUP($A29,Filtro!$A$5:$AW$2944,2,FALSE),0) -> 0 | E29: =IFERROR(VLOOKUP($A29,Filtro!$A$5:$AW$2944,3,FALSE),0) -> 0 | F29: =IFERROR(VLOOKUP($A29,Filtro!$A$5:$AW$2944,4,FALSE),0) -> 0
C30: OTRAS CONSULTAS Y ATENCION MEDICA | D30: =IFERROR(VLOOKUP($A30,[2]Filtro!$A$5:$AW$2929,2,FALSE),0) -> 0
A31: 99100170 | C31: Consulta por otros profesionales | D31: =IFERROR(VLOOKUP($A31,Filtro!$A$5:$AW$2944,2,FALSE),0) -> 22288
A32: 17200390 | C32: Consulta por Trabajador(a) Social | D32: =IFERROR(VLOOKUP($A32,Filtro!$A$5:$AW$2944,2,FALSE),0) -> 12154
C33: PROGRAMAS DE REHABILITACION | D33: =SUM(D34:D35) -> 0 | E33: =SUM(E34:E35) -> 0 | F33: =SUM(F34:F35) -> 0
A34: 99000240 | B34: 0903007 | C34: Programa de rehabilitación tipo 1 (mensual, grupo 6 a 10 pers.) | D34: =IFERROR(VLOOKUP($A34,Filtro!$A$5:$AW$2944,2,FALSE),0) -> 0 | E34: =IFERROR(VLOOKUP($A34,Filtro!$A$5:$AW$2944,3,FALSE),0) -> 0 | F34: =IFERROR(VLOOKUP($A34,Filtro!$A$5:$AW$2944,4,FALSE),0) -> 0
